Workbook

Sheet рабочая таблица
B1: свыше 10 тыс. руб.
B2: от 5 тыс. руб. до 10 тыс. руб.
B3: от 1 до 5 тыс. руб
B4: нет долгов, оплачено вперед
A6: ID | B6: Ф.И.О. | C6: номер участка | D6: член правления | E6: телефонный номер | F6: куратор | G6: Сумма по полю 01.01.2016 | H6: Сумма по полю 01.02.2016 | I6: Сумма по полю 01.03.2016 | J6: Сумма по полю 01.04.2016 | K6: Сумма по полю 01.05.2016 | L6: Сумма по полю 01.06.2016 | M6: Сумма по полю 01.07.2016 | N6: Сумма по полю 01.08.2016 | O6: Сумма по полю 01.09.2016 | P6: Сумма по полю 01.10.2016 | Q6: Сумма по полю 01.11.2016 | R6: Сумма по полю 01.12.2016
A7: Общий итог | G7: 3756757.7 | H7: 3822557.7 | I7: 3920957.7 | J7: 4039007.7 | K7: 4083657.7 | L7: 4018357.7 | M7: 4255957.7 | N7: 4493557.7 | O7: 4731157.7 | P7: 4968757.7 | Q7: 5206357.7 | R7: 5443957.7
A8: 144 | B8: Рожкова Глафира Андреевна | C8: =VLOOKUP(A8,справочник!$A$2:$C$322,3,0) -> 153 | D8: =IFERROR(VLOOKUP(B8,справочник!$AF$2:$AF$15,1,0),"") ->  | F8: Сидельников Михаил Васильевич | G8: 102800 | H8: 103600 | I8: 104400 | J8: 105200 | K8: 106000 | L8: 106800 | M8: 107600 | N8: 108400 | O8: 109200 | P8: 110000 | Q8: 110800 | R8: 111600
A9: 199 | B9: Лошкарев Виктор Ильич | C9: =VLOOKUP(A9,справочник!$A$2:$C$322,3,0) -> 208 | D9: =IFERROR(VLOOKUP(B9,справочник!$AF$2:$AF$15,1,0),"") ->  | F9: Борисов Олег Александрович | G9: 86800 | H9: 87600 | I9: 88400 | J9: 89200 | K9: 90000 | L9: 90800 | M9: 91600 | N9: 92400 | O9: 93200 | P9: 94000 | Q9: 94800 | R9: 95600
A10: 56 | B10: Кушваха Виджай Шанкар | C10: =VLOOKUP(A10,справочник!$A$2:$C$322,3,0) -> 58 | D10: =IFERROR(VLOOKUP(B10,справочник!$AF$2:$AF$15,1,0),"") ->  | F10: Темникова Елена Станиславна | G10: 53800 | H10: 54600 | I10: 55400 | J10: 56200 | K10: 57000 | L10: 57800 | M10: 58600 | N10: 59400 | O10: 60200 | P10: 61000 | Q10: 61800 | R10: 62600
A11: 26 | B11: Олейников Дмитрий Александрович | C11: =VLOOKUP(A11,справочник!$A$2:$C$322,3,0) -> 26 | D11: =IFERROR(VLOOKUP(B11,справочник!$AF$2:$AF$15,1,0),"") ->  | F11: Жохова Елена Сергеевна | G11: 52800 | H11: 53600 | I11: 54400 | J11: 55200 | K11: 56000 | L11: 56800 | M11: 57600 | N11: 58400 | O11: 59200 | P11: 60000 | Q11: 60800 | R11: 61600
A12: 173 | B12: Колесников Никита Олегович(у Кряжковой Виктория Сергеевна | C12: =VLOOKUP(A12,справочник!$A$2:$C$322,3,0) -> 181 | D12: =IFERROR(VLOOKUP(B12,справочник!$AF$2:$AF$15,1,0),"") ->  | F12: Спиридонов Андрей Владимирович | G12: 51800 | H12: 52600 | I12: 53400 | J12: 54200 | K12: 55000 | L12: 55800 | M12: 56600 | N12: 57400 | O12: 58200 | P12: 59000 | Q12: 59800 | R12: 60600
A13: 278 | B13: Севастьянов Михаил Григорьевич | C13: =VLOOKUP(A13,справочник!$A$2:$C$322,3,0) -> 290 | D13: =IFERROR(VLOOKUP(B13,справочник!$AF$2:$AF$15,1,0),"") ->  | F13: Недосенко Олег Анатольевич | G13: 48800 | H13: 49600 | I13: 50400 | J13: 51200 | K13: 52000 | L13: 52800 | M13: 53600 | N13: 54400 | O13: 55200 | P13: 56000 | Q13: 56800 | R13: 57600
A14: 149 | B14: Кириллов Вадим Александрович | C14: =VLOOKUP(A14,справочник!$A$2:$C$322,3,0) -> 157 | D14: =IFERROR(VLOOKUP(B14,справочник!$AF$2:$AF$15,1,0),"") ->  | F14: Анциферов Алексей Сергеевич | G14: 49800 | H14: 50600 | I14: 50400 | J14: 51200 | K14: 51000 | L14: 51800 | M14: 52600 | N14: 53400 | O14: 54200 | P14: 55000 | Q14: 55800 | R14: 56600
A15: 30 | B15: Кириллов Дмитрий Александрович | C15: =VLOOKUP(A15,справочник!$A$2:$C$322,3,0) -> 30 | D15: =IFERROR(VLOOKUP(B15,справочник!$AF$2:$AF$15,1,0),"") ->  | F15: Жохова Елена Сергеевна | G15: 47800 | H15: 48600 | I15: 49400 | J15: 50200 | K15: 51000 | L15: 51800 | M15: 52600 | N15: 53400 | O15: 54200 | P15: 55000 | Q15: 55800 | R15: 56600
A16: 223 | B16: Борисов Олег Александрович | C16: =VLOOKUP(A16,справочник!$A$2:$C$322,3,0) -> 232 | D16: =IFERROR(VLOOKUP(B16,справочник!$AF$2:$AF$15,1,0),"") -> Борисов Олег Александрович | F16: Карпова Елена Витальевна | G16: 46800 | H16: 47600 | I16: 48400 | J16: 49200 | K16: 50000 | L16: 50800 | M16: 51600 | N16: 52400 | O16: 53200 | P16: 54000 | Q16: 54800 | R16: 55600
A17: 296 | B17: Бекмансурова Динара Василевна | C17: =VLOOKUP(A17,справочник!$A$2:$C$322,3,0) -> 311 | D17: =IFERROR(VLOOKUP(B17,справочник!$AF$2:$AF$15,1,0),"") ->  | F17: Измайлов Михаил Михайлович | G17: 44800 | H17: 45600 | I17: 46400 | J17: 47200 | K17: 48000 | L17: 48800 | M17: 49600 | N17: 50400 | O17: 51200 | P17: 52000 | Q17: 52800 | R17: 53600
A18: 67 | B18: Сбитнева Юлия Сергеевна | C18: =VLOOKUP(A18,справочник!$A$2:$C$322,3,0) -> 69 | D18: =IFERROR(VLOOKUP(B18,справочник!$AF$2:$AF$15,1,0),"") ->  | F18: Нелюбов Сергей Владимирович | G18: 44800 | H18: 45600 | I18: 46400 | J18: 47200 | K18: 48000 | L18: 48800 | M18: 49600 | N18: 50400 | O18: 51200 | P18: 52000 | Q18: 52800 | R18: 53600
A19: 238 | B19: Самоволькина Ирина Владимировна | C19: =VLOOKUP(A19,справочник!$A$2:$C$322,3,0) -> 249 | D19: =IFERROR(VLOOKUP(B19,справочник!$AF$2:$AF$15,1,0),"") ->  | F19: Ермошин Владимир Владимирович | G19: 43800 | H19: 44600 | I19: 45400 | J19: 46200 | K19: 47000 | L19: 47800 | M19: 48600 | N19: 49400 | O19: 50200 | P19: 51000 | Q19: 51800 | R19: 52600
A20: 69 | B20: Колташ Анна Владимировна | C20: =VLOOKUP(A20,справочник!$A$2:$C$322,3,0) -> 76 | D20: =IFERROR(VLOOKUP(B20,справочник!$AF$2:$AF$15,1,0),"") ->  | F20: Нелюбов Сергей Владимирович | G20: 39800 | H20: 40600 | I20: 41400 | J20: 42200 | K20: 43000 | L20: 43800 | M20: 44600 | N20: 45400 | O20: 46200 | P20: 47000 | Q20: 47800 | R20: 48600
A21: 7 | B21: Артемьев Сергей Иванович | C21: =VLOOKUP(A21,справочник!$A$2:$C$322,3,0) -> 14 | D21: =IFERROR(VLOOKUP(B21,справочник!$AF$2:$AF$15,1,0),"") ->  | F21: Жохова Елена Сергеевна | G21: 39800 | H21: 40600 | I21: 41400 | J21: 42200 | K21: 43000 | L21: 43800 | M21: 44600 | N21: 45400 | O21: 46200 | P21: 47000 | Q21: 47800 | R21: 48600
A22: 172 | B22: Ступнев Евгений Романович | C22: =VLOOKUP(A22,справочник!$A$2:$C$322,3,0) -> 180 | D22: =IFERROR(VLOOKUP(B22,справочник!$AF$2:$AF$15,1,0),"") ->  | F22: Анциферов Алексей Сергеевич | G22: 38800 | H22: 39600 | I22: 40400 | J22: 41200 | K22: 42000 | L22: 42800 | M22: 43600 | N22: 44400 | O22: 45200 | P22: 46000 | Q22: 46800 | R22: 47600
A23: 114 | B23: Беспаленко Зинаида Александровна | C23: =VLOOKUP(A23,справочник!$A$2:$C$322,3,0) -> 119 | D23: =IFERROR(VLOOKUP(B23,справочник!$AF$2:$AF$15,1,0),"") ->  | F23: Марин Андрей Вячеславович | G23: 35800 | H23: 36600 | I23: 37400 | J23: 38200 | K23: 39000 | L23: 39800 | M23: 40600 | N23: 41400 | O23: 42200 | P23: 43000 | Q23: 43800 | R23: 44600
A24: 106 | B24: Карпекина Лилия Рафаэльевна | C24: =VLOOKUP(A24,справочник!$A$2:$C$322,3,0) -> 111 | D24: =IFERROR(VLOOKUP(B24,справочник!$AF$2:$AF$15,1,0),"") ->  | F24: Марин Андрей Вячеславович | G24: 35800 | H24: 36600 | I24: 37400 | J24: 38200 | K24: 39000 | L24: 39800 | M24: 40600 | N24: 41400 | O24: 42200 | P24: 43000 | Q24: 43800 | R24: 44600
A25: 139 | B25: Левина Елена Александровна (Дмитрий) | C25: =VLOOKUP(A25,справочник!$A$2:$C$322,3,0) -> 149 | D25: =IFERROR(VLOOKUP(B25,справочник!$AF$2:$AF$15,1,0),"") ->  | F25: Сидельников Михаил Васильевич | G25: 39800 | H25: 40600 | I25: 41400 | J25: 42200 | K25: 38200 | L25: 39000 | M25: 39800 | N25: 40600 | O25: 41400 | P25: 42200 | Q25: 43000 | R25: 43800
A26: 197 | B26: Иванова Татьяна Викторовна | C26: =VLOOKUP(A26,справочник!$A$2:$C$322,3,0) -> 205 | D26: =IFERROR(VLOOKUP(B26,справочник!$AF$2:$AF$15,1,0),"") ->  | F26: Борисов Олег Александрович | G26: 34800 | H26: 35600 | I26: 36400 | J26: 37200 | K26: 38000 | L26: 38800 | M26: 39600 | N26: 40400 | O26: 41200 | P26: 42000 | Q26: 42800 | R26: 43600
A27: 188 | B27: Бондаренко Владимир Иванович | C27: =VLOOKUP(A27,справочник!$A$2:$C$322,3,0) -> 197 | D27: =IFERROR(VLOOKUP(B27,справочник!$AF$2:$AF$15,1,0),"") ->  | F27: Спиридонов Андрей Владимирович | G27: 34800 | H27: 35600 | I27: 36400 | J27: 37200 | K27: 38000 | L27: 38800 | M27: 39600 | N27: 40400 | O27: 41200 | P27: 42000 | Q27: 42800 | R27: 43600
A28: 183 | B28: Спиридонов Андрей Владимирович | C28: =VLOOKUP(A28,справочник!$A$2:$C$322,3,0) -> 192 | D28: =IFERROR(VLOOKUP(B28,справочник!$AF$2:$AF$15,1,0),"") -> Спиридонов Андрей Владимирович | F28: Спиридонов Андрей Владимирович | G28: 34800 | H28: 35600 | I28: 36400 | J28: 37200 | K28: 38000 | L28: 38800 | M28: 39600 | N28: 40400 | O28: 41200 | P28: 42000 | Q28: 42800 | R28: 43600
A29: 77 | B29: Самородов | C29: =VLOOKUP(A29,справочник!$A$2:$C$322,3,0) -> 83 | D29: =IFERROR(VLOOKUP(B29,справочник!$AF$2:$AF$15,1,0),"") ->  | F29: Абу Махади Мохаммед Ибрагим | G29: 33800 | H29: 34600 | I29: 35400 | J29: 36200 | K29: 37000 | L29: 37800 | M29: 38600 | N29: 39400 | O29: 40200 | P29: 41000 | Q29: 41800 | R29: 42600
A30: 299 | B30: Садовников Алексей Владимирович(Рошка Александр Николаевич) | C30: =VLOOKUP(A30,справочник!$A$2:$C$322,3,0) -> 314 | D30: =IFERROR(VLOOKUP(B30,справочник!$AF$2:$AF$15,1,0),"") ->  | F30: Измайлов Михаил Михайлович | G30: 32800 | H30: 33600 | I30: 34400 | J30: 35200 | K30: 36000 | L30: 36800 | M30: 37600 | N30: 38400 | O30: 39200 | P30: 40000 | Q30: 40800 | R30: 41600
A31: 306 | B31: Шептухина Александра Борисовна | C31: =VLOOKUP(A31,справочник!$A$2:$C$322,3,0) -> 321 | D31: =IFERROR(VLOOKUP(B31,справочник!$AF$2:$AF$15,1,0),"") ->  | F31: Измайлов Михаил Михайлович | G31: 31800 | H31: 32600 | I31: 33400 | J31: 34200 | K31: 35000 | L31: 35800 | M31: 36600 | N31: 37400 | O31: 38200 | P31: 39000 | Q31: 39800 | R31: 40600
A32: 91 | B32: Степанова Марина Николаевна (Артем) | C32: =VLOOKUP(A32,справочник!$A$2:$C$322,3,0) -> 96 | D32: =IFERROR(VLOOKUP(B32,справочник!$AF$2:$AF$15,1,0),"") ->  | F32: Абу Махади Мохаммед Ибрагим | G32: 31800 | H32: 32600 | I32: 33400 | J32: 34200 | K32: 35000 | L32: 35800 | M32: 36600 | N32: 37400 | O32: 38200 | P32: 39000 | Q32: 39800 | R32: 40600
A33: 150 | B33: Лайпанов Рустам Сеитбиевич | C33: =VLOOKUP(A33,справочник!$A$2:$C$322,3,0) -> 158 | D33: =IFERROR(VLOOKUP(B33,справочник!$AF$2:$AF$15,1,0),"") ->  | F33: Анциферов Алексей Сергеевич | G33: 30800 | H33: 31600 | I33: 32400 | J33: 33200 | K33: 34000 | L33: 34800 | M33: 35600 | N33: 36400 | O33: 37200 | P33: 38000 | Q33: 38800 | R33: 39600
A34: 135 | B34: Финогин Сергей Александрович | C34: 142 | D34: =IFERROR(VLOOKUP(B34,справочник!$AF$2:$AF$15,1,0),"") ->  | F34: Сидельников Михаил Васильевич | G34: 59800 | H34: 60600 | I34: 53400 | J34: 54200 | K34: 55000 | L34: 34800 | M34: 35600 | N34: 36400 | O34: 37200 | P34: 38000 | Q34: 38800 | R34: 39600
A35: 78 | B35: Шелухина Мария Сергеевна | C35: =VLOOKUP(A35,справочник!$A$2:$C$322,3,0) -> 83 | D35: =IFERROR(VLOOKUP(B35,справочник!$AF$2:$AF$15,1,0),"") ->  | F35: Абу Махади Мохаммед Ибрагим | G35: 30800 | H35: 31600 | I35: 32400 | J35: 33200 | K35: 34000 | L35: 34800 | M35: 35600 | N35: 36400 | O35: 37200 | P35: 38000 | Q35: 38800 | R35: 39600
A36: 113 | B36: Хрупало Николай Алексеевич (118+120) | C36: =VLOOKUP(A36,справочник!$A$2:$C$322,3,0) -> 116+118+120 | D36: =IFERROR(VLOOKUP(B36,справочник!$AF$2:$AF$15,1,0),"") ->  | F36: Марин Андрей Вячеславович | G36: 41000 | H36: 41000 | I36: 41000 | J36: 38000 | K36: 38000 | L36: 35000 | M36: 35000 | N36: 35000 | O36: 35000 | P36: 35000 | Q36: 35000 | R36: 35000
A37: 242 | B37: Моисеев Андрей Валентинович | C37: =VLOOKUP(A37,справочник!$A$2:$C$322,3,0) -> 253 | D37: =IFERROR(VLOOKUP(B37,справочник!$AF$2:$AF$15,1,0),"") ->  | F37: Ермошин Владимир Владимирович | G37: 29800 | H37: 30600 | I37: 31400 | J37: 32200 | K37: 33000 | L37: 33800 | M37: 34600 | N37: 35400 | O37: 36200 | P37: 37000 | Q37: 37800 | R37: 38600
A38: 99 | B38: Трыкин Евгений Викторович | C38: =VLOOKUP(A38,справочник!$A$2:$C$322,3,0) -> 104 | D38: =IFERROR(VLOOKUP(B38,справочник!$AF$2:$AF$15,1,0),"") ->  | F38: Марин Андрей Вячеславович | G38: 29800 | H38: 30600 | I38: 31400 | J38: 32200 | K38: 33000 | L38: 33800 | M38: 34600 | N38: 35400 | O38: 36200 | P38: 37000 | Q38: 37800 | R38: 38600
A39: 48 | B39: Сломов Константин Витальевич | C39: =VLOOKUP(A39,справочник!$A$2:$C$322,3,0) -> 48 | D39: =IFERROR(VLOOKUP(B39,справочник!$AF$2:$AF$15,1,0),"") ->  | F39: Темникова Елена Станиславна | G39: 29800 | H39: 30600 | I39: 31400 | J39: 32200 | K39: 33000 | L39: 33800 | M39: 34600 | N39: 35400 | O39: 36200 | P39: 37000 | Q39: 37800 | R39: 38600
A40: 288 | B40: Ли Наталья Сергеевна | C40: =VLOOKUP(A40,справочник!$A$2:$C$322,3,0) -> 300 | D40: =IFERROR(VLOOKUP(B40,справочник!$AF$2:$AF$15,1,0),"") ->  | F40: Недосенко Олег Анатольевич | G40: 28800 | H40: 29600 | I40: 30400 | J40: 31200 | K40: 32000 | L40: 32800 | M40: 33600 | N40: 34400 | O40: 35200 | P40: 36000 | Q40: 36800 | R40: 37600
A41: 148 | B41: Горячев Дмитрий Николаевич | C41: =VLOOKUP(A41,справочник!$A$2:$C$322,3,0) -> 156 | D41: =IFERROR(VLOOKUP(B41,справочник!$AF$2:$AF$15,1,0),"") ->  | F41: Анциферов Алексей Сергеевич | G41: 33800 | H41: 32800 | I41: 31800 | J41: 30800 | K41: 31600 | L41: 32400 | M41: 33200 | N41: 34000 | O41: 34800 | P41: 35600 | Q41: 36400 | R41: 37200
A42: 63 | B42: Захаров Михаил Сергеевич | C42: =VLOOKUP(A42,справочник!$A$2:$C$322,3,0) -> 65 | D42: =IFERROR(VLOOKUP(B42,справочник!$AF$2:$AF$15,1,0),"") ->  | F42: Нелюбов Сергей Владимирович | G42: 28800 | H42: 29600 | I42: 30400 | J42: 31200 | K42: 32000 | L42: 32000 | M42: 32800 | N42: 33600 | O42: 34400 | P42: 35200 | Q42: 36000 | R42: 36800
A43: 257 | B43: Месхидзе Оксана Валерьевна | C43: =VLOOKUP(A43,справочник!$A$2:$C$322,3,0) -> 270 | D43: =IFERROR(VLOOKUP(B43,справочник!$AF$2:$AF$15,1,0),"") ->  | F43: Лапшин Сергей Николаевич | G43: 26800 | H43: 27600 | I43: 28400 | J43: 29200 | K43: 30000 | L43: 30800 | M43: 31600 | N43: 32400 | O43: 33200 | P43: 34000 | Q43: 34800 | R43: 35600
A44: 12 | B44: Захаренкова Светлана Евгеньевна | C44: =VLOOKUP(A44,справочник!$A$2:$C$322,3,0) -> 12 | D44: =IFERROR(VLOOKUP(B44,справочник!$AF$2:$AF$15,1,0),"") ->  | F44: Жохова Елена Сергеевна | G44: 26800 | H44: 27600 | I44: 28400 | J44: 29200 | K44: 30000 | L44: 30800 | M44: 31600 | N44: 32400 | O44: 33200 | P44: 34000 | Q44: 34800 | R44: 35600
A45: 261 | B45: Леськов Олег Петрович | C45: =VLOOKUP(A45,справочник!$A$2:$C$322,3,0) -> 275 | D45: =IFERROR(VLOOKUP(B45,справочник!$AF$2:$AF$15,1,0),"") ->  | F45: Лапшин Сергей Николаевич | G45: 28400 | H45: 29200 | I45: 30000 | J45: 28400 | K45: 29200 | L45: 30000 | M45: 30800 | N45: 31600 | O45: 32400 | P45: 33200 | Q45: 34000 | R45: 34800
A46: 164 | B46: Лунёв Денис Александрович | C46: =VLOOKUP(A46,справочник!$A$2:$C$322,3,0) -> 172 | D46: =IFERROR(VLOOKUP(B46,справочник!$AF$2:$AF$15,1,0),"") ->  | F46: Анциферов Алексей Сергеевич | G46: 25800 | H46: 26600 | I46: 27400 | J46: 28200 | K46: 29000 | L46: 29800 | M46: 30600 | N46: 31400 | O46: 32200 | P46: 33000 | Q46: 33800 | R46: 34600
A47: 303 | B47: Бурдух Юрие | C47: =VLOOKUP(A47,справочник!$A$2:$C$322,3,0) -> 319 | D47: =IFERROR(VLOOKUP(B47,справочник!$AF$2:$AF$15,1,0),"") ->  | F47: Измайлов Михаил Михайлович | G47: 24800 | H47: 25600 | I47: 26400 | J47: 27200 | K47: 28000 | L47: 28800 | M47: 29600 | N47: 30400 | O47: 31200 | P47: 32000 | Q47: 32800 | R47: 33600
A48: 249 | B48: Байбикова Рузалия Равилевна / Байбикова Руфия Равилевна | C48: =VLOOKUP(A48,справочник!$A$2:$C$322,3,0) -> 260 | D48: =IFERROR(VLOOKUP(B48,справочник!$AF$2:$AF$15,1,0),"") ->  | F48: Ермошин Владимир Владимирович | G48: 24800 | H48: 25600 | I48: 26400 | J48: 27200 | K48: 28000 | L48: 28800 | M48: 29600 | N48: 30400 | O48: 31200 | P48: 32000 | Q48: 32800 | R48: 33600
A49: 232 | B49: Амплеева Мария Александровна | C49: =VLOOKUP(A49,справочник!$A$2:$C$322,3,0) -> 241 | D49: =IFERROR(VLOOKUP(B49,справочник!$AF$2:$AF$15,1,0),"") ->  | F49: Ермошин Владимир Владимирович | G49: 24800 | H49: 25600 | I49: 26400 | J49: 27200 | K49: 28000 | L49: 28800 | M49: 29600 | N49: 30400 | O49: 31200 | P49: 32000 | Q49: 32800 | R49: 33600
A50: 202 | B50: Корчинская Ирина Анатольевна | C50: =VLOOKUP(A50,справочник!$A$2:$C$322,3,0) -> 212 | D50: =IFERROR(VLOOKUP(B50,справочник!$AF$2:$AF$15,1,0),"") ->  | F50: Борисов Олег Александрович | G50: 24800 | H50: 25600 | I50: 26400 | J50: 27200 | K50: 28000 | L50: 28800 | M50: 29600 | N50: 30400 | O50: 31200 | P50: 32000 | Q50: 32800 | R50: 33600
A51: 151 | B51: Бирюков Александр Сергеевич | C51: =VLOOKUP(A51,справочник!$A$2:$C$322,3,0) -> 159 | D51: =IFERROR(VLOOKUP(B51,справочник!$AF$2:$AF$15,1,0),"") ->  | F51: Анциферов Алексей Сергеевич | G51: 24800 | H51: 25600 | I51: 26400 | J51: 27200 | K51: 28000 | L51: 28800 | M51: 29600 | N51: 30400 | O51: 31200 | P51: 32000 | Q51: 32800 | R51: 33600
A52: 229 | B52: Безменова Татьяна Игоревна | C52: =VLOOKUP(A52,справочник!$A$2:$C$322,3,0) -> 238 | D52: =IFERROR(VLOOKUP(B52,справочник!$AF$2:$AF$15,1,0),"") ->  | F52: Карпова Елена Витальевна | G52: 23800 | H52: 24600 | I52: 25400 | J52: 26200 | K52: 27000 | L52: 27800 | M52: 28600 | N52: 29400 | O52: 30200 | P52: 31000 | Q52: 31800 | R52: 32600
A53: 157 | B53: Кудрявцева Наталья Викторовна | C53: =VLOOKUP(A53,справочник!$A$2:$C$322,3,0) -> 165 | D53: =IFERROR(VLOOKUP(B53,справочник!$AF$2:$AF$15,1,0),"") ->  | F53: Анциферов Алексей Сергеевич | G53: 23800 | H53: 24600 | I53: 25400 | J53: 26200 | K53: 27000 | L53: 27800 | M53: 28600 | N53: 29400 | O53: 30200 | P53: 31000 | Q53: 31800 | R53: 32600
A54: 47 | B54: Новикова Светлана Владимировна (Анатолий) | C54: =VLOOKUP(A54,справочник!$A$2:$C$322,3,0) -> 47 | D54: =IFERROR(VLOOKUP(B54,справочник!$AF$2:$AF$15,1,0),"") ->  | F54: Темникова Елена Станиславна | G54: 23800 | H54: 24600 | I54: 25400 | J54: 26200 | K54: 27000 | L54: 27800 | M54: 28600 | N54: 29400 | O54: 30200 | P54: 31000 | Q54: 31800 | R54: 32600
A55: 309 | B55: Янковская Яна Валерьевна | C55: =VLOOKUP(A55,справочник!$A$2:$C$322,3,0) -> 324 | D55: =IFERROR(VLOOKUP(B55,справочник!$AF$2:$AF$15,1,0),"") ->  | F55: Измайлов Михаил Михайлович | G55: 22800 | H55: 23600 | I55: 24400 | J55: 25200 | K55: 26000 | L55: 26800 | M55: 27600 | N55: 28400 | O55: 29200 | P55: 30000 | Q55: 30800 | R55: 31600
A56: 187 | B56: Мирошниченко Екатерина Олеговна | C56: =VLOOKUP(A56,справочник!$A$2:$C$322,3,0) -> 195 | D56: =IFERROR(VLOOKUP(B56,справочник!$AF$2:$AF$15,1,0),"") ->  | F56: Спиридонов Андрей Владимирович | G56: 27800 | H56: 28600 | I56: 29400 | J56: 25200 | K56: 26000 | L56: 26800 | M56: 27600 | N56: 28400 | O56: 29200 | P56: 30000 | Q56: 30800 | R56: 31600
A57: 158 | B57: Лебедева Елена Александровна | C57: =VLOOKUP(A57,справочник!$A$2:$C$322,3,0) -> 166 | D57: =IFERROR(VLOOKUP(B57,справочник!$AF$2:$AF$15,1,0),"") ->  | F57: Анциферов Алексей Сергеевич | G57: 22800 | H57: 23600 | I57: 24400 | J57: 25200 | K57: 26000 | L57: 26800 | M57: 27600 | N57: 28400 | O57: 29200 | P57: 30000 | Q57: 30800 | R57: 31600
A58: 228 | B58: Виртилецкий Денис Вячеславович | C58: =VLOOKUP(A58,справочник!$A$2:$C$322,3,0) -> 237 | D58: =IFERROR(VLOOKUP(B58,справочник!$AF$2:$AF$15,1,0),"") ->  | F58: Карпова Елена Витальевна | G58: 21800 | H58: 22600 | I58: 23400 | J58: 24200 | K58: 25000 | L58: 25800 | M58: 26600 | N58: 27400 | O58: 28200 | P58: 29000 | Q58: 29800 | R58: 30600
A59: 160 | B59: Пономарева Олеся Сергеевна | C59: =VLOOKUP(A59,справочник!$A$2:$C$322,3,0) -> 168 | D59: =IFERROR(VLOOKUP(B59,справочник!$AF$2:$AF$15,1,0),"") ->  | F59: Анциферов Алексей Сергеевич | G59: 21800 | H59: 22600 | I59: 23400 | J59: 24200 | K59: 25000 | L59: 25800 | M59: 26600 | N59: 27400 | O59: 28200 | P59: 29000 | Q59: 29800 | R59: 30600
A60: 89 | B60: Олег (Гусев Николай Михайлович — был) | C60: =VLOOKUP(A60,справочник!$A$2:$C$322,3,0) -> 94 | D60: =IFERROR(VLOOKUP(B60,справочник!$AF$2:$AF$15,1,0),"") ->  | F60: Абу Махади Мохаммед Ибрагим | G60: 21800 | H60: 22600 | I60: 23400 | J60: 24200 | K60: 25000 | L60: 25800 | M60: 26600 | N60: 27400 | O60: 28200 | P60: 29000 | Q60: 29800 | R60: 30600
A61: 61 | B61: Высоких Антон Маркович | C61: =VLOOKUP(A61,справочник!$A$2:$C$322,3,0) -> 63 | D61: =IFERROR(VLOOKUP(B61,справочник!$AF$2:$AF$15,1,0),"") ->  | F61: Нелюбов Сергей Владимирович | G61: 21800 | H61: 22600 | I61: 23400 | J61: 24200 | K61: 25000 | L61: 25800 | M61: 26600 | N61: 27400 | O61: 28200 | P61: 29000 | Q61: 29800 | R61: 30600
A62: 43 | B62: Васильцова Елена Владимировна | C62: =VLOOKUP(A62,справочник!$A$2:$C$322,3,0) -> 43 | D62: =IFERROR(VLOOKUP(B62,справочник!$AF$2:$AF$15,1,0),"") ->  | F62: Темникова Елена Станиславна | G62: 23800 | H62: 24600 | I62: 25400 | J62: 26200 | K62: 27000 | L62: 25800 | M62: 26600 | N62: 27400 | O62: 28200 | P62: 29000 | Q62: 29800 | R62: 30600
A63: 3 | B63: Лебедев Андрей Анатольевич | C63: =VLOOKUP(A63,справочник!$A$2:$C$322,3,0) -> 3 | D63: =IFERROR(VLOOKUP(B63,справочник!$AF$2:$AF$15,1,0),"") ->  | F63: Жохова Елена Сергеевна | G63: 21800 | H63: 22600 | I63: 23400 | J63: 24200 | K63: 25000 | L63: 25800 | M63: 26600 | N63: 27400 | O63: 28200 | P63: 29000 | Q63: 29800 | R63: 30600
A64: 310 | B64: Сидельникова Ольга Петровна | C64: =VLOOKUP(A64,справочник!$A$2:$C$322,3,0) -> 133-134 | D64: =IFERROR(VLOOKUP(B64,справочник!$AF$2:$AF$15,1,0),"") ->  | F64: ={#н/д} ->  | G64: 35800 | H64: 36600 | I64: 32400 | J64: 28250 | K64: 24050 | L64: 24850 | M64: 25650 | N64: 26450 | O64: 27250 | P64: 28050 | Q64: 28850 | R64: 29650
A65: 265 | B65: Козловский Алексей Гаврилович | C65: =VLOOKUP(A65,справочник!$A$2:$C$322,3,0) -> 278 | D65: =IFERROR(VLOOKUP(B65,справочник!$AF$2:$AF$15,1,0),"") ->  | F65: Лапшин Сергей Николаевич | G65: 23800 | H65: 24600 | I65: 22400 | J65: 23200 | K65: 24000 | L65: 24800 | M65: 25600 | N65: 26400 | O65: 27200 | P65: 28000 | Q65: 28800 | R65: 29600
A66: 251 | B66: Пузанова Екатерина Вячеславовна | C66: =VLOOKUP(A66,справочник!$A$2:$C$322,3,0) -> 262 | D66: =IFERROR(VLOOKUP(B66,справочник!$AF$2:$AF$15,1,0),"") ->  | F66: Лапшин Сергей Николаевич | G66: 20800 | H66: 21600 | I66: 22400 | J66: 23200 | K66: 24000 | L66: 24800 | M66: 25600 | N66: 26400 | O66: 27200 | P66: 28000 | Q66: 28800 | R66: 29600
A67: 239 | B67: Салопаева Татьяна Сергеевна | C67: =VLOOKUP(A67,справочник!$A$2:$C$322,3,0) -> 250 | D67: =IFERROR(VLOOKUP(B67,справочник!$AF$2:$AF$15,1,0),"") ->  | F67: Ермошин Владимир Владимирович | G67: 20800 | H67: 21600 | I67: 22400 | J67: 23200 | K67: 24000 | L67: 24800 | M67: 25600 | N67: 26400 | O67: 27200 | P67: 28000 | Q67: 28800 | R67: 29600
A68: 226 | B68: Данильянц Юрий Константинович | C68: =VLOOKUP(A68,справочник!$A$2:$C$322,3,0) -> 235 | D68: =IFERROR(VLOOKUP(B68,справочник!$AF$2:$AF$15,1,0),"") ->  | F68: Карпова Елена Витальевна | G68: 20800 | H68: 21600 | I68: 22400 | J68: 23200 | K68: 24000 | L68: 24800 | M68: 25600 | N68: 26400 | O68: 27200 | P68: 28000 | Q68: 28800 | R68: 29600
A69: 224 | B69: Рудая Наталья Викторовна | C69: =VLOOKUP(A69,справочник!$A$2:$C$322,3,0) -> 233 | D69: =IFERROR(VLOOKUP(B69,справочник!$AF$2:$AF$15,1,0),"") ->  | F69: Карпова Елена Витальевна | G69: 20800 | H69: 21600 | I69: 22400 | J69: 23200 | K69: 24000 | L69: 24800 | M69: 25600 | N69: 26400 | O69: 27200 | P69: 28000 | Q69: 28800 | R69: 29600
A70: 195 | B70: Родичева Наталья Николаевна - Завилевская Е.И. ??? | C70: =VLOOKUP(A70,справочник!$A$2:$C$322,3,0) -> 203 | D70: =IFERROR(VLOOKUP(B70,справочник!$AF$2:$AF$15,1,0),"") ->  | F70: Борисов Олег Александрович | G70: 24800 | H70: 25600 | I70: 26400 | J70: 27200 | K70: 28000 | L70: 24800 | M70: 25600 | N70: 26400 | O70: 27200 | P70: 28000 | Q70: 28800 | R70: 29600
A71: 65 | B71: Куликова Наталья Александровна | C71: =VLOOKUP(A71,справочник!$A$2:$C$322,3,0) -> 67 | D71: =IFERROR(VLOOKUP(B71,справочник!$AF$2:$AF$15,1,0),"") ->  | F71: Нелюбов Сергей Владимирович | G71: 20800 | H71: 21600 | I71: 22400 | J71: 23200 | K71: 24000 | L71: 24800 | M71: 25600 | N71: 26400 | O71: 27200 | P71: 28000 | Q71: 28800 | R71: 29600
A72: 315 | B72: Ратников Алексей Сергеевич | C72: =VLOOKUP(A72,справочник!$A$2:$C$322,3,0) -> 265-266 | D72: =IFERROR(VLOOKUP(B72,справочник!$AF$2:$AF$15,1,0),"") ->  | F72: ={#н/д} ->  | G72: 19800 | H72: 20600 | I72: 21400 | J72: 22200 | K72: 23000 | L72: 23800 | M72: 24600 | N72: 25400 | O72: 26200 | P72: 27000 | Q72: 27800 | R72: 28600
A73: 117 | B73: Вольский Андрей Юрьевич | C73: =VLOOKUP(A73,справочник!$A$2:$C$322,3,0) -> 122 | D73: =IFERROR(VLOOKUP(B73,справочник!$AF$2:$AF$15,1,0),"") ->  | F73: Марин Андрей Вячеславович | G73: 19800 | H73: 20600 | I73: 21400 | J73: 22200 | K73: 23000 | L73: 23800 | M73: 24600 | N73: 25400 | O73: 26200 | P73: 27000 | Q73: 27800 | R73: 28600
A74: 110 | B74: Кондрашов Роман Вячеславович | C74: =VLOOKUP(A74,справочник!$A$2:$C$322,3,0) -> 115 | D74: =IFERROR(VLOOKUP(B74,справочник!$AF$2:$AF$15,1,0),"") ->  | F74: Марин Андрей Вячеславович | G74: 19800 | H74: 20600 | I74: 21400 | J74: 22200 | K74: 23000 | L74: 23800 | M74: 24600 | N74: 25400 | O74: 26200 | P74: 27000 | Q74: 27800 | R74: 28600
A75: 109 | B75: Антипова Жанна Михайловна | C75: =VLOOKUP(A75,справочник!$A$2:$C$322,3,0) -> 114 | D75: =IFERROR(VLOOKUP(B75,справочник!$AF$2:$AF$15,1,0),"") ->  | F75: Марин Андрей Вячеславович | G75: 21800 | H75: 21600 | I75: 21400 | J75: 22200 | K75: 23000 | L75: 23800 | M75: 24600 | N75: 25400 | O75: 26200 | P75: 27000 | Q75: 27800 | R75: 28600
A76: 98 | B76: Бугрова Вероника Артуровна | C76: =VLOOKUP(A76,справочник!$A$2:$C$322,3,0) -> 103 | D76: =IFERROR(VLOOKUP(B76,справочник!$AF$2:$AF$15,1,0),"") ->  | F76: Марин Андрей Вячеславович | G76: 19800 | H76: 20600 | I76: 21400 | J76: 22200 | K76: 23000 | L76: 23800 | M76: 24600 | N76: 25400 | O76: 26200 | P76: 27000 | Q76: 27800 | R76: 28600
A77: 213 | B77: Жирная Татьяна Сергеевна | C77: =VLOOKUP(A77,справочник!$A$2:$C$322,3,0) -> 222 | D77: =IFERROR(VLOOKUP(B77,справочник!$AF$2:$AF$15,1,0),"") ->  | F77: Карпова Елена Витальевна | G77: 19300 | H77: 20100 | I77: 20900 | J77: 21700 | K77: 22500 | L77: 23300 | M77: 24100 | N77: 24900 | O77: 25700 | P77: 26500 | Q77: 27300 | R77: 28100
A78: 281 | B78: Белов Семён Иванович | C78: =VLOOKUP(A78,справочник!$A$2:$C$322,3,0) -> 293 | D78: =IFERROR(VLOOKUP(B78,справочник!$AF$2:$AF$15,1,0),"") ->  | F78: Недосенко Олег Анатольевич | G78: 18800 | H78: 19600 | I78: 20400 | J78: 21200 | K78: 22000 | L78: 22800 | M78: 23600 | N78: 24400 | O78: 25200 | P78: 26000 | Q78: 26800 | R78: 27600
A79: 269 | B79: Коваленко Ирина Леонидовна | C79: =VLOOKUP(A79,справочник!$A$2:$C$322,3,0) -> 282 | D79: =IFERROR(VLOOKUP(B79,справочник!$AF$2:$AF$15,1,0),"") ->  | F79: Недосенко Олег Анатольевич | G79: 18800 | H79: 19600 | I79: 20400 | J79: 21200 | K79: 22000 | L79: 22800 | M79: 23600 | N79: 24400 | O79: 25200 | P79: 26000 | Q79: 26800 | R79: 27600
A80: 93 | B80: Тимофеева Татьяна Александровна (Денис) | C80: =VLOOKUP(A80,справочник!$A$2:$C$322,3,0) -> 98 | D80: =IFERROR(VLOOKUP(B80,справочник!$AF$2:$AF$15,1,0),"") ->  | F80: Абу Махади Мохаммед Ибрагим | G80: 18800 | H80: 19600 | I80: 20400 | J80: 21200 | K80: 22000 | L80: 22800 | M80: 23600 | N80: 24400 | O80: 25200 | P80: 26000 | Q80: 26800 | R80: 27600
A81: 220 | B81: Ларионова Наталья Владимировна | C81: =VLOOKUP(A81,справочник!$A$2:$C$322,3,0) -> 229 | D81: =IFERROR(VLOOKUP(B81,справочник!$AF$2:$AF$15,1,0),"") ->  | F81: Карпова Елена Витальевна | G81: 17800 | H81: 18600 | I81: 19400 | J81: 20200 | K81: 21000 | L81: 21800 | M81: 22600 | N81: 23400 | O81: 24200 | P81: 25000 | Q81: 25800 | R81: 26600
A82: 192 | B82: Косенков Степан Фед-ч(Галактионова) | C82: =VLOOKUP(A82,справочник!$A$2:$C$322,3,0) -> 200 | D82: =IFERROR(VLOOKUP(B82,справочник!$AF$2:$AF$15,1,0),"") ->  | F82: Спиридонов Андрей Владимирович | G82: 17800 | H82: 18600 | I82: 19400 | J82: 20200 | K82: 21000 | L82: 21800 | M82: 22600 | N82: 23400 | O82: 24200 | P82: 25000 | Q82: 25800 | R82: 26600
A83: 119 | B83: Афян Сасун Аркадиевич | C83: =VLOOKUP(A83,справочник!$A$2:$C$322,3,0) -> 124 | D83: =IFERROR(VLOOKUP(B83,справочник!$AF$2:$AF$15,1,0),"") ->  | F83: Марин Андрей Вячеславович | G83: 20800 | H83: 21600 | I83: 19400 | J83: 20200 | K83: 21000 | L83: 21800 | M83: 22600 | N83: 23400 | O83: 24200 | P83: 25000 | Q83: 25800 | R83: 26600
A84: 20 | B84: Харинкина Танзиля Гарафутдиновна | C84: =VLOOKUP(A84,справочник!$A$2:$C$322,3,0) -> 20 | D84: =IFERROR(VLOOKUP(B84,справочник!$AF$2:$AF$15,1,0),"") ->  | F84: Жохова Елена Сергеевна | G84: 17800 | H84: 18600 | I84: 19400 | J84: 20200 | K84: 21000 | L84: 21800 | M84: 22600 | N84: 23400 | O84: 24200 | P84: 25000 | Q84: 25800 | R84: 26600
A85: 316 | B85: Алексеев Андрей Олегович | C85: =VLOOKUP(A85,справочник!$A$2:$C$322,3,0) -> 306-307 | D85: =IFERROR(VLOOKUP(B85,справочник!$AF$2:$AF$15,1,0),"") ->  | F85: ={#н/д} ->  | G85: 17000 | H85: 17800 | I85: 18600 | J85: 19400 | K85: 20200 | L85: 21000 | M85: 21800 | N85: 22600 | O85: 23400 | P85: 24200 | Q85: 25000 | R85: 25800
A86: 105 | B86: Брылёв Андрей Вячеславович | C86: =VLOOKUP(A86,справочник!$A$2:$C$322,3,0) -> 110 | D86: =IFERROR(VLOOKUP(B86,справочник!$AF$2:$AF$15,1,0),"") ->  | F86: Марин Андрей Вячеславович | G86: 17800 | H86: 18600 | I86: 19400 | J86: 20200 | K86: 21000 | L86: 21000 | M86: 21800 | N86: 22600 | O86: 23400 | P86: 24200 | Q86: 25000 | R86: 25800
A87: 225 | B87: Крупник Андрей Валерьевич | C87: =VLOOKUP(A87,справочник!$A$2:$C$322,3,0) -> 234 | D87: =IFERROR(VLOOKUP(B87,справочник!$AF$2:$AF$15,1,0),"") ->  | F87: Карпова Елена Витальевна | G87: 16800 | H87: 17600 | I87: 18400 | J87: 19200 | K87: 20000 | L87: 20800 | M87: 21600 | N87: 22400 | O87: 23200 | P87: 24000 | Q87: 24800 | R87: 25600
A88: 35 | B88: Абушаев Роман Шамильевич | C88: =VLOOKUP(A88,справочник!$A$2:$C$322,3,0) -> 35 | D88: =IFERROR(VLOOKUP(B88,справочник!$AF$2:$AF$15,1,0),"") ->  | F88: Темникова Елена Станиславна | G88: 16800 | H88: 17600 | I88: 18400 | J88: 19200 | K88: 20000 | L88: 20800 | M88: 21600 | N88: 22400 | O88: 23200 | P88: 24000 | Q88: 24800 | R88: 25600
A89: 13 | B89: Малов Алексей Викторович | C89: =VLOOKUP(A89,справочник!$A$2:$C$322,3,0) -> 13 | D89: =IFERROR(VLOOKUP(B89,справочник!$AF$2:$AF$15,1,0),"") ->  | F89: Жохова Елена Сергеевна | G89: 16800 | H89: 17600 | I89: 18400 | J89: 19200 | K89: 20000 | L89: 20800 | M89: 21600 | N89: 22400 | O89: 23200 | P89: 24000 | Q89: 24800 | R89: 25600
A90: 190 | B90: Коновальцев Олег Серафимович | C90: =VLOOKUP(A90,справочник!$A$2:$C$322,3,0) -> 198 | D90: =IFERROR(VLOOKUP(B90,справочник!$AF$2:$AF$15,1,0),"") ->  | F90: Спиридонов Андрей Владимирович | G90: 16800 | H90: 17600 | I90: 18400 | J90: 19200 | K90: 20000 | L90: 20000 | M90: 20800 | N90: 21600 | O90: 22400 | P90: 23200 | Q90: 24000 | R90: 24800
A91: 209 | B91: Мельников Михаил Вячеславович / Диденко | C91: =VLOOKUP(A91,справочник!$A$2:$C$322,3,0) -> 219 | D91: =IFERROR(VLOOKUP(B91,справочник!$AF$2:$AF$15,1,0),"") ->  | F91: Борисов Олег Александрович | G91: 20800 | H91: 21600 | I91: 22400 | J91: 23200 | K91: 22000 | L91: 19800 | M91: 20600 | N91: 21400 | O91: 22200 | P91: 23000 | Q91: 23800 | R91: 24600
A92: 147 | B92: Пахарева Ольга Александровна (Дмитрий) | C92: =VLOOKUP(A92,справочник!$A$2:$C$322,3,0) -> 155 | D92: =IFERROR(VLOOKUP(B92,справочник!$AF$2:$AF$15,1,0),"") ->  | F92: Сидельников Михаил Васильевич | G92: 15800 | H92: 16600 | I92: 17400 | J92: 18200 | K92: 19000 | L92: 19800 | M92: 20600 | N92: 21400 | O92: 22200 | P92: 23000 | Q92: 23800 | R92: 24600
A93: 113 | B93: Хрупало Николай Алексеевич | C93: =VLOOKUP(A93,справочник!$A$2:$C$322,3,0) -> 116+118+120 | D93: =IFERROR(VLOOKUP(B93,справочник!$AF$2:$AF$15,1,0),"") ->  | F93: Марин Андрей Вячеславович | G93: 15800 | H93: 16600 | I93: 17400 | J93: 18200 | K93: 19000 | L93: 19800 | M93: 20600 | N93: 21400 | O93: 22200 | P93: 23000 | Q93: 23800 | R93: 24600
A94: 46 | B94: Сысоев Евгений Анатольевич | C94: =VLOOKUP(A94,справочник!$A$2:$C$322,3,0) -> 46 | D94: =IFERROR(VLOOKUP(B94,справочник!$AF$2:$AF$15,1,0),"") ->  | F94: Темникова Елена Станиславна | G94: 15800 | H94: 16600 | I94: 17400 | J94: 18200 | K94: 19000 | L94: 19800 | M94: 20600 | N94: 21400 | O94: 22200 | P94: 23000 | Q94: 23800 | R94: 24600
A95: 41 | B95: Шустов Василий Александрович | C95: =VLOOKUP(A95,справочник!$A$2:$C$322,3,0) -> 41 | D95: =IFERROR(VLOOKUP(B95,справочник!$AF$2:$AF$15,1,0),"") ->  | F95: Темникова Елена Станиславна | G95: 15800 | H95: 16600 | I95: 17400 | J95: 18200 | K95: 19000 | L95: 19800 | M95: 20600 | N95: 21400 | O95: 22200 | P95: 23000 | Q95: 23800 | R95: 24600
A96: 40 | B96: Яшин Евгений Иванович | C96: =VLOOKUP(A96,справочник!$A$2:$C$322,3,0) -> 40 | D96: =IFERROR(VLOOKUP(B96,справочник!$AF$2:$AF$15,1,0),"") ->  | F96: Темникова Елена Станиславна | G96: 15800 | H96: 16600 | I96: 17400 | J96: 18200 | K96: 19000 | L96: 19800 | M96: 20600 | N96: 21400 | O96: 22200 | P96: 23000 | Q96: 23800 | R96: 24600
A97: 185 | B97: Петункин Игорь Минович | C97: =VLOOKUP(A97,справочник!$A$2:$C$322,3,0) -> 193 | D97: =IFERROR(VLOOKUP(B97,справочник!$AF$2:$AF$15,1,0),"") ->  | F97: Спиридонов Андрей Владимирович | G97: 14800 | H97: 15600 | I97: 16400 | J97: 17200 | K97: 18000 | L97: 18800 | M97: 19600 | N97: 20400 | O97: 21200 | P97: 22000 | Q97: 22800 | R97: 23600
A98: 124 | B98: Казымов Горхмаз Гамид/Лавренчук Александр Владиславович | C98: =VLOOKUP(A98,справочник!$A$2:$C$322,3,0) -> 129 | D98: =IFERROR(VLOOKUP(B98,справочник!$AF$2:$AF$15,1,0),"") ->  | F98: Марин Андрей Вячеславович | G98: 14300 | H98: 15100 | I98: 15900 | J98: 16700 | K98: 17500 | L98: 18300 | M98: 19100 | N98: 19900 | O98: 20700 | P98: 21500 | Q98: 22300 | R98: 23100
A99: 305 | B99: Колесов Вадим Владимирович | C99: =VLOOKUP(A99,справочник!$A$2:$C$322,3,0) -> 320 | D99: =IFERROR(VLOOKUP(B99,справочник!$AF$2:$AF$15,1,0),"") ->  | F99: Измайлов Михаил Михайлович | G99: 13800 | H99: 14600 | I99: 15400 | J99: 16200 | K99: 17000 | L99: 17800 | M99: 18600 | N99: 19400 | O99: 20200 | P99: 21000 | Q99: 21800 | R99: 22600
A100: 302 | B100: Колышкина Александра Сергеевна | C100: =VLOOKUP(A100,справочник!$A$2:$C$322,3,0) -> 317 | D100: =IFERROR(VLOOKUP(B100,справочник!$AF$2:$AF$15,1,0),"") ->  | F100: Измайлов Михаил Михайлович | G100: 13800 | H100: 14600 | I100: 15400 | J100: 16200 | K100: 17000 | L100: 17800 | M100: 18600 | N100: 19400 | O100: 20200 | P100: 21000 | Q100: 21800 | R100: 22600
A101: 178 | B101: Афанасьева Злата Сергеевна | C101: =VLOOKUP(A101,справочник!$A$2:$C$322,3,0) -> 186 | D101: =IFERROR(VLOOKUP(B101,справочник!$AF$2:$AF$15,1,0),"") ->  | F101: Спиридонов Андрей Владимирович | G101: 13800 | H101: 14600 | I101: 15400 | J101: 16200 | K101: 17000 | L101: 17800 | M101: 18600 | N101: 19400 | O101: 20200 | P101: 21000 | Q101: 21800 | R101: 22600
A102: 132 | B102: Евглевская Ольга Борисовна | C102: =VLOOKUP(A102,справочник!$A$2:$C$322,3,0) -> 139 | D102: =IFERROR(VLOOKUP(B102,справочник!$AF$2:$AF$15,1,0),"") ->  | F102: Сидельников Михаил Васильевич | G102: 13800 | H102: 14600 | I102: 15400 | J102: 16200 | K102: 17000 | L102: 17800 | M102: 18600 | N102: 19400 | O102: 20200 | P102: 21000 | Q102: 21800 | R102: 22600
A103: 123 | B103: Кондратьева Юлия Викторовна | C103: =VLOOKUP(A103,справочник!$A$2:$C$322,3,0) -> 128 | D103: =IFERROR(VLOOKUP(B103,справочник!$AF$2:$AF$15,1,0),"") ->  | F103: Марин Андрей Вячеславович | G103: 13800 | H103: 14600 | I103: 15400 | J103: 16200 | K103: 17000 | L103: 17800 | M103: 18600 | N103: 19400 | O103: 20200 | P103: 21000 | Q103: 21800 | R103: 22600
A104: 96 | B104: Маслова Валентина Петровна | C104: =VLOOKUP(A104,справочник!$A$2:$C$322,3,0) -> 102 | D104: =IFERROR(VLOOKUP(B104,справочник!$AF$2:$AF$15,1,0),"") ->  | F104: Марин Андрей Вячеславович | G104: 17788 | H104: 18588 | I104: 19388 | J104: 18188 | K104: 18988 | L104: 17788 | M104: 18588 | N104: 19388 | O104: 20188 | P104: 20988 | Q104: 21788 | R104: 22588
A105: 9 | B105: Марковнина Светлана Викторовна | C105: =VLOOKUP(A105,справочник!$A$2:$C$322,3,0) -> 9 | D105: =IFERROR(VLOOKUP(B105,справочник!$AF$2:$AF$15,1,0),"") ->  | F105: Жохова Елена Сергеевна | G105: 23800 | H105: 24600 | I105: 25400 | J105: 26200 | K105: 18000 | L105: 17200 | M105: 18000 | N105: 18800 | O105: 19600 | P105: 20400 | Q105: 21200 | R105: 22000
A106: 301 | B106: Десюкова Марина Александровна | C106: =VLOOKUP(A106,справочник!$A$2:$C$322,3,0) -> 316 | D106: =IFERROR(VLOOKUP(B106,справочник!$AF$2:$AF$15,1,0),"") ->  | F106: Измайлов Михаил Михайлович | G106: 12800 | H106: 13600 | I106: 14400 | J106: 15200 | K106: 16000 | L106: 16800 | M106: 17600 | N106: 18400 | O106: 19200 | P106: 20000 | Q106: 20800 | R106: 21600
A107: 297 | B107: Саргсян Оганнес Ншанович | C107: =VLOOKUP(A107,справочник!$A$2:$C$322,3,0) -> 312 | D107: =IFERROR(VLOOKUP(B107,справочник!$AF$2:$AF$15,1,0),"") ->  | F107: Измайлов Михаил Михайлович | G107: 12800 | H107: 13600 | I107: 14400 | J107: 15200 | K107: 16000 | L107: 16800 | M107: 17600 | N107: 18400 | O107: 19200 | P107: 20000 | Q107: 20800 | R107: 21600
A108: 295 | B108: Измайлов Михаил Михайлович | C108: =VLOOKUP(A108,справочник!$A$2:$C$322,3,0) -> 310 | D108: =IFERROR(VLOOKUP(B108,справочник!$AF$2:$AF$15,1,0),"") -> Измайлов Михаил Михайлович | F108: Измайлов Михаил Михайлович | G108: 12800 | H108: 13600 | I108: 14400 | J108: 15200 | K108: 16000 | L108: 16800 | M108: 17600 | N108: 18400 | O108: 19200 | P108: 20000 | Q108: 20800 | R108: 21600
A109: 293 | B109: Ахромеев Андрей Владимирович | C109: =VLOOKUP(A109,справочник!$A$2:$C$322,3,0) -> 308 | D109: =IFERROR(VLOOKUP(B109,справочник!$AF$2:$AF$15,1,0),"") ->  | F109: Измайлов Михаил Михайлович | G109: 12800 | H109: 13600 | I109: 14400 | J109: 15200 | K109: 16000 | L109: 16800 | M109: 17600 | N109: 18400 | O109: 19200 | P109: 20000 | Q109: 20800 | R109: 21600
A110: 205 | B110: Сидоров Александр Юрьевич | C110: =VLOOKUP(A110,справочник!$A$2:$C$322,3,0) -> 215 | D110: =IFERROR(VLOOKUP(B110,справочник!$AF$2:$AF$15,1,0),"") ->  | F110: Борисов Олег Александрович | G110: 12800 | H110: 13600 | I110: 14400 | J110: 15200 | K110: 16000 | L110: 16800 | M110: 17600 | N110: 18400 | O110: 19200 | P110: 20000 | Q110: 20800 | R110: 21600
A111: 167 | B111: Трубченко Петр Александрович | C111: =VLOOKUP(A111,справочник!$A$2:$C$322,3,0) -> 175 | D111: =IFERROR(VLOOKUP(B111,справочник!$AF$2:$AF$15,1,0),"") ->  | F111: Анциферов Алексей Сергеевич | G111: 12800 | H111: 13600 | I111: 14400 | J111: 15200 | K111: 16000 | L111: 16800 | M111: 17600 | N111: 18400 | O111: 19200 | P111: 20000 | Q111: 20800 | R111: 21600
A112: 166 | B112: Ловыгина Татьяна Александровна | C112: =VLOOKUP(A112,справочник!$A$2:$C$322,3,0) -> 174 | D112: =IFERROR(VLOOKUP(B112,справочник!$AF$2:$AF$15,1,0),"") ->  | F112: Анциферов Алексей Сергеевич | G112: 12800 | H112: 13600 | I112: 14400 | J112: 15200 | K112: 16000 | L112: 16800 | M112: 17600 | N112: 18400 | O112: 19200 | P112: 20000 | Q112: 20800 | R112: 21600
A113: 71 | B113: Олейникова Евгения Александровна | C113: =VLOOKUP(A113,справочник!$A$2:$C$322,3,0) -> 77 | D113: =IFERROR(VLOOKUP(B113,справочник!$AF$2:$AF$15,1,0),"") ->  | F113: Нелюбов Сергей Владимирович | G113: 12800 | H113: 13600 | I113: 14400 | J113: 15200 | K113: 16000 | L113: 16800 | M113: 17600 | N113: 18400 | O113: 19200 | P113: 20000 | Q113: 20800 | R113: 21600
A114: 39 | B114: Гордейчик Игорь Борисович | C114: =VLOOKUP(A114,справочник!$A$2:$C$322,3,0) -> 39 | D114: =IFERROR(VLOOKUP(B114,справочник!$AF$2:$AF$15,1,0),"") ->  | F114: Темникова Елена Станиславна | G114: 12800 | H114: 13600 | I114: 14400 | J114: 15200 | K114: 16000 | L114: 16800 | M114: 17600 | N114: 18400 | O114: 19200 | P114: 20000 | Q114: 20800 | R114: 21600
A115: 27 | B115: Федорова Юлия Владимировна | C115: =VLOOKUP(A115,справочник!$A$2:$C$322,3,0) -> 27 | D115: =IFERROR(VLOOKUP(B115,справочник!$AF$2:$AF$15,1,0),"") ->  | F115: Жохова Елена Сергеевна | G115: 12800 | H115: 13600 | I115: 14400 | J115: 15200 | K115: 16000 | L115: 16800 | M115: 17600 | N115: 18400 | O115: 19200 | P115: 20000 | Q115: 20800 | R115: 21600
A116: 11 | B116: Бенгя Владимир Михайлович (Диана) | C116: =VLOOKUP(A116,справочник!$A$2:$C$322,3,0) -> 11 | D116: =IFERROR(VLOOKUP(B116,справочник!$AF$2:$AF$15,1,0),"") ->  | F116: Жохова Елена Сергеевна | G116: 12800 | H116: 13600 | I116: 14400 | J116: 15200 | K116: 16000 | L116: 16800 | M116: 17600 | N116: 18400 | O116: 19200 | P116: 20000 | Q116: 20800 | R116: 21600
A117: 300 | B117: Новикова Наталья Петровна | C117: =VLOOKUP(A117,справочник!$A$2:$C$322,3,0) -> 315 | D117: =IFERROR(VLOOKUP(B117,справочник!$AF$2:$AF$15,1,0),"") ->  | F117: Измайлов Михаил Михайлович | G117: 11800 | H117: 12600 | I117: 13400 | J117: 14200 | K117: 15000 | L117: 15800 | M117: 16600 | N117: 17400 | O117: 18200 | P117: 19000 | Q117: 19800 | R117: 20600
A118: 292 | B118: Матвеев Денис Львович | C118: =VLOOKUP(A118,справочник!$A$2:$C$322,3,0) -> 305 | D118: =IFERROR(VLOOKUP(B118,справочник!$AF$2:$AF$15,1,0),"") ->  | F118: Измайлов Михаил Михайлович | G118: 11800 | H118: 12600 | I118: 13400 | J118: 14200 | K118: 15000 | L118: 15800 | M118: 16600 | N118: 17400 | O118: 18200 | P118: 19000 | Q118: 19800 | R118: 20600
A119: 266 | B119: Кудревцев Евгений Александрович | C119: =VLOOKUP(A119,справочник!$A$2:$C$322,3,0) -> 279 | D119: =IFERROR(VLOOKUP(B119,справочник!$AF$2:$AF$15,1,0),"") ->  | F119: Лапшин Сергей Николаевич | G119: 11800 | H119: 12600 | I119: 13400 | J119: 14200 | K119: 15000 | L119: 15800 | M119: 16600 | N119: 17400 | O119: 18200 | P119: 19000 | Q119: 19800 | R119: 20600
A120: 250 | B120: Каляникова Наталья Сергеевна | C120: =VLOOKUP(A120,справочник!$A$2:$C$322,3,0) -> 261 | D120: =IFERROR(VLOOKUP(B120,справочник!$AF$2:$AF$15,1,0),"") ->  | F120: Лапшин Сергей Николаевич | G120: 14800 | H120: 15600 | I120: 15400 | J120: 15200 | K120: 15000 | L120: 15800 | M120: 16600 | N120: 17400 | O120: 18200 | P120: 19000 | Q120: 19800 | R120: 20600
A121: 247 | B121: Фомин Игорь Анатольевич | C121: =VLOOKUP(A121,справочник!$A$2:$C$322,3,0) -> 258 | D121: =IFERROR(VLOOKUP(B121,справочник!$AF$2:$AF$15,1,0),"") ->  | F121: Ермошин Владимир Владимирович | G121: 11800 | H121: 12600 | I121: 13400 | J121: 14200 | K121: 15000 | L121: 15800 | M121: 16600 | N121: 17400 | O121: 18200 | P121: 19000 | Q121: 19800 | R121: 20600
A122: 73 | B122: Сысоев Семен Евгеньевич | C122: =VLOOKUP(A122,справочник!$A$2:$C$322,3,0) -> 79 | D122: =IFERROR(VLOOKUP(B122,справочник!$AF$2:$AF$15,1,0),"") ->  | F122: Нелюбов Сергей Владимирович | G122: 11800 | H122: 12600 | I122: 13400 | J122: 14200 | K122: 15000 | L122: 15800 | M122: 16600 | N122: 17400 | O122: 18200 | P122: 19000 | Q122: 19800 | R122: 20600
A123: 5 | B123: Иванов Владимир Николаевич | C123: =VLOOKUP(A123,справочник!$A$2:$C$322,3,0) -> 5 | D123: =IFERROR(VLOOKUP(B123,справочник!$AF$2:$AF$15,1,0),"") ->  | F123: Жохова Елена Сергеевна | G123: 11800 | H123: 12600 | I123: 13400 | J123: 14200 | K123: 15000 | L123: 15800 | M123: 16600 | N123: 17400 | O123: 18200 | P123: 19000 | Q123: 19800 | R123: 20600
A124: 175 | B124: Буланова Лилия Михайловна | C124: =VLOOKUP(A124,справочник!$A$2:$C$322,3,0) -> 187 | D124: =IFERROR(VLOOKUP(B124,справочник!$AF$2:$AF$15,1,0),"") ->  | F124: Спиридонов Андрей Владимирович | G124: 32800 | H124: 33600 | I124: 34400 | J124: 35200 | K124: 14400 | L124: 15200 | M124: 16000 | N124: 16800 | O124: 17600 | P124: 18400 | Q124: 19200 | R124: 20000
A125: 127 | B125: Жохова Елена Сергеевна | C125: =VLOOKUP(A125,справочник!$A$2:$C$322,3,0) -> 132 | D125: =IFERROR(VLOOKUP(B125,справочник!$AF$2:$AF$15,1,0),"") -> Жохова Елена Сергеевна | F125: Сидельников Михаил Васильевич | G125: 12800 | H125: 12000 | I125: 12800 | J125: 13600 | K125: 14400 | L125: 15200 | M125: 16000 | N125: 16800 | O125: 17600 | P125: 18400 | Q125: 19200 | R125: 20000
A126: 270 | B126: Маркова Тамара Ивановна | C126: =VLOOKUP(A126,справочник!$A$2:$C$322,3,0) -> 283 | D126: =IFERROR(VLOOKUP(B126,справочник!$AF$2:$AF$15,1,0),"") ->  | F126: Недосенко Олег Анатольевич | G126: 10800 | H126: 11600 | I126: 12400 | J126: 13200 | K126: 14000 | L126: 14800 | M126: 15600 | N126: 16400 | O126: 17200 | P126: 18000 | Q126: 18800 | R126: 19600
A127: 136 | B127: Беляков Виктор Михайлович | C127: =VLOOKUP(A127,справочник!$A$2:$C$322,3,0) -> 144 | D127: =IFERROR(VLOOKUP(B127,справочник!$AF$2:$AF$15,1,0),"") ->  | F127: Сидельников Михаил Васильевич | G127: 10800 | H127: 11600 | I127: 12400 | J127: 13200 | K127: 14000 | L127: 14800 | M127: 15600 | N127: 16400 | O127: 17200 | P127: 18000 | Q127: 18800 | R127: 19600
A128: 57 | B128: Суркова Татьяна Александровна | C128: =VLOOKUP(A128,справочник!$A$2:$C$322,3,0) -> 59 | D128: =IFERROR(VLOOKUP(B128,справочник!$AF$2:$AF$15,1,0),"") ->  | F128: Темникова Елена Станиславна | G128: 10800 | H128: 11600 | I128: 12400 | J128: 13200 | K128: 14000 | L128: 14800 | M128: 15600 | N128: 16400 | O128: 17200 | P128: 18000 | Q128: 18800 | R128: 19600
A129: 36 | B129: Закревская Марина Владимировна | C129: =VLOOKUP(A129,справочник!$A$2:$C$322,3,0) -> 36 | D129: =IFERROR(VLOOKUP(B129,справочник!$AF$2:$AF$15,1,0),"") ->  | F129: Темникова Елена Станиславна | G129: 10800 | H129: 11600 | I129: 12400 | J129: 13200 | K129: 14000 | L129: 14800 | M129: 15600 | N129: 16400 | O129: 17200 | P129: 18000 | Q129: 18800 | R129: 19600
A130: 24 | B130: Двойрина Юлия Владимировна | C130: =VLOOKUP(A130,справочник!$A$2:$C$322,3,0) -> 24 | D130: =IFERROR(VLOOKUP(B130,справочник!$AF$2:$AF$15,1,0),"") ->  | F130: Жохова Елена Сергеевна | G130: 10800 | H130: 11600 | I130: 12400 | J130: 13200 | K130: 14000 | L130: 14800 | M130: 15600 | N130: 16400 | O130: 17200 | P130: 18000 | Q130: 18800 | R130: 19600
A131: 6 | B131: Осадчев Константин Владимирович | C131: =VLOOKUP(A131,справочник!$A$2:$C$322,3,0) -> 6 | D131: =IFERROR(VLOOKUP(B131,справочник!$AF$2:$AF$15,1,0),"") ->  | F131: Жохова Елена Сергеевна | G131: 14800 | H131: 15600 | I131: 16400 | J131: 17200 | K131: 14000 | L131: 14800 | M131: 15600 | N131: 16400 | O131: 17200 | P131: 18000 | Q131: 18800 | R131: 19600
A132: 100 | B132: Солодкий Дмитрий Павлович | C132: =VLOOKUP(A132,справочник!$A$2:$C$322,3,0) -> 105 | D132: =IFERROR(VLOOKUP(B132,справочник!$AF$2:$AF$15,1,0),"") ->  | F132: Марин Андрей Вячеславович | G132: 10749.7 | H132: 11549.7 | I132: 12349.7 | J132: 13149.7 | K132: 13949.7 | L132: 14749.7 | M132: 15549.7 | N132: 16349.7 | O132: 17149.7 | P132: 17949.7 | Q132: 18749.7 | R132: 19549.7
A133: 289 | B133: Косенкова Елизавета Евгеньевна | C133: =VLOOKUP(A133,справочник!$A$2:$C$322,3,0) -> 301 | D133: =IFERROR(VLOOKUP(B133,справочник!$AF$2:$AF$15,1,0),"") ->  | F133: Измайлов Михаил Михайлович | G133: 9800 | H133: 10600 | I133: 11400 | J133: 12200 | K133: 13000 | L133: 13800 | M133: 14600 | N133: 15400 | O133: 16200 | P133: 17000 | Q133: 17800 | R133: 18600
A134: 206 | B134: Валеев Артур Рашидович | C134: =VLOOKUP(A134,справочник!$A$2:$C$322,3,0) -> 216 | D134: =IFERROR(VLOOKUP(B134,справочник!$AF$2:$AF$15,1,0),"") ->  | F134: Борисов Олег Александрович | G134: 9800 | H134: 10600 | I134: 11400 | J134: 12200 | K134: 13000 | L134: 13800 | M134: 14600 | N134: 15400 | O134: 16200 | P134: 17000 | Q134: 17800 | R134: 18600
A135: 163 | B135: Кондратюк Наталья Петровна 1/2, Соболев Олег Юрьевич 1/2 | C135: =VLOOKUP(A135,справочник!$A$2:$C$322,3,0) -> 171 | D135: =IFERROR(VLOOKUP(B135,справочник!$AF$2:$AF$15,1,0),"") ->  | F135: Анциферов Алексей Сергеевич | G135: 9800 | H135: 10600 | I135: 11400 | J135: 12200 | K135: 13000 | L135: 13800 | M135: 14600 | N135: 15400 | O135: 16200 | P135: 17000 | Q135: 17800 | R135: 18600
A136: 2 | B136: Чернявская Оксана Юрьевна | C136: =VLOOKUP(A136,справочник!$A$2:$C$322,3,0) -> 2 | D136: =IFERROR(VLOOKUP(B136,справочник!$AF$2:$AF$15,1,0),"") ->  | F136: Жохова Елена Сергеевна | G136: 9800 | H136: 10600 | I136: 11400 | J136: 12200 | K136: 13000 | L136: 13800 | M136: 14600 | N136: 15400 | O136: 16200 | P136: 17000 | Q136: 17800 | R136: 18600
A137: 143 | B137: Красникова Раиса Михайловна | C137: =VLOOKUP(A137,справочник!$A$2:$C$322,3,0) -> 151 | D137: =IFERROR(VLOOKUP(B137,справочник!$AF$2:$AF$15,1,0),"") ->  | F137: Сидельников Михаил Васильевич | G137: 13800 | H137: 14600 | I137: 15400 | J137: 16200 | K137: 17000 | L137: 13000 | M137: 13800 | N137: 14600 | O137: 15400 | P137: 16200 | Q137: 17000 | R137: 17800
A138: 308 | B138: Губарева Татьяна Григорьевна | C138: =VLOOKUP(A138,справочник!$A$2:$C$322,3,0) -> 323 | D138: =IFERROR(VLOOKUP(B138,справочник!$AF$2:$AF$15,1,0),"") ->  | F138: Измайлов Михаил Михайлович | G138: 8800 | H138: 9600 | I138: 10400 | J138: 11200 | K138: 12000 | L138: 12800 | M138: 13600 | N138: 14400 | O138: 15200 | P138: 16000 | Q138: 16800 | R138: 17600
A139: 218 | B139: Молчанова Ирина Владимировна | C139: =VLOOKUP(A139,справочник!$A$2:$C$322,3,0) -> 227 | D139: =IFERROR(VLOOKUP(B139,справочник!$AF$2:$AF$15,1,0),"") ->  | F139: Карпова Елена Витальевна | G139: 14800 | H139: 15600 | I139: 15400 | J139: 16200 | K139: 17000 | L139: 12800 | M139: 13600 | N139: 14400 | O139: 15200 | P139: 16000 | Q139: 16800 | R139: 17600
A140: 210 | B140: Сазонов Сергей Александрович - Диденко Оксана Владимировна | C140: =VLOOKUP(A140,справочник!$A$2:$C$322,3,0) -> 219 | D140: =IFERROR(VLOOKUP(B140,справочник!$AF$2:$AF$15,1,0),"") ->  | F140: Борисов Олег Александрович | G140: 8800 | H140: 9600 | I140: 10400 | J140: 11200 | K140: 12000 | L140: 12800 | M140: 13600 | N140: 14400 | O140: 15200 | P140: 16000 | Q140: 16800 | R140: 17600
A141: 112 | B141: Кондрашов Сергей Вячеславович//Балыкин Александр Иванович | C141: =VLOOKUP(A141,справочник!$A$2:$C$322,3,0) -> 117 | D141: =IFERROR(VLOOKUP(B141,справочник!$AF$2:$AF$15,1,0),"") ->  | F141: Марин Андрей Вячеславович | G141: 17800 | H141: 13800 | I141: 14600 | J141: 15400 | K141: 16200 | L141: 12200 | M141: 13000 | N141: 13800 | O141: 14600 | P141: 15400 | Q141: 16200 | R141: 17000
A142: 118 | B142: Лопухинова Надежда Михайловна | C142: =VLOOKUP(A142,справочник!$A$2:$C$322,3,0) -> 123 | D142: =IFERROR(VLOOKUP(B142,справочник!$AF$2:$AF$15,1,0),"") ->  | F142: Марин Андрей Вячеславович | G142: 7800 | H142: 8600 | I142: 9400 | J142: 10200 | K142: 11000 | L142: 11800 | M142: 12600 | N142: 13400 | O142: 14200 | P142: 15000 | Q142: 15800 | R142: 16600
A143: 230 | B143: Жарикова Светлана Юрьевна | C143: =VLOOKUP(A143,справочник!$A$2:$C$322,3,0) -> 257 | D143: =IFERROR(VLOOKUP(B143,справочник!$AF$2:$AF$15,1,0),"") ->  | F143: Ермошин Владимир Владимирович | G143: 10800 | H143: 11600 | I143: 12400 | J143: 13200 | K143: 10500 | L143: 11300 | M143: 12100 | N143: 12900 | O143: 13700 | P143: 14500 | Q143: 15300 | R143: 16100
A144: 307 | B144: Поликарпова Наталья Дмитриевна | C144: =VLOOKUP(A144,справочник!$A$2:$C$322,3,0) -> 322 | D144: =IFERROR(VLOOKUP(B144,справочник!$AF$2:$AF$15,1,0),"") ->  | F144: Измайлов Михаил Михайлович | G144: 14800 | H144: 15600 | I144: 16400 | J144: 17200 | K144: 10000 | L144: 10800 | M144: 11600 | N144: 12400 | O144: 13200 | P144: 14000 | Q144: 14800 | R144: 15600
A145: 279 | B145: Иванова Светлана Сергеевна | C145: =VLOOKUP(A145,справочник!$A$2:$C$322,3,0) -> 291 | D145: =IFERROR(VLOOKUP(B145,справочник!$AF$2:$AF$15,1,0),"") ->  | F145: Недосенко Олег Анатольевич | G145: 6800 | H145: 7600 | I145: 8400 | J145: 9200 | K145: 10000 | L145: 10800 | M145: 11600 | N145: 12400 | O145: 13200 | P145: 14000 | Q145: 14800 | R145: 15600
A146: 252 | B146: Тарасенко Анатолий Семенович | C146: =VLOOKUP(A146,справочник!$A$2:$C$322,3,0) -> 264 | D146: =IFERROR(VLOOKUP(B146,справочник!$AF$2:$AF$15,1,0),"") ->  | F146: Лапшин Сергей Николаевич | G146: 10800 | H146: 10800 | I146: 10000 | J146: 10800 | K146: 10000 | L146: 10800 | M146: 11600 | N146: 12400 | O146: 13200 | P146: 14000 | Q146: 14800 | R146: 15600
A147: 161 | B147: Сергиенко Николай Михайлович | C147: =VLOOKUP(A147,справочник!$A$2:$C$322,3,0) -> 169 | D147: =IFERROR(VLOOKUP(B147,справочник!$AF$2:$AF$15,1,0),"") ->  | F147: Анциферов Алексей Сергеевич | G147: 6800 | H147: 7600 | I147: 8400 | J147: 9200 | K147: 10000 | L147: 10800 | M147: 11600 | N147: 12400 | O147: 13200 | P147: 14000 | Q147: 14800 | R147: 15600
A148: 94 | B148: Горбунов Максим Николаевич | C148: =VLOOKUP(A148,справочник!$A$2:$C$322,3,0) -> 99 | D148: =IFERROR(VLOOKUP(B148,справочник!$AF$2:$AF$15,1,0),"") ->  | F148: Абу Махади Мохаммед Ибрагим | G148: 6800 | H148: 7600 | I148: 8400 | J148: 9200 | K148: 10000 | L148: 10800 | M148: 11600 | N148: 12400 | O148: 13200 | P148: 14000 | Q148: 14800 | R148: 15600
A149: 72 | B149: Лещёва Ольга Владимировна | C149: =VLOOKUP(A149,справочник!$A$2:$C$322,3,0) -> 78 | D149: =IFERROR(VLOOKUP(B149,справочник!$AF$2:$AF$15,1,0),"") ->  | F149: Нелюбов Сергей Владимирович | G149: 6800 | H149: 7600 | I149: 8400 | J149: 9200 | K149: 10000 | L149: 10800 | M149: 11600 | N149: 12400 | O149: 13200 | P149: 14000 | Q149: 14800 | R149: 15600
A150: 38 | B150: Заручинский Вячеслав Владимирович | C150: =VLOOKUP(A150,справочник!$A$2:$C$322,3,0) -> 255 | D150: =IFERROR(VLOOKUP(B150,справочник!$AF$2:$AF$15,1,0),"") ->  | F150: Ермошин Владимир Владимирович | G150: 7800 | H150: 8600 | I150: 9400 | J150: 10200 | K150: 11000 | L150: 10200 | M150: 11000 | N150: 11800 | O150: 12600 | P150: 13400 | Q150: 14200 | R150: 15000
A151: 280 | B151: Севрюгина Ольга Викторовна | C151: =VLOOKUP(A151,справочник!$A$2:$C$322,3,0) -> 292 | D151: =IFERROR(VLOOKUP(B151,справочник!$AF$2:$AF$15,1,0),"") ->  | F151: Недосенко Олег Анатольевич | G151: 5800 | H151: 6600 | I151: 7400 | J151: 8200 | K151: 9000 | L151: 9800 | M151: 10600 | N151: 11400 | O151: 12200 | P151: 13000 | Q151: 13800 | R151: 14600
A152: 272 | B152: Серебряков Игорь Васильевич | C152: =VLOOKUP(A152,справочник!$A$2:$C$322,3,0) -> 285 | D152: =IFERROR(VLOOKUP(B152,справочник!$AF$2:$AF$15,1,0),"") ->  | F152: Недосенко Олег Анатольевич | G152: 5800 | H152: 6600 | I152: 7400 | J152: 8200 | K152: 9000 | L152: 9800 | M152: 10600 | N152: 11400 | O152: 12200 | P152: 13000 | Q152: 13800 | R152: 14600
A153: 259 | B153: Анисимова Елена Анатольевна | C153: =VLOOKUP(A153,справочник!$A$2:$C$322,3,0) -> 272 | D153: =IFERROR(VLOOKUP(B153,справочник!$AF$2:$AF$15,1,0),"") ->  | F153: Лапшин Сергей Николаевич | G153: 4800 | H153: 5600 | I153: 6400 | J153: 7200 | K153: 8000 | L153: 8800 | M153: 9600 | N153: 10400 | O153: 11200 | P153: 12000 | Q153: 12800 | R153: 13600
A154: 88 | B154: Шалинов Андрей Вадимович + уч. 97 | C154: =VLOOKUP(A154,справочник!$A$2:$C$322,3,0) -> 97+93 | D154: =IFERROR(VLOOKUP(B154,справочник!$AF$2:$AF$15,1,0),"") ->  | F154: Абу Махади Мохаммед Ибрагим | G154: 4800 | H154: 5600 | I154: 6400 | J154: 7200 | K154: 8000 | L154: 8800 | M154: 9600 | N154: 10400 | O154: 11200 | P154: 12000 | Q154: 12800 | R154: 13600
A155: 284 | B155: Епанчинцева Людмила Филипповна | C155: =VLOOKUP(A155,справочник!$A$2:$C$322,3,0) -> 296 | D155: =IFERROR(VLOOKUP(B155,справочник!$AF$2:$AF$15,1,0),"") ->  | F155: Недосенко Олег Анатольевич | G155: 9800 | H155: 10600 | I155: 5400 | J155: 6200 | K155: 7000 | L155: 7800 | M155: 8600 | N155: 9400 | O155: 10200 | P155: 11000 | Q155: 11800 | R155: 12600
A156: 282 | B156: Нормуротов Анваржон Абдирайимович | C156: =VLOOKUP(A156,справочник!$A$2:$C$322,3,0) -> 294 | D156: =IFERROR(VLOOKUP(B156,справочник!$AF$2:$AF$15,1,0),"") ->  | F156: Недосенко Олег Анатольевич | G156: 3800 | H156: 4600 | I156: 5400 | J156: 6200 | K156: 7000 | L156: 7800 | M156: 8600 | N156: 9400 | O156: 10200 | P156: 11000 | Q156: 11800 | R156: 12600
A157: 260 | B157: Аксенов Дмитрий Викторович | C157: =VLOOKUP(A157,справочник!$A$2:$C$322,3,0) -> 273 | D157: =IFERROR(VLOOKUP(B157,справочник!$AF$2:$AF$15,1,0),"") ->  | F157: Лапшин Сергей Николаевич | G157: 8800 | H157: 7600 | I157: 8400 | J157: 9200 | K157: 9000 | L157: 7800 | M157: 8600 | N157: 9400 | O157: 10200 | P157: 11000 | Q157: 11800 | R157: 12600
A158: 254 | B158: Ершова Виктория Львовна | C158: =VLOOKUP(A158,справочник!$A$2:$C$322,3,0) -> 267 | D158: =IFERROR(VLOOKUP(B158,справочник!$AF$2:$AF$15,1,0),"") ->  | F158: Лапшин Сергей Николаевич | G158: 3800 | H158: 4600 | I158: 5400 | J158: 6200 | K158: 7000 | L158: 7800 | M158: 8600 | N158: 9400 | O158: 10200 | P158: 11000 | Q158: 11800 | R158: 12600
A159: 177 | B159: Полякова Марина Александровна | C159: =VLOOKUP(A159,справочник!$A$2:$C$322,3,0) -> 185 | D159: =IFERROR(VLOOKUP(B159,справочник!$AF$2:$AF$15,1,0),"") ->  | F159: Спиридонов Андрей Владимирович | G159: 3800 | H159: 4600 | I159: 5400 | J159: 6200 | K159: 7000 | L159: 7800 | M159: 8600 | N159: 9400 | O159: 10200 | P159: 11000 | Q159: 11800 | R159: 12600
A160: 152 | B160: Щербаков Павел Евгеньевич | C160: =VLOOKUP(A160,справочник!$A$2:$C$322,3,0) -> 160 | D160: =IFERROR(VLOOKUP(B160,справочник!$AF$2:$AF$15,1,0),"") ->  | F160: Анциферов Алексей Сергеевич | G160: 3800 | H160: 4600 | I160: 5400 | J160: 6200 | K160: 7000 | L160: 7800 | M160: 8600 | N160: 9400 | O160: 10200 | P160: 11000 | Q160: 11800 | R160: 12600
A161: 128 | B161: Сафронова Наталья Михайловна (у Дедков Илья Егорьевич купила) | C161: =VLOOKUP(A161,справочник!$A$2:$C$322,3,0) -> 135 | D161: =IFERROR(VLOOKUP(B161,справочник!$AF$2:$AF$15,1,0),"") ->  | F161: Сидельников Михаил Васильевич | G161: 3800 | H161: 4600 | I161: 5400 | J161: 6200 | K161: 7000 | L161: 7800 | M161: 8600 | N161: 9400 | O161: 10200 | P161: 11000 | Q161: 11800 | R161: 12600
A162: 104 | B162: Никифоров Андрей Леонидович | C162: =VLOOKUP(A162,справочник!$A$2:$C$322,3,0) -> 109 | D162: =IFERROR(VLOOKUP(B162,справочник!$AF$2:$AF$15,1,0),"") ->  | F162: Марин Андрей Вячеславович | G162: 3800 | H162: 4600 | I162: 5400 | J162: 6200 | K162: 7000 | L162: 7800 | M162: 8600 | N162: 9400 | O162: 10200 | P162: 11000 | Q162: 11800 | R162: 12600
A163: 87 | B163: Маркина Людмила Николаевна, Марина | C163: =VLOOKUP(A163,справочник!$A$2:$C$322,3,0) -> 92 | D163: =IFERROR(VLOOKUP(B163,справочник!$AF$2:$AF$15,1,0),"") ->  | F163: Абу Махади Мохаммед Ибрагим | G163: 3800 | H163: 4600 | I163: 5400 | J163: 6200 | K163: 7000 | L163: 7800 | M163: 8600 | N163: 9400 | O163: 10200 | P163: 11000 | Q163: 11800 | R163: 12600
A164: 208 | B164: Катушкин Роман Юрьевич | C164: =VLOOKUP(A164,справочник!$A$2:$C$322,3,0) -> 218 | D164: =IFERROR(VLOOKUP(B164,справочник!$AF$2:$AF$15,1,0),"") ->  | F164: Борисов Олег Александрович | G164: 3300 | H164: 4100 | I164: 4900 | J164: 5700 | K164: 6500 | L164: 7300 | M164: 8100 | N164: 8900 | O164: 9700 | P164: 10500 | Q164: 11300 | R164: 12100
A165: 176 | B165: Пикалёва Алла Григорьевна (Юрий) | C165: =VLOOKUP(A165,справочник!$A$2:$C$322,3,0) -> 184 | D165: =IFERROR(VLOOKUP(B165,справочник!$AF$2:$AF$15,1,0),"") ->  | F165: Спиридонов Андрей Владимирович | G165: 12800 | H165: 10600 | I165: 11400 | J165: 12200 | K165: 10000 | L165: 7300 | M165: 8100 | N165: 8900 | O165: 9700 | P165: 10500 | Q165: 11300 | R165: 12100
A166: 227 | B166: Щербакова Татьяна Дмитриевна | C166: =VLOOKUP(A166,справочник!$A$2:$C$322,3,0) -> 236 | D166: =IFERROR(VLOOKUP(B166,справочник!$AF$2:$AF$15,1,0),"") ->  | F166: Карпова Елена Витальевна | G166: 11800 | H166: 8800 | I166: 4800 | J166: 5600 | K166: 6400 | L166: 7200 | M166: 8000 | N166: 8800 | O166: 9600 | P166: 10400 | Q166: 11200 | R166: 12000
A167: 66 | B167: Заборская Светлана Анатольевна (Андрей) | C167: =VLOOKUP(A167,справочник!$A$2:$C$322,3,0) -> 68 | D167: =IFERROR(VLOOKUP(B167,справочник!$AF$2:$AF$15,1,0),"") ->  | F167: Нелюбов Сергей Владимирович | G167: 3020 | H167: 3820 | I167: 4620 | J167: 5420 | K167: 6220 | L167: 7020 | M167: 7820 | N167: 8620 | O167: 9420 | P167: 10220 | Q167: 11020 | R167: 11820
A168: 287 | B168: Мурадова Альбина Сергеевна | C168: =VLOOKUP(A168,справочник!$A$2:$C$322,3,0) -> 299 | D168: =IFERROR(VLOOKUP(B168,справочник!$AF$2:$AF$15,1,0),"") ->  | F168: Недосенко Олег Анатольевич | G168: 2800 | H168: 3600 | I168: 4400 | J168: 5200 | K168: 6000 | L168: 6800 | M168: 7600 | N168: 8400 | O168: 9200 | P168: 10000 | Q168: 10800 | R168: 11600
A169: 221 | B169: Анисимова (Корнеева) Татьяна Николаевна | C169: =VLOOKUP(A169,справочник!$A$2:$C$322,3,0) -> 230 | D169: =IFERROR(VLOOKUP(B169,справочник!$AF$2:$AF$15,1,0),"") ->  | F169: Карпова Елена Витальевна | G169: 2800 | H169: 3600 | I169: 4400 | J169: 5200 | K169: 6000 | L169: 6800 | M169: 7600 | N169: 8400 | O169: 9200 | P169: 10000 | Q169: 10800 | R169: 11600
A170: 125 | B170: Безбородова Людмила Михайловна | C170: =VLOOKUP(A170,справочник!$A$2:$C$322,3,0) -> 130 | D170: =IFERROR(VLOOKUP(B170,справочник!$AF$2:$AF$15,1,0),"") ->  | F170: Марин Андрей Вячеславович | G170: 5800 | H170: 6600 | I170: 7400 | J170: 8200 | K170: 9000 | L170: 6800 | M170: 7600 | N170: 8400 | O170: 9200 | P170: 10000 | Q170: 10800 | R170: 11600
A171: 101 | B171: Васильев Николай Владимирович | C171: =VLOOKUP(A171,справочник!$A$2:$C$322,3,0) -> 106 | D171: =IFERROR(VLOOKUP(B171,справочник!$AF$2:$AF$15,1,0),"") ->  | F171: Марин Андрей Вячеславович | G171: 2800 | H171: 3600 | I171: 4400 | J171: 5200 | K171: 6000 | L171: 6800 | M171: 7600 | N171: 8400 | O171: 9200 | P171: 10000 | Q171: 10800 | R171: 11600
A172: 44 | B172: Дубов Александр Сергеевич | C172: =VLOOKUP(A172,справочник!$A$2:$C$322,3,0) -> 44 | D172: =IFERROR(VLOOKUP(B172,справочник!$AF$2:$AF$15,1,0),"") ->  | F172: Темникова Елена Станиславна | G172: 2800 | H172: 3600 | I172: 4400 | J172: 5200 | K172: 6000 | L172: 6800 | M172: 7600 | N172: 8400 | O172: 9200 | P172: 10000 | Q172: 10800 | R172: 11600
A173: 22 | B173: Хан Виталий Борисович | C173: =VLOOKUP(A173,справочник!$A$2:$C$322,3,0) -> 22 | D173: =IFERROR(VLOOKUP(B173,справочник!$AF$2:$AF$15,1,0),"") ->  | F173: Жохова Елена Сергеевна | G173: 2800 | H173: 3600 | I173: 4400 | J173: 5200 | K173: 6000 | L173: 6800 | M173: 7600 | N173: 8400 | O173: 9200 | P173: 10000 | Q173: 10800 | R173: 11600
A174: 21 | B174: Старостин Виктор Вячеславович | C174: =VLOOKUP(A174,справочник!$A$2:$C$322,3,0) -> 21 | D174: =IFERROR(VLOOKUP(B174,справочник!$AF$2:$AF$15,1,0),"") ->  | F174: Жохова Елена Сергеевна | G174: 2800 | H174: 3600 | I174: 4400 | J174: 5200 | K174: 6000 | L174: 6800 | M174: 7600 | N174: 8400 | O174: 9200 | P174: 10000 | Q174: 10800 | R174: 11600
A175: 268 | B175: Стрелков Николай Валентинович | C175: =VLOOKUP(A175,справочник!$A$2:$C$322,3,0) -> 281 | D175: =IFERROR(VLOOKUP(B175,справочник!$AF$2:$AF$15,1,0),"") ->  | F175: Недосенко Олег Анатольевич | G175: 7800 | H175: 8600 | I175: 9400 | J175: 7200 | K175: 8000 | L175: 5800 | M175: 6600 | N175: 7400 | O175: 8200 | P175: 9000 | Q175: 9800 | R175: 10600
A176: 248 | B176: Фомин Андрей Анатольевич | C176: =VLOOKUP(A176,справочник!$A$2:$C$322,3,0) -> 259 | D176: =IFERROR(VLOOKUP(B176,справочник!$AF$2:$AF$15,1,0),"") ->  | F176: Ермошин Владимир Владимирович | G176: 3500 | H176: 4300 | I176: 5100 | J176: 5900 | K176: 6700 | L176: 5800 | M176: 6600 | N176: 7400 | O176: 8200 | P176: 9000 | Q176: 9800 | R176: 10600
A177: 122 | B177: Денисов Сергей Александрович | C177: =VLOOKUP(A177,справочник!$A$2:$C$322,3,0) -> 127 | D177: =IFERROR(VLOOKUP(B177,справочник!$AF$2:$AF$15,1,0),"") ->  | F177: Марин Андрей Вячеславович | G177: 5800 | H177: 4600 | I177: 5400 | J177: 4200 | K177: 5000 | L177: 5800 | M177: 6600 | N177: 7400 | O177: 8200 | P177: 9000 | Q177: 9800 | R177: 10600
A178: 201 | B178: Пархачева Эльвира Валентиновна (Алксандр) | C178: =VLOOKUP(A178,справочник!$A$2:$C$322,3,0) -> 209 | D178: =IFERROR(VLOOKUP(B178,справочник!$AF$2:$AF$15,1,0),"") ->  | F178: Борисов Олег Александрович | G178: 4800 | H178: 5600 | I178: 6400 | J178: 7200 | K178: 4800 | L178: 5600 | M178: 6400 | N178: 7200 | O178: 8000 | P178: 8800 | Q178: 9600 | R178: 10400
A179: 64 | B179: Горбунов Владимир Александрович | C179: =VLOOKUP(A179,справочник!$A$2:$C$322,3,0) -> 66 | D179: =IFERROR(VLOOKUP(B179,справочник!$AF$2:$AF$15,1,0),"") ->  | F179: Нелюбов Сергей Владимирович | G179: 4800 | H179: 5600 | I179: 4800 | J179: 5600 | K179: 6400 | L179: 5600 | M179: 6400 | N179: 7200 | O179: 8000 | P179: 8800 | Q179: 9600 | R179: 10400
A180: 317 | B180: Стрелков Андрей Вячеславович | C180: =VLOOKUP(A180,справочник!$A$2:$C$322,3,0) -> 51-52 | D180: =IFERROR(VLOOKUP(B180,справочник!$AF$2:$AF$15,1,0),"") ->  | F180: ={#н/д} ->  | G180: 800 | H180: 1600 | I180: 2400 | J180: 3200 | K180: 4000 | L180: 4800 | M180: 5600 | N180: 6400 | O180: 7200 | P180: 8000 | Q180: 8800 | R180: 9600
A181: 314 | B181: Решетов Владимир Геннадьевич | C181: =VLOOKUP(A181,справочник!$A$2:$C$322,3,0) ->  | D181: =IFERROR(VLOOKUP(B181,справочник!$AF$2:$AF$15,1,0),"") ->  | F181: ={#н/д} ->  | G181: 800 | H181: 1600 | I181: 2400 | J181: 3200 | K181: 4000 | L181: 4800 | M181: 5600 | N181: 6400 | O181: 7200 | P181: 8000 | Q181: 8800 | R181: 9600
A182: 291 | B182: Носикова Мария Леонидовна | C182: =VLOOKUP(A182,справочник!$A$2:$C$322,3,0) -> 304 | D182: =IFERROR(VLOOKUP(B182,справочник!$AF$2:$AF$15,1,0),"") ->  | F182: Измайлов Михаил Михайлович | G182: 800 | H182: 1600 | I182: 2400 | J182: 3200 | K182: 4000 | L182: 4800 | M182: 5600 | N182: 6400 | O182: 7200 | P182: 8000 | Q182: 8800 | R182: 9600
A183: 241 | B183: Сёмин Александр Иванович | C183: =VLOOKUP(A183,справочник!$A$2:$C$322,3,0) -> 252 | D183: =IFERROR(VLOOKUP(B183,справочник!$AF$2:$AF$15,1,0),"") ->  | F183: Ермошин Владимир Владимирович | G183: 4800 | H183: 4800 | I183: 4800 | J183: 5600 | K183: 6400 | L183: 4800 | M183: 5600 | N183: 6400 | O183: 7200 | P183: 8000 | Q183: 8800 | R183: 9600
A184: 212 | B184: Милишенко Надежда Ивановна | C184: =VLOOKUP(A184,справочник!$A$2:$C$322,3,0) -> 221 | D184: =IFERROR(VLOOKUP(B184,справочник!$AF$2:$AF$15,1,0),"") ->  | F184: Карпова Елена Витальевна | G184: 3200 | H184: 4000 | I184: 3200 | J184: 3200 | K184: 4000 | L184: 4800 | M184: 5600 | N184: 6400 | O184: 7200 | P184: 8000 | Q184: 8800 | R184: 9600
A185: 207 | B185: Катушкин Роман Юрьевич//Валеев Артур Рашидович | C185: =VLOOKUP(A185,справочник!$A$2:$C$322,3,0) -> 217 | D185: =IFERROR(VLOOKUP(B185,справочник!$AF$2:$AF$15,1,0),"") ->  | F185: Борисов Олег Александрович | G185: 800 | H185: 1600 | I185: 2400 | J185: 3200 | K185: 4000 | L185: 4800 | M185: 5600 | N185: 6400 | O185: 7200 | P185: 8000 | Q185: 8800 | R185: 9600
A186: 204 | B186: Носикова Александра Васильевна | C186: =VLOOKUP(A186,справочник!$A$2:$C$322,3,0) -> 214 | D186: =IFERROR(VLOOKUP(B186,справочник!$AF$2:$AF$15,1,0),"") ->  | F186: Борисов Олег Александрович | G186: 800 | H186: 1600 | I186: 2400 | J186: 3200 | K186: 4000 | L186: 4800 | M186: 5600 | N186: 6400 | O186: 7200 | P186: 8000 | Q186: 8800 | R186: 9600
A187: 193 | B187: Асташкин Павел Александрович(продал???) | C187: =VLOOKUP(A187,справочник!$A$2:$C$322,3,0) -> 201 | D187: =IFERROR(VLOOKUP(B187,справочник!$AF$2:$AF$15,1,0),"") ->  | F187: Борисов Олег Александрович | G187: 800 | H187: 1600 | I187: 2400 | J187: 3200 | K187: 4000 | L187: 4800 | M187: 5600 | N187: 6400 | O187: 7200 | P187: 8000 | Q187: 8800 | R187: 9600
A188: 191 | B188: Бадирьян Тамара Викторовна | C188: =VLOOKUP(A188,справочник!$A$2:$C$322,3,0) -> 199 | D188: =IFERROR(VLOOKUP(B188,справочник!$AF$2:$AF$15,1,0),"") ->  | F188: Спиридонов Андрей Владимирович | G188: 800 | H188: 1600 | I188: 2400 | J188: 3200 | K188: 4000 | L188: 4800 | M188: 5600 | N188: 6400 | O188: 7200 | P188: 8000 | Q188: 8800 | R188: 9600
A189: 165 | B189: Прохоров Владимир Михайлович | C189: =VLOOKUP(A189,справочник!$A$2:$C$322,3,0) -> 173 | D189: =IFERROR(VLOOKUP(B189,справочник!$AF$2:$AF$15,1,0),"") ->  | F189: Анциферов Алексей Сергеевич | G189: 800 | H189: 1600 | I189: 2400 | J189: 3200 | K189: 4000 | L189: 4800 | M189: 5600 | N189: 6400 | O189: 7200 | P189: 8000 | Q189: 8800 | R189: 9600
A190: 159 | B190: Евсеев Александр Сергеевич | C190: =VLOOKUP(A190,справочник!$A$2:$C$322,3,0) -> 167 | D190: =IFERROR(VLOOKUP(B190,справочник!$AF$2:$AF$15,1,0),"") ->  | F190: Анциферов Алексей Сергеевич | G190: 12800 | H190: 1600 | I190: 2400 | J190: 3200 | K190: 4000 | L190: 4800 | M190: 5600 | N190: 6400 | O190: 7200 | P190: 8000 | Q190: 8800 | R190: 9600
A191: 142 | B191: Блинков Анатолий Сергеевич | C191: =VLOOKUP(A191,справочник!$A$2:$C$322,3,0) -> 150 | D191: =IFERROR(VLOOKUP(B191,справочник!$AF$2:$AF$15,1,0),"") ->  | F191: Сидельников Михаил Васильевич | G191: 800 | H191: 1600 | I191: 2400 | J191: 3200 | K191: 4000 | L191: 4800 | M191: 5600 | N191: 6400 | O191: 7200 | P191: 8000 | Q191: 8800 | R191: 9600
A192: 54 | B192: Стрелков Андрей Вячеславович | C192: =VLOOKUP(A192,справочник!$A$2:$C$322,3,0) -> 56 | D192: =IFERROR(VLOOKUP(B192,справочник!$AF$2:$AF$15,1,0),"") ->  | F192: Темникова Елена Станиславна | G192: 800 | H192: 1600 | I192: 2400 | J192: 3200 | K192: 4000 | L192: 4800 | M192: 5600 | N192: 6400 | O192: 7200 | P192: 8000 | Q192: 8800 | R192: 9600
A193: 53 | B193: Попова Нина Ивановна | C193: =VLOOKUP(A193,справочник!$A$2:$C$322,3,0) -> 55 | D193: =IFERROR(VLOOKUP(B193,справочник!$AF$2:$AF$15,1,0),"") ->  | F193: Темникова Елена Станиславна | G193: 800 | H193: 1600 | I193: 2400 | J193: 3200 | K193: 4000 | L193: 4800 | M193: 5600 | N193: 6400 | O193: 7200 | P193: 8000 | Q193: 8800 | R193: 9600
A194: 37 | B194: Водянова Ольга Александровна | C194: =VLOOKUP(A194,справочник!$A$2:$C$322,3,0) -> 37 | D194: =IFERROR(VLOOKUP(B194,справочник!$AF$2:$AF$15,1,0),"") ->  | F194: Темникова Елена Станиславна | G194: 800 | H194: 1600 | I194: 2400 | J194: 3200 | K194: 4000 | L194: 4800 | M194: 5600 | N194: 6400 | O194: 7200 | P194: 8000 | Q194: 8800 | R194: 9600
A195: 29 | B195: Петрик Наталья Вячеславовна(ПродалаУстинова Ирина) | C195: =VLOOKUP(A195,справочник!$A$2:$C$322,3,0) -> 29 | D195: =IFERROR(VLOOKUP(B195,справочник!$AF$2:$AF$15,1,0),"") ->  | F195: Жохова Елена Сергеевна | G195: 800 | H195: 1600 | I195: 2400 | J195: 3200 | K195: 4000 | L195: 4800 | M195: 5600 | N195: 6400 | O195: 7200 | P195: 8000 | Q195: 8800 | R195: 9600
A196: 18 | B196: Дидушко Денис Васильевич (Василий) | C196: =VLOOKUP(A196,справочник!$A$2:$C$322,3,0) -> 18 | D196: =IFERROR(VLOOKUP(B196,справочник!$AF$2:$AF$15,1,0),"") ->  | F196: Жохова Елена Сергеевна | G196: 800 | H196: 1600 | I196: 2400 | J196: 3200 | K196: 4000 | L196: 4800 | M196: 5600 | N196: 6400 | O196: 7200 | P196: 8000 | Q196: 8800 | R196: 9600
A197: 10 | B197: Якушина Любовь Викторовна | C197: =VLOOKUP(A197,справочник!$A$2:$C$322,3,0) -> 10 | D197: =IFERROR(VLOOKUP(B197,справочник!$AF$2:$AF$15,1,0),"") ->  | F197: Жохова Елена Сергеевна | G197: 800 | H197: 1600 | I197: 2400 | J197: 3200 | K197: 4000 | L197: 4800 | M197: 5600 | N197: 6400 | O197: 7200 | P197: 8000 | Q197: 8800 | R197: 9600
A198: 121 | B198: Зиннатов Рафаэль Шакурович | C198: =VLOOKUP(A198,справочник!$A$2:$C$322,3,0) -> 126 | D198: =IFERROR(VLOOKUP(B198,справочник!$AF$2:$AF$15,1,0),"") ->  | F198: Марин Андрей Вячеславович | G198: 3800 | H198: 4600 | I198: 5400 | J198: 3000 | K198: 3800 | L198: 4600 | M198: 5400 | N198: 6200 | O198: 7000 | P198: 7800 | Q198: 8600 | R198: 9400
A199: 263 | B199: Соколова Ирина Анатольевна | C199: =VLOOKUP(A199,справочник!$A$2:$C$322,3,0) -> 276 | D199: =IFERROR(VLOOKUP(B199,справочник!$AF$2:$AF$15,1,0),"") ->  | F199: Лапшин Сергей Николаевич | G199: 3800 | H199: 2000 | I199: 2000 | J199: 2800 | K199: 3600 | L199: 4400 | M199: 5200 | N199: 6000 | O199: 6800 | P199: 7600 | Q199: 8400 | R199: 9200
A200: 154 | B200: Марков Максим Юрьевич | C200: =VLOOKUP(A200,справочник!$A$2:$C$322,3,0) -> 162 | D200: =IFERROR(VLOOKUP(B200,справочник!$AF$2:$AF$15,1,0),"") ->  | F200: Анциферов Алексей Сергеевич | G200: 4800 | H200: 5600 | I200: 6400 | J200: 4800 | K200: 4800 | L200: 4000 | M200: 4800 | N200: 5600 | O200: 6400 | P200: 7200 | Q200: 8000 | R200: 8800
A201: 240 | B201: Якиманский Александр Александрович | C201: =VLOOKUP(A201,справочник!$A$2:$C$322,3,0) -> 251 | D201: =IFERROR(VLOOKUP(B201,справочник!$AF$2:$AF$15,1,0),"") ->  | F201: Ермошин Владимир Владимирович | G201: -200 | H201: 600 | I201: 1400 | J201: 2200 | K201: 3000 | L201: 3800 | M201: 4600 | N201: 5400 | O201: 6200 | P201: 7000 | Q201: 7800 | R201: 8600
... 104 more rows

Sheet На что стоит обратить внимание (hidden)
A2: Долги по членам правления
A3: номер участка | B3: ID | C3: Ф.И.О. | D3: Сумма по полю 01.08.2016
A4: 3 | B4: 3 | C4: Лебедев Андрей Анатольевич | D4: 27400
A5: 45 | B5: 45 | C5: Темникова Елена Станиславовна | D5: 0
A6: 68 | B6: 66 | C6: Заборская Светлана Анатольевна (Андрей) | D6: 8620
A7: 84 | B7: 79 | C7: Абу Махади Мохаммед Ибрагим | D7: 4000
A8: 86 | B8: 81 | C8: Нелюбов Сергей Владимирович | D8: 0
A9: 132 | B9: 127 | C9: Жохова Елена Сергеевна | D9: 2400
A10: 137 | B10: 130 | C10: Анциферов Алексей Сергеевич | D10: 2400
A11: 192 | B11: 183 | C11: Спиридонов Андрей Владимирович | D11: 7757
A12: 231 | B12: 222 | C12: Карпова Елена Витальевна | D12: -800
A13: 232 | B13: 223 | C13: Борисов Олег Александрович | D13: 7400
A14: 243 | B14: 234 | C14: Ермошина Татьяна Евгеньевна (Владимир) | D14: 1600
A15: 254 | B15: 243 | C15: Лапшин Сергей Николаевич | D15: -2200
A16: 303 | B16: 290 | C16: Недосенко Татьяна Сергеевна (Олег) | D16: 1400
A17: 310 | B17: 295 | C17: Измайлов Михаил Михайлович | D17: 8250
A18: 133 | B18: 310 | C18: Сидельникова Ольга Петровна | D18: 21675
D19: =SUM(D16:D18,D14,D13,D4:D11) -> 92902
A21: прделагаю из этого списка выдрать
A22: куратор | B22: телефонный номер | C22: номер участка | D22: ID | E22: Ф.И.О. | F22: Сумма по полю 01.08.2016 | G22: Член правления | H22: Город
A23: Жохова Елена Сергеевна | B23: (926)726-6624 | C23: 3 | D23: 3 | E23: Лебедев Андрей Анатольевич | F23: 27400 | G23: Лебедев Андрей Анатольевич | H23: г. Высоковск
A24: Жохова Елена Сергеевна | B24: (926)226-9654 (903)238-8436 | C24: 14 | D24: 7 | E24: Артемьев Сергей Иванович | F24: 45400 | H24: г. Высоковск
A25: Жохова Елена Сергеевна | B25: (925)051-6761 (967)079-1427 | C25: 11 | D25: 11 | E25: Бенгя Владимир Михайлович (Диана) | F25: 18400 | H25: д. Шипулино
A26: Жохова Елена Сергеевна | B26: (915)434-3911 (916) 159-44-96 | C26: 12 | D26: 12 | E26: Захаренкова Светлана Евгеньевна | F26: 28400 | H26: г. Высоковск
A27: Темникова Елена Станиславна | B27: (916)827-7559 | C27: 43 | D27: 43 | E27: Васильцова Елена Владимировна | F27: 25400 | H27: г. Зеленоград
A28: Спиридонов Андрей Владимирович | B28: (916)493-5464 | C28: 197 | D28: 188 | E28: Бондаренко Владимир Иванович | F28: 40400 | H28: г. Солнечногорск
A29: Спиридонов Андрей Владимирович | B29: (903)236-8802 (903)116-4767 | C29: 198 | D29: 190 | E29: Коновальцев Олег Серафимович | F29: 21600 | H29: г. Зеленоград
A30: Борисов Олег Александрович | B30: (916) 114-5316 (916)870-9325 (967)299-8498 | C30: 216 | D30: 206 | E30: Валеев Артур Рашидович | F30: 15400 | H30: г. Клин
A31: Карпова Елена Витальевна | B31: (905)526-3658 (925)116-5373 | C31: 227 | D31: 218 | E31: Молчанова Ирина Владимировна | F31: 14400 | H31: г. Клин
A32: Лапшин Сергей Николаевич | B32: (963)772-1491 | C32: 278 | D32: 265 | E32: Козловский Алексей Гаврилович | F32: 23400 | H32: г. Клин
A33: Лапшин Сергей Николаевич | B33: (905)583-5178 | C33: 279 | D33: 266 | E33: Кудревцев Евгений Александрович | F33: 17400 | H33: г. Клин
A34: Измайлов Михаил Михайлович | B34: (915)082-1357 | C34: 324 | D34: 309 | E34: Янковская Яна Валерьевна | F34: 28400 | H34: г. Зеленоград
A38: Это злостные неплательщики - те по кому есть города 100% вступали в партнерство
A39: куратор | B39: телефонный номер | C39: номер участка | D39: ID | E39: Ф.И.О. | F39: Сумма по полю 01.08.2016 | G39: Член правления | H39: Город
A40: Жохова Елена Сергеевна | B40: (916) 605-8064 | C40: 26 | D40: 26 | E40: Олейников Дмитрий Александрович | F40: 58400 | H40: г. Москва
A41: Жохова Елена Сергеевна | B41: (926) 736-3311 (920) 814-1810 | C41: 30 | D41: 30 | E41: Кириллов Дмитрий Александрович | F41: 53400 | H41: Орловская область
A42: Темникова Елена Станиславна | B42: (925) 223-62-48 | C42: 58 | D42: 56 | E42: Кушваха Виджай Шанкар | F42: 59400 | H42: 0
A43: Нелюбов Сергей Владимирович | B43: (915) 119-5355 | C43: 69 | D43: 67 | E43: Сбитнева Юлия Сергеевна | F43: 50400 | H43: г.Москва
A44: Сидельников Михаил Васильевич | B44: (351) 721-26-45, (495) 542-49-09, (925) 011-75-16 | C44: 153 | D44: 144 | E44: Рожкова Глафира Андреевна | F44: 108400 | H44: 0
A45: Анциферов Алексей Сергеевич | B45: (926)258-1065 | C45: 157 | D45: 149 | E45: Кириллов Вадим Александрович | F45: 53400 | H45: 0
A46: Спиридонов Андрей Владимирович | B46: (964) 514 1642 | C46: 181 | D46: 173 | E46: Колесников Никита Олегович(у Кряжковой Виктория Сергеевна | F46: 57400 | H46: 0
A47: Борисов Олег Александрович | B47: 0 | C47: 208 | D47: 199 | E47: Лошкарев Виктор Ильич | F47: 92400 | H47: Норильск
A48: Недосенко Олег Анатольевич | B48: (926)353-2073 (499)141-8433 | C48: 290 | D48: 278 | E48: Севастьянов Михаил Григорьевич | F48: 54400 | H48: 0
A49: Измайлов Михаил Михайлович | B49: (985)929-1070 | C49: 311 | D49: 296 | E49: Бекмансурова Динара Василевна | F49: 50400 | H49: 0

Sheet план на 2016 (hidden)
C1: НП СЗУ "Высокое"
C2: Отчет по членским взносам за 2015-2016 гг
C3: Номер участка | D3: Ф.И.О. | E3: Кадастр. номер участка | H3: Расчеты по членским взносам | M3: =COUNTA(M5:M326) -> 291 | N3: =COUNTA(N5:N326) -> 291 | O3: =COUNTA(O5:O326) -> 291 | P3: =COUNTA(P5:P326) -> 291 | Q3: =COUNTA(Q5:Q326) -> 291 | R3: =COUNTA(R5:R326) -> 291 | S3: =COUNTA(S5:S326) -> 291 | T3: =COUNTA(T5:T326) -> 291 | U3: =COUNTA(U5:U326) -> 291 | V3: =COUNTA(V5:V326) -> 291 | W3: =COUNTA(W5:W326) -> 291 | X3: =COUNTA(X5:X326) -> 291
A4: ID | B4: Сцепка | F4: Дата вступления в НП СЗУ "Высокое" | G4: 1-ый расчетный месяц | H4: Кол-во месяцев | I4: Сумма членских взносов, которые должны быть уплачены на 01.01.2016 г (исходя из кол-ва месяцев) | J4: Сумма оплаченных членских взносов на 01.11.2015 | K4: Оплата членских взносов за декабрь 2015 | L4: Остаток задолженности по членским взносам на 01.01.2016 | M4: 2016-01-01 | N4: 2016-02-01 | O4: 2016-03-01 | P4: 2016-04-01 | Q4: 2016-05-01 | R4: 2016-06-01 | S4: 2016-07-01 | T4: 2016-08-01 | U4: 2016-09-01 | V4: 2016-10-01 | W4: 2016-11-01 | X4: 2016-12-01 | Y4: Остаток задолженности по членским взносам на 01.01.2017 | Z4: количество участков
A5: =VLOOKUP(B5,справочник!$B$2:$E$322,4,0) -> 79 | B5: =CONCATENATE(C5,D5) -> 84Абу Махади Мохаммед Ибрагим | C5: 84 | D5: Абу Махади Мохаммед Ибрагим | E5: 50:03:0070280:947 | F5: 2011-06-22 | G5: 2011-07-01 | H5: =INT(($H$327-G5)/30) -> 54 | I5: =H5*1000 -> 54000 | J5: =49000+1000 -> 50000 | L5: =I5-J5-K5 -> 4000 | M5: 800 | N5: 800 | O5: 800 | P5: 800 | Q5: 800 | R5: 800 | S5: 800 | T5: 800 | U5: 800 | V5: 800 | W5: 800 | X5: 800 | Y5: =SUM(L5:X5) -> 13600 | Z5: =VLOOKUP(A5,справочник!$E$2:$F$322,2,0) -> 0
A6: =VLOOKUP(B6,справочник!$B$2:$E$322,4,0) -> 35 | B6: =CONCATENATE(C6;D6) ->  | C6: 35 | D6: Абушаев Роман Шамильевич | E6: 50:03:0070280:905 | F6: 2012-03-02 | G6: 2012-03-01 | H6: =INT(($H$327-G6)/30) -> 46 | I6: =H6*1000 -> 46000 | J6: 30000 | L6: =I6-J6-K6 -> 16000 | M6: 800 | N6: 800 | O6: 800 | P6: 800 | Q6: 800 | R6: 800 | S6: 800 | T6: 800 | U6: 800 | V6: 800 | W6: 800 | X6: 800 | Y6: =SUM(L6:X6) -> 25600 | Z6: =VLOOKUP(A6,справочник!$E$2:$F$322,2,0) -> 0
A7: =VLOOKUP(B7,справочник!$B$2:$E$322,4,0) -> 260 | B7: =CONCATENATE(C7;D7) ->  | C7: 273 | D7: Аксенов Дмитрий Викторович | E7: 50:03:0070280:730 | F7: 2013-09-23 | G7: 2013-10-01 | H7: =INT(($H$327-G7)/30) -> 27 | I7: =H7*1000 -> 27000 | J7: 19000 | L7: =I7-J7-K7 -> 8000 | M7: 800 | N7: 800 | O7: 800 | P7: 800 | Q7: 800 | R7: 800 | S7: 800 | T7: 800 | U7: 800 | V7: 800 | W7: 800 | X7: 800 | Y7: =SUM(L7:X7) -> 17600 | Z7: =VLOOKUP(A7,справочник!$E$2:$F$322,2,0) -> 0
A8: =VLOOKUP(B8,справочник!$B$2:$E$322,4,0) -> 203 | B8: =CONCATENATE(C8;D8) ->  | C8: 213 | D8: Александров Владимир Александрович | E8: 50:03:0070280:850 | F8: 2013-09-03 | G8: 2013-10-01 | H8: =INT(($H$327-G8)/30) -> 27 | I8: =H8*1000 -> 27000 | J8: 26000 | L8: =I8-J8-K8 -> 1000 | M8: 800 | N8: 800 | O8: 800 | P8: 800 | Q8: 800 | R8: 800 | S8: 800 | T8: 800 | U8: 800 | V8: 800 | W8: 800 | X8: 800 | Y8: =SUM(L8:X8) -> 10600 | Z8: =VLOOKUP(A8,справочник!$E$2:$F$322,2,0) -> 0
A9: =VLOOKUP(B9,справочник!$B$2:$E$322,4,0) -> 316 | B9: =CONCATENATE(C9;D9) ->  | C9: 306-307 | D9: Алексеев Андрей Олегович | E9: 50:03:0070280:997 | F9: 2011-12-16 | G9: 2011-12-01 | H9: =INT(($H$327-G9)/30) -> 49 | I9: =H9*1000 -> 49000 | J9: =30000+1000+1000 -> 32000 | L9: =I9-J9-K9 -> 17000 | M9: 800 | N9: 800 | O9: 800 | P9: 800 | Q9: 800 | R9: 800 | S9: 800 | T9: 800 | U9: 800 | V9: 800 | W9: 800 | X9: 800 | Y9: =SUM(L9:X9) -> 26600 | Z9: =VLOOKUP(A9,справочник!$E$2:$F$322,2,0) -> 0
A10: =VLOOKUP(B10,справочник!$B$2:$E$322,4,0) -> 232 | B10: =CONCATENATE(C10;D10) ->  | C10: 241 | D10: Амплеева Мария Александровна | E10: 50:03:0070280:894 | F10: 2013-06-04 | G10: 2013-07-01 | H10: =INT(($H$327-G10)/30) -> 30 | I10: =H10*1000 -> 30000 | J10: 6000 | L10: =I10-J10-K10 -> 24000 | M10: 800 | N10: 800 | O10: 800 | P10: 800 | Q10: 800 | R10: 800 | S10: 800 | T10: 800 | U10: 800 | V10: 800 | W10: 800 | X10: 800 | Y10: =SUM(L10:X10) -> 33600 | Z10: =VLOOKUP(A10,справочник!$E$2:$F$322,2,0) -> 0
A11: =VLOOKUP(B11,справочник!$B$2:$E$322,4,0) -> 277 | B11: =CONCATENATE(C11;D11) ->  | C11: 290 | D11: Андреева Любовь Ивановна(у Севастьянова) | F11: 2014-07-07 | G11: 2014-07-01 | H11: =INT(($H$327-G11)/30) -> 18 | I11: =H11*1000 -> 18000 | J11: 20000 | L11: =I11-J11-K11 -> -2000 | M11: 800 | N11: 800 | O11: 800 | P11: 800 | Q11: 800 | R11: 800 | S11: 800 | T11: 800 | U11: 800 | V11: 800 | W11: 800 | X11: 800 | Y11: =SUM(L11:X11) -> 7600 | Z11: =VLOOKUP(A11,справочник!$E$2:$F$322,2,0) -> 0
A12: =VLOOKUP(B12,справочник!$B$2:$E$322,4,0) -> 221 | B12: =CONCATENATE(C12;D12) ->  | C12: 230 | D12: Анисимова (Корнеева) Татьяна Николаевна | F12: 2014-09-30 | G12: 2014-10-01 | H12: =INT(($H$327-G12)/30) -> 15 | I12: =H12*1000 -> 15000 | J12: 1000 | L12: =I12-J12-K12 -> 14000 | M12: 800 | N12: 800 | O12: 800 | P12: 800 | Q12: 800 | R12: 800 | S12: 800 | T12: 800 | U12: 800 | V12: 800 | W12: 800 | X12: 800 | Y12: =SUM(L12:X12) -> 23600 | Z12: =VLOOKUP(A12,справочник!$E$2:$F$322,2,0) -> 0
A13: =VLOOKUP(B13,справочник!$B$2:$E$322,4,0) -> 259 | B13: =CONCATENATE(C13;D13) ->  | C13: 272 | D13: Анисимова Елена Анатольевна | E13: 50:03:0070280:731 | F13: 2013-07-02 | G13: 2013-08-01 | H13: =INT(($H$327-G13)/30) -> 29 | I13: =H13*1000 -> 29000 | J13: 25000 | L13: =I13-J13-K13 -> 4000 | M13: 800 | N13: 800 | O13: 800 | P13: 800 | Q13: 800 | R13: 800 | S13: 800 | T13: 800 | U13: 800 | V13: 800 | W13: 800 | X13: 800 | Y13: =SUM(L13:X13) -> 13600 | Z13: =VLOOKUP(A13,справочник!$E$2:$F$322,2,0) -> 0
A14: =VLOOKUP(B14,справочник!$B$2:$E$322,4,0) -> 109 | B14: =CONCATENATE(C14;D14) ->  | C14: 114 | D14: Антипова Жанна Михайловна | E14: 50:03:0070280:814 | F14: 2013-05-20 | G14: 2013-06-01 | H14: =INT(($H$327-G14)/30) -> 31 | I14: =H14*1000 -> 31000 | J14: 10000 | L14: =I14-J14-K14 -> 21000 | M14: 800 | N14: 800 | O14: 800 | P14: 800 | Q14: 800 | R14: 800 | S14: 800 | T14: 800 | U14: 800 | V14: 800 | W14: 800 | X14: 800 | Y14: =SUM(L14:X14) -> 30600 | Z14: =VLOOKUP(A14,справочник!$E$2:$F$322,2,0) -> 0
A15: =VLOOKUP(B15,справочник!$B$2:$E$322,4,0) -> 130 | B15: =CONCATENATE(C15;D15) ->  | C15: 137 | D15: Анциферов Алексей Сергеевич | E15: 50:03:0070280:973 | F15: 2011-10-25 | G15: 2011-11-01 | H15: =INT(($H$327-G15)/30) -> 50 | I15: =H15*1000 -> 50000 | J15: =44000+1000 -> 45000 | K15: 5000 | L15: =I15-J15-K15 -> 0 | M15: 800 | N15: 800 | O15: 800 | P15: 800 | Q15: 800 | R15: 800 | S15: 800 | T15: 800 | U15: 800 | V15: 800 | W15: 800 | X15: 800 | Y15: =SUM(L15:X15) -> 9600 | Z15: =VLOOKUP(A15,справочник!$E$2:$F$322,2,0) -> 0
A16: =VLOOKUP(B16,справочник!$B$2:$E$322,4,0) -> 7 | B16: =CONCATENATE(C16;D16) ->  | C16: 7 | D16: Артемьев Сергей Иванович | E16: 50:03:0070280:707 | F16: 2013-07-12 | G16: 2013-09-01 | H16: =INT(($H$327-G16)/30) -> 28 | I16: =H16*1000 -> 28000 | L16: =I16-J16-K16 -> 28000 | M16: 800 | N16: 800 | O16: 800 | P16: 800 | Q16: 800 | R16: 800 | S16: 800 | T16: 800 | U16: 800 | V16: 800 | W16: 800 | X16: 800 | Y16: =SUM(L16:X16) -> 37600 | Z16: =VLOOKUP(A16,справочник!$E$2:$F$322,2,0) -> 1
A17: =VLOOKUP(B17,справочник!$B$2:$E$322,4,0) -> 7 | B17: =CONCATENATE(C17;D17) ->  | C17: 14 | D17: Артемьев Сергей Иванович | E17: 50:03:0070280:701 | F17: 2012-10-22 | G17: 2012-11-01 | H17: =INT(($H$327-G17)/30) -> 38 | I17: =H17*1000 -> 38000 | J17: 27000 | L17: =I17-J17-K17 -> 11000 | Y17: =SUM(L17:X17) -> 11000 | Z17: =VLOOKUP(A17,справочник!$E$2:$F$322,2,0) -> 1
A18: =VLOOKUP(B18,справочник!$B$2:$E$322,4,0) -> 193 | B18: =CONCATENATE(C18;D18) ->  | C18: 201 | D18: Асташкин Павел Александрович(продал???) | E18: 50:03:0070280:758 | I18: =H18*1000 -> 0 | L18: =I18-J18-K18 -> 0 | M18: 800 | N18: 800 | O18: 800 | P18: 800 | Q18: 800 | R18: 800 | S18: 800 | T18: 800 | U18: 800 | V18: 800 | W18: 800 | X18: 800 | Y18: =SUM(L18:X18) -> 9600 | Z18: =VLOOKUP(A18,справочник!$E$2:$F$322,2,0) -> 0
A19: =VLOOKUP(B19,справочник!$B$2:$E$322,4,0) -> 178 | B19: =CONCATENATE(C19;D19) ->  | C19: 186 | D19: Афанасьева Злата Сергеевна | E19: 50:03:0070280:761 | F19: 2014-09-16 | G19: 2014-11-01 | H19: =INT(($H$327-G19)/30) -> 14 | I19: =H19*1000 -> 14000 | J19: 1000 | L19: =I19-J19-K19 -> 13000 | M19: 800 | N19: 800 | O19: 800 | P19: 800 | Q19: 800 | R19: 800 | S19: 800 | T19: 800 | U19: 800 | V19: 800 | W19: 800 | X19: 800 | Y19: =SUM(L19:X19) -> 22600 | Z19: =VLOOKUP(A19,справочник!$E$2:$F$322,2,0) -> 0
A20: =VLOOKUP(B20,справочник!$B$2:$E$322,4,0) -> 119 | B20: =CONCATENATE(C20;D20) ->  | C20: 124 | D20: Афян Сасун Аркадиевич | E20: 50:03:0070280:1021 | F20: 2013-05-07 | G20: 2013-06-01 | H20: =INT(($H$327-G20)/30) -> 31 | I20: =H20*1000 -> 31000 | J20: 11000 | L20: =I20-J20-K20 -> 20000 | M20: 800 | N20: 800 | O20: 800 | P20: 800 | Q20: 800 | R20: 800 | S20: 800 | T20: 800 | U20: 800 | V20: 800 | W20: 800 | X20: 800 | Y20: =SUM(L20:X20) -> 29600 | Z20: =VLOOKUP(A20,справочник!$E$2:$F$322,2,0) -> 0
A21: =VLOOKUP(B21,справочник!$B$2:$E$322,4,0) -> 293 | B21: =CONCATENATE(C21;D21) ->  | C21: 308 | D21: Ахромеев Андрей Владимирович | E21: 50:03:0070280:999 | F21: 2012-01-20 | G21: 2012-01-01 | H21: =INT(($H$327-G21)/30) -> 48 | I21: =H21*1000 -> 48000 | J21: =11500+24500 -> 36000 | L21: =I21-J21-K21 -> 12000 | M21: 800 | N21: 800 | O21: 800 | P21: 800 | Q21: 800 | R21: 800 | S21: 800 | T21: 800 | U21: 800 | V21: 800 | W21: 800 | X21: 800 | Y21: =SUM(L21:X21) -> 21600 | Z21: =VLOOKUP(A21,справочник!$E$2:$F$322,2,0) -> 0
A22: =VLOOKUP(B22,справочник!$B$2:$E$322,4,0) -> 191 | B22: =CONCATENATE(C22;D22) ->  | C22: 199 | D22: Бадирьян Тамара Викторовна | E22: 50:03:0070280:888 | I22: =H22*1000 -> 0 | L22: =I22-J22-K22 -> 0 | M22: 800 | N22: 800 | O22: 800 | P22: 800 | Q22: 800 | R22: 800 | S22: 800 | T22: 800 | U22: 800 | V22: 800 | W22: 800 | X22: 800 | Y22: =SUM(L22:X22) -> 9600 | Z22: =VLOOKUP(A22,справочник!$E$2:$F$322,2,0) -> 0
A23: =VLOOKUP(B23,справочник!$B$2:$E$322,4,0) -> 249 | B23: =CONCATENATE(C23;D23) ->  | C23: 260 | D23: Байбикова Рузалия Равилевна / Байбикова Руфия Равилевна | E23: 50:03:0070280:785 | F23: 2013-11-26 | G23: 2013-12-01 | H23: =INT(($H$327-G23)/30) -> 25 | I23: =H23*1000 -> 25000 | J23: =1000 -> 1000 | L23: =I23-J23-K23 -> 24000 | M23: 800 | N23: 800 | O23: 800 | P23: 800 | Q23: 800 | R23: 800 | S23: 800 | T23: 800 | U23: 800 | V23: 800 | W23: 800 | X23: 800 | Y23: =SUM(L23:X23) -> 33600 | Z23: =VLOOKUP(A23,справочник!$E$2:$F$322,2,0) -> 0
A24: =VLOOKUP(B24,справочник!$B$2:$E$322,4,0) -> 72 | B24: =CONCATENATE(C24;D24) ->  | C24: 78 | D24: Лещёва Ольга Владимировна | E24: 50:03:0070280:802 | F24: 2011-09-07 | G24: 2011-09-01 | H24: =INT(($H$327-G24)/30) -> 52 | I24: =H24*1000 -> 52000 | J24: =19000+1500+2500+23000 -> 46000 | L24: =I24-J24-K24 -> 6000 | M24: 800 | N24: 800 | O24: 800 | P24: 800 | Q24: 800 | R24: 800 | S24: 800 | T24: 800 | U24: 800 | V24: 800 | W24: 800 | X24: 800 | Y24: =SUM(L24:X24) -> 15600 | Z24: =VLOOKUP(A24,справочник!$E$2:$F$322,2,0) -> 0
A25: =VLOOKUP(B25,справочник!$B$2:$E$322,4,0) -> 125 | B25: =CONCATENATE(C25;D25) ->  | C25: 130 | D25: Безбородова Людмила Михайловна | E25: 50:03:0070280:812 | F25: 2014-11-05 | G25: 2014-12-01 | H25: =INT(($H$327-G25)/30) -> 13 | I25: =H25*1000 -> 13000 | J25: 8000 | L25: =I25-J25-K25 -> 5000 | M25: 800 | N25: 800 | O25: 800 | P25: 800 | Q25: 800 | R25: 800 | S25: 800 | T25: 800 | U25: 800 | V25: 800 | W25: 800 | X25: 800 | Y25: =SUM(L25:X25) -> 14600 | Z25: =VLOOKUP(A25,справочник!$E$2:$F$322,2,0) -> 0
A26: =VLOOKUP(B26,справочник!$B$2:$E$322,4,0) -> 229 | B26: =CONCATENATE(C26;D26) ->  | C26: 238 | D26: Безменова Татьяна Игоревна | E26: 50:03:0070280:897 | F26: 2013-04-09 | G26: 2013-05-01 | H26: =INT(($H$327-G26)/30) -> 32 | I26: =H26*1000 -> 32000 | J26: 9000 | L26: =I26-J26-K26 -> 23000 | M26: 800 | N26: 800 | O26: 800 | P26: 800 | Q26: 800 | R26: 800 | S26: 800 | T26: 800 | U26: 800 | V26: 800 | W26: 800 | X26: 800 | Y26: =SUM(L26:X26) -> 32600 | Z26: =VLOOKUP(A26,справочник!$E$2:$F$322,2,0) -> 0
A27: =VLOOKUP(B27,справочник!$B$2:$E$322,4,0) -> 296 | B27: =CONCATENATE(C27;D27) ->  | C27: 311 | D27: Бекмансурова Динара Василевна | E27: 50:03:0070280:1002 | F27: 2012-04-09 | G27: 2012-04-01 | H27: =INT(($H$327-G27)/30) -> 45 | I27: =H27*1000 -> 45000 | J27: 1000 | L27: =I27-J27-K27 -> 44000 | M27: 800 | N27: 800 | O27: 800 | P27: 800 | Q27: 800 | R27: 800 | S27: 800 | T27: 800 | U27: 800 | V27: 800 | W27: 800 | X27: 800 | Y27: =SUM(L27:X27) -> 53600 | Z27: =VLOOKUP(A27,справочник!$E$2:$F$322,2,0) -> 0
A28: =VLOOKUP(B28,справочник!$B$2:$E$322,4,0) -> 281 | B28: =CONCATENATE(C28;D28) ->  | C28: 293 | D28: Белов Семён Иванович | E28: 50:03:0070280:776 | F28: 2014-05-07 | G28: 2014-06-01 | H28: =INT(($H$327-G28)/30) -> 19 | I28: =H28*1000 -> 19000 | J28: 1000 | L28: =I28-J28-K28 -> 18000 | M28: 800 | N28: 800 | O28: 800 | P28: 800 | Q28: 800 | R28: 800 | S28: 800 | T28: 800 | U28: 800 | V28: 800 | W28: 800 | X28: 800 | Y28: =SUM(L28:X28) -> 27600 | Z28: =VLOOKUP(A28,справочник!$E$2:$F$322,2,0) -> 0
A29: =VLOOKUP(B29,справочник!$B$2:$E$322,4,0) -> 198 | B29: =CONCATENATE(C29;D29) ->  | C29: 206 | D29: Белоглазова Людмила Ивановна | E29: 50:03:0070280:983 | F29: 2011-09-30 | G29: 2011-09-01 | H29: =INT(($H$327-G29)/30) -> 52 | I29: =H29*1000 -> 52000 | J29: =50000+1000 -> 51000 | K29: 1000 | L29: =I29-J29-K29 -> 0 | M29: 800 | N29: 800 | O29: 800 | P29: 800 | Q29: 800 | R29: 800 | S29: 800 | T29: 800 | U29: 800 | V29: 800 | W29: 800 | X29: 800 | Y29: =SUM(L29:X29) -> 9600 | Z29: =VLOOKUP(A29,справочник!$E$2:$F$322,2,0) -> 0
A30: =VLOOKUP(B30,справочник!$B$2:$E$322,4,0) -> 52 | B30: =CONCATENATE(C30;D30) ->  | C30: 54 | D30: Бельская Светлана Александровна (Владимир) | E30: 50:03:0070280:945 | F30: 2012-04-17 | G30: 2012-04-01 | H30: =INT(($H$327-G30)/30) -> 45 | I30: =H30*1000 -> 45000 | J30: 40000 | K30: 5000 | L30: 5000 | M30: 800 | N30: 800 | O30: 800 | P30: 800 | Q30: 800 | R30: 800 | S30: 800 | T30: 800 | U30: 800 | V30: 800 | W30: 800 | X30: 800 | Y30: =SUM(L30:X30) -> 14600 | Z30: =VLOOKUP(A30,справочник!$E$2:$F$322,2,0) -> 0
A31: =VLOOKUP(B31,справочник!$B$2:$E$322,4,0) -> 51 | B31: =CONCATENATE(C31;D31) ->  | C31: 53 | D31: Бельский Владимир Владимирович (Светлана) | E31: 50:03:0070280:966 | F31: 2012-04-17 | G31: 2012-04-01 | H31: =INT(($H$327-G31)/30) -> 45 | I31: =H31*1000 -> 45000 | J31: 28000 | K31: 7000 | L31: 5000 | M31: 800 | N31: 800 | O31: 800 | P31: 800 | Q31: 800 | R31: 800 | S31: 800 | T31: 800 | U31: 800 | V31: 800 | W31: 800 | X31: 800 | Y31: =SUM(L31:X31) -> 14600 | Z31: =VLOOKUP(A31,справочник!$E$2:$F$322,2,0) -> 0
A32: =VLOOKUP(B32,справочник!$B$2:$E$322,4,0) -> 136 | B32: =CONCATENATE(C32;D32) ->  | C32: 144 | D32: Беляков Виктор Михайлович | E32: 50:03:0070280:940 | F32: 2012-10-22 | G32: 2012-11-01 | H32: =INT(($H$327-G32)/30) -> 38 | I32: =H32*1000 -> 38000 | J32: 28000 | L32: =I32-J32-K32 -> 10000 | M32: 800 | N32: 800 | O32: 800 | P32: 800 | Q32: 800 | R32: 800 | S32: 800 | T32: 800 | U32: 800 | V32: 800 | W32: 800 | X32: 800 | Y32: =SUM(L32:X32) -> 19600 | Z32: =VLOOKUP(A32,справочник!$E$2:$F$322,2,0) -> 0
A33: =VLOOKUP(B33,справочник!$B$2:$E$322,4,0) -> 11 | B33: =CONCATENATE(C33;D33) ->  | C33: 11 | D33: Бенгя Владимир Михайлович (Диана) | E33: 50:03:0070280:704 | F33: 2012-10-22 | G33: 2012-11-01 | H33: =INT(($H$327-G33)/30) -> 38 | I33: =H33*1000 -> 38000 | J33: 26000 | L33: =I33-J33-K33 -> 12000 | M33: 800 | N33: 800 | O33: 800 | P33: 800 | Q33: 800 | R33: 800 | S33: 800 | T33: 800 | U33: 800 | V33: 800 | W33: 800 | X33: 800 | Y33: =SUM(L33:X33) -> 21600 | Z33: =VLOOKUP(A33,справочник!$E$2:$F$322,2,0) -> 0
A34: =VLOOKUP(B34,справочник!$B$2:$E$322,4,0) -> 114 | B34: =CONCATENATE(C34;D34) ->  | C34: 119 | D34: Беспаленко Зинаида Александровна | E34: 50:03:0070280:1024 | F34: 2012-12-19 | G34: 2013-01-01 | H34: =INT(($H$327-G34)/30) -> 36 | I34: =H34*1000 -> 36000 | J34: 1000 | L34: =I34-J34-K34 -> 35000 | M34: 800 | N34: 800 | O34: 800 | P34: 800 | Q34: 800 | R34: 800 | S34: 800 | T34: 800 | U34: 800 | V34: 800 | W34: 800 | X34: 800 | Y34: =SUM(L34:X34) -> 44600 | Z34: =VLOOKUP(A34,справочник!$E$2:$F$322,2,0) -> 0
A35: =VLOOKUP(B35,справочник!$B$2:$E$322,4,0) -> 151 | B35: =CONCATENATE(C35;D35) ->  | C35: 159 | D35: Бирюков Александр Сергеевич | E35: 50:03:0070280:960 | F35: 2012-07-31 | G35: 2012-08-01 | H35: =INT(($H$327-G35)/30) -> 41 | I35: =H35*1000 -> 41000 | J35: 17000 | L35: =I35-J35-K35 -> 24000 | M35: 800 | N35: 800 | O35: 800 | P35: 800 | Q35: 800 | R35: 800 | S35: 800 | T35: 800 | U35: 800 | V35: 800 | W35: 800 | X35: 800 | Y35: =SUM(L35:X35) -> 33600 | Z35: =VLOOKUP(A35,справочник!$E$2:$F$322,2,0) -> 0
A36: =VLOOKUP(B36,справочник!$B$2:$E$322,4,0) -> 142 | B36: =CONCATENATE(C36;D36) ->  | C36: 150 | D36: Блинков Анатолий Сергеевич | E36: 50:03:0070280:951 | F36: 2011-08-16 | G36: 2011-09-01 | H36: =INT(($H$327-G36)/30) -> 52 | I36: =H36*1000 -> 52000 | J36: =32000+1000 -> 33000 | K36: 19000 | L36: =I36-J36-K36 -> 0 | M36: 800 | N36: 800 | O36: 800 | P36: 800 | Q36: 800 | R36: 800 | S36: 800 | T36: 800 | U36: 800 | V36: 800 | W36: 800 | X36: 800 | Y36: =SUM(L36:X36) -> 9600 | Z36: =VLOOKUP(A36,справочник!$E$2:$F$322,2,0) -> 0
A37: =VLOOKUP(B37,справочник!$B$2:$E$322,4,0) -> 245 | B37: =CONCATENATE(C37;D37) ->  | C37: 256 | D37: Бондарев Станислав Дмитриевич | E37: 50:03:0070280:789 | F37: 2014-10-18 | G37: 2014-11-01 | H37: =INT(($H$327-G37)/30) -> 14 | I37: =H37*1000 -> 14000 | J37: 9000 | L37: =I37-J37-K37 -> 5000 | M37: 800 | N37: 800 | O37: 800 | P37: 800 | Q37: 800 | R37: 800 | S37: 800 | T37: 800 | U37: 800 | V37: 800 | W37: 800 | X37: 800 | Y37: =SUM(L37:X37) -> 14600 | Z37: =VLOOKUP(A37,справочник!$E$2:$F$322,2,0) -> 0
A38: =VLOOKUP(B38,справочник!$B$2:$E$322,4,0) -> 188 | B38: =CONCATENATE(C38;D38) ->  | C38: 196 | D38: Бондаренко Владимир Иванович | E38: 50:03:0070280:1773 | F38: 2014-02-04 | G38: 2014-03-01 | H38: =INT(($H$327-G38)/30) -> 22 | I38: =H38*1000 -> 22000 | J38: 10000 | L38: =I38-J38-K38 -> 12000 | M38: 800 | N38: 800 | O38: 800 | P38: 800 | Q38: 800 | R38: 800 | S38: 800 | T38: 800 | U38: 800 | V38: 800 | W38: 800 | X38: 800 | Y38: =SUM(L38:X38) -> 21600 | Z38: =VLOOKUP(A38,справочник!$E$2:$F$322,2,0) -> 1
A39: =VLOOKUP(B39,справочник!$B$2:$E$322,4,0) -> 188 | B39: =CONCATENATE(C39;D39) ->  | C39: 197 | D39: Бондаренко Владимир Иванович | F39: 2014-02-04 | G39: 2014-03-01 | H39: =INT(($H$327-G39)/30) -> 22 | I39: =H39*1000 -> 22000 | L39: =I39-J39-K39 -> 22000 | Y39: =SUM(L39:X39) -> 22000 | Z39: =VLOOKUP(A39,справочник!$E$2:$F$322,2,0) -> 1
A40: =VLOOKUP(B40,справочник!$B$2:$E$322,4,0) -> 219 | B40: =CONCATENATE(C40;D40) ->  | C40: 228 | D40: Бондарь Василий Дмитриевич | E40: 50:03:0070280:835 | F40: 2014-07-28 | G40: 2014-09-01 | H40: =INT(($H$327-G40)/30) -> 16 | I40: =H40*1000 -> 16000 | J40: 13000 | K40: 3000 | L40: =I40-J40-K40 -> 0 | M40: 800 | N40: 800 | O40: 800 | P40: 800 | Q40: 800 | R40: 800 | S40: 800 | T40: 800 | U40: 800 | V40: 800 | W40: 800 | X40: 800 | Y40: =SUM(L40:X40) -> 9600 | Z40: =VLOOKUP(A40,справочник!$E$2:$F$322,2,0) -> 0
A41: =VLOOKUP(B41,справочник!$B$2:$E$322,4,0) -> 223 | B41: =CONCATENATE(C41;D41) ->  | C41: 232 | D41: Борисов Олег Александрович | E41: 50:03:0070280:831 | F41: 2012-02-16 | G41: 2012-02-01 | H41: =INT(($H$327-G41)/30) -> 47 | I41: =H41*1000 -> 47000 | J41: 1000 | K41: 45000 | L41: =I41-J41-K41 -> 1000 | M41: 800 | N41: 800 | O41: 800 | P41: 800 | Q41: 800 | R41: 800 | S41: 800 | T41: 800 | U41: 800 | V41: 800 | W41: 800 | X41: 800 | Y41: =SUM(L41:X41) -> 10600 | Z41: =VLOOKUP(A41,справочник!$E$2:$F$322,2,0) -> 0
A42: =VLOOKUP(B42,справочник!$B$2:$E$322,4,0) -> 137 | B42: =CONCATENATE(C42;D42) ->  | C42: 145 | D42: Бранцова Татьяна Валерьевна | E42: 50:03:0070280:986 | F42: 2012-05-01 | G42: 2012-05-01 | H42: =INT(($H$327-G42)/30) -> 44 | I42: =H42*1000 -> 44000 | J42: 44000 | L42: =I42-J42-K42 -> 0 | M42: 800 | N42: 800 | O42: 800 | P42: 800 | Q42: 800 | R42: 800 | S42: 800 | T42: 800 | U42: 800 | V42: 800 | W42: 800 | X42: 800 | Y42: =SUM(L42:X42) -> 9600 | Z42: =VLOOKUP(A42,справочник!$E$2:$F$322,2,0) -> 0
A43: =VLOOKUP(B43,справочник!$B$2:$E$322,4,0) -> 105 | B43: =CONCATENATE(C43;D43) ->  | C43: 110 | D43: Брылёв Андрей Вячеславович | E43: 50:03:0070280:818 | F43: 2012-01-17 | G43: 2012-01-01 | H43: =INT(($H$327-G43)/30) -> 48 | I43: =H43*1000 -> 48000 | J43: 28000 | L43: =I43-J43-K43 -> 20000 | M43: 800 | N43: 800 | O43: 800 | P43: 800 | Q43: 800 | R43: 800 | S43: 800 | T43: 800 | U43: 800 | V43: 800 | W43: 800 | X43: 800 | Y43: =SUM(L43:X43) -> 29600 | Z43: =VLOOKUP(A43,справочник!$E$2:$F$322,2,0) -> 0
A44: =VLOOKUP(B44,справочник!$B$2:$E$322,4,0) -> 98 | B44: =CONCATENATE(C44;D44) ->  | C44: 103 | D44: Бугрова Вероника Артуровна | E44: 50:03:0070280:797 | F44: 2011-12-20 | G44: 2011-12-01 | H44: =INT(($H$327-G44)/30) -> 49 | I44: =H44*1000 -> 49000 | J44: =29000+1000 -> 30000 | L44: =I44-J44-K44 -> 19000 | M44: 800 | N44: 800 | O44: 800 | P44: 800 | Q44: 800 | R44: 800 | S44: 800 | T44: 800 | U44: 800 | V44: 800 | W44: 800 | X44: 800 | Y44: =SUM(L44:X44) -> 28600 | Z44: =VLOOKUP(A44,справочник!$E$2:$F$322,2,0) -> 0
A45: =VLOOKUP(B45,справочник!$B$2:$E$322,4,0) -> 274 | B45: =CONCATENATE(C45;D45) ->  | C45: 287 | D45: Будаев Андрей Анатольевич | F45: 2015-01-19 | G45: 2015-02-01 | H45: =INT(($H$327-G45)/30) -> 11 | I45: =H45*1000 -> 11000 | J45: 2000 | L45: =I45-J45-K45 -> 9000 | M45: 800 | N45: 800 | O45: 800 | P45: 800 | Q45: 800 | R45: 800 | S45: 800 | T45: 800 | U45: 800 | V45: 800 | W45: 800 | X45: 800 | Y45: =SUM(L45:X45) -> 18600 | Z45: =VLOOKUP(A45,справочник!$E$2:$F$322,2,0) -> 1
A46: =VLOOKUP(B46,справочник!$B$2:$E$322,4,0) -> 274 | B46: =CONCATENATE(C46;D46) ->  | C46: 295 | D46: Будаев Андрей Анатольевич | F46: 2015-01-19 | G46: 2015-02-01 | H46: =INT(($H$327-G46)/30) -> 11 | I46: =H46*1000 -> 11000 | L46: =I46-J46-K46 -> 11000 | Y46: =SUM(L46:X46) -> 11000 | Z46: =VLOOKUP(A46,справочник!$E$2:$F$322,2,0) -> 1
A47: =VLOOKUP(B47,справочник!$B$2:$E$322,4,0) -> 175 | B47: =CONCATENATE(C47;D47) ->  | C47: 183 | D47: Буланова Лилия Михайловна | E47: 50:03:0070280:921 | F47: 2014-08-14 | G47: 2014-09-01 | H47: =INT(($H$327-G47)/30) -> 16 | I47: =H47*1000 -> 16000 | L47: =I47-J47-K47 -> 16000 | M47: 800 | N47: 800 | O47: 800 | P47: 800 | Q47: 800 | R47: 800 | S47: 800 | T47: 800 | U47: 800 | V47: 800 | W47: 800 | X47: 800 | Y47: =SUM(L47:X47) -> 25600 | Z47: =VLOOKUP(A47,справочник!$E$2:$F$322,2,0) -> 1
A48: =VLOOKUP(B48,справочник!$B$2:$E$322,4,0) -> 175 | B48: =CONCATENATE(C48;D48) ->  | C48: 187 | D48: Буланова Лилия Михайловна | E48: 50:03:0070280:919 | F48: 2014-08-14 | G48: 2014-09-01 | H48: =INT(($H$327-G48)/30) -> 16 | I48: =H48*1000 -> 16000 | L48: =I48-J48-K48 -> 16000 | Y48: =SUM(L48:X48) -> 16000 | Z48: =VLOOKUP(A48,справочник!$E$2:$F$322,2,0) -> 1
A49: =VLOOKUP(B49,справочник!$B$2:$E$322,4,0) -> 303 | B49: =CONCATENATE(C49;D49) ->  | C49: 318 | D49: Бурдух Юрие | E49: 50:03:0070280:1009 | F49: 2014-12-29 | G49: 2015-01-01 | H49: =INT(($H$327-G49)/30) -> 12 | I49: =H49*1000 -> 12000 | L49: =I49-J49-K49 -> 12000 | M49: 800 | N49: 800 | O49: 800 | P49: 800 | Q49: 800 | R49: 800 | S49: 800 | T49: 800 | U49: 800 | V49: 800 | W49: 800 | X49: 800 | Y49: =SUM(L49:X49) -> 21600 | Z49: =VLOOKUP(A49,справочник!$E$2:$F$322,2,0) -> 1
A50: =VLOOKUP(B50,справочник!$B$2:$E$322,4,0) -> 303 | B50: =CONCATENATE(C50;D50) ->  | C50: 319 | D50: Бурдух Юрие | E50: 50:03:0070280:1010 | F50: 2014-12-29 | G50: 2015-01-01 | H50: =INT(($H$327-G50)/30) -> 12 | I50: =H50*1000 -> 12000 | L50: =I50-J50-K50 -> 12000 | Y50: =SUM(L50:X50) -> 12000 | Z50: =VLOOKUP(A50,справочник!$E$2:$F$322,2,0) -> 1
A51: =VLOOKUP(B51,справочник!$B$2:$E$322,4,0) -> 90 | B51: =CONCATENATE(C51;D51) ->  | C51: 95 | D51: Быданцева Нина Юрьевна | E51: 50:03:0070280:825 | F51: 2011-09-09 | G51: 2011-09-01 | H51: =INT(($H$327-G51)/30) -> 52 | I51: =H51*1000 -> 52000 | J51: =36000+4000+12000 -> 52000 | L51: =I51-J51-K51 -> 0 | M51: 800 | N51: 800 | O51: 800 | P51: 800 | Q51: 800 | R51: 800 | S51: 800 | T51: 800 | U51: 800 | V51: 800 | W51: 800 | X51: 800 | Y51: =SUM(L51:X51) -> 9600 | Z51: =VLOOKUP(A51,справочник!$E$2:$F$322,2,0) -> 0
A52: =VLOOKUP(B52,справочник!$B$2:$E$322,4,0) -> 206 | B52: =CONCATENATE(C52;D52) ->  | C52: 216 | D52: Валеев Артур Рашидович | E52: 50:03:0070280:1423 | F52: 2012-02-14 | G52: 2012-02-01 | H52: =INT(($H$327-G52)/30) -> 47 | I52: =H52*1000 -> 47000 | J52: 38000 | L52: =I52-J52-K52 -> 9000 | M52: 800 | N52: 800 | O52: 800 | P52: 800 | Q52: 800 | R52: 800 | S52: 800 | T52: 800 | U52: 800 | V52: 800 | W52: 800 | X52: 800 | Y52: =SUM(L52:X52) -> 18600 | Z52: =VLOOKUP(A52,справочник!$E$2:$F$322,2,0) -> 0
A53: =VLOOKUP(B53,справочник!$B$2:$E$322,4,0) -> 101 | B53: =CONCATENATE(C53;D53) ->  | C53: 106 | D53: Васильев Николай Владимирович | E53: 50:03:0070280:798 | F53: 2011-09-30 | G53: 2011-09-01 | H53: =INT(($H$327-G53)/30) -> 52 | I53: =H53*1000 -> 52000 | J53: =42000+1000 -> 43000 | L53: =I53-J53-K53 -> 9000 | M53: 800 | N53: 800 | O53: 800 | P53: 800 | Q53: 800 | R53: 800 | S53: 800 | T53: 800 | U53: 800 | V53: 800 | W53: 800 | X53: 800 | Y53: =SUM(L53:X53) -> 18600 | Z53: =VLOOKUP(A53,справочник!$E$2:$F$322,2,0) -> 0
A54: =VLOOKUP(B54,справочник!$B$2:$E$322,4,0) -> 86 | B54: =CONCATENATE(C54;D54) ->  | C54: 91 | D54: Васильева Ольга Александровна | E54: 50:03:0070280:866 | F54: 2011-10-31 | G54: 2011-11-01 | H54: =INT(($H$327-G54)/30) -> 50 | I54: =H54*1000 -> 50000 | J54: =34000+13000 -> 47000 | K54: 4000 | L54: =I54-J54-K54 -> -1000 | M54: 800 | N54: 800 | O54: 800 | P54: 800 | Q54: 800 | R54: 800 | S54: 800 | T54: 800 | U54: 800 | V54: 800 | W54: 800 | X54: 800 | Y54: =SUM(L54:X54) -> 8600 | Z54: =VLOOKUP(A54,справочник!$E$2:$F$322,2,0) -> 0
A55: =VLOOKUP(B55,справочник!$B$2:$E$322,4,0) -> 43 | B55: =CONCATENATE(C55;D55) ->  | C55: 43 | D55: Васильцова Елена Владимировна | E55: 50:03:0070280:972 | F55: 2011-08-31 | G55: 2011-09-01 | H55: =INT(($H$327-G55)/30) -> 52 | I55: =H55*1000 -> 52000 | J55: =27000+2000 -> 29000 | L55: =I55-J55-K55 -> 23000 | M55: 800 | N55: 800 | O55: 800 | P55: 800 | Q55: 800 | R55: 800 | S55: 800 | T55: 800 | U55: 800 | V55: 800 | W55: 800 | X55: 800 | Y55: =SUM(L55:X55) -> 32600 | Z55: =VLOOKUP(A55,справочник!$E$2:$F$322,2,0) -> 0
A56: =VLOOKUP(B56,справочник!$B$2:$E$322,4,0) -> 25 | B56: =CONCATENATE(C56;D56) ->  | C56: 25 | D56: Вершинина Елена Анатольевна | E56: 50:03:0070280:854 | F56: 2012-02-16 | G56: 2012-02-01 | H56: =INT(($H$327-G56)/30) -> 47 | I56: =H56*1000 -> 47000 | J56: =33000+11000 -> 44000 | K56: 3000 | L56: =I56-J56-K56 -> 0 | M56: 800 | N56: 800 | O56: 800 | P56: 800 | Q56: 800 | R56: 800 | S56: 800 | T56: 800 | U56: 800 | V56: 800 | W56: 800 | X56: 800 | Y56: =SUM(L56:X56) -> 9600 | Z56: =VLOOKUP(A56,справочник!$E$2:$F$322,2,0) -> 0
A57: =VLOOKUP(B57,справочник!$B$2:$E$322,4,0) -> 138 | B57: =CONCATENATE(C57;D57) ->  | C57: 146 | D57: Виноградова Наталья Дмитриевна (Николай) | E57: 50:03:0070280:987 | F57: 2011-08-29 | G57: 2011-08-01 | H57: =INT(($H$327-G57)/30) -> 53 | I57: =H57*1000 -> 53000 | J57: =53000 -> 53000 | L57: =I57-J57-K57 -> 0 | M57: 800 | N57: 800 | O57: 800 | P57: 800 | Q57: 800 | R57: 800 | S57: 800 | T57: 800 | U57: 800 | V57: 800 | W57: 800 | X57: 800 | Y57: =SUM(L57:X57) -> 9600 | Z57: =VLOOKUP(A57,справочник!$E$2:$F$322,2,0) -> 0
A58: =VLOOKUP(B58,справочник!$B$2:$E$322,4,0) -> 228 | B58: =CONCATENATE(C58;D58) ->  | C58: 237 | D58: Виртилецкий Денис Вячеславович | E58: 50:03:0070280:898 | F58: 2014-03-05 | G58: 2014-04-01 | H58: =INT(($H$327-G58)/30) -> 21 | I58: =H58*1000 -> 21000 | L58: =I58-J58-K58 -> 21000 | M58: 800 | N58: 800 | O58: 800 | P58: 800 | Q58: 800 | R58: 800 | S58: 800 | T58: 800 | U58: 800 | V58: 800 | W58: 800 | X58: 800 | Y58: =SUM(L58:X58) -> 30600 | Z58: =VLOOKUP(A58,справочник!$E$2:$F$322,2,0) -> 0
A59: =VLOOKUP(B59,справочник!$B$2:$E$322,4,0) -> 37 | B59: =CONCATENATE(C59;D59) ->  | C59: 37 | D59: Водянова Ольга Александровна | E59: 50:03:0070280:907 | F59: 2011-09-09 | G59: 2011-09-01 | H59: =INT(($H$327-G59)/30) -> 52 | I59: =H59*1000 -> 52000 | J59: =48000+4000 -> 52000 | L59: =I59-J59-K59 -> 0 | M59: 800 | N59: 800 | O59: 800 | P59: 800 | Q59: 800 | R59: 800 | S59: 800 | T59: 800 | U59: 800 | V59: 800 | W59: 800 | X59: 800 | Y59: =SUM(L59:X59) -> 9600 | Z59: =VLOOKUP(A59,справочник!$E$2:$F$322,2,0) -> 0
A60: =VLOOKUP(B60,справочник!$B$2:$E$322,4,0) -> 126 | B60: =CONCATENATE(C60;D60) ->  | C60: 131 | D60: Волгушев Дмитрий Геннадиевич | E60: 50:03:0070280:813 | F60: 2012-10-01 | G60: 2012-12-01 | H60: =INT(($H$327-G60)/30) -> 37 | I60: =H60*1000 -> 37000 | J60: =24000 -> 24000 | K60: 13000 | L60: =I60-J60-K60 -> 0 | M60: 800 | N60: 800 | O60: 800 | P60: 800 | Q60: 800 | R60: 800 | S60: 800 | T60: 800 | U60: 800 | V60: 800 | W60: 800 | X60: 800 | Y60: =SUM(L60:X60) -> 9600 | Z60: =VLOOKUP(A60,справочник!$E$2:$F$322,2,0) -> 0
A61: =VLOOKUP(B61,справочник!$B$2:$E$322,4,0) -> 58 | B61: =CONCATENATE(C61;D61) ->  | C61: 60 | D61: Володина Инна Александровна | E61: 50:03:0070280:961 | F61: 2013-01-29 | G61: 2013-02-01 | H61: =INT(($H$327-G61)/30) -> 35 | I61: =H61*1000 -> 35000 | J61: =31000 -> 31000 | L61: =I61-J61-K61 -> 4000 | M61: 800 | N61: 800 | O61: 800 | P61: 800 | Q61: 800 | R61: 800 | S61: 800 | T61: 800 | U61: 800 | V61: 800 | W61: 800 | X61: 800 | Y61: =SUM(L61:X61) -> 13600 | Z61: =VLOOKUP(A61,справочник!$E$2:$F$322,2,0) -> 0
A62: =VLOOKUP(B62,справочник!$B$2:$E$322,4,0) -> 117 | B62: =CONCATENATE(C62;D62) ->  | C62: 122 | D62: Вольский Андрей Юрьевич | E62: 50:03:0070280:1019 | F62: 2013-05-13 | G62: 2013-06-01 | H62: =INT(($H$327-G62)/30) -> 31 | I62: =H62*1000 -> 31000 | J62: =12000 -> 12000 | L62: =I62-J62-K62 -> 19000 | M62: 800 | N62: 800 | O62: 800 | P62: 800 | Q62: 800 | R62: 800 | S62: 800 | T62: 800 | U62: 800 | V62: 800 | W62: 800 | X62: 800 | Y62: =SUM(L62:X62) -> 28600 | Z62: =VLOOKUP(A62,справочник!$E$2:$F$322,2,0) -> 0
A63: =VLOOKUP(B63,справочник!$B$2:$E$322,4,0) -> 61 | B63: =CONCATENATE(C63;D63) ->  | C63: 63 | D63: Высоких Антон Маркович | E63: 50:03:0070280:932 | F63: 2012-01-13 | G63: 2012-01-01 | H63: =INT(($H$327-G63)/30) -> 48 | I63: =H63*1000 -> 48000 | J63: =27000 -> 27000 | L63: =I63-J63-K63 -> 21000 | M63: 800 | N63: 800 | O63: 800 | P63: 800 | Q63: 800 | R63: 800 | S63: 800 | T63: 800 | U63: 800 | V63: 800 | W63: 800 | X63: 800 | Y63: =SUM(L63:X63) -> 30600 | Z63: =VLOOKUP(A63,справочник!$E$2:$F$322,2,0) -> 0
A64: =VLOOKUP(B64,справочник!$B$2:$E$322,4,0) -> 294 | B64: =CONCATENATE(C64;D64) ->  | C64: 309 | D64: Гайкова (Дьякова) Мария Викторовна | E64: 50:03:0070280:1000 | F64: 2012-02-14 | G64: 2012-02-01 | H64: =INT(($H$327-G64)/30) -> 47 | I64: =H64*1000 -> 47000 | J64: 47000 | L64: =I64-J64-K64 -> 0 | M64: 800 | N64: 800 | O64: 800 | P64: 800 | Q64: 800 | R64: 800 | S64: 800 | T64: 800 | U64: 800 | V64: 800 | W64: 800 | X64: 800 | Y64: =SUM(L64:X64) -> 9600 | Z64: =VLOOKUP(A64,справочник!$E$2:$F$322,2,0) -> 0
A65: =VLOOKUP(B65,справочник!$B$2:$E$322,4,0) -> 286 | B65: =CONCATENATE(C65;D65) ->  | C65: 298 | D65: Ганин Александр Борисович | E65: 50:03:0070280:781 | F65: 2014-06-01 | G65: 2014-06-01 | H65: =INT(($H$327-G65)/30) -> 19 | I65: =H65*1000 -> 19000 | J65: 19000 | L65: =I65-J65-K65 -> 0 | M65: 800 | N65: 800 | O65: 800 | P65: 800 | Q65: 800 | R65: 800 | S65: 800 | T65: 800 | U65: 800 | V65: 800 | W65: 800 | X65: 800 | Y65: =SUM(L65:X65) -> 9600 | Z65: =VLOOKUP(A65,справочник!$E$2:$F$322,2,0) -> 0
A66: =VLOOKUP(B66,справочник!$B$2:$E$322,4,0) -> 64 | B66: =CONCATENATE(C66;D66) ->  | C66: 66 | D66: Горбунов Владимир Александрович | E66: 50:03:0070280:935 | F66: 2011-08-17 | G66: 2011-08-01 | H66: =INT(($H$327-G66)/30) -> 53 | I66: =H66*1000 -> 53000 | J66: =1000+45000 -> 46000 | L66: =I66-J66-K66 -> 7000 | M66: 800 | N66: 800 | O66: 800 | P66: 800 | Q66: 800 | R66: 800 | S66: 800 | T66: 800 | U66: 800 | V66: 800 | W66: 800 | X66: 800 | Y66: =SUM(L66:X66) -> 16600 | Z66: =VLOOKUP(A66,справочник!$E$2:$F$322,2,0) -> 0
A67: =VLOOKUP(B67,справочник!$B$2:$E$322,4,0) -> 94 | B67: =CONCATENATE(C67;D67) ->  | C67: 99 | D67: Горбунов Максим Николаевич | E67: 50:03:0070280:860 | F67: 2011-08-19 | G67: 2011-08-01 | H67: =INT(($H$327-G67)/30) -> 53 | I67: =H67*1000 -> 53000 | J67: =42000+5000 -> 47000 | L67: =I67-J67-K67 -> 6000 | M67: 800 | N67: 800 | O67: 800 | P67: 800 | Q67: 800 | R67: 800 | S67: 800 | T67: 800 | U67: 800 | V67: 800 | W67: 800 | X67: 800 | Y67: =SUM(L67:X67) -> 15600 | Z67: =VLOOKUP(A67,справочник!$E$2:$F$322,2,0) -> 0
A68: =VLOOKUP(B68,справочник!$B$2:$E$322,4,0) -> 39 | B68: =CONCATENATE(C68;D68) ->  | C68: 39 | D68: Гордейчик Игорь Борисович | E68: 50:03:0070280:909 | F68: 2011-06-04 | G68: 2011-06-01 | H68: =INT(($H$327-G68)/30) -> 55 | I68: =H68*1000 -> 55000 | J68: =1000+42000 -> 43000 | L68: =I68-J68-K68 -> 12000 | M68: 800 | N68: 800 | O68: 800 | P68: 800 | Q68: 800 | R68: 800 | S68: 800 | T68: 800 | U68: 800 | V68: 800 | W68: 800 | X68: 800 | Y68: =SUM(L68:X68) -> 21600 | Z68: =VLOOKUP(A68,справочник!$E$2:$F$322,2,0) -> 0
A69: =VLOOKUP(B69,справочник!$B$2:$E$322,4,0) -> 276 | B69: =CONCATENATE(C69;D69) ->  | C69: 289 | D69: Горянов Михаил Андреевич | E69: 50:03:0070280:780 | F69: 2011-12-13 | G69: 2011-12-01 | H69: =INT(($H$327-G69)/30) -> 49 | I69: =H69*1000 -> 49000 | J69: =1000+36000 -> 37000 | L69: =I69-J69-K69 -> 12000 | M69: 800 | N69: 800 | O69: 800 | P69: 800 | Q69: 800 | R69: 800 | S69: 800 | T69: 800 | U69: 800 | V69: 800 | W69: 800 | X69: 800 | Y69: =SUM(L69:X69) -> 21600 | Z69: =VLOOKUP(A69,справочник!$E$2:$F$322,2,0) -> 0
A70: =VLOOKUP(B70,справочник!$B$2:$E$322,4,0) -> 148 | B70: =CONCATENATE(C70;D70) ->  | C70: 156 | D70: Горячев Дмитрий Николаевич | E70: 50:03:0070280:957 | F70: 2012-04-09 | G70: 2012-04-01 | H70: =INT(($H$327-G70)/30) -> 45 | I70: =H70*1000 -> 45000 | J70: =12000 -> 12000 | L70: =I70-J70-K70 -> 33000 | M70: 800 | N70: 800 | O70: 800 | P70: 800 | Q70: 800 | R70: 800 | S70: 800 | T70: 800 | U70: 800 | V70: 800 | W70: 800 | X70: 800 | Y70: =SUM(L70:X70) -> 42600 | Z70: =VLOOKUP(A70,справочник!$E$2:$F$322,2,0) -> 0
A71: =VLOOKUP(B71,справочник!$B$2:$E$322,4,0) -> 308 | B71: =CONCATENATE(C71;D71) ->  | C71: 323 | D71: Губарева Татьяна Григорьевна | E71: 50:03:0070280:1017 | F71: 2015-01-21 | G71: 2015-02-01 | H71: =INT(($H$327-G71)/30) -> 11 | I71: =H71*1000 -> 11000 | J71: 3000 | L71: =I71-J71-K71 -> 8000 | M71: 800 | N71: 800 | O71: 800 | P71: 800 | Q71: 800 | R71: 800 | S71: 800 | T71: 800 | U71: 800 | V71: 800 | W71: 800 | X71: 800 | Y71: =SUM(L71:X71) -> 17600 | Z71: =VLOOKUP(A71,справочник!$E$2:$F$322,2,0) -> 0
A72: =VLOOKUP(B72,справочник!$B$2:$E$322,4,0) -> 318 | B72: =CONCATENATE(C72;D72) ->  | C72: 71-72 | D72: Гусева Светлана Григорьевна | E72: 50:03:0070280:753 | F72: 2011-05-31 | G72: 2011-07-01 | H72: =INT(($H$327-G72)/30) -> 54 | I72: =H72*1000*2 -> 108000 | J72: =2000+102000 -> 104000 | K72: 4000 | L72: =I72-J72-K72 -> 0 | M72: 800 | N72: 800 | O72: 800 | P72: 800 | Q72: 800 | R72: 800 | S72: 800 | T72: 800 | U72: 800 | V72: 800 | W72: 800 | X72: 800 | Y72: =SUM(L72:X72) -> 9600 | Z72: =VLOOKUP(A72,справочник!$E$2:$F$322,2,0) -> 0
A73: =VLOOKUP(B73,справочник!$B$2:$E$322,4,0) -> 236 | B73: =CONCATENATE(C73;D73) ->  | C73: 245 | D73: Давыдова Анна Сергеевна | E73: 50:03:0070280:875 | F73: 2012-02-06 | G73: 2012-02-01 | H73: =INT(($H$327-G73)/30) -> 47 | I73: =H73*1000 -> 47000 | J73: =18000+11000 -> 29000 | L73: =I73-J73-K73 -> 18000 | M73: 800 | N73: 800 | O73: 800 | P73: 800 | Q73: 800 | R73: 800 | S73: 800 | T73: 800 | U73: 800 | V73: 800 | W73: 800 | X73: 800 | Y73: =SUM(L73:X73) -> 27600 | Z73: =VLOOKUP(A73,справочник!$E$2:$F$322,2,0) -> 0
A74: =VLOOKUP(B74,справочник!$B$2:$E$322,4,0) -> 226 | B74: =CONCATENATE(C74;D74) ->  | C74: 235 | D74: Данильянц Юрий Константинович | E74: 50:03:0070280:900 | F74: 2014-04-10 | G74: 2014-05-01 | H74: =INT(($H$327-G74)/30) -> 20 | I74: =H74*1000 -> 20000 | L74: =I74-J74-K74 -> 20000 | M74: 800 | N74: 800 | O74: 800 | P74: 800 | Q74: 800 | R74: 800 | S74: 800 | T74: 800 | U74: 800 | V74: 800 | W74: 800 | X74: 800 | Y74: =SUM(L74:X74) -> 29600 | Z74: =VLOOKUP(A74,справочник!$E$2:$F$322,2,0) -> 0
A75: =VLOOKUP(B75,справочник!$B$2:$E$322,4,0) -> 285 | B75: =CONCATENATE(C75;D75) ->  | C75: 297 | D75: Даточный Алексей Валерьевич | E75: 50:03:0070280:782 | I75: 19000 | J75: 19000 | L75: =I75-J75-K75 -> 0 | M75: 800 | N75: 800 | O75: 800 | P75: 800 | Q75: 800 | R75: 800 | S75: 800 | T75: 800 | U75: 800 | V75: 800 | W75: 800 | X75: 800 | Y75: =SUM(L75:X75) -> 9600 | Z75: =VLOOKUP(A75,справочник!$E$2:$F$322,2,0) -> 0
A76: =VLOOKUP(B76,справочник!$B$2:$E$322,4,0) -> 24 | B76: =CONCATENATE(C76;D76) ->  | C76: 24 | D76: Двойрина Юлия Владимировна | E76: 50:03:0070280:746 | F76: 2012-08-20 | G76: 2012-09-01 | H76: =INT(($H$327-G76)/30) -> 40 | I76: =H76*1000 -> 40000 | J76: 30000 | L76: =I76-J76-K76 -> 10000 | M76: 800 | N76: 800 | O76: 800 | P76: 800 | Q76: 800 | R76: 800 | S76: 800 | T76: 800 | U76: 800 | V76: 800 | W76: 800 | X76: 800 | Y76: =SUM(L76:X76) -> 19600 | Z76: =VLOOKUP(A76,справочник!$E$2:$F$322,2,0) -> 0
A77: =VLOOKUP(B77,справочник!$B$2:$E$322,4,0) -> 50 | B77: =CONCATENATE(C77;D77) ->  | C77: 50 | D77: Денисов Дмитрий Алексеевич | E77: 50:03:0070280:969 | F77: 2011-09-07 | G77: 2011-09-01 | H77: =INT(($H$327-G77)/30) -> 52 | I77: =H77*1000 -> 52000 | J77: =1000+41000 -> 42000 | L77: =I77-J77-K77 -> 10000 | M77: 800 | N77: 800 | O77: 800 | P77: 800 | Q77: 800 | R77: 800 | S77: 800 | T77: 800 | U77: 800 | V77: 800 | W77: 800 | X77: 800 | Y77: =SUM(L77:X77) -> 19600 | Z77: =VLOOKUP(A77,справочник!$E$2:$F$322,2,0) -> 0
A78: =VLOOKUP(B78,справочник!$B$2:$E$322,4,0) -> 122 | B78: =CONCATENATE(C78;D78) ->  | C78: 127 | D78: Денисов Сергей Александрович | E78: 50:03:0070280:807 | F78: 2012-01-30 | G78: 2012-02-01 | H78: =INT(($H$327-G78)/30) -> 47 | I78: =H78*1000 -> 47000 | J78: 37000 | K78: 10000 | L78: =I78-J78-K78 -> 0 | M78: 800 | N78: 800 | O78: 800 | P78: 800 | Q78: 800 | R78: 800 | S78: 800 | T78: 800 | U78: 800 | V78: 800 | W78: 800 | X78: 800 | Y78: =SUM(L78:X78) -> 9600 | Z78: =VLOOKUP(A78,справочник!$E$2:$F$322,2,0) -> 0
A79: =VLOOKUP(B79,справочник!$B$2:$E$322,4,0) -> 301 | B79: =CONCATENATE(C79;D79) ->  | C79: 316 | D79: Десюкова Марина Александровна | E79: 50:03:0070280:1007 | F79: 2014-11-26 | G79: 2014-12-01 | H79: =INT(($H$327-G79)/30) -> 13 | I79: =H79*1000 -> 13000 | J79: 1000 | L79: =I79-J79-K79 -> 12000 | M79: 800 | N79: 800 | O79: 800 | P79: 800 | Q79: 800 | R79: 800 | S79: 800 | T79: 800 | U79: 800 | V79: 800 | W79: 800 | X79: 800 | Y79: =SUM(L79:X79) -> 21600 | Z79: =VLOOKUP(A79,справочник!$E$2:$F$322,2,0) -> 0
A80: =VLOOKUP(B80,справочник!$B$2:$E$322,4,0) -> 18 | B80: =CONCATENATE(C80;D80) ->  | C80: 18 | D80: Дидушко Денис Васильевич (Василий) | E80: 50:03:0070280:822 | F80: 2013-06-04 | G80: 2013-08-01 | H80: =INT(($H$327-G80)/30) -> 29 | I80: =H80*1000 -> 29000 | J80: 29000 | L80: =I80-J80-K80 -> 0 | M80: 800 | N80: 800 | O80: 800 | P80: 800 | Q80: 800 | R80: 800 | S80: 800 | T80: 800 | U80: 800 | V80: 800 | W80: 800 | X80: 800 | Y80: =SUM(L80:X80) -> 9600 | Z80: =VLOOKUP(A80,справочник!$E$2:$F$322,2,0) -> 0
A81: =VLOOKUP(B81,справочник!$B$2:$E$322,4,0) -> 155 | B81: =CONCATENATE(C81;D81) ->  | C81: 163 | D81: Дорошенко Владимир Алексеевич | E81: 50:03:0070280:985 | F81: 2013-08-05 | G81: 2013-09-01 | H81: =INT(($H$327-G81)/30) -> 28 | I81: =H81*1000 -> 28000 | J81: 28000 | K81: 2000 | L81: =I81-J81-K81 -> -2000 | M81: 800 | N81: 800 | O81: 800 | P81: 800 | Q81: 800 | R81: 800 | S81: 800 | T81: 800 | U81: 800 | V81: 800 | W81: 800 | X81: 800 | Y81: =SUM(L81:X81) -> 7600 | Z81: =VLOOKUP(A81,справочник!$E$2:$F$322,2,0) -> 0
A82: =VLOOKUP(B82,справочник!$B$2:$E$322,4,0) -> 44 | B82: =CONCATENATE(C82;D82) ->  | C82: 44 | D82: Дубов Александр Сергеевич | E82: 50:03:0070280:802 | F82: 2012-07-10 | G82: 2012-07-01 | H82: =INT(($H$327-G82)/30) -> 42 | I82: =H82*1000 -> 42000 | J82: =21000+6000 -> 27000 | K82: 13000 | L82: =I82-J82-K82 -> 2000 | M82: 800 | N82: 800 | O82: 800 | P82: 800 | Q82: 800 | R82: 800 | S82: 800 | T82: 800 | U82: 800 | V82: 800 | W82: 800 | X82: 800 | Y82: =SUM(L82:X82) -> 11600 | Z82: =VLOOKUP(A82,справочник!$E$2:$F$322,2,0) -> 0
A83: =VLOOKUP(B83,справочник!$B$2:$E$322,4,0) -> 132 | B83: =CONCATENATE(C83;D83) ->  | C83: 139 | D83: Евглевская Ольга Борисовна | E83: 50:03:0070280:975 | F83: 2011-05-27 | G83: 2011-06-01 | H83: =INT(($H$327-G83)/30) -> 55 | I83: =H83*1000 -> 55000 | J83: =41000+1000 -> 42000 | L83: =I83-J83-K83 -> 13000 | M83: 800 | N83: 800 | O83: 800 | P83: 800 | Q83: 800 | R83: 800 | S83: 800 | T83: 800 | U83: 800 | V83: 800 | W83: 800 | X83: 800 | Y83: =SUM(L83:X83) -> 22600 | Z83: =VLOOKUP(A83,справочник!$E$2:$F$322,2,0) -> 0
A84: =VLOOKUP(B84,справочник!$B$2:$E$322,4,0) -> 159 | B84: =CONCATENATE(C84;D84) ->  | C84: 167 | D84: Евсеев Александр Сергеевич | E84: 50:03:0070280:925 | F84: 2012-05-15 | G84: 2012-05-01 | H84: =INT(($H$327-G84)/30) -> 44 | I84: =H84*1000 -> 44000 | J84: =32000 -> 32000 | L84: =I84-J84-K84 -> 12000 | M84: 800 | N84: 800 | O84: 800 | P84: 800 | Q84: 800 | R84: 800 | S84: 800 | T84: 800 | U84: 800 | V84: 800 | W84: 800 | X84: 800 | Y84: =SUM(L84:X84) -> 21600 | Z84: =VLOOKUP(A84,справочник!$E$2:$F$322,2,0) -> 0
A85: =VLOOKUP(B85,справочник!$B$2:$E$322,4,0) -> 181 | B85: =CONCATENATE(C85;D85) ->  | C85: 189 | D85: Елисеев Сергей Вячеславович | E85: 50:03:0070280:760 | F85: 2014-04-05 | G85: 2014-05-01 | H85: =INT(($H$327-G85)/30) -> 20 | I85: =H85*1000 -> 20000 | J85: 17000 | L85: =I85-J85-K85 -> 3000 | M85: 800 | N85: 800 | O85: 800 | P85: 800 | Q85: 800 | R85: 800 | S85: 800 | T85: 800 | U85: 800 | V85: 800 | W85: 800 | X85: 800 | Y85: =SUM(L85:X85) -> 12600 | Z85: =VLOOKUP(A85,справочник!$E$2:$F$322,2,0) -> 0
A86: =VLOOKUP(B86,справочник!$B$2:$E$322,4,0) -> 284 | B86: =CONCATENATE(C86;D86) ->  | C86: 296 | D86: Епанчинцева Людмила Филипповна | E86: 50:03:0070280:783 | F86: 2013-10-02 | G86: 2013-11-01 | H86: =INT(($H$327-G86)/30) -> 26 | I86: =H86*1000 -> 26000 | J86: =12000 -> 12000 | K86: 5000 | L86: =I86-J86-K86 -> 9000 | M86: 800 | N86: 800 | O86: 800 | P86: 800 | Q86: 800 | R86: 800 | S86: 800 | T86: 800 | U86: 800 | V86: 800 | W86: 800 | X86: 800 | Y86: =SUM(L86:X86) -> 18600 | Z86: =VLOOKUP(A86,справочник!$E$2:$F$322,2,0) -> 0
A87: =VLOOKUP(B87,справочник!$B$2:$E$322,4,0) -> 264 | B87: =CONCATENATE(C87;D87) ->  | C87: 277 | D87: Еременко Виктор Александрович (Валентина) | E87: 50:03:0070280:726 | F87: 2012-07-03 | G87: 2012-07-01 | H87: =INT(($H$327-G87)/30) -> 42 | I87: =H87*1000 -> 42000 | J87: =38000 -> 38000 | L87: =I87-J87-K87 -> 4000 | M87: 800 | N87: 800 | O87: 800 | P87: 800 | Q87: 800 | R87: 800 | S87: 800 | T87: 800 | U87: 800 | V87: 800 | W87: 800 | X87: 800 | Y87: =SUM(L87:X87) -> 13600 | Z87: =VLOOKUP(A87,справочник!$E$2:$F$322,2,0) -> 0
A88: =VLOOKUP(B88,справочник!$B$2:$E$322,4,0) -> 32 | B88: =CONCATENATE(C88;D88) ->  | C88: 32 | D88: Ермакова Татьяна Викторовна | E88: 50:03:0070280:902 | F88: 2011-06-01 | G88: 2011-06-01 | H88: =INT(($H$327-G88)/30) -> 55 | I88: =H88*1000 -> 55000 | J88: =7000+48000 -> 55000 | L88: =I88-J88-K88 -> 0 | M88: 800 | N88: 800 | O88: 800 | P88: 800 | Q88: 800 | R88: 800 | S88: 800 | T88: 800 | U88: 800 | V88: 800 | W88: 800 | X88: 800 | Y88: =SUM(L88:X88) -> 9600 | Z88: =VLOOKUP(A88,справочник!$E$2:$F$322,2,0) -> 0
A89: =VLOOKUP(B89,справочник!$B$2:$E$322,4,0) -> 49 | B89: =CONCATENATE(C89;D89) ->  | C89: 49 | D89: Ермолаева Виктория Александровна | E89: 50:03:0070280:968 | F89: 2011-07-05 | G89: 2011-08-01 | H89: =INT(($H$327-G89)/30) -> 53 | I89: =H89*1000 -> 53000 | J89: =42000 -> 42000 | L89: =I89-J89-K89 -> 11000 | M89: 800 | N89: 800 | O89: 800 | P89: 800 | Q89: 800 | R89: 800 | S89: 800 | T89: 800 | U89: 800 | V89: 800 | W89: 800 | X89: 800 | Y89: =SUM(L89:X89) -> 20600 | Z89: =VLOOKUP(A89,справочник!$E$2:$F$322,2,0) -> 0
A90: =VLOOKUP(B90,справочник!$B$2:$E$322,4,0) -> 234 | B90: =CONCATENATE(C90;D90) ->  | C90: 243 | D90: Ермошина Татьяна Евгеньевна (Владимир) | E90: 50:03:0070280:1428 | F90: 2012-12-05 | G90: 2013-04-01 | H90: 3 | I90: =H90*1000 -> 3000 | K90: 3000 | L90: =I90-J90-K90 -> 0 | Y90: =SUM(L90:X90) -> 0 | Z90: =VLOOKUP(A90,справочник!$E$2:$F$322,2,0) -> 1
A91: =VLOOKUP(B91,справочник!$B$2:$E$322,4,0) -> 234 | B91: =CONCATENATE(C91;D91) ->  | C91: 244 | D91: Ермошина Татьяна Евгеньевна (Владимир) | F91: 2012-12-05 | G91: 2013-04-01 | H91: 3 | I91: =H91*1000 -> 3000 | K91: 3000 | L91: =I91-J91-K91 -> 0 | Y91: =SUM(L91:X91) -> 0 | Z91: =VLOOKUP(A91,справочник!$E$2:$F$322,2,0) -> 1
A92: =VLOOKUP(B92,справочник!$B$2:$E$322,4,0) -> 234 | B92: =CONCATENATE(C92;D92) ->  | C92: 243-244 | D92: Ермошина Татьяна Евгеньевна (Владимир) | F92: 2013-07-01 | G92: 2013-07-01 | H92: =INT(($H$327-G92)/30) -> 30 | I92: =H92*1000 -> 30000 | K92: 30000 | L92: =I92-J92-K92 -> 0 | M92: 800 | N92: 800 | O92: 800 | P92: 800 | Q92: 800 | R92: 800 | S92: 800 | T92: 800 | U92: 800 | V92: 800 | W92: 800 | X92: 800 | Y92: =SUM(L92:X92) -> 9600 | Z92: =VLOOKUP(A92,справочник!$E$2:$F$322,2,0) -> 1
A93: =VLOOKUP(B93,справочник!$B$2:$E$322,4,0) -> 254 | B93: =CONCATENATE(C93;D93) ->  | C93: 267 | D93: Ершова Виктория Львовна | E93: 50:03:0070280:736 | F93: 2012-02-14 | G93: 2012-02-01 | H93: =INT(($H$327-G93)/30) -> 47 | I93: =H93*1000 -> 47000 | J93: =39000+5000 -> 44000 | L93: =I93-J93-K93 -> 3000 | M93: 800 | N93: 800 | O93: 800 | P93: 800 | Q93: 800 | R93: 800 | S93: 800 | T93: 800 | U93: 800 | V93: 800 | W93: 800 | X93: 800 | Y93: =SUM(L93:X93) -> 12600 | Z93: =VLOOKUP(A93,справочник!$E$2:$F$322,2,0) -> 0
A94: =VLOOKUP(B94,справочник!$B$2:$E$322,4,0) -> 230 | B94: =CONCATENATE(C94;D94) ->  | C94: 239 | D94: Жарикова Светлана Юрьевна | E94: 50:03:0070280:896 | F94: 2013-11-12 | G94: 2013-11-01 | H94: =INT(($H$327-G94)/30) -> 26 | I94: =H94*1000 -> 26000 | J94: 26000 | L94: =I94-J94-K94 -> 0 | M94: 800 | N94: 800 | O94: 800 | P94: 800 | Q94: 800 | R94: 800 | S94: 800 | T94: 800 | U94: 800 | V94: 800 | W94: 800 | X94: 800 | Y94: =SUM(L94:X94) -> 9600 | Z94: =VLOOKUP(A94,справочник!$E$2:$F$322,2,0) -> 1
A95: =VLOOKUP(B95,справочник!$B$2:$E$322,4,0) -> 230 | B95: =CONCATENATE(C95;D95) ->  | C95: 257 | D95: Жарикова Светлана Юрьевна | E95: 50:03:0070280:788 | F95: 2014-08-31 | G95: 2014-11-01 | H95: =INT(($H$327-G95)/30) -> 14 | I95: =H95*1000 -> 14000 | J95: 0 | K95: 4000 | L95: =I95-J95-K95 -> 10000 | Y95: =SUM(L95:X95) -> 10000 | Z95: =VLOOKUP(A95,справочник!$E$2:$F$322,2,0) -> 1
A96: =VLOOKUP(B96,справочник!$B$2:$E$322,4,0) -> 4 | B96: =CONCATENATE(C96;D96) ->  | C96: 4 | D96: Жигунов Юрий Александрович | E96: 50:03:0070280:693 | F96: 2013-06-11 | G96: 2013-07-01 | H96: =INT(($H$327-G96)/30) -> 30 | I96: =H96*1000 -> 30000 | J96: 27000 | L96: =I96-J96-K96 -> 3000 | M96: 800 | N96: 800 | O96: 800 | P96: 800 | Q96: 800 | R96: 800 | S96: 800 | T96: 800 | U96: 800 | V96: 800 | W96: 800 | X96: 800 | Y96: =SUM(L96:X96) -> 12600 | Z96: =VLOOKUP(A96,справочник!$E$2:$F$322,2,0) -> 0
A97: =VLOOKUP(B97,справочник!$B$2:$E$322,4,0) -> 213 | B97: =CONCATENATE(C97;D97) ->  | C97: 222 | D97: Жирная Татьяна Сергеевна | E97: 50:03:0070280:841 | F97: 2014-05-07 | G97: 2014-06-01 | H97: =INT(($H$327-G97)/30) -> 19 | I97: =H97*1000 -> 19000 | J97: 500 | L97: =I97-J97-K97 -> 18500 | M97: 800 | N97: 800 | O97: 800 | P97: 800 | Q97: 800 | R97: 800 | S97: 800 | T97: 800 | U97: 800 | V97: 800 | W97: 800 | X97: 800 | Y97: =SUM(L97:X97) -> 28100 | Z97: =VLOOKUP(A97,справочник!$E$2:$F$322,2,0) -> 0
A98: =VLOOKUP(B98,справочник!$B$2:$E$322,4,0) -> 127 | B98: =CONCATENATE(C98;D98) ->  | C98: 132 | D98: Жохова Елена Сергеевна | E98: 50:03:0070280:981 | F98: 2011-06-07 | G98: 2011-06-01 | H98: =INT(($H$327-G98)/30) -> 55 | I98: =H98*1000 -> 55000 | J98: =36000+7000 -> 43000 | L98: 0 | M98: 800 | N98: 800 | O98: 800 | P98: 800 | Q98: 800 | R98: 800 | S98: 800 | T98: 800 | U98: 800 | V98: 800 | W98: 800 | X98: 800 | Y98: =SUM(L98:X98) -> 9600 | Z98: =VLOOKUP(A98,справочник!$E$2:$F$322,2,0) -> 0
A99: =VLOOKUP(B99,справочник!$B$2:$E$322,4,0) -> 66 | B99: =CONCATENATE(C99;D99) ->  | C99: 68 | D99: Заборская Светлана Анатольевна (Андрей) | E99: 50:03:0070280:937 | F99: 2012-07-10 | G99: 2012-07-01 | H99: =INT(($H$327-G99)/30) -> 42 | I99: =H99*1000 -> 42000 | J99: 39780 | L99: =I99-J99-K99 -> 2220 | M99: 800 | N99: 800 | O99: 800 | P99: 800 | Q99: 800 | R99: 800 | S99: 800 | T99: 800 | U99: 800 | V99: 800 | W99: 800 | X99: 800 | Y99: =SUM(L99:X99) -> 11820 | Z99: =VLOOKUP(A99,справочник!$E$2:$F$322,2,0) -> 0
A100: =VLOOKUP(B100,справочник!$B$2:$E$322,4,0) -> 36 | B100: =CONCATENATE(C100;D100) ->  | C100: 36 | D100: Закревская Марина Владимировна | E100: 50:03:0070280:906 | F100: 2011-07-12 | G100: 2011-08-01 | H100: =INT(($H$327-G100)/30) -> 53 | I100: =H100*1000 -> 53000 | J100: =42000+1000 -> 43000 | L100: =I100-J100-K100 -> 10000 | M100: 800 | N100: 800 | O100: 800 | P100: 800 | Q100: 800 | R100: 800 | S100: 800 | T100: 800 | U100: 800 | V100: 800 | W100: 800 | X100: 800 | Y100: =SUM(L100:X100) -> 19600 | Z100: =VLOOKUP(A100,справочник!$E$2:$F$322,2,0) -> 0
A101: =VLOOKUP(B101,справочник!$B$2:$E$322,4,0) -> 38 | B101: =CONCATENATE(C101;D101) ->  | C101: 255 | D101: Заручинский Вячеслав Владимирович | E101: 50:03:0070280:790 | F101: 2011-08-15 | G101: 2011-09-01 | H101: =INT(($H$327-G101)/30) -> 52 | I101: =H101*1000 -> 52000 | J101: =5000+18000+29000 -> 52000 | L101: =I101-J101-K101 -> 0 | Y101: =SUM(L101:X101) -> 0 | Z101: =VLOOKUP(A101,справочник!$E$2:$F$322,2,0) -> 1
A102: =VLOOKUP(B102,справочник!$B$2:$E$322,4,0) -> 38 | B102: =CONCATENATE(C102;D102) ->  | C102: 38 | D102: Заручинский Вячеслав Владимирович | E102: 50:03:0070280:908 | F102: 2012-07-10 | G102: 2012-07-01 | H102: =INT(($H$327-G102)/30) -> 42 | I102: =H102*1000 -> 42000 | J102: 35000 | L102: =I102-J102-K102 -> 7000 | M102: 800 | N102: 800 | O102: 800 | P102: 800 | Q102: 800 | R102: 800 | S102: 800 | T102: 800 | U102: 800 | V102: 800 | W102: 800 | X102: 800 | Y102: =SUM(L102:X102) -> 16600 | Z102: =VLOOKUP(A102,справочник!$E$2:$F$322,2,0) -> 1
A103: =VLOOKUP(B103,справочник!$B$2:$E$322,4,0) -> 12 | B103: =CONCATENATE(C103;D103) ->  | C103: 12 | D103: Захаренкова Светлана Евгеньевна | E103: 50:03:0070280:703 | F103: 2013-05-20 | G103: 2013-06-01 | H103: =INT(($H$327-G103)/30) -> 31 | I103: =H103*1000 -> 31000 | J103: 5000 | L103: =I103-J103-K103 -> 26000 | M103: 800 | N103: 800 | O103: 800 | P103: 800 | Q103: 800 | R103: 800 | S103: 800 | T103: 800 | U103: 800 | V103: 800 | W103: 800 | X103: 800 | Y103: =SUM(L103:X103) -> 35600 | Z103: =VLOOKUP(A103,справочник!$E$2:$F$322,2,0) -> 0
A104: =VLOOKUP(B104,справочник!$B$2:$E$322,4,0) -> 63 | B104: =CONCATENATE(C104;D104) ->  | C104: 65 | D104: Захаров Михаил Сергеевич | E104: 50:03:0070280:934 | F104: 2013-08-27 | G104: 2013-09-01 | H104: =INT(($H$327-G104)/30) -> 28 | I104: =H104*1000 -> 28000 | J104: 0 | L104: =I104-J104-K104 -> 28000 | M104: 800 | N104: 800 | O104: 800 | P104: 800 | Q104: 800 | R104: 800 | S104: 800 | T104: 800 | U104: 800 | V104: 800 | W104: 800 | X104: 800 | Y104: =SUM(L104:X104) -> 37600 | Z104: =VLOOKUP(A104,справочник!$E$2:$F$322,2,0) -> 0
A105: =VLOOKUP(B105,справочник!$B$2:$E$322,4,0) -> 16 | B105: =CONCATENATE(C105;D105) ->  | C105: 16 | D105: Захарова Людмила Захаровна | E105: 50:03:0070280:697 | F105: 2012-12-11 | G105: 2013-01-01 | H105: =INT(($H$327-G105)/30) -> 36 | I105: =H105*1000 -> 36000 | J105: 36000 | L105: =I105-J105-K105 -> 0 | M105: 800 | N105: 800 | O105: 800 | P105: 800 | Q105: 800 | R105: 800 | S105: 800 | T105: 800 | U105: 800 | V105: 800 | W105: 800 | X105: 800 | Y105: =SUM(L105:X105) -> 9600 | Z105: =VLOOKUP(A105,справочник!$E$2:$F$322,2,0) -> 0
A106: =VLOOKUP(B106,справочник!$B$2:$E$322,4,0) -> 121 | B106: =CONCATENATE(C106;D106) ->  | C106: 126 | D106: Зиннатов Рафаэль Шакурович | E106: 50:03:0070280:1026 | F106: 2012-10-08 | G106: 2012-11-01 | H106: =INT(($H$327-G106)/30) -> 38 | I106: =H106*1000 -> 38000 | J106: 32000 | L106: =I106-J106-K106 -> 6000 | M106: 800 | N106: 800 | O106: 800 | P106: 800 | Q106: 800 | R106: 800 | S106: 800 | T106: 800 | U106: 800 | V106: 800 | W106: 800 | X106: 800 | Y106: =SUM(L106:X106) -> 15600 | Z106: =VLOOKUP(A106,справочник!$E$2:$F$322,2,0) -> 0
A107: =VLOOKUP(B107,справочник!$B$2:$E$322,4,0) -> 156 | B107: =CONCATENATE(C107;D107) ->  | C107: 164 | D107: Иваненко Петр Олегович | E107: 50:03:0070280:928 | F107: 2013-04-30 | G107: 2013-06-01 | H107: =INT(($H$327-G107)/30) -> 31 | I107: =H107*1000 -> 31000 | J107: 28000 | L107: =I107-J107-K107 -> 3000 | M107: 800 | N107: 800 | O107: 800 | P107: 800 | Q107: 800 | R107: 800 | S107: 800 | T107: 800 | U107: 800 | V107: 800 | W107: 800 | X107: 800 | Y107: =SUM(L107:X107) -> 12600 | Z107: =VLOOKUP(A107,справочник!$E$2:$F$322,2,0) -> 0
A108: =VLOOKUP(B108,справочник!$B$2:$E$322,4,0) -> 5 | B108: =CONCATENATE(C108;D108) ->  | C108: 5 | D108: Иванов Владимир Николаевич | E108: 50:03:0070280:709 | F108: 2012-06-11 | G108: 2012-06-01 | H108: =INT(($H$327-G108)/30) -> 43 | I108: =H108*1000 -> 43000 | J108: =32000 -> 32000 | L108: =I108-J108-K108 -> 11000 | M108: 800 | N108: 800 | O108: 800 | P108: 800 | Q108: 800 | R108: 800 | S108: 800 | T108: 800 | U108: 800 | V108: 800 | W108: 800 | X108: 800 | Y108: =SUM(L108:X108) -> 20600 | Z108: =VLOOKUP(A108,справочник!$E$2:$F$322,2,0) -> 0
A109: =VLOOKUP(B109,справочник!$B$2:$E$322,4,0) -> 214 | B109: =CONCATENATE(C109;D109) ->  | C109: 223 | D109: Иванов Денис Сильвестрович | E109: 50:03:0070280:840 | F109: 2014-06-17 | G109: 2014-06-01 | H109: =INT(($H$327-G109)/30) -> 19 | I109: =H109*1000 -> 19000 | J109: 19000 | L109: =I109-J109-K109 -> 0 | M109: 800 | N109: 800 | O109: 800 | P109: 800 | Q109: 800 | R109: 800 | S109: 800 | T109: 800 | U109: 800 | V109: 800 | W109: 800 | X109: 800 | Y109: =SUM(L109:X109) -> 9600 | Z109: =VLOOKUP(A109,справочник!$E$2:$F$322,2,0) -> 0
A110: =VLOOKUP(B110,справочник!$B$2:$E$322,4,0) -> 279 | B110: =CONCATENATE(C110;D110) ->  | C110: 291 | D110: Иванова Светлана Сергеевна | E110: 50:03:0070280:778 | F110: 2011-12-13 | G110: 2011-12-01 | H110: =INT(($H$327-G110)/30) -> 49 | I110: =H110*1000 -> 49000 | J110: =42000+1000 -> 43000 | L110: =I110-J110-K110 -> 6000 | M110: 800 | N110: 800 | O110: 800 | P110: 800 | Q110: 800 | R110: 800 | S110: 800 | T110: 800 | U110: 800 | V110: 800 | W110: 800 | X110: 800 | Y110: =SUM(L110:X110) -> 15600 | Z110: =VLOOKUP(A110,справочник!$E$2:$F$322,2,0) -> 0
A111: =VLOOKUP(B111,справочник!$B$2:$E$322,4,0) -> 197 | B111: =CONCATENATE(C111;D111) ->  | C111: 205 | D111: Иванова Татьяна Викторовна | E111: 50:03:0070280:911 | F111: 2011-11-15 | G111: 2011-11-01 | H111: =INT(($H$327-G111)/30) -> 50 | I111: =H111*1000 -> 50000 | J111: 49000 | L111: =I111-J111-K111 -> 1000 | M111: 800 | N111: 800 | O111: 800 | P111: 800 | Q111: 800 | R111: 800 | S111: 800 | T111: 800 | U111: 800 | V111: 800 | W111: 800 | X111: 800 | Y111: =SUM(L111:X111) -> 10600 | Z111: =VLOOKUP(A111,справочник!$E$2:$F$322,2,0) -> 0
A112: =VLOOKUP(B112,справочник!$B$2:$E$322,4,0) -> 295 | B112: =CONCATENATE(C112;D112) ->  | C112: 310 | D112: Измайлов Михаил Михайлович | E112: 50:03:0070280:1001 | F112: 2014-12-21 | G112: 2015-01-01 | H112: =INT(($H$327-G112)/30) -> 12 | I112: =H112*1000 -> 12000 | L112: =I112-J112-K112 -> 12000 | M112: 800 | N112: 800 | O112: 800 | P112: 800 | Q112: 800 | R112: 800 | S112: 800 | T112: 800 | U112: 800 | V112: 800 | W112: 800 | X112: 800 | Y112: =SUM(L112:X112) -> 21600 | Z112: =VLOOKUP(A112,справочник!$E$2:$F$322,2,0) -> 0
A113: =VLOOKUP(B113,справочник!$B$2:$E$322,4,0) -> 196 | B113: =CONCATENATE(C113;D113) ->  | C113: 204 | D113: Казарин Сергей Викторович | E113: 50:03:0070280:912 | F113: 2012-02-06 | G113: 2012-03-01 | H113: =INT(($H$327-G113)/30) -> 46 | I113: =H113*1000 -> 46000 | J113: =46000 -> 46000 | L113: =I113-J113-K113 -> 0 | M113: 800 | N113: 800 | O113: 800 | P113: 800 | Q113: 800 | R113: 800 | S113: 800 | T113: 800 | U113: 800 | V113: 800 | W113: 800 | X113: 800 | Y113: =SUM(L113:X113) -> 9600 | Z113: =VLOOKUP(A113,справочник!$E$2:$F$322,2,0) -> 0
A114: =VLOOKUP(B114,справочник!$B$2:$E$322,4,0) -> 124 | B114: =CONCATENATE(C114;D114) ->  | C114: 129 | D114: Казымов Горхмаз Гамид/Лавренчук Александр Владиславович | E114: 50:03:0070280:811 | F114: 2013-11-02 | G114: 2013-12-01 | H114: =INT(($H$327-G114)/30) -> 25 | I114: =H114*1000 -> 25000 | J114: =5000+1500+5000 -> 11500 | L114: =I114-J114-K114 -> 13500 | M114: 800 | N114: 800 | O114: 800 | P114: 800 | Q114: 800 | R114: 800 | S114: 800 | T114: 800 | U114: 800 | V114: 800 | W114: 800 | X114: 800 | Y114: =SUM(L114:X114) -> 23100 | Z114: =VLOOKUP(A114,справочник!$E$2:$F$322,2,0) -> 0
A115: =VLOOKUP(B115,справочник!$B$2:$E$322,4,0) -> 250 | B115: =CONCATENATE(C115;D115) ->  | C115: 261 | D115: Каляникова Наталья Сергеевна | E115: 50:03:0070280:742 | F115: 2013-08-12 | G115: 2013-09-01 | H115: =INT(($H$327-G115)/30) -> 28 | I115: =H115*1000 -> 28000 | J115: 13000 | K115: 1000 | L115: =I115-J115-K115 -> 14000 | M115: 800 | N115: 800 | O115: 800 | P115: 800 | Q115: 800 | R115: 800 | S115: 800 | T115: 800 | U115: 800 | V115: 800 | W115: 800 | X115: 800 | Y115: =SUM(L115:X115) -> 23600 | Z115: =VLOOKUP(A115,справочник!$E$2:$F$322,2,0) -> 0
A116: =VLOOKUP(B116,справочник!$B$2:$E$322,4,0) -> 153 | B116: =CONCATENATE(C116;D116) ->  | C116: 161 | D116: Канышкина Юлия Юрьевна | E116: 50:03:0070280:756 | F116: 2012-03-26 | G116: 2012-04-01 | H116: =INT(($H$327-G116)/30) -> 45 | I116: =H116*1000 -> 45000 | J116: 41000 | L116: =I116-J116-K116 -> 4000 | M116: 800 | N116: 800 | O116: 800 | P116: 800 | Q116: 800 | R116: 800 | S116: 800 | T116: 800 | U116: 800 | V116: 800 | W116: 800 | X116: 800 | Y116: =SUM(L116:X116) -> 13600 | Z116: =VLOOKUP(A116,справочник!$E$2:$F$322,2,0) -> 0
A117: =VLOOKUP(B117,справочник!$B$2:$E$322,4,0) -> 106 | B117: =CONCATENATE(C117;D117) ->  | C117: 111 | D117: Карпекина Лилия Рафаэльевна | E117: 50:03:0070280:817 | F117: 2013-07-08 | G117: 2013-01-08 | H117: =INT(($H$327-G117)/30) -> 36 | I117: =H117*1000 -> 36000 | J117: 1000 | L117: =I117-J117-K117 -> 35000 | M117: 800 | N117: 800 | O117: 800 | P117: 800 | Q117: 800 | R117: 800 | S117: 800 | T117: 800 | U117: 800 | V117: 800 | W117: 800 | X117: 800 | Y117: =SUM(L117:X117) -> 44600 | Z117: =VLOOKUP(A117,справочник!$E$2:$F$322,2,0) -> 0
A118: =VLOOKUP(B118,справочник!$B$2:$E$322,4,0) -> 222 | B118: =CONCATENATE(C118;D118) ->  | C118: 231 | D118: Карпова Елена Витальевна | E118: 50:03:0070280:832 | F118: 2013-06-04 | G118: 2013-07-01 | H118: =INT(($H$327-G118)/30) -> 30 | I118: =H118*1000 -> 30000 | J118: 25000 | K118: 5000 | L118: =I118-J118-K118 -> 0 | M118: 800 | N118: 800 | O118: 800 | P118: 800 | Q118: 800 | R118: 800 | S118: 800 | T118: 800 | U118: 800 | V118: 800 | W118: 800 | X118: 800 | Y118: =SUM(L118:X118) -> 9600 | Z118: =VLOOKUP(A118,справочник!$E$2:$F$322,2,0) -> 0
A119: =VLOOKUP(B119,справочник!$B$2:$E$322,4,0) -> 208 | B119: =CONCATENATE(C119;D119) ->  | C119: 218 | D119: Катушкин Роман Юрьевич | E119: 50:03:0070280:1422 | F119: 2012-05-23 | G119: 2012-06-01 | H119: =INT(($H$327-G119)/30) -> 43 | I119: =H119*1000 -> 43000 | J119: =40500 -> 40500 | L119: =I119-J119-K119 -> 2500 | M119: 800 | N119: 800 | O119: 800 | P119: 800 | Q119: 800 | R119: 800 | S119: 800 | T119: 800 | U119: 800 | V119: 800 | W119: 800 | X119: 800 | Y119: =SUM(L119:X119) -> 12100 | Z119: =VLOOKUP(A119,справочник!$E$2:$F$322,2,0) -> 0
A120: =VLOOKUP(B120,справочник!$B$2:$E$322,4,0) -> 207 | B120: =CONCATENATE(C120;D120) ->  | C120: 217 | D120: Катушкин Роман Юрьевич//Валеев Артур Рашидович | I120: =H120*1000 -> 0 | L120: =I120-J120-K120 -> 0 | M120: 800 | N120: 800 | O120: 800 | P120: 800 | Q120: 800 | R120: 800 | S120: 800 | T120: 800 | U120: 800 | V120: 800 | W120: 800 | X120: 800 | Y120: =SUM(L120:X120) -> 9600 | Z120: =VLOOKUP(A120,справочник!$E$2:$F$322,2,0) -> 0
A121: =VLOOKUP(B121,справочник!$B$2:$E$322,4,0) -> 231 | B121: =CONCATENATE(C121;D121) ->  | C121: 240 | D121: Кашичкин Александр Борисович | E121: 50:03:0070280:895 | F121: 2013-03-24 | G121: 2013-04-01 | H121: =INT(($H$327-G121)/30) -> 33 | I121: =H121*1000 -> 33000 | J121: 28000 | L121: =I121-J121-K121 -> 5000 | M121: 800 | N121: 800 | O121: 800 | P121: 800 | Q121: 800 | R121: 800 | S121: 800 | T121: 800 | U121: 800 | V121: 800 | W121: 800 | X121: 800 | Y121: =SUM(L121:X121) -> 14600 | Z121: =VLOOKUP(A121,справочник!$E$2:$F$322,2,0) -> 0
A122: =VLOOKUP(B122,справочник!$B$2:$E$322,4,0) -> 76 | B122: =CONCATENATE(C122;D122) ->  | C122: 82 | D122: Киеня Валентина Александровна (Анатолий) | E122: 50:03:0070280:751 | F122: 2011-05-19 | G122: 2011-06-01 | H122: =INT(($H$327-G122)/30) -> 55 | I122: =H122*1000 -> 55000 | J122: 54000 | K122: 3000 | L122: =I122-J122-K122 -> -2000 | M122: 800 | N122: 800 | O122: 800 | P122: 800 | Q122: 800 | R122: 800 | S122: 800 | T122: 800 | U122: 800 | V122: 800 | W122: 800 | X122: 800 | Y122: =SUM(L122:X122) -> 7600 | Z122: =VLOOKUP(A122,справочник!$E$2:$F$322,2,0) -> 0
A123: =VLOOKUP(B123,справочник!$B$2:$E$322,4,0) -> 82 | B123: =CONCATENATE(C123;D123) ->  | C123: 87 | D123: Кикоть Наталья Петровна (Андрей) | E123: 50:03:0070280:863 | F123: 2012-08-27 | G123: 2012-09-01 | H123: =INT(($H$327-G123)/30) -> 40 | I123: =H123*1000 -> 40000 | J123: 35000 | L123: =I123-J123-K123 -> 5000 | M123: 800 | N123: 800 | O123: 800 | P123: 800 | Q123: 800 | R123: 800 | S123: 800 | T123: 800 | U123: 800 | V123: 800 | W123: 800 | X123: 800 | Y123: =SUM(L123:X123) -> 14600 | Z123: =VLOOKUP(A123,справочник!$E$2:$F$322,2,0) -> 0
A124: =VLOOKUP(B124,справочник!$B$2:$E$322,4,0) -> 8 | B124: =CONCATENATE(C124;D124) ->  | C124: 8 | D124: Кириенко Раиса Федоровна | E124: 50:03:0070280:692 | F124: 2014-04-12 | G124: 2014-05-01 | H124: =INT(($H$327-G124)/30) -> 20 | I124: =H124*1000 -> 20000 | J124: 18000 | L124: =I124-J124-K124 -> 2000 | M124: 800 | N124: 800 | O124: 800 | P124: 800 | Q124: 800 | R124: 800 | S124: 800 | T124: 800 | U124: 800 | V124: 800 | W124: 800 | X124: 800 | Y124: =SUM(L124:X124) -> 11600 | Z124: =VLOOKUP(A124,справочник!$E$2:$F$322,2,0) -> 0
A125: =VLOOKUP(B125,справочник!$B$2:$E$322,4,0) -> 149 | B125: =CONCATENATE(C125;D125) ->  | C125: 157 | D125: Кириллов Вадим Александрович | E125: 50:03:0070280:958 | F125: 2011-10-04 | G125: 2011-10-01 | H125: =INT(($H$327-G125)/30) -> 51 | I125: =H125*1000 -> 51000 | J125: =1000 -> 1000 | K125: 1000 | L125: =I125-J125-K125 -> 49000 | M125: 800 | N125: 800 | O125: 800 | P125: 800 | Q125: 800 | R125: 800 | S125: 800 | T125: 800 | U125: 800 | V125: 800 | W125: 800 | X125: 800 | Y125: =SUM(L125:X125) -> 58600 | Z125: =VLOOKUP(A125,справочник!$E$2:$F$322,2,0) -> 0
A126: =VLOOKUP(B126,справочник!$B$2:$E$322,4,0) -> 30 | B126: =CONCATENATE(C126;D126) ->  | C126: 30 | D126: Кириллов Дмитрий Александрович | E126: 50:03:0070280:859 | F126: 2011-12-29 | G126: 2012-01-01 | H126: =INT(($H$327-G126)/30) -> 48 | I126: =H126*1000 -> 48000 | J126: =1000 -> 1000 | L126: =I126-J126-K126 -> 47000 | M126: 800 | N126: 800 | O126: 800 | P126: 800 | Q126: 800 | R126: 800 | S126: 800 | T126: 800 | U126: 800 | V126: 800 | W126: 800 | X126: 800 | Y126: =SUM(L126:X126) -> 56600 | Z126: =VLOOKUP(A126,справочник!$E$2:$F$322,2,0) -> 0
A127: =VLOOKUP(B127,справочник!$B$2:$E$322,4,0) -> 269 | B127: =CONCATENATE(C127;D127) ->  | C127: 282 | D127: Коваленко Ирина Леонидовна | E127: 50:03:0070280:718 | F127: 2012-12-11 | G127: 2013-01-01 | H127: =INT(($H$327-G127)/30) -> 36 | I127: =H127*1000 -> 36000 | J127: 18000 | L127: =I127-J127-K127 -> 18000 | M127: 800 | N127: 800 | O127: 800 | P127: 800 | Q127: 800 | R127: 800 | S127: 800 | T127: 800 | U127: 800 | V127: 800 | W127: 800 | X127: 800 | Y127: =SUM(L127:X127) -> 27600 | Z127: =VLOOKUP(A127,справочник!$E$2:$F$322,2,0) -> 0
A128: =VLOOKUP(B128,справочник!$B$2:$E$322,4,0) -> 271 | B128: =CONCATENATE(C128;D128) ->  | C128: 284 | D128: Кожемякин Сергей Владимирович | E128: 50:03:0070280:716 | F128: 2015-02-09 | G128: 2015-04-01 | H128: =INT(($H$327-G128)/30) -> 9 | I128: =H128*1000 -> 9000 | J128: 4000 | K128: 5000 | L128: =I128-J128-K128 -> 0 | M128: 800 | N128: 800 | O128: 800 | P128: 800 | Q128: 800 | R128: 800 | S128: 800 | T128: 800 | U128: 800 | V128: 800 | W128: 800 | X128: 800 | Y128: =SUM(L128:X128) -> 9600 | Z128: =VLOOKUP(A128,справочник!$E$2:$F$322,2,0) -> 0
A129: =VLOOKUP(B129,справочник!$B$2:$E$322,4,0) -> 265 | B129: =CONCATENATE(C129;D129) ->  | C129: 278 | D129: Козловский Алексей Гаврилович | E129: 50:03:0070280:725 | F129: 2011-09-26 | G129: 2011-09-01 | H129: =INT(($H$327-G129)/30) -> 52 | I129: =H129*1000 -> 52000 | J129: =2000+27000 -> 29000 | L129: =I129-J129-K129 -> 23000 | M129: 800 | N129: 800 | O129: 800 | P129: 800 | Q129: 800 | R129: 800 | S129: 800 | T129: 800 | U129: 800 | V129: 800 | W129: 800 | X129: 800 | Y129: =SUM(L129:X129) -> 32600 | Z129: =VLOOKUP(A129,справочник!$E$2:$F$322,2,0) -> 0
A130: =VLOOKUP(B130,справочник!$B$2:$E$322,4,0) -> 173 | B130: =CONCATENATE(C130;D130) ->  | C130: 181 | D130: Колесников Никита Олегович(у Кряжковой Виктория Сергеевна | E130: 50:03:0070280:764 | F130: 2011-09-07 | G130: 2011-09-01 | H130: =INT(($H$327-G130)/30) -> 52 | I130: =H130*1000 -> 52000 | J130: 1000 | L130: =I130-J130-K130 -> 51000 | M130: 800 | N130: 800 | O130: 800 | P130: 800 | Q130: 800 | R130: 800 | S130: 800 | T130: 800 | U130: 800 | V130: 800 | W130: 800 | X130: 800 | Y130: =SUM(L130:X130) -> 60600 | Z130: =VLOOKUP(A130,справочник!$E$2:$F$322,2,0) -> 0
A131: =VLOOKUP(B131,справочник!$B$2:$E$322,4,0) -> 305 | B131: =CONCATENATE(C131;D131) ->  | C131: 320 | D131: Колесов Вадим Владимирович | E131: 50:03:0070280:1011 | F131: 2014-10-17 | G131: 2014-11-01 | H131: =INT(($H$327-G131)/30) -> 14 | I131: =H131*1000 -> 14000 | J131: 1000 | L131: =I131-J131-K131 -> 13000 | M131: 800 | N131: 800 | O131: 800 | P131: 800 | Q131: 800 | R131: 800 | S131: 800 | T131: 800 | U131: 800 | V131: 800 | W131: 800 | X131: 800 | Y131: =SUM(L131:X131) -> 22600 | Z131: =VLOOKUP(A131,справочник!$E$2:$F$322,2,0) -> 0
A132: =VLOOKUP(B132,справочник!$B$2:$E$322,4,0) -> 69 | B132: =CONCATENATE(C132;D132) ->  | C132: 75 | D132: Колташ Анна Владимировна | E132: 50:03:0070280:882 | F132: 23.08.2011 | G132: 2011-09-01 | H132: =INT(($H$327-G132)/30) -> 52 | I132: =H132*1000 -> 52000 | J132: =3000+10000 -> 13000 | L132: =I132-J132-K132 -> 39000 | M132: 800 | N132: 800 | O132: 800 | P132: 800 | Q132: 800 | R132: 800 | S132: 800 | T132: 800 | U132: 800 | V132: 800 | W132: 800 | X132: 800 | Y132: =SUM(L132:X132) -> 48600 | Z132: =VLOOKUP(A132,справочник!$E$2:$F$322,2,0) -> 1
A133: =VLOOKUP(B133,справочник!$B$2:$E$322,4,0) -> 69 | B133: =CONCATENATE(C133;D133) ->  | C133: 76 | D133: Колташ Анна Владимировна | E133: 50:03:0070280:804 | I133: =H133*1000 -> 0 | Y133: =SUM(L133:X133) -> 0 | Z133: =VLOOKUP(A133,справочник!$E$2:$F$322,2,0) -> 1
A134: =VLOOKUP(B134,справочник!$B$2:$E$322,4,0) -> 1 | B134: =CONCATENATE(C134;D134) ->  | C134: 1 | D134: Колыгина Нина Николаевна | E134: 50:03:0070280:711 | F134: 2013-05-15 | G134: 2013-10-01 | H134: =INT(($H$327-G134)/30) -> 27 | I134: =H134*1000 -> 27000 | J134: 24000 | L134: =I134-J134-K134 -> 3000 | M134: 800 | N134: 800 | O134: 800 | P134: 800 | Q134: 800 | R134: 800 | S134: 800 | T134: 800 | U134: 800 | V134: 800 | W134: 800 | X134: 800 | Y134: =SUM(L134:X134) -> 12600 | Z134: =VLOOKUP(A134,справочник!$E$2:$F$322,2,0) -> 0
A135: =VLOOKUP(B135,справочник!$B$2:$E$322,4,0) -> 302 | B135: =CONCATENATE(C135;D135) ->  | C135: 317 | D135: Колышкина Александра Сергеевна | E135: 50:03:0070280:1008 | F135: 2012-03-29 | G135: 2012-04-01 | H135: =INT(($H$327-G135)/30) -> 45 | I135: =H135*1000 -> 45000 | J135: 32000 | L135: =I135-J135-K135 -> 13000 | M135: 800 | N135: 800 | O135: 800 | P135: 800 | Q135: 800 | R135: 800 | S135: 800 | T135: 800 | U135: 800 | V135: 800 | W135: 800 | X135: 800 | Y135: =SUM(L135:X135) -> 22600 | Z135: =VLOOKUP(A135,справочник!$E$2:$F$322,2,0) -> 0
A136: =VLOOKUP(B136,справочник!$B$2:$E$322,4,0) -> 123 | B136: =CONCATENATE(C136;D136) ->  | C136: 128 | D136: Кондратьева Юлия Викторовна | E136: 50:03:0070280:810 | F136: 2012-02-21 | G136: 2012-02-01 | H136: =INT(($H$327-G136)/30) -> 47 | I136: =H136*1000 -> 47000 | J136: 34000 | L136: =I136-J136-K136 -> 13000 | M136: 800 | N136: 800 | O136: 800 | P136: 800 | Q136: 800 | R136: 800 | S136: 800 | T136: 800 | U136: 800 | V136: 800 | W136: 800 | X136: 800 | Y136: =SUM(L136:X136) -> 22600 | Z136: =VLOOKUP(A136,справочник!$E$2:$F$322,2,0) -> 0
A137: =VLOOKUP(B137,справочник!$B$2:$E$322,4,0) -> 163 | B137: =CONCATENATE(C137;D137) ->  | C137: 171 | D137: Кондратюк Наталья Петровна 1/2, Соболев Олег Юрьевич 1/2 | F137: 2014-06-19 | G137: 2014-07-01 | H137: =INT(($H$327-G137)/30) -> 18 | I137: =H137*1000 -> 18000 | J137: =5000+4000 -> 9000 | L137: =I137-J137-K137 -> 9000 | M137: 800 | N137: 800 | O137: 800 | P137: 800 | Q137: 800 | R137: 800 | S137: 800 | T137: 800 | U137: 800 | V137: 800 | W137: 800 | X137: 800 | Y137: =SUM(L137:X137) -> 18600 | Z137: =VLOOKUP(A137,справочник!$E$2:$F$322,2,0) -> 0
A138: =VLOOKUP(B138,справочник!$B$2:$E$322,4,0) -> 110 | B138: =CONCATENATE(C138;D138) ->  | C138: 115 | D138: Кондрашов Роман Вячеславович | E138: 50:03:0070280:808 | F138: 2012-07-11 | G138: 2012-07-01 | H138: =INT(($H$327-G138)/30) -> 42 | I138: =H138*1000 -> 42000 | J138: 23000 | L138: =I138-J138-K138 -> 19000 | M138: 800 | N138: 800 | O138: 800 | P138: 800 | Q138: 800 | R138: 800 | S138: 800 | T138: 800 | U138: 800 | V138: 800 | W138: 800 | X138: 800 | Y138: =SUM(L138:X138) -> 28600 | Z138: =VLOOKUP(A138,справочник!$E$2:$F$322,2,0) -> 0
A139: =VLOOKUP(B139,справочник!$B$2:$E$322,4,0) -> 112 | B139: =CONCATENATE(C139;D139) ->  | C139: 117 | D139: Кондрашов Сергей Вячеславович//Балыкин Александр Иванович | F139: 2012-07-11 | G139: 2012-07-01 | H139: =INT(($H$327-G139)/30) -> 42 | I139: =H139*1000 -> 42000 | J139: =25000 -> 25000 | L139: =I139-J139-K139 -> 17000 | M139: 800 | N139: 800 | O139: 800 | P139: 800 | Q139: 800 | R139: 800 | S139: 800 | T139: 800 | U139: 800 | V139: 800 | W139: 800 | X139: 800 | Y139: =SUM(L139:X139) -> 26600 | Z139: =VLOOKUP(A139,справочник!$E$2:$F$322,2,0) -> 0
A140: =VLOOKUP(B140,справочник!$B$2:$E$322,4,0) -> 190 | B140: =CONCATENATE(C140;D140) ->  | C140: 198 | D140: Коновальцев Олег Серафимович | E140: 50:03:0070280:984 | F140: 2013-05-13 | G140: 2013-06-01 | H140: =INT(($H$327-G140)/30) -> 31 | I140: =H140*1000 -> 31000 | J140: 15000 | L140: =I140-J140-K140 -> 16000 | M140: 800 | N140: 800 | O140: 800 | P140: 800 | Q140: 800 | R140: 800 | S140: 800 | T140: 800 | U140: 800 | V140: 800 | W140: 800 | X140: 800 | Y140: =SUM(L140:X140) -> 25600 | Z140: =VLOOKUP(A140,справочник!$E$2:$F$322,2,0) -> 0
A141: =VLOOKUP(B141,справочник!$B$2:$E$322,4,0) -> 83 | B141: =CONCATENATE(C141;D141) ->  | C141: 88 | D141: Кононенко Алла Николаевна (Александр) | E141: 50:03:0070280:869 | F141: 2011-05-12 | G141: 2011-06-01 | H141: =INT(($H$327-G141)/30) -> 55 | I141: =H141*1000 -> 55000 | J141: =1000+49000 -> 50000 | L141: =I141-J141-K141 -> 5000 | M141: 800 | N141: 800 | O141: 800 | P141: 800 | Q141: 800 | R141: 800 | S141: 800 | T141: 800 | U141: 800 | V141: 800 | W141: 800 | X141: 800 | Y141: =SUM(L141:X141) -> 14600 | Z141: =VLOOKUP(A141,справочник!$E$2:$F$322,2,0) -> 0
A142: =VLOOKUP(B142,справочник!$B$2:$E$322,4,0) -> 133 | B142: =CONCATENATE(C142;D142) ->  | C142: 140 | D142: Короткевич Наталья Владимировна | E142: 50:03:0070280:892 | F142: 2012-04-09 | G142: 2012-04-01 | H142: =INT(($H$327-G142)/30) -> 45 | I142: =H142*1000 -> 45000 | J142: 41000 | K142: 4000 | L142: =I142-J142-K142 -> 0 | M142: 800 | N142: 800 | O142: 800 | P142: 800 | Q142: 800 | R142: 800 | S142: 800 | T142: 800 | U142: 800 | V142: 800 | W142: 800 | X142: 800 | Y142: =SUM(L142:X142) -> 9600 | Z142: =VLOOKUP(A142,справочник!$E$2:$F$322,2,0) -> 0
A143: =VLOOKUP(B143,справочник!$B$2:$E$322,4,0) -> 202 | B143: =CONCATENATE(C143;D143) ->  | C143: 212 | D143: Корчинская Ирина Анатольевна | E143: 50:03:0070280:851 | F143: 2012-07-10 | G143: 2012-07-01 | H143: =INT(($H$327-G143)/30) -> 42 | I143: =H143*1000 -> 42000 | J143: 18000 | L143: =I143-J143-K143 -> 24000 | M143: 800 | N143: 800 | O143: 800 | P143: 800 | Q143: 800 | R143: 800 | S143: 800 | T143: 800 | U143: 800 | V143: 800 | W143: 800 | X143: 800 | Y143: =SUM(L143:X143) -> 33600 | Z143: =VLOOKUP(A143,справочник!$E$2:$F$322,2,0) -> 0
A144: =VLOOKUP(B144,справочник!$B$2:$E$322,4,0) -> 192 | B144: =CONCATENATE(C144;D144) ->  | C144: 200 | D144: Косенков Степан Фед-ч(Галактионова) | E144: 50:03:0070280:887 | F144: 2014-07-09 | G144: 2014-08-01 | H144: =INT(($H$327-G144)/30) -> 17 | I144: =H144*1000 -> 17000 | L144: =I144-J144-K144 -> 17000 | M144: 800 | N144: 800 | O144: 800 | P144: 800 | Q144: 800 | R144: 800 | S144: 800 | T144: 800 | U144: 800 | V144: 800 | W144: 800 | X144: 800 | Y144: =SUM(L144:X144) -> 26600 | Z144: =VLOOKUP(A144,справочник!$E$2:$F$322,2,0) -> 0
A145: =VLOOKUP(B145,справочник!$B$2:$E$322,4,0) -> 289 | B145: =CONCATENATE(C145;D145) ->  | C145: 301 | D145: Косенкова Елизавета Евгеньевна | E145: 50:03:0070280:772 | F145: 2014-12-03 | G145: 2015-01-01 | H145: =INT(($H$327-G145)/30) -> 12 | I145: =H145*1000 -> 12000 | J145: 3000 | L145: =I145-J145-K145 -> 9000 | M145: 800 | N145: 800 | O145: 800 | P145: 800 | Q145: 800 | R145: 800 | S145: 800 | T145: 800 | U145: 800 | V145: 800 | W145: 800 | X145: 800 | Y145: =SUM(L145:X145) -> 18600 | Z145: =VLOOKUP(A145,справочник!$E$2:$F$322,2,0) -> 0
A146: =VLOOKUP(B146,справочник!$B$2:$E$322,4,0) -> 143 | B146: =CONCATENATE(C146;D146) ->  | C146: 151 | D146: Красникова Раиса Михайловна | E146: 50:03:0070280:952 | F146: 2011-10-25 | G146: 2011-11-01 | H146: =INT(($H$327-G146)/30) -> 50 | I146: =H146*1000 -> 50000 | J146: 37000 | L146: =I146-J146-K146 -> 13000 | M146: 800 | N146: 800 | O146: 800 | P146: 800 | Q146: 800 | R146: 800 | S146: 800 | T146: 800 | U146: 800 | V146: 800 | W146: 800 | X146: 800 | Y146: =SUM(L146:X146) -> 22600 | Z146: =VLOOKUP(A146,справочник!$E$2:$F$322,2,0) -> 0
A147: =VLOOKUP(B147,справочник!$B$2:$E$322,4,0) -> 62 | B147: =CONCATENATE(C147;D147) ->  | C147: 64 | D147: Кривой Владимир Аркадьевич | E147: 50:03:0070280:933 | F147: 2011-09-30 | G147: 2011-10-01 | H147: =INT(($H$327-G147)/30) -> 51 | I147: =H147*1000 -> 51000 | J147: =1000+47000 -> 48000 | K147: 3000 | L147: =I147-J147-K147 -> 0 | M147: 800 | N147: 800 | O147: 800 | P147: 800 | Q147: 800 | R147: 800 | S147: 800 | T147: 800 | U147: 800 | V147: 800 | W147: 800 | X147: 800 | Y147: =SUM(L147:X147) -> 9600 | Z147: =VLOOKUP(A147,справочник!$E$2:$F$322,2,0) -> 0
A148: =VLOOKUP(B148,справочник!$B$2:$E$322,4,0) -> 225 | B148: =CONCATENATE(C148;D148) ->  | C148: 234 | D148: Крупник Андрей Валерьевич | E148: 50:03:0070280:829 | F148: 2014-08-20 | G148: 2014-09-01 | H148: =INT(($H$327-G148)/30) -> 16 | I148: =H148*1000 -> 16000 | L148: =I148-J148-K148 -> 16000 | M148: 800 | N148: 800 | O148: 800 | P148: 800 | Q148: 800 | R148: 800 | S148: 800 | T148: 800 | U148: 800 | V148: 800 | W148: 800 | X148: 800 | Y148: =SUM(L148:X148) -> 25600 | Z148: =VLOOKUP(A148,справочник!$E$2:$F$322,2,0) -> 0
A149: =VLOOKUP(B149,справочник!$B$2:$E$322,4,0) -> 266 | B149: =CONCATENATE(C149;D149) ->  | C149: 279 | D149: Кудревцев Евгений Александрович | E149: 50:03:0070280:724 | F149: 2011-09-13 | G149: 2011-09-01 | H149: =INT(($H$327-G149)/30) -> 52 | I149: =H149*1000 -> 52000 | J149: =40000+1000 -> 41000 | L149: =I149-J149-K149 -> 11000 | M149: 800 | N149: 800 | O149: 800 | P149: 800 | Q149: 800 | R149: 800 | S149: 800 | T149: 800 | U149: 800 | V149: 800 | W149: 800 | X149: 800 | Y149: =SUM(L149:X149) -> 20600 | Z149: =VLOOKUP(A149,справочник!$E$2:$F$322,2,0) -> 0
A150: =VLOOKUP(B150,справочник!$B$2:$E$322,4,0) -> 157 | B150: =CONCATENATE(C150;D150) ->  | C150: 165 | D150: Кудрявцева Наталья Викторовна | E150: 50:03:0070280:927 | F150: 2011-12-08 | G150: 2011-12-01 | H150: =INT(($H$327-G150)/30) -> 49 | I150: =H150*1000 -> 49000 | J150: =12000+13000 -> 25000 | L150: =I150-J150-K150 -> 24000 | M150: 800 | N150: 800 | O150: 800 | P150: 800 | Q150: 800 | R150: 800 | S150: 800 | T150: 800 | U150: 800 | V150: 800 | W150: 800 | X150: 800 | Y150: =SUM(L150:X150) -> 33600 | Z150: =VLOOKUP(A150,справочник!$E$2:$F$322,2,0) -> 0
A151: =VLOOKUP(B151,справочник!$B$2:$E$322,4,0) -> 194 | B151: =CONCATENATE(C151;D151) ->  | C151: 202 | D151: Куликов Александр Владимирович | E151: 50:03:0070280:886 | F151: 2014-09-16 | G151: 2014-10-01 | H151: =INT(($H$327-G151)/30) -> 15 | I151: =H151*1000 -> 15000 | J151: 11000 | L151: =I151-J151-K151 -> 4000 | M151: 800 | N151: 800 | O151: 800 | P151: 800 | Q151: 800 | R151: 800 | S151: 800 | T151: 800 | U151: 800 | V151: 800 | W151: 800 | X151: 800 | Y151: =SUM(L151:X151) -> 13600 | Z151: =VLOOKUP(A151,справочник!$E$2:$F$322,2,0) -> 0
A152: =VLOOKUP(B152,справочник!$B$2:$E$322,4,0) -> 65 | B152: =CONCATENATE(C152;D152) ->  | C152: 67 | D152: Куликова Наталья Александровна | E152: 50:03:0070280:936 | F152: 2011-11-25 | G152: 2011-11-01 | H152: =INT(($H$327-G152)/30) -> 50 | I152: =H152*1000 -> 50000 | J152: =30000 -> 30000 | L152: =I152-J152-K152 -> 20000 | M152: 800 | N152: 800 | O152: 800 | P152: 800 | Q152: 800 | R152: 800 | S152: 800 | T152: 800 | U152: 800 | V152: 800 | W152: 800 | X152: 800 | Y152: =SUM(L152:X152) -> 29600 | Z152: =VLOOKUP(A152,справочник!$E$2:$F$322,2,0) -> 0
A153: =VLOOKUP(B153,справочник!$B$2:$E$322,4,0) -> 216 | B153: =CONCATENATE(C153;D153) ->  | C153: 225 | D153: Кулиш Сергей Александрович | E153: 50:03:0070280:838 | F153: 2014-05-14 | G153: 2014-05-01 | H153: =INT(($H$327-G153)/30) -> 20 | I153: =H153*1000 -> 20000 | J153: 20000 | L153: =I153-J153-K153 -> 0 | M153: 800 | N153: 800 | O153: 800 | P153: 800 | Q153: 800 | R153: 800 | S153: 800 | T153: 800 | U153: 800 | V153: 800 | W153: 800 | X153: 800 | Y153: =SUM(L153:X153) -> 9600 | Z153: =VLOOKUP(A153,справочник!$E$2:$F$322,2,0) -> 1
A154: =VLOOKUP(B154,справочник!$B$2:$E$322,4,0) -> 216 | B154: =CONCATENATE(C154;D154) ->  | C154: 226 | D154: Кулиш Сергей Александрович | E154: 50:03:0070280:837 | F154: 2014-05-14 | G154: 2014-05-01 | H154: =INT(($H$327-G154)/30) -> 20 | I154: =H154*1000 -> 20000 | J154: 20000 | L154: =I154-J154-K154 -> 0 | Y154: =SUM(L154:X154) -> 0 | Z154: =VLOOKUP(A154,справочник!$E$2:$F$322,2,0) -> 1
A155: =VLOOKUP(B155,справочник!$B$2:$E$322,4,0) -> 56 | B155: =CONCATENATE(C155;D155) ->  | C155: 58 | D155: Кушваха Виджай Шанкар | E155: 50:03:0070280:963 | F155: 2011-06-21 | G155: 2011-07-01 | H155: =INT(($H$327-G155)/30) -> 54 | I155: =H155*1000 -> 54000 | J155: 1000 | L155: =I155-J155-K155 -> 53000 | M155: 800 | N155: 800 | O155: 800 | P155: 800 | Q155: 800 | R155: 800 | S155: 800 | T155: 800 | U155: 800 | V155: 800 | W155: 800 | X155: 800 | Y155: =SUM(L155:X155) -> 62600 | Z155: =VLOOKUP(A155,справочник!$E$2:$F$322,2,0) -> 0
A156: =VLOOKUP(B156,справочник!$B$2:$E$322,4,0) -> 150 | B156: =CONCATENATE(C156;D156) ->  | C156: 158 | D156: Лайпанов Рустам Сеитбиевич | E156: 50:03:0070280:959 | F156: 2011-08-15 | G156: 2011-09-01 | H156: =INT(($H$327-G156)/30) -> 52 | I156: =H156*1000 -> 52000 | J156: =21000+1000 -> 22000 | L156: =I156-J156-K156 -> 30000 | M156: 800 | N156: 800 | O156: 800 | P156: 800 | Q156: 800 | R156: 800 | S156: 800 | T156: 800 | U156: 800 | V156: 800 | W156: 800 | X156: 800 | Y156: =SUM(L156:X156) -> 39600 | Z156: =VLOOKUP(A156,справочник!$E$2:$F$322,2,0) -> 0
A157: =VLOOKUP(B157,справочник!$B$2:$E$322,4,0) -> 243 | B157: =CONCATENATE(C157;D157) ->  | C157: 254 | D157: Лапшин Сергей Николаевич | E157: 50:03:0070280:791 | F157: 2011-09-05 | G157: 2011-09-01 | H157: =INT(($H$327-G157)/30) -> 52 | I157: =H157*1000 -> 52000 | J157: =1000 -> 1000 | K157: 45000 | L157: =I157-J157-K157 -> 6000 | M157: 800 | N157: 800 | O157: 800 | P157: 800 | Q157: 800 | R157: 800 | S157: 800 | T157: 800 | U157: 800 | V157: 800 | W157: 800 | X157: 800 | Y157: =SUM(L157:X157) -> 15600 | Z157: =VLOOKUP(A157,справочник!$E$2:$F$322,2,0) -> 0
A158: =VLOOKUP(B158,справочник!$B$2:$E$322,4,0) -> 220 | B158: =CONCATENATE(C158;D158) ->  | C158: 229 | D158: Ларионова Наталья Владимировна | E158: 50:03:0070280:834 | F158: 2014-06-10 | G158: 2014-07-01 | H158: =INT(($H$327-G158)/30) -> 18 | I158: =H158*1000 -> 18000 | J158: =1000 -> 1000 | L158: =I158-J158-K158 -> 17000 | M158: 800 | N158: 800 | O158: 800 | P158: 800 | Q158: 800 | R158: 800 | S158: 800 | T158: 800 | U158: 800 | V158: 800 | W158: 800 | X158: 800 | Y158: =SUM(L158:X158) -> 26600 | Z158: =VLOOKUP(A158,справочник!$E$2:$F$322,2,0) -> 0
A159: =VLOOKUP(B159,справочник!$B$2:$E$322,4,0) -> 3 | B159: =CONCATENATE(C159;D159) ->  | C159: 3 | D159: Лебедев Андрей Анатольевич | E159: 50:03:0070280:700 | F159: 2014-11-11 | G159: 2013-12-01 | H159: =INT(($H$327-G159)/30) -> 25 | I159: =H159*1000 -> 25000 | J159: =4000 -> 4000 | L159: =I159-J159-K159 -> 21000 | M159: 800 | N159: 800 | O159: 800 | P159: 800 | Q159: 800 | R159: 800 | S159: 800 | T159: 800 | U159: 800 | V159: 800 | W159: 800 | X159: 800 | Y159: =SUM(L159:X159) -> 30600 | Z159: =VLOOKUP(A159,справочник!$E$2:$F$322,2,0) -> 0
A160: =VLOOKUP(B160,справочник!$B$2:$E$322,4,0) -> 158 | B160: =CONCATENATE(C160;D160) ->  | C160: 166 | D160: Лебедева Елена Александровна | E160: 50:03:0070280:926 | F160: 2014-01-21 | G160: 2014-02-01 | H160: =INT(($H$327-G160)/30) -> 23 | I160: =H160*1000 -> 23000 | J160: =1000 -> 1000 | L160: =I160-J160-K160 -> 22000 | M160: 800 | N160: 800 | O160: 800 | P160: 800 | Q160: 800 | R160: 800 | S160: 800 | T160: 800 | U160: 800 | V160: 800 | W160: 800 | X160: 800 | Y160: =SUM(L160:X160) -> 31600 | Z160: =VLOOKUP(A160,справочник!$E$2:$F$322,2,0) -> 0
A161: =VLOOKUP(B161,справочник!$B$2:$E$322,4,0) -> 139 | B161: =CONCATENATE(C161;D161) ->  | C161: 149 | D161: Левина Елена Александровна (Дмитрий) | E161: 50:03:0070280:943 | F161: 2011-06-21 | G161: 2011-07-01 | H161: =INT(($H$327-G161)/30) -> 54 | I161: =H161*1000 -> 54000 | J161: 54000 | L161: =I161-J161-K161 -> 0 | Y161: =SUM(L161:X161) -> 0 | Z161: =VLOOKUP(A161,справочник!$E$2:$F$322,2,0) -> 1
A162: =VLOOKUP(B162,справочник!$B$2:$E$322,4,0) -> 139 | B162: =CONCATENATE(C162;D162) ->  | C162: 147 | D162: Левина Елена Александровна (Дмитрий) | E162: 50:03:0070280:941 | F162: 2011-06-21 | G162: 2011-07-01 | H162: =INT(($H$327-G162)/30) -> 54 | I162: =H162*1000 -> 54000 | J162: 54000 | L162: =I162-J162-K162 -> 0 | Y162: =SUM(L162:X162) -> 0 | Z162: =VLOOKUP(A162,справочник!$E$2:$F$322,2,0) -> 1
A163: =VLOOKUP(B163,справочник!$B$2:$E$322,4,0) -> 139 | B163: =CONCATENATE(C163;D163) ->  | C163: 148 | D163: Левина Елена Александровна (Дмитрий) | E163: 50:03:0070280:942 | F163: 2011-06-21 | G163: 2011-07-01 | H163: =INT(($H$327-G163)/30) -> 54 | I163: =H163*1000 -> 54000 | J163: =11000+4000 -> 15000 | L163: =I163-J163-K163 -> 39000 | M163: 800 | N163: 800 | O163: 800 | P163: 800 | Q163: 800 | R163: 800 | S163: 800 | T163: 800 | U163: 800 | V163: 800 | W163: 800 | X163: 800 | Y163: =SUM(L163:X163) -> 48600 | Z163: =VLOOKUP(A163,справочник!$E$2:$F$322,2,0) -> 1
A164: =VLOOKUP(B164,справочник!$B$2:$E$322,4,0) -> 261 | B164: =CONCATENATE(C164;D164) ->  | C164: 274 | D164: Леськов Олег Петрович | E164: 50:03:0070280:1465 | F164: 2013-04-09 | G164: 2013-05-01 | H164: =INT(($H$327-G164)/30) -> 32 | I164: =H164*1000 -> 32000 | J164: 19000 | L164: =I164-J164-K164 -> 13000 | Y164: =SUM(L164:X164) -> 13000 | Z164: =VLOOKUP(A164,справочник!$E$2:$F$322,2,0) -> 1
A165: =VLOOKUP(B165,справочник!$B$2:$E$322,4,0) -> 261 | B165: =CONCATENATE(C165;D165) ->  | C165: 275 | D165: Леськов Олег Петрович | F165: 2012-04-17 | G165: 2012-04-01 | H165: =INT(($H$327-G165)/30) -> 45 | I165: =H165*1000 -> 45000 | J165: =9000+19000 -> 28000 | L165: =I165-J165-K165 -> 17000 | M165: 800 | N165: 800 | O165: 800 | P165: 800 | Q165: 800 | R165: 800 | S165: 800 | T165: 800 | U165: 800 | V165: 800 | W165: 800 | X165: 800 | Y165: =SUM(L165:X165) -> 26600 | Z165: =VLOOKUP(A165,справочник!$E$2:$F$322,2,0) -> 1
A166: =VLOOKUP(B166,справочник!$B$2:$E$322,4,0) -> 288 | B166: =CONCATENATE(C166;D166) ->  | C166: 300 | D166: Ли Наталья Сергеевна | E166: 50:03:0070280:773 | F166: 2013-08-27 | G166: 2013-09-01 | H166: =INT(($H$327-G166)/30) -> 28 | I166: =H166*1000 -> 28000 | L166: =I166-J166-K166 -> 28000 | M166: 800 | N166: 800 | O166: 800 | P166: 800 | Q166: 800 | R166: 800 | S166: 800 | T166: 800 | U166: 800 | V166: 800 | W166: 800 | X166: 800 | Y166: =SUM(L166:X166) -> 37600 | Z166: =VLOOKUP(A166,справочник!$E$2:$F$322,2,0) -> 0
A167: =VLOOKUP(B167,справочник!$B$2:$E$322,4,0) -> 166 | B167: =CONCATENATE(C167;D167) ->  | C167: 174 | D167: Ловыгина Татьяна Александровна | E167: 50:03:0070280:891 | F167: 2014-07-09 | G167: 2014-08-01 | H167: =INT(($H$327-G167)/30) -> 17 | I167: =H167*1000 -> 17000 | J167: 5000 | L167: =I167-J167-K167 -> 12000 | M167: 800 | N167: 800 | O167: 800 | P167: 800 | Q167: 800 | R167: 800 | S167: 800 | T167: 800 | U167: 800 | V167: 800 | W167: 800 | X167: 800 | Y167: =SUM(L167:X167) -> 21600 | Z167: =VLOOKUP(A167,справочник!$E$2:$F$322,2,0) -> 0
A168: =VLOOKUP(B168,справочник!$B$2:$E$322,4,0) -> 118 | B168: =CONCATENATE(C168;D168) ->  | C168: 123 | D168: Лопухинова Надежда Михайловна | E168: 50:03:0070280:1020 | F168: 2013-06-10 | G168: 2013-07-01 | H168: =INT(($H$327-G168)/30) -> 30 | I168: =H168*1000 -> 30000 | J168: 23000 | L168: =I168-J168-K168 -> 7000 | M168: 800 | N168: 800 | O168: 800 | P168: 800 | Q168: 800 | R168: 800 | S168: 800 | T168: 800 | U168: 800 | V168: 800 | W168: 800 | X168: 800 | Y168: =SUM(L168:X168) -> 16600 | Z168: =VLOOKUP(A168,справочник!$E$2:$F$322,2,0) -> 0
A169: =VLOOKUP(B169,справочник!$B$2:$E$322,4,0) -> 199 | B169: =CONCATENATE(C169;D169) ->  | C169: 207 | D169: Лошкарев Виктор Ильич | E169: 50:03:0070280:775 | F169: 2012-05-07 | G169: 2012-05-01 | H169: =INT(($H$327-G169)/30) -> 44 | I169: =H169*1000 -> 44000 | J169: 1000 | L169: =I169-J169-K169 -> 43000 | M169: 800 | N169: 800 | O169: 800 | P169: 800 | Q169: 800 | R169: 800 | S169: 800 | T169: 800 | U169: 800 | V169: 800 | W169: 800 | X169: 800 | Y169: =SUM(L169:X169) -> 52600 | Z169: =VLOOKUP(A169,справочник!$E$2:$F$322,2,0) -> 1
A170: =VLOOKUP(B170,справочник!$B$2:$E$322,4,0) -> 199 | B170: =CONCATENATE(C170;D170) ->  | C170: 208 | D170: Лошкарев Виктор Ильич | E170: 50:03:0070280:892 | F170: 2012-05-07 | G170: 2012-05-01 | H170: =INT(($H$327-G170)/30) -> 44 | I170: =H170*1000 -> 44000 | J170: 1000 | L170: =I170-J170-K170 -> 43000 | Y170: =SUM(L170:X170) -> 43000 | Z170: =VLOOKUP(A170,справочник!$E$2:$F$322,2,0) -> 1
A171: =VLOOKUP(B171,справочник!$B$2:$E$322,4,0) -> 164 | B171: =CONCATENATE(C171;D171) ->  | C171: 172 | D171: Лунёв Денис Александрович | E171: 50:03:0070280:769 | F171: 2013-10-29 | G171: 2013-11-01 | H171: =INT(($H$327-G171)/30) -> 26 | I171: =H171*1000 -> 26000 | J171: 1000 | L171: =I171-J171-K171 -> 25000 | M171: 800 | N171: 800 | O171: 800 | P171: 800 | Q171: 800 | R171: 800 | S171: 800 | T171: 800 | U171: 800 | V171: 800 | W171: 800 | X171: 800 | Y171: =SUM(L171:X171) -> 34600 | Z171: =VLOOKUP(A171,справочник!$E$2:$F$322,2,0) -> 0
A172: =VLOOKUP(B172,справочник!$B$2:$E$322,4,0) -> 34 | B172: =CONCATENATE(C172;D172) ->  | C172: 34 | D172: Лунева Ольга Петровна | E172: 50:03:0070280:904 | F172: 2011-08-26 | G172: 2011-09-01 | H172: =INT(($H$327-G172)/30) -> 52 | I172: =H172*1000 -> 52000 | J172: 55000 | L172: =I172-J172-K172 -> -3000 | M172: 800 | N172: 800 | O172: 800 | P172: 800 | Q172: 800 | R172: 800 | S172: 800 | T172: 800 | U172: 800 | V172: 800 | W172: 800 | X172: 800 | Y172: =SUM(L172:X172) -> 6600 | Z172: =VLOOKUP(A172,справочник!$E$2:$F$322,2,0) -> 0
A173: =VLOOKUP(B173,справочник!$B$2:$E$322,4,0) -> 13 | B173: =CONCATENATE(C173;D173) ->  | C173: 13 | D173: Малов Алексей Викторович | E173: 50:03:0070280:702 | F173: 2013-07-09 | G173: 2013-08-01 | H173: =INT(($H$327-G173)/30) -> 29 | I173: =H173*1000 -> 29000 | J173: 13000 | L173: =I173-J173-K173 -> 16000 | M173: 800 | N173: 800 | O173: 800 | P173: 800 | Q173: 800 | R173: 800 | S173: 800 | T173: 800 | U173: 800 | V173: 800 | W173: 800 | X173: 800 | Y173: =SUM(L173:X173) -> 25600 | Z173: =VLOOKUP(A173,справочник!$E$2:$F$322,2,0) -> 0
A174: =VLOOKUP(B174,справочник!$B$2:$E$322,4,0) -> 273 | B174: =CONCATENATE(C174;D174) ->  | C174: 286 | D174: Маргиева Марина Евгеньевна | E174: 50:03:0070280:714 | F174: 2014-12-19 | G174: 2015-01-01 | H174: =INT(($H$327-G174)/30) -> 12 | I174: =H174*1000 -> 12000 | J174: 8000 | L174: =I174-J174-K174 -> 4000 | M174: 800 | N174: 800 | O174: 800 | P174: 800 | Q174: 800 | R174: 800 | S174: 800 | T174: 800 | U174: 800 | V174: 800 | W174: 800 | X174: 800 | Y174: =SUM(L174:X174) -> 13600 | Z174: =VLOOKUP(A174,справочник!$E$2:$F$322,2,0) -> 0
A175: =VLOOKUP(B175,справочник!$B$2:$E$322,4,0) -> 87 | B175: =CONCATENATE(C175;D175) ->  | C175: 92 | D175: Маркина Людмила Николаевна, Марина | E175: 50:03:0070280:865 | F175: 2012-08-23 | G175: 2012-09-01 | H175: =INT(($H$327-G175)/30) -> 40 | I175: =H175*1000 -> 40000 | J175: 37000 | L175: =I175-J175-K175 -> 3000 | M175: 800 | N175: 800 | O175: 800 | P175: 800 | Q175: 800 | R175: 800 | S175: 800 | T175: 800 | U175: 800 | V175: 800 | W175: 800 | X175: 800 | Y175: =SUM(L175:X175) -> 12600 | Z175: =VLOOKUP(A175,справочник!$E$2:$F$322,2,0) -> 0
A176: =VLOOKUP(B176,справочник!$B$2:$E$322,4,0) -> 154 | B176: =CONCATENATE(C176;D176) ->  | C176: 162 | D176: Марков Максим Юрьевич | E176: 50:03:0070280:959 | F176: 2011-06-26 | G176: 2011-07-01 | H176: =INT(($H$327-G176)/30) -> 54 | I176: =H176*1000 -> 54000 | J176: 50000 | L176: =I176-J176-K176 -> 4000 | M176: 800 | N176: 800 | O176: 800 | P176: 800 | Q176: 800 | R176: 800 | S176: 800 | T176: 800 | U176: 800 | V176: 800 | W176: 800 | X176: 800 | Y176: =SUM(L176:X176) -> 13600 | Z176: =VLOOKUP(A176,справочник!$E$2:$F$322,2,0) -> 0
A177: =VLOOKUP(B177,справочник!$B$2:$E$322,4,0) -> 270 | B177: =CONCATENATE(C177;D177) ->  | C177: 283 | D177: Маркова Тамара Ивановна | E177: 50:03:0070280:717 | F177: 2013-05-28 | G177: 2013-07-01 | H177: =INT(($H$327-G177)/30) -> 30 | I177: =H177*1000 -> 30000 | J177: 20000 | L177: =I177-J177-K177 -> 10000 | M177: 800 | N177: 800 | O177: 800 | P177: 800 | Q177: 800 | R177: 800 | S177: 800 | T177: 800 | U177: 800 | V177: 800 | W177: 800 | X177: 800 | Y177: =SUM(L177:X177) -> 19600 | Z177: =VLOOKUP(A177,справочник!$E$2:$F$322,2,0) -> 0
A178: =VLOOKUP(B178,справочник!$B$2:$E$322,4,0) -> 9 | B178: =CONCATENATE(C178;D178) ->  | C178: 9 | D178: Марковнина Светлана Викторовна | E178: 50:03:0070280:706 | F178: 2012-07-24 | G178: 2012-08-01 | H178: =INT(($H$327-G178)/30) -> 41 | I178: =H178*1000 -> 41000 | J178: 18000 | L178: =I178-J178-K178 -> 23000 | M178: 800 | N178: 800 | O178: 800 | P178: 800 | Q178: 800 | R178: 800 | S178: 800 | T178: 800 | U178: 800 | V178: 800 | W178: 800 | X178: 800 | Y178: =SUM(L178:X178) -> 32600 | Z178: =VLOOKUP(A178,справочник!$E$2:$F$322,2,0) -> 0
A179: =VLOOKUP(B179,справочник!$B$2:$E$322,4,0) -> 129 | B179: =CONCATENATE(C179;D179) ->  | C179: 136 | D179: Маслов Александр Александрович | E179: 50:03:0070280:978 | F179: 2013-03-19 | G179: 2013-04-01 | H179: =INT(($H$327-G179)/30) -> 33 | I179: =H179*1000 -> 33000 | J179: 31000 | L179: =I179-J179-K179 -> 2000 | M179: 800 | N179: 800 | O179: 800 | P179: 800 | Q179: 800 | R179: 800 | S179: 800 | T179: 800 | U179: 800 | V179: 800 | W179: 800 | X179: 800 | Y179: =SUM(L179:X179) -> 11600 | Z179: =VLOOKUP(A179,справочник!$E$2:$F$322,2,0) -> 0
A180: =VLOOKUP(B180,справочник!$B$2:$E$322,4,0) -> 42 | B180: =CONCATENATE(C180;D180) ->  | C180: 42 | D180: Маслов Андрей Геннадьевич (1/2) Щербакова Надежда Михайловна (1/2) | E180: 50:03:0070280:800 | F180: 2011-08-30 | G180: 2011-09-01 | H180: =INT(($H$327-G180)/30) -> 52 | I180: =H180*1000 -> 52000 | J180: =19500+500+4500+23500 -> 48000 | L180: =I180-J180-K180 -> 4000 | M180: 800 | N180: 800 | O180: 800 | P180: 800 | Q180: 800 | R180: 800 | S180: 800 | T180: 800 | U180: 800 | V180: 800 | W180: 800 | X180: 800 | Y180: =SUM(L180:X180) -> 13600 | Z180: =VLOOKUP(A180,справочник!$E$2:$F$322,2,0) -> 0
A181: =VLOOKUP(B181,справочник!$B$2:$E$322,4,0) -> 96 | B181: =CONCATENATE(C181;D181) ->  | C181: 101 | D181: Маслова Валентина Петровна | E181: 50:03:0070280:1651 | F181: 2011-06-14 | G181: 2011-07-01 | H181: =INT(($H$327-G181)/30) -> 54 | I181: =H181*1000 -> 54000 | J181: 41012 | L181: =I181-J181-K181 -> 12988 | Y181: =SUM(L181:X181) -> 12988 | Z181: =VLOOKUP(A181,справочник!$E$2:$F$322,2,0) -> 1
A182: =VLOOKUP(B182,справочник!$B$2:$E$322,4,0) -> 96 | B182: =CONCATENATE(C182;D182) ->  | C182: 102 | D182: Маслова Валентина Петровна | F182: 2011-06-14 | G182: 2011-07-01 | H182: =INT(($H$327-G182)/30) -> 54 | I182: =H182*1000 -> 54000 | J182: 41000 | L182: =I182-J182-K182 -> 13000 | M182: 800 | N182: 800 | O182: 800 | P182: 800 | Q182: 800 | R182: 800 | S182: 800 | T182: 800 | U182: 800 | V182: 800 | W182: 800 | X182: 800 | Y182: =SUM(L182:X182) -> 22600 | Z182: =VLOOKUP(A182,справочник!$E$2:$F$322,2,0) -> 1
A183: =VLOOKUP(B183,справочник!$B$2:$E$322,4,0) -> 292 | B183: =CONCATENATE(C183;D183) ->  | C183: 305 | D183: Матвеев Денис Львович | E183: 50:03:0070280:996 | F183: 2015-01-14 | G183: 2015-02-01 | H183: =INT(($H$327-G183)/30) -> 11 | I183: =H183*1000 -> 11000 | L183: =I183-J183-K183 -> 11000 | M183: 800 | N183: 800 | O183: 800 | P183: 800 | Q183: 800 | R183: 800 | S183: 800 | T183: 800 | U183: 800 | V183: 800 | W183: 800 | X183: 800 | Y183: =SUM(L183:X183) -> 20600 | Z183: =VLOOKUP(A183,справочник!$E$2:$F$322,2,0) -> 0
A184: =VLOOKUP(B184,справочник!$B$2:$E$322,4,0) -> 209 | B184: =CONCATENATE(C184;D184) ->  | C184: 219 | D184: Мельников Михаил Вячеславович / Диденко | F184: 2012-12-05 | G184: 2013-03-01 | H184: 20 | I184: =H184*1000 -> 20000 | L184: =I184-J184-K184 -> 20000 | M184: 800 | N184: 800 | O184: 800 | P184: 800 | Q184: 800 | R184: 800 | S184: 800 | T184: 800 | U184: 800 | V184: 800 | W184: 800 | X184: 800 | Y184: =SUM(L184:X184) -> 29600 | Z184: =VLOOKUP(A184,справочник!$E$2:$F$322,2,0) -> 0
A185: =VLOOKUP(B185,справочник!$B$2:$E$322,4,0) -> 257 | B185: =CONCATENATE(C185;D185) ->  | C185: 270 | D185: Месхидзе Оксана Валерьевна | E185: 50:03:0070280:733 | F185: 2013-09-09 | G185: 2013-10-01 | H185: =INT(($H$327-G185)/30) -> 27 | I185: =H185*1000 -> 27000 | J185: 1000 | L185: =I185-J185-K185 -> 26000 | M185: 800 | N185: 800 | O185: 800 | P185: 800 | Q185: 800 | R185: 800 | S185: 800 | T185: 800 | U185: 800 | V185: 800 | W185: 800 | X185: 800 | Y185: =SUM(L185:X185) -> 35600 | Z185: =VLOOKUP(A185,справочник!$E$2:$F$322,2,0) -> 0
A186: =VLOOKUP(B186,справочник!$B$2:$E$322,4,0) -> 212 | B186: =CONCATENATE(C186;D186) ->  | C186: 221 | D186: Милишенко Надежда Ивановна | E186: 50:03:0070280:842 | F186: 2013-10-05 | G186: 2013-11-01 | H186: =INT(($H$327-G186)/30) -> 26 | I186: =H186*1000 -> 26000 | J186: 23000 | L186: =I186-J186-K186 -> 3000 | M186: 800 | N186: 800 | O186: 800 | P186: 800 | Q186: 800 | R186: 800 | S186: 800 | T186: 800 | U186: 800 | V186: 800 | W186: 800 | X186: 800 | Y186: =SUM(L186:X186) -> 12600 | Z186: =VLOOKUP(A186,справочник!$E$2:$F$322,2,0) -> 0
A187: =VLOOKUP(B187,справочник!$B$2:$E$322,4,0) -> 320 | B187: =CONCATENATE(C187;D187) ->  | D187: Милоянин Алексей Леонидович | M187: 800 | N187: 800 | O187: 800 | P187: 800 | Q187: 800 | R187: 800 | S187: 800 | T187: 800 | U187: 800 | V187: 800 | W187: 800 | X187: 800 | Y187: =SUM(L187:X187) -> 9600 | Z187: =VLOOKUP(A187,справочник!$E$2:$F$322,2,0) -> 1
A188: =VLOOKUP(B188,справочник!$B$2:$E$322,4,0) -> 186 | B188: =CONCATENATE(C188;D188) ->  | C188: 194 | D188: Мирошниченко Андрей Иванович Захарова Елена Александровна | E188: 50:03:0070280:914 | F188: 2014-08-21 | G188: 2014-09-01 | H188: =INT(($H$327-G188)/30) -> 16 | I188: =H188*1000 -> 16000 | J188: 12000 | L188: =I188-J188-K188 -> 4000 | M188: 800 | N188: 800 | O188: 800 | P188: 800 | Q188: 800 | R188: 800 | S188: 800 | T188: 800 | U188: 800 | V188: 800 | W188: 800 | X188: 800 | Y188: =SUM(L188:X188) -> 13600 | Z188: =VLOOKUP(A188,справочник!$E$2:$F$322,2,0) -> 0
A189: =VLOOKUP(B189,справочник!$B$2:$E$322,4,0) -> 187 | B189: =CONCATENATE(C189;D189) ->  | C189: 195 | D189: Мирошниченко Екатерина Олеговна | E189: 50:03:0070280:913 | F189: 2013-09-25 | G189: 2013-10-01 | H189: =INT(($H$327-G189)/30) -> 27 | I189: =H189*1000 -> 27000 | L189: =I189-J189-K189 -> 27000 | M189: 800 | N189: 800 | O189: 800 | P189: 800 | Q189: 800 | R189: 800 | S189: 800 | T189: 800 | U189: 800 | V189: 800 | W189: 800 | X189: 800 | Y189: =SUM(L189:X189) -> 36600 | Z189: =VLOOKUP(A189,справочник!$E$2:$F$322,2,0) -> 0
A190: =VLOOKUP(B190,справочник!$B$2:$E$322,4,0) -> 211 | B190: =CONCATENATE(C190;D190) ->  | C190: 220 | D190: Модин Игорь Николаевич | E190: 50:03:0070280:843 | F190: 2013-05-23 | G190: 2013-06-01 | H190: =INT(($H$327-G190)/30) -> 31 | I190: =H190*1000 -> 31000 | J190: 26000 | K190: 7000 | L190: =I190-J190-K190 -> -2000 | M190: 800 | N190: 800 | O190: 800 | P190: 800 | Q190: 800 | R190: 800 | S190: 800 | T190: 800 | U190: 800 | V190: 800 | W190: 800 | X190: 800 | Y190: =SUM(L190:X190) -> 7600 | Z190: =VLOOKUP(A190,справочник!$E$2:$F$322,2,0) -> 0
A191: =VLOOKUP(B191,справочник!$B$2:$E$322,4,0) -> 242 | B191: =CONCATENATE(C191;D191) ->  | C191: 253 | D191: Моисеев Андрей Валентинович | E191: 50:03:0070280:792 | F191: 2013-03-19 | G191: 2013-04-01 | H191: =INT(($H$327-G191)/30) -> 33 | I191: =H191*1000 -> 33000 | J191: 4000 | L191: =I191-J191-K191 -> 29000 | M191: 800 | N191: 800 | O191: 800 | P191: 800 | Q191: 800 | R191: 800 | S191: 800 | T191: 800 | U191: 800 | V191: 800 | W191: 800 | X191: 800 | Y191: =SUM(L191:X191) -> 38600 | Z191: =VLOOKUP(A191,справочник!$E$2:$F$322,2,0) -> 0
A192: =VLOOKUP(B192,справочник!$B$2:$E$322,4,0) -> 218 | B192: =CONCATENATE(C192;D192) ->  | C192: 227 | D192: Молчанова Ирина Владимировна | E192: 50:03:0070280:836 | F192: 2011-09-07 | G192: 2011-09-01 | H192: =INT(($H$327-G192)/30) -> 52 | I192: =H192*1000 -> 52000 | J192: 33000 | K192: 5000 | L192: =I192-J192-K192 -> 14000 | M192: 800 | N192: 800 | O192: 800 | P192: 800 | Q192: 800 | R192: 800 | S192: 800 | T192: 800 | U192: 800 | V192: 800 | W192: 800 | X192: 800 | Y192: =SUM(L192:X192) -> 23600 | Z192: =VLOOKUP(A192,справочник!$E$2:$F$322,2,0) -> 0
A193: =VLOOKUP(B193,справочник!$B$2:$E$322,4,0) -> 120 | B193: =CONCATENATE(C193;D193) ->  | C193: 125 | D193: Мудрак Владимир Григорьевич (Марина) | E193: 50:03:0070280:1022 | F193: 2013-05-23 | G193: 2013-06-01 | H193: =INT(($H$327-G193)/30) -> 31 | I193: =H193*1000 -> 31000 | J193: 21000 | L193: =I193-J193-K193 -> 10000 | M193: 800 | N193: 800 | O193: 800 | P193: 800 | Q193: 800 | R193: 800 | S193: 800 | T193: 800 | U193: 800 | V193: 800 | W193: 800 | X193: 800 | Y193: =SUM(L193:X193) -> 19600 | Z193: =VLOOKUP(A193,справочник!$E$2:$F$322,2,0) -> 0
A194: =VLOOKUP(B194,справочник!$B$2:$E$322,4,0) -> 287 | B194: =CONCATENATE(C194;D194) ->  | C194: 299 | D194: Мурадова Альбина Сергеевна | E194: 50:03:0070280:774 | F194: 2014-09-15 | G194: 2014-10-01 | H194: =INT(($H$327-G194)/30) -> 15 | I194: =H194*1000 -> 15000 | J194: 13000 | L194: =I194-J194-K194 -> 2000 | M194: 800 | N194: 800 | O194: 800 | P194: 800 | Q194: 800 | R194: 800 | S194: 800 | T194: 800 | U194: 800 | V194: 800 | W194: 800 | X194: 800 | Y194: =SUM(L194:X194) -> 11600 | Z194: =VLOOKUP(A194,справочник!$E$2:$F$322,2,0) -> 0
A195: =VLOOKUP(B195,справочник!$B$2:$E$322,4,0) -> 170 | B195: =CONCATENATE(C195;D195) ->  | C195: 178 | D195: Науменко Дмитрий Александрович | E195: 50:03:0070280:767 | F195: 2013-05-20 | G195: 2013-07-01 | H195: =INT(($H$327-G195)/30) -> 30 | I195: =H195*1000 -> 30000 | J195: 29000 | K195: 1000 | L195: =I195-J195-K195 -> 0 | Y195: =SUM(L195:X195) -> 0 | Z195: =VLOOKUP(A195,справочник!$E$2:$F$322,2,0) -> 1
A196: =VLOOKUP(B196,справочник!$B$2:$E$322,4,0) -> 170 | B196: =CONCATENATE(C196;D196) ->  | C196: 179 | D196: Науменко Дмитрий Александрович | E196: 50:03:0070280:766 | F196: 2013-05-20 | G196: 2013-07-01 | H196: =INT(($H$327-G196)/30) -> 30 | I196: =H196*1000 -> 30000 | J196: 29000 | K196: 1000 | L196: =I196-J196-K196 -> 0 | M196: 800 | N196: 800 | O196: 800 | P196: 800 | Q196: 800 | R196: 800 | S196: 800 | T196: 800 | U196: 800 | V196: 800 | W196: 800 | X196: 800 | Y196: =SUM(L196:X196) -> 9600 | Z196: =VLOOKUP(A196,справочник!$E$2:$F$322,2,0) -> 1
A197: =VLOOKUP(B197,справочник!$B$2:$E$322,4,0) -> 290 | B197: =CONCATENATE(C197;D197) ->  | C197: 303 | D197: Недосенко Татьяна Сергеевна (Олег) | E197: 50:03:0070280:994 | F197: 2012-02-20 | G197: 2012-02-01 | H197: =INT(($H$327-G197)/30) -> 47 | I197: =H197*1000 -> 47000 | J197: 42000 | K197: 5000 | L197: =I197-J197-K197 -> 0 | M197: 800 | N197: 800 | O197: 800 | P197: 800 | Q197: 800 | R197: 800 | S197: 800 | T197: 800 | U197: 800 | V197: 800 | W197: 800 | X197: 800 | Y197: =SUM(L197:X197) -> 9600 | Z197: =VLOOKUP(A197,справочник!$E$2:$F$322,2,0) -> 0
A198: =VLOOKUP(B198,справочник!$B$2:$E$322,4,0) -> 81 | B198: =CONCATENATE(C198;D198) ->  | C198: 86 | D198: Нелюбов Сергей Владимирович | E198: 50:03:0070280:879 | F198: 2012-02-10 | G198: 2012-02-01 | H198: =INT(($H$327-G198)/30) -> 47 | I198: =H198*1000 -> 47000 | J198: 44000 | K198: 3000 | L198: =I198-J198-K198 -> 0 | M198: 800 | N198: 800 | O198: 800 | P198: 800 | Q198: 800 | R198: 800 | S198: 800 | T198: 800 | U198: 800 | V198: 800 | W198: 800 | X198: 800 | Y198: =SUM(L198:X198) -> 9600 | Z198: =VLOOKUP(A198,справочник!$E$2:$F$322,2,0) -> 0
A199: =VLOOKUP(B199,справочник!$B$2:$E$322,4,0) -> 31 | B199: =CONCATENATE(C199;D199) ->  | C199: 31 | D199: Нефедов Михаил Владимирович | E199: 50:03:0070280:901 | F199: 2011-08-31 | G199: 2011-09-01 | H199: =INT(($H$327-G199)/30) -> 52 | I199: =H199*1000 -> 52000 | J199: =10000+42000 -> 52000 | L199: =I199-J199-K199 -> 0 | M199: 800 | N199: 800 | O199: 800 | P199: 800 | Q199: 800 | R199: 800 | S199: 800 | T199: 800 | U199: 800 | V199: 800 | W199: 800 | X199: 800 | Y199: =SUM(L199:X199) -> 9600 | Z199: =VLOOKUP(A199,справочник!$E$2:$F$322,2,0) -> 0
A200: =VLOOKUP(B200,справочник!$B$2:$E$322,4,0) -> 104 | B200: =CONCATENATE(C200;D200) ->  | C200: 109 | D200: Никифоров Андрей Леонидович | E200: 50:03:0070280:819 | F200: 2011-12-16 | G200: 2011-12-01 | H200: =INT(($H$327-G200)/30) -> 49 | I200: =H200*1000 -> 49000 | J200: =1000+45000 -> 46000 | L200: =I200-J200-K200 -> 3000 | M200: 800 | N200: 800 | O200: 800 | P200: 800 | Q200: 800 | R200: 800 | S200: 800 | T200: 800 | U200: 800 | V200: 800 | W200: 800 | X200: 800 | Y200: =SUM(L200:X200) -> 12600 | Z200: =VLOOKUP(A200,справочник!$E$2:$F$322,2,0) -> 0
... 126 more rows

Sheet членские взносы
C1: НП СЗУ "Высокое"
C2: Отчет по членским взносам за 2015-2016 гг
C3: Номер участка | D3: Ф.И.О. | E3: Кадастр. номер участка | H3: Расчеты по членским взносам | M3: =COUNTA(M5:M324) -> 44 | N3: =COUNTA(N5:N324) -> 53 | O3: =COUNTA(O5:O324) -> 50 | P3: =COUNTA(P5:P324) -> 39 | Q3: =COUNTA(Q5:Q324) -> 43 | R3: =COUNTA(R5:R324) -> 64 | S3: =COUNTA(S5:S324) -> 63 | T3: =COUNTA(T5:T324) -> 55 | U3: =COUNTA(U5:U324) -> 65 | V3: =COUNTA(V5:V324) -> 53 | W3: =COUNTA(W5:W324) -> 49 | X3: =COUNTA(X5:X324) -> 52
A4: ID | B4: Сцепка | C4: Номер участка | D4: Ф.И.О. | F4: Дата вступления в НП СЗУ "Высокое" | G4: 1-ый расчетный месяц | H4: Кол-во месяцев | I4: Сумма членских взносов, которые должны быть уплачены на 01.01.2016 г (исходя из кол-ва месяцев) | J4: Сумма оплаченных членских взносов на 01.11.2015 | K4: Оплата членских взносов за декабрь 2015 | L4: Остаток задолженности по членским взносам на 01.01.2016 | M4: оплата членских взносов за январь 2016 | N4: оплата членских взносов зафевраль 2016 | O4: оплата членских взносов за март 2016 | P4: оплата членских взносов за апрель 2016 | Q4: оплата членских взносов за май 2016 | R4: оплата членских взносов за июнь 2016 | S4: оплата членских взносов за июль2016 | T4: оплата членских взносов за август 2016 | U4: оплата членских взносов за сентябрь 2016 | V4: оплата членских взносов за октябрь 2016 | W4: оплата членских взносов за ноябрь 2016 | X4: оплата членских взносов за декабрь 2016 | Y4: ИТОГО оплачено членских взносов за 2016 г. | Z4: Количество месяцев 2016 | AA4: Сумма начисленных членских взносов в 2016 г. | AB4: Задолженность на 01.01.2017 | AC4: Начислено членскх взносов за январь 2017 | AD4: Оплата членских взносов в январе 2017 | AE4: Задолженность по членским взносам на 01.02.2017 | AF4: Начислено членких взносов за февраль 2017 | AG4: Оплата членских взносов в февраль 2017 | AH4: Задолженность по членским взносам на 01.03.2017 | AI4: Начислено членких взносов за март 2017 | AJ4: Оплата членских взносов в марте 2017 | AK4: Задолженность по членским взносам на 01.04.2017 | AL4: Начислено членких взносов за апрель 2017 | AM4: Оплата членских взносов в апреле 2017 | AN4: Задолженность по членским взносам на 01.05.2017
A5: =VLOOKUP(B5,справочник!$B$2:$E$322,4,0) -> 79 | B5: =CONCATENATE(C5,D5) -> 84Абу Махади Мохаммед Ибрагим | C5: 84 | D5: Абу Махади Мохаммед Ибрагим | E5: 50:03:0070280:947 | F5: 2011-06-22 | G5: 2011-07-01 | H5: =INT(($H$325-G5)/30) -> 54 | I5: =H5*1000 -> 54000 | J5: =49000+1000 -> 50000 | L5: =I5-J5-K5 -> 4000 | N5: 4000 | P5: 2400 | U5: 4800 | Y5: =SUM(M5:X5) -> 11200 | Z5: 12 | AA5: =Z5*800 -> 9600 | AB5: =L5+AA5-Y5 -> 2400 | AC5: 800 | AE5: =AB5+AC5-AD5 -> 3200 | AF5: 800 | AH5: =AE5+AF5-AG5 -> 4000 | AI5: 800 | AJ5: 4800 | AK5: =AH5+AI5-AJ5 -> 0 | AL5: 800 | AN5: =AK5+AL5-AM5 -> 800
A6: =VLOOKUP(B6,справочник!$B$2:$E$322,4,0) -> 35 | B6: =CONCATENATE(C6;D6) ->  | C6: 35 | D6: Абушаев Роман Шамильевич | E6: 50:03:0070280:905 | F6: 2012-03-02 | G6: 2012-03-01 | H6: =INT(($H$325-G6)/30) -> 46 | I6: =H6*1000 -> 46000 | J6: 30000 | L6: =I6-J6-K6 -> 16000 | Y6: =SUM(M6:X6) -> 0 | Z6: 12 | AA6: =Z6*800 -> 9600 | AB6: =L6+AA6-Y6 -> 25600 | AC6: 800 | AE6: =AB6+AC6-AD6 -> 26400 | AF6: 800 | AH6: =AE6+AF6-AG6 -> 27200 | AI6: 800 | AK6: =AH6+AI6-AJ6 -> 28000 | AL6: 800 | AN6: =AK6+AL6-AM6 -> 28800
A7: =VLOOKUP(B7,справочник!$B$2:$E$322,4,0) -> 260 | B7: =CONCATENATE(C7;D7) ->  | C7: 273 | D7: Аксенов Дмитрий Викторович | E7: 50:03:0070280:730 | F7: 2013-09-23 | G7: 2013-10-01 | H7: =INT(($H$325-G7)/30) -> 27 | I7: =H7*1000 -> 27000 | J7: 19000 | L7: =I7-J7-K7 -> 8000 | N7: 2000 | Q7: 1000 | R7: 2000 | S7: 2000 | T7: 3000 | U7: 2000 | V7: 2000 | W7: 2000 | X7: 2000 | Y7: =SUM(M7:X7) -> 18000 | Z7: 12 | AA7: =Z7*800 -> 9600 | AB7: =L7+AA7-Y7 -> -400 | AC7: 800 | AE7: =AB7+AC7-AD7 -> 400 | AF7: 800 | AH7: =AE7+AF7-AG7 -> 1200 | AI7: 800 | AK7: =AH7+AI7-AJ7 -> 2000 | AL7: 800 | AM7: 2000 | AN7: =AK7+AL7-AM7 -> 800
A8: =VLOOKUP(B8,справочник!$B$2:$E$322,4,0) -> 203 | B8: =CONCATENATE(C8;D8) ->  | C8: 213 | D8: Александров Владимир Александрович | E8: 50:03:0070280:850 | F8: 2013-09-03 | G8: 2013-10-01 | H8: =INT(($H$325-G8)/30) -> 27 | I8: =H8*1000 -> 27000 | J8: 26000 | L8: =I8-J8-K8 -> 1000 | M8: 2600 | Q8: 4200 | S8: 3200 | Y8: =SUM(M8:X8) -> 10000 | Z8: 12 | AA8: =Z8*800 -> 9600 | AB8: =L8+AA8-Y8 -> 600 | AC8: 800 | AD8: 2400 | AE8: =AB8+AC8-AD8 -> -1000 | AF8: 800 | AH8: =AE8+AF8-AG8 -> -200 | AI8: 800 | AK8: =AH8+AI8-AJ8 -> 600 | AL8: 800 | AM8: 1977.8 | AN8: =AK8+AL8-AM8 -> -577.8
A9: =VLOOKUP(B9,справочник!$B$2:$E$322,4,0) -> 316 | B9: =CONCATENATE(C9;D9) ->  | C9: 306-307 | D9: Алексеев Андрей Олегович | E9: 50:03:0070280:997 | F9: 2011-12-16 | G9: 2011-12-01 | H9: =INT(($H$325-G9)/30) -> 49 | I9: =H9*1000 -> 49000 | J9: =30000+1000+1000 -> 32000 | L9: =I9-J9-K9 -> 17000 | M9: 800 | Y9: =SUM(M9:X9) -> 800 | Z9: 12 | AA9: =Z9*800 -> 9600 | AB9: =L9+AA9-Y9 -> 25800 | AC9: 800 | AE9: =AB9+AC9-AD9 -> 26600 | AF9: 800 | AH9: =AE9+AF9-AG9 -> 27400 | AI9: 800 | AK9: =AH9+AI9-AJ9 -> 28200 | AL9: 800 | AN9: =AK9+AL9-AM9 -> 29000
A10: =VLOOKUP(B10,справочник!$B$2:$E$322,4,0) -> 232 | B10: =CONCATENATE(C10;D10) ->  | C10: 241 | D10: Амплеева Мария Александровна | E10: 50:03:0070280:894 | F10: 2013-06-04 | G10: 2013-07-01 | H10: =INT(($H$325-G10)/30) -> 30 | I10: =H10*1000 -> 30000 | J10: 6000 | L10: =I10-J10-K10 -> 24000 | Y10: =SUM(M10:X10) -> 0 | Z10: 12 | AA10: =Z10*800 -> 9600 | AB10: =L10+AA10-Y10 -> 33600 | AC10: 800 | AE10: =AB10+AC10-AD10 -> 34400 | AF10: 800 | AH10: =AE10+AF10-AG10 -> 35200 | AI10: 800 | AK10: =AH10+AI10-AJ10 -> 36000 | AL10: 800 | AN10: =AK10+AL10-AM10 -> 36800
A11: =VLOOKUP(B11,справочник!$B$2:$E$322,4,0) -> 277 | B11: =CONCATENATE(C11;D11) ->  | C11: 290 | D11: Андреева Любовь Ивановна(у Севастьянова) | F11: 2014-07-07 | G11: 2014-07-01 | H11: =INT(($H$325-G11)/30) -> 18 | I11: =H11*1000 -> 18000 | J11: 20000 | L11: =I11-J11-K11 -> -2000 | S11: 1000 | U11: 2000 | Y11: =SUM(M11:X11) -> 3000 | Z11: 12 | AA11: =Z11*800 -> 9600 | AB11: =L11+AA11-Y11 -> 4600 | AC11: 800 | AE11: =AB11+AC11-AD11 -> 5400 | AF11: 800 | AG11: 2000 | AH11: =AE11+AF11-AG11 -> 4200 | AI11: 800 | AJ11: 1000 | AK11: =AH11+AI11-AJ11 -> 4000 | AL11: 800 | AM11: 1000 | AN11: =AK11+AL11-AM11 -> 3800
A12: =VLOOKUP(B12,справочник!$B$2:$E$322,4,0) -> 221 | B12: =CONCATENATE(C12;D12) ->  | C12: 230 | D12: Анисимова (Корнеева) Татьяна Николаевна | F12: 2014-09-30 | G12: 2014-10-01 | H12: =INT(($H$325-G12)/30) -> 15 | I12: =H12*1000 -> 15000 | J12: 1000 | L12: =I12-J12-K12 -> 14000 | M12: 12000 | Y12: =SUM(M12:X12) -> 12000 | Z12: 12 | AA12: =Z12*800 -> 9600 | AB12: =L12+AA12-Y12 -> 11600 | AC12: 800 | AE12: =AB12+AC12-AD12 -> 12400 | AF12: 800 | AG12: 12000 | AH12: =AE12+AF12-AG12 -> 1200 | AI12: 800 | AK12: =AH12+AI12-AJ12 -> 2000 | AL12: 800 | AN12: =AK12+AL12-AM12 -> 2800
A13: =VLOOKUP(B13,справочник!$B$2:$E$322,4,0) -> 259 | B13: =CONCATENATE(C13;D13) ->  | C13: 272 | D13: Анисимова Елена Анатольевна | E13: 50:03:0070280:731 | F13: 2013-07-02 | G13: 2013-08-01 | H13: =INT(($H$325-G13)/30) -> 29 | I13: =H13*1000 -> 29000 | J13: 25000 | L13: =I13-J13-K13 -> 4000 | S13: 3000 | U13: 5000 | V13: 2400 | Y13: =SUM(M13:X13) -> 10400 | Z13: 12 | AA13: =Z13*800 -> 9600 | AB13: =L13+AA13-Y13 -> 3200 | AC13: 800 | AE13: =AB13+AC13-AD13 -> 4000 | AF13: 800 | AG13: 2400 | AH13: =AE13+AF13-AG13 -> 2400 | AI13: 800 | AK13: =AH13+AI13-AJ13 -> 3200 | AL13: 800 | AN13: =AK13+AL13-AM13 -> 4000
A14: =VLOOKUP(B14,справочник!$B$2:$E$322,4,0) -> 109 | B14: =CONCATENATE(C14;D14) ->  | C14: 114 | D14: Антипова Жанна Михайловна | E14: 50:03:0070280:814 | F14: 2013-05-20 | G14: 2013-06-01 | H14: =INT(($H$325-G14)/30) -> 31 | I14: =H14*1000 -> 31000 | J14: 10000 | L14: =I14-J14-K14 -> 21000 | N14: 1000 | O14: 1000 | Y14: =SUM(M14:X14) -> 2000 | Z14: 12 | AA14: =Z14*800 -> 9600 | AB14: =L14+AA14-Y14 -> 28600 | AC14: 800 | AE14: =AB14+AC14-AD14 -> 29400 | AF14: 800 | AH14: =AE14+AF14-AG14 -> 30200 | AI14: 800 | AK14: =AH14+AI14-AJ14 -> 31000 | AL14: 800 | AN14: =AK14+AL14-AM14 -> 31800
A15: =VLOOKUP(B15,справочник!$B$2:$E$322,4,0) -> 130 | B15: =CONCATENATE(C15;D15) ->  | C15: 137 | D15: Анциферов Алексей Сергеевич | E15: 50:03:0070280:973 | F15: 2011-10-25 | G15: 2011-11-01 | H15: =INT(($H$325-G15)/30) -> 50 | I15: =H15*1000 -> 50000 | J15: =44000+1000 -> 45000 | K15: 5000 | L15: =I15-J15-K15 -> 0 | N15: 800 | R15: 3200 | U15: 8000 | Y15: =SUM(M15:X15) -> 12000 | Z15: 12 | AA15: =Z15*800 -> 9600 | AB15: =L15+AA15-Y15 -> -2400 | AC15: 800 | AE15: =AB15+AC15-AD15 -> -1600 | AF15: 800 | AH15: =AE15+AF15-AG15 -> -800 | AI15: 800 | AK15: =AH15+AI15-AJ15 -> 0 | AL15: 800 | AM15: 800 | AN15: =AK15+AL15-AM15 -> 0
A16: =VLOOKUP(B16,справочник!$B$2:$E$322,4,0) -> 7 | B16: =CONCATENATE(C16;D16) ->  | C16: 7 | D16: Артемьев Сергей Иванович | E16: 50:03:0070280:707 | F16: 2013-07-12 | G16: 2013-09-01 | H16: =INT(($H$325-G16)/30) -> 28 | I16: =H16*1000 -> 28000 | L16: =I16-J16-K16 -> 28000 | Y16: =SUM(M16:X16) -> 0 | Z16: 12 | AA16: =Z16*800 -> 9600 | AB16: =L16+AA16-Y16 -> 37600 | AC16: 800 | AE16: =SUM(AB16:AB17)+SUM(AC16:AC17)-SUM(AD16:AD17) -> 49400 | AF16: 800 | AH16: =SUM(AE16:AE17)+SUM(AF16:AF17)-SUM(AG16:AG17) -> 50200 | AI16: 800 | AK16: =SUM(AH16:AH17)+SUM(AI16:AI17)-SUM(AJ16:AJ17) -> 51000 | AL16: 800 | AN16: =SUM(AK16:AK17)+SUM(AL16:AL17)-SUM(AM16:AM17) -> 51800
A17: =VLOOKUP(B17,справочник!$B$2:$E$322,4,0) -> 7 | B17: =CONCATENATE(C17;D17) ->  | C17: 14 | D17: Артемьев Сергей Иванович | E17: 50:03:0070280:701 | F17: 2012-10-22 | G17: 2012-11-01 | H17: =INT(($H$325-G17)/30) -> 38 | I17: =H17*1000 -> 38000 | J17: 27000 | L17: =I17-J17-K17 -> 11000 | Y17: =SUM(M17:X17) -> 0 | Z17: 0 | AA17: =Z17*800 -> 0 | AB17: =L17+AA17-Y17 -> 11000 | AC17: 0 | AF17: 0 | AI17: 0 | AL17: 0
A18: =VLOOKUP(B18,справочник!$B$2:$E$322,4,0) -> 193 | B18: =CONCATENATE(C18;D18) ->  | C18: 201 | D18: Асташкин Павел Александрович(продал???) | E18: 50:03:0070280:758 | I18: =H18*1000 -> 0 | L18: =I18-J18-K18 -> 0 | Y18: =SUM(M18:X18) -> 0 | Z18: 12 | AA18: =Z18*800 -> 9600 | AB18: =L18+AA18-Y18 -> 9600 | AC18: 800 | AE18: =AB18+AC18-AD18 -> 10400 | AF18: 800 | AH18: =AE18+AF18-AG18 -> 11200 | AI18: 800 | AK18: =AH18+AI18-AJ18 -> 12000 | AL18: 800 | AN18: =AK18+AL18-AM18 -> 12800
A19: =VLOOKUP(B19,справочник!$B$2:$E$322,4,0) -> 178 | B19: =CONCATENATE(C19;D19) ->  | C19: 186 | D19: Афанасьева Злата Сергеевна | E19: 50:03:0070280:761 | F19: 2014-09-16 | G19: 2014-11-01 | H19: =INT(($H$325-G19)/30) -> 14 | I19: =H19*1000 -> 14000 | J19: 1000 | L19: =I19-J19-K19 -> 13000 | W19: 10000 | Y19: =SUM(M19:X19) -> 10000 | Z19: 12 | AA19: =Z19*800 -> 9600 | AB19: =L19+AA19-Y19 -> 12600 | AC19: 800 | AD19: 13000 | AE19: =AB19+AC19-AD19 -> 400 | AF19: 800 | AH19: =AE19+AF19-AG19 -> 1200 | AI19: 800 | AK19: =AH19+AI19-AJ19 -> 2000 | AL19: 800 | AN19: =AK19+AL19-AM19 -> 2800
A20: =VLOOKUP(B20,справочник!$B$2:$E$322,4,0) -> 119 | B20: =CONCATENATE(C20;D20) ->  | C20: 124 | D20: Афян Сасун Аркадиевич | E20: 50:03:0070280:1021 | F20: 2013-05-07 | G20: 2013-06-01 | H20: =INT(($H$325-G20)/30) -> 31 | I20: =H20*1000 -> 31000 | J20: 11000 | L20: =I20-J20-K20 -> 20000 | O20: 3000 | Y20: =SUM(M20:X20) -> 3000 | Z20: 12 | AA20: =Z20*800 -> 9600 | AB20: =L20+AA20-Y20 -> 26600 | AC20: 800 | AE20: =AB20+AC20-AD20 -> 27400 | AF20: 800 | AH20: =AE20+AF20-AG20 -> 28200 | AI20: 800 | AK20: =AH20+AI20-AJ20 -> 29000 | AL20: 800 | AN20: =AK20+AL20-AM20 -> 29800
A21: =VLOOKUP(B21,справочник!$B$2:$E$322,4,0) -> 293 | B21: =CONCATENATE(C21;D21) ->  | C21: 308 | D21: Ахромеев Андрей Владимирович | E21: 50:03:0070280:999 | F21: 2012-01-20 | G21: 2012-01-01 | H21: =INT(($H$325-G21)/30) -> 48 | I21: =H21*1000 -> 48000 | J21: =11500+24500 -> 36000 | L21: =I21-J21-K21 -> 12000 | Y21: =SUM(M21:X21) -> 0 | Z21: 12 | AA21: =Z21*800 -> 9600 | AB21: =L21+AA21-Y21 -> 21600 | AC21: 800 | AE21: =AB21+AC21-AD21 -> 22400 | AF21: 800 | AH21: =AE21+AF21-AG21 -> 23200 | AI21: 800 | AK21: =AH21+AI21-AJ21 -> 24000 | AL21: 800 | AN21: =AK21+AL21-AM21 -> 24800
A22: =VLOOKUP(B22,справочник!$B$2:$E$322,4,0) -> 191 | B22: =CONCATENATE(C22;D22) ->  | C22: 199 | D22: Бадирьян Тамара Викторовна | E22: 50:03:0070280:888 | I22: =H22*1000 -> 0 | L22: =I22-J22-K22 -> 0 | Y22: =SUM(M22:X22) -> 0 | Z22: 12 | AA22: =Z22*800 -> 9600 | AB22: =L22+AA22-Y22 -> 9600 | AC22: 800 | AE22: =AB22+AC22-AD22 -> 10400 | AF22: 800 | AH22: =AE22+AF22-AG22 -> 11200 | AI22: 800 | AK22: =AH22+AI22-AJ22 -> 12000 | AL22: 800 | AN22: =AK22+AL22-AM22 -> 12800
A23: =VLOOKUP(B23,справочник!$B$2:$E$322,4,0) -> 249 | B23: =CONCATENATE(C23;D23) ->  | C23: 260 | D23: Байбикова Рузалия Равилевна / Байбикова Руфия Равилевна | E23: 50:03:0070280:785 | F23: 2013-11-26 | G23: 2013-12-01 | H23: =INT(($H$325-G23)/30) -> 25 | I23: =H23*1000 -> 25000 | J23: =1000 -> 1000 | L23: =I23-J23-K23 -> 24000 | Y23: =SUM(M23:X23) -> 0 | Z23: 12 | AA23: =Z23*800 -> 9600 | AB23: =L23+AA23-Y23 -> 33600 | AC23: 800 | AE23: =AB23+AC23-AD23 -> 34400 | AF23: 800 | AH23: =AE23+AF23-AG23 -> 35200 | AI23: 800 | AJ23: 15000 | AK23: =AH23+AI23-AJ23 -> 21000 | AL23: 800 | AN23: =AK23+AL23-AM23 -> 21800
A24: =VLOOKUP(B24,справочник!$B$2:$E$322,4,0) -> 72 | B24: =CONCATENATE(C24;D24) ->  | C24: 78 | D24: Лещёва Ольга Владимировна | E24: 50:03:0070280:802 | F24: 2011-09-07 | G24: 2011-09-01 | H24: =INT(($H$325-G24)/30) -> 52 | I24: =H24*1000 -> 52000 | J24: =19000+1500+2500+23000 -> 46000 | L24: =I24-J24-K24 -> 6000 | Y24: =SUM(M24:X24) -> 0 | Z24: 12 | AA24: =Z24*800 -> 9600 | AB24: =L24+AA24-Y24 -> 15600 | AC24: 800 | AE24: =AB24+AC24-AD24 -> 16400 | AF24: 800 | AH24: =AE24+AF24-AG24 -> 17200 | AI24: 800 | AK24: =AH24+AI24-AJ24 -> 18000 | AL24: 800 | AN24: =AK24+AL24-AM24 -> 18800
A25: =VLOOKUP(B25,справочник!$B$2:$E$322,4,0) -> 125 | B25: =CONCATENATE(C25;D25) ->  | C25: 130 | D25: Безбородова Людмила Михайловна | E25: 50:03:0070280:812 | F25: 2014-11-05 | G25: 2014-12-01 | H25: =INT(($H$325-G25)/30) -> 13 | I25: =H25*1000 -> 13000 | J25: 8000 | L25: =I25-J25-K25 -> 5000 | R25: 3000 | U25: 3000 | W25: 3000 | Y25: =SUM(M25:X25) -> 9000 | Z25: 12 | AA25: =Z25*800 -> 9600 | AB25: =L25+AA25-Y25 -> 5600 | AC25: 800 | AE25: =AB25+AC25-AD25 -> 6400 | AF25: 800 | AH25: =AE25+AF25-AG25 -> 7200 | AI25: 800 | AK25: =AH25+AI25-AJ25 -> 8000 | AL25: 800 | AN25: =AK25+AL25-AM25 -> 8800
A26: =VLOOKUP(B26,справочник!$B$2:$E$322,4,0) -> 229 | B26: =CONCATENATE(C26;D26) ->  | C26: 238 | D26: Безменова Татьяна Игоревна | E26: 50:03:0070280:897 | F26: 2013-04-09 | G26: 2013-05-01 | H26: =INT(($H$325-G26)/30) -> 32 | I26: =H26*1000 -> 32000 | J26: 9000 | L26: =I26-J26-K26 -> 23000 | Y26: =SUM(M26:X26) -> 0 | Z26: 12 | AA26: =Z26*800 -> 9600 | AB26: =L26+AA26-Y26 -> 32600 | AC26: 800 | AE26: =AB26+AC26-AD26 -> 33400 | AF26: 800 | AH26: =AE26+AF26-AG26 -> 34200 | AI26: 800 | AK26: =AH26+AI26-AJ26 -> 35000 | AL26: 800 | AN26: =AK26+AL26-AM26 -> 35800
A27: =VLOOKUP(B27,справочник!$B$2:$E$322,4,0) -> 296 | B27: =CONCATENATE(C27;D27) ->  | C27: 311 | D27: Бекмансурова Динара Василевна | E27: 50:03:0070280:1002 | F27: 2012-04-09 | G27: 2012-04-01 | H27: =INT(($H$325-G27)/30) -> 45 | I27: =H27*1000 -> 45000 | J27: 1000 | L27: =I27-J27-K27 -> 44000 | Y27: =SUM(M27:X27) -> 0 | Z27: 12 | AA27: =Z27*800 -> 9600 | AB27: =L27+AA27-Y27 -> 53600 | AC27: 800 | AE27: =AB27+AC27-AD27 -> 54400 | AF27: 800 | AH27: =AE27+AF27-AG27 -> 55200 | AI27: 800 | AK27: =AH27+AI27-AJ27 -> 56000 | AL27: 800 | AN27: =AK27+AL27-AM27 -> 56800
A28: =VLOOKUP(B28,справочник!$B$2:$E$322,4,0) -> 281 | B28: =CONCATENATE(C28;D28) ->  | C28: 293 | D28: Белов Семён Иванович | E28: 50:03:0070280:776 | F28: 2014-05-07 | G28: 2014-06-01 | H28: =INT(($H$325-G28)/30) -> 19 | I28: =H28*1000 -> 19000 | J28: 1000 | L28: =I28-J28-K28 -> 18000 | U28: 10000 | Y28: =SUM(M28:X28) -> 10000 | Z28: 12 | AA28: =Z28*800 -> 9600 | AB28: =L28+AA28-Y28 -> 17600 | AC28: 800 | AD28: 15000 | AE28: =AB28+AC28-AD28 -> 3400 | AF28: 800 | AH28: =AE28+AF28-AG28 -> 4200 | AI28: 800 | AK28: =AH28+AI28-AJ28 -> 5000 | AL28: 800 | AN28: =AK28+AL28-AM28 -> 5800
A29: =VLOOKUP(B29,справочник!$B$2:$E$322,4,0) -> 198 | B29: =CONCATENATE(C29;D29) ->  | C29: 206 | D29: Белоглазова Людмила Ивановна | E29: 50:03:0070280:983 | F29: 2011-09-30 | G29: 2011-09-01 | H29: =INT(($H$325-G29)/30) -> 52 | I29: =H29*1000 -> 52000 | J29: =50000+1000 -> 51000 | K29: 1000 | L29: =I29-J29-K29 -> 0 | O29: 3200 | Q29: 800 | T29: 3200 | V29: 800 | W29: 1600 | Y29: =SUM(M29:X29) -> 9600 | Z29: 12 | AA29: =Z29*800 -> 9600 | AB29: =L29+AA29-Y29 -> 0 | AC29: 800 | AE29: =AB29+AC29-AD29 -> 800 | AF29: 800 | AG29: 1600 | AH29: =AE29+AF29-AG29 -> 0 | AI29: 800 | AK29: =AH29+AI29-AJ29 -> 800 | AL29: 800 | AM29: 1600 | AN29: =AK29+AL29-AM29 -> 0
A30: =VLOOKUP(B30,справочник!$B$2:$E$322,4,0) -> 52 | B30: =CONCATENATE(C30;D30) ->  | C30: 54 | D30: Бельская Светлана Александровна (Владимир) | E30: 50:03:0070280:945 | F30: 2012-04-17 | G30: 2012-04-01 | H30: =INT(($H$325-G30)/30) -> 45 | I30: =H30*1000 -> 45000 | J30: 40000 | K30: 5000 | L30: 5000 | M30: 3000 | N30: 2000 | O30: 800 | Q30: 1600 | T30: 1600 | V30: 800 | W30: 800 | Y30: =SUM(M30:X30) -> 10600 | Z30: 12 | AA30: =Z30*800 -> 9600 | AB30: =SUM(L30:L31)+SUM(AA30:AA31)-SUM(Y30:Y31) -> -1600 | AC30: 800 | AE30: =AB30+AC30-AD30 -> -800 | AF30: 800 | AH30: =AE30+AF30-AG30 -> 0 | AI30: 800 | AJ30: =800+1600 -> 2400 | AK30: =AH30+AI30-AJ30 -> -1600 | AL30: 800 | AN30: =AK30+AL30-AM30 -> -800
A31: =VLOOKUP(B31,справочник!$B$2:$E$322,4,0) -> 51 | B31: =CONCATENATE(C31;D31) ->  | C31: 53 | D31: Бельский Владимир Владимирович (Светлана) | E31: 50:03:0070280:966 | F31: 2012-04-17 | G31: 2012-04-01 | H31: =INT(($H$325-G31)/30) -> 45 | I31: =H31*1000 -> 45000 | J31: 28000 | K31: 7000 | L31: 5000 | M31: 3000 | N31: 2000 | O31: 800 | Q31: 1600 | T31: 1600 | U31: 800 | W31: 800 | Y31: =SUM(M31:X31) -> 10600 | Z31: 0 | AA31: =Z31*800 -> 0 | AC31: 0 | AE31: =AB31+AC31-AD31 -> 0 | AF31: 0 | AI31: 0 | AL31: 0
A32: =VLOOKUP(B32,справочник!$B$2:$E$322,4,0) -> 136 | B32: =CONCATENATE(C32;D32) ->  | C32: 144 | D32: Беляков Виктор Михайлович | E32: 50:03:0070280:940 | F32: 2012-10-22 | G32: 2012-11-01 | H32: =INT(($H$325-G32)/30) -> 38 | I32: =H32*1000 -> 38000 | J32: 28000 | L32: =I32-J32-K32 -> 10000 | S32: 6000 | T32: 4800 | X32: 4800 | Y32: =SUM(M32:X32) -> 15600 | Z32: 12 | AA32: =Z32*800 -> 9600 | AB32: =L32+AA32-Y32 -> 4000 | AC32: 800 | AE32: =AB32+AC32-AD32 -> 4800 | AF32: 800 | AH32: =AE32+AF32-AG32 -> 5600 | AI32: 800 | AK32: =AH32+AI32-AJ32 -> 6400 | AL32: 800 | AN32: =AK32+AL32-AM32 -> 7200
A33: =VLOOKUP(B33,справочник!$B$2:$E$322,4,0) -> 11 | B33: =CONCATENATE(C33;D33) ->  | C33: 11 | D33: Бенгя Владимир Михайлович (Диана) | E33: 50:03:0070280:704 | F33: 2012-10-22 | G33: 2012-11-01 | H33: =INT(($H$325-G33)/30) -> 38 | I33: =H33*1000 -> 38000 | J33: 26000 | L33: =I33-J33-K33 -> 12000 | Y33: =SUM(M33:X33) -> 0 | Z33: 12 | AA33: =Z33*800 -> 9600 | AB33: =L33+AA33-Y33 -> 21600 | AC33: 800 | AE33: =AB33+AC33-AD33 -> 22400 | AF33: 800 | AH33: =AE33+AF33-AG33 -> 23200 | AI33: 800 | AK33: =AH33+AI33-AJ33 -> 24000 | AL33: 800 | AN33: =AK33+AL33-AM33 -> 24800
A34: =VLOOKUP(B34,справочник!$B$2:$E$322,4,0) -> 114 | B34: =CONCATENATE(C34;D34) ->  | C34: 119 | D34: Беспаленко Зинаида Александровна | E34: 50:03:0070280:1024 | F34: 2012-12-19 | G34: 2013-01-01 | H34: =INT(($H$325-G34)/30) -> 36 | I34: =H34*1000 -> 36000 | J34: 1000 | L34: =I34-J34-K34 -> 35000 | Y34: =SUM(M34:X34) -> 0 | Z34: 12 | AA34: =Z34*800 -> 9600 | AB34: =L34+AA34-Y34 -> 44600 | AC34: 800 | AE34: =AB34+AC34-AD34 -> 45400 | AF34: 800 | AH34: =AE34+AF34-AG34 -> 46200 | AI34: 800 | AK34: =AH34+AI34-AJ34 -> 47000 | AL34: 800 | AN34: =AK34+AL34-AM34 -> 47800
A35: =VLOOKUP(B35,справочник!$B$2:$E$322,4,0) -> 151 | B35: =CONCATENATE(C35;D35) ->  | C35: 159 | D35: Бирюков Александр Сергеевич | E35: 50:03:0070280:960 | F35: 2012-07-31 | G35: 2012-08-01 | H35: =INT(($H$325-G35)/30) -> 41 | I35: =H35*1000 -> 41000 | J35: 17000 | L35: =I35-J35-K35 -> 24000 | Y35: =SUM(M35:X35) -> 0 | Z35: 12 | AA35: =Z35*800 -> 9600 | AB35: =L35+AA35-Y35 -> 33600 | AC35: 800 | AE35: =AB35+AC35-AD35 -> 34400 | AF35: 800 | AH35: =AE35+AF35-AG35 -> 35200 | AI35: 800 | AK35: =AH35+AI35-AJ35 -> 36000 | AL35: 800 | AN35: =AK35+AL35-AM35 -> 36800
A36: =VLOOKUP(B36,справочник!$B$2:$E$322,4,0) -> 142 | B36: =CONCATENATE(C36;D36) ->  | C36: 150 | D36: Блинков Анатолий Сергеевич | E36: 50:03:0070280:951 | F36: 2011-08-16 | G36: 2011-09-01 | H36: =INT(($H$325-G36)/30) -> 52 | I36: =H36*1000 -> 52000 | J36: =32000+1000 -> 33000 | K36: 19000 | L36: =I36-J36-K36 -> 0 | S36: 6400 | Y36: =SUM(M36:X36) -> 6400 | Z36: 12 | AA36: =Z36*800 -> 9600 | AB36: =L36+AA36-Y36 -> 3200 | AC36: 800 | AE36: =AB36+AC36-AD36 -> 4000 | AF36: 800 | AH36: =AE36+AF36-AG36 -> 4800 | AI36: 800 | AK36: =AH36+AI36-AJ36 -> 5600 | AL36: 800 | AN36: =AK36+AL36-AM36 -> 6400
A37: =VLOOKUP(B37,справочник!$B$2:$E$322,4,0) -> 245 | B37: =CONCATENATE(C37;D37) ->  | C37: 256 | D37: Бондарев Станислав Дмитриевич | E37: 50:03:0070280:789 | F37: 2014-10-18 | G37: 2014-11-01 | H37: =INT(($H$325-G37)/30) -> 14 | I37: =H37*1000 -> 14000 | J37: 9000 | L37: =I37-J37-K37 -> 5000 | R37: 9000 | Y37: =SUM(M37:X37) -> 9000 | Z37: 12 | AA37: =Z37*800 -> 9600 | AB37: =L37+AA37-Y37 -> 5600 | AC37: 800 | AE37: =AB37+AC37-AD37 -> 6400 | AF37: 800 | AH37: =AE37+AF37-AG37 -> 7200 | AI37: 800 | AK37: =AH37+AI37-AJ37 -> 8000 | AL37: 800 | AM37: 3500 | AN37: =AK37+AL37-AM37 -> 5300
A38: =VLOOKUP(B38,справочник!$B$2:$E$322,4,0) -> 188 | B38: =CONCATENATE(C38;D38) ->  | C38: 196 | D38: Бондаренко Владимир Иванович | E38: 50:03:0070280:1773 | F38: 2014-02-04 | G38: 2014-03-01 | H38: =INT(($H$325-G38)/30) -> 22 | I38: =H38*1000 -> 22000 | J38: 10000 | L38: =I38-J38-K38 -> 12000 | Y38: =SUM(M38:X38) -> 0 | Z38: 12 | AA38: =Z38*800 -> 9600 | AB38: =L38+AA38-Y38 -> 21600 | AC38: 800 | AE38: =SUM(AB38:AB39)+SUM(AC38:AC39)-SUM(AD38:AD39) -> 44400 | AF38: 800 | AH38: =SUM(AE38:AE39)+SUM(AF38:AF39)-SUM(AG38:AG39) -> 45200 | AI38: 800 | AK38: =SUM(AH38:AH39)+SUM(AI38:AI39)-SUM(AJ38:AJ39) -> 46000 | AL38: 800 | AN38: =SUM(AK38:AK39)+SUM(AL38:AL39)-SUM(AM38:AM39) -> 14200
A39: =VLOOKUP(B39,справочник!$B$2:$E$322,4,0) -> 188 | B39: =CONCATENATE(C39;D39) ->  | C39: 197 | D39: Бондаренко Владимир Иванович | F39: 2014-02-04 | G39: 2014-03-01 | H39: =INT(($H$325-G39)/30) -> 22 | I39: =H39*1000 -> 22000 | L39: =I39-J39-K39 -> 22000 | Y39: =SUM(M39:X39) -> 0 | Z39: 0 | AA39: =Z39*800 -> 0 | AB39: =L39+AA39-Y39 -> 22000 | AC39: 0 | AF39: 0 | AI39: 0 | AL39: 0 | AM39: 32600
A40: =VLOOKUP(B40,справочник!$B$2:$E$322,4,0) -> 219 | B40: =CONCATENATE(C40;D40) ->  | C40: 228 | D40: Бондарь Василий Дмитриевич | E40: 50:03:0070280:835 | F40: 2014-07-28 | G40: 2014-09-01 | H40: =INT(($H$325-G40)/30) -> 16 | I40: =H40*1000 -> 16000 | J40: 13000 | K40: 3000 | L40: =I40-J40-K40 -> 0 | O40: 3000 | R40: 3000 | U40: 3000 | V40: 600 | Y40: =SUM(M40:X40) -> 9600 | Z40: 12 | AA40: =Z40*800 -> 9600 | AB40: =L40+AA40-Y40 -> 0 | AC40: 800 | AE40: =AB40+AC40-AD40 -> 800 | AF40: 800 | AG40: 800 | AH40: =AE40+AF40-AG40 -> 800 | AI40: 800 | AJ40: 800 | AK40: =AH40+AI40-AJ40 -> 800 | AL40: 800 | AM40: 800 | AN40: =AK40+AL40-AM40 -> 800
A41: =VLOOKUP(B41,справочник!$B$2:$E$322,4,0) -> 223 | B41: =CONCATENATE(C41;D41) ->  | C41: 232 | D41: Борисов Олег Александрович | E41: 50:03:0070280:831 | F41: 2012-02-16 | G41: 2012-02-01 | H41: =INT(($H$325-G41)/30) -> 47 | I41: =H41*1000 -> 47000 | J41: 1000 | K41: 45000 | L41: =I41-J41-K41 -> 1000 | U41: 10000 | Y41: =SUM(M41:X41) -> 10000 | Z41: 12 | AA41: =Z41*800 -> 9600 | AB41: =L41+AA41-Y41 -> 600 | AC41: 800 | AE41: =AB41+AC41-AD41 -> 1400 | AF41: 800 | AH41: =AE41+AF41-AG41 -> 2200 | AI41: 800 | AJ41: 1500 | AK41: =AH41+AI41-AJ41 -> 1500 | AL41: 800 | AN41: =AK41+AL41-AM41 -> 2300
A42: =VLOOKUP(B42,справочник!$B$2:$E$322,4,0) -> 137 | B42: =CONCATENATE(C42;D42) ->  | C42: 145 | D42: Бранцова Татьяна Валерьевна | E42: 50:03:0070280:986 | F42: 2012-05-01 | G42: 2012-05-01 | H42: =INT(($H$325-G42)/30) -> 44 | I42: =H42*1000 -> 44000 | J42: 44000 | L42: =I42-J42-K42 -> 0 | N42: 1600 | R42: 800 | Y42: =SUM(M42:X42) -> 2400 | Z42: 12 | AA42: =Z42*800 -> 9600 | AB42: =L42+AA42-Y42 -> 7200 | AC42: 800 | AE42: =AB42+AC42-AD42 -> 8000 | AF42: 800 | AH42: =AE42+AF42-AG42 -> 8800 | AI42: 800 | AK42: =AH42+AI42-AJ42 -> 9600 | AL42: 800 | AN42: =AK42+AL42-AM42 -> 10400
A43: =VLOOKUP(B43,справочник!$B$2:$E$322,4,0) -> 105 | B43: =CONCATENATE(C43;D43) ->  | C43: 110 | D43: Брылёв Андрей Вячеславович | E43: 50:03:0070280:818 | F43: 2012-01-17 | G43: 2012-01-01 | H43: =INT(($H$325-G43)/30) -> 48 | I43: =H43*1000 -> 48000 | J43: 28000 | L43: =I43-J43-K43 -> 20000 | M43: 3000 | R43: 800 | U43: 1600 | X43: 800 | Y43: =SUM(M43:X43) -> 6200 | Z43: 12 | AA43: =Z43*800 -> 9600 | AB43: =L43+AA43-Y43 -> 23400 | AC43: 800 | AE43: =AB43+AC43-AD43 -> 24200 | AF43: 800 | AH43: =AE43+AF43-AG43 -> 25000 | AI43: 800 | AJ43: 800 | AK43: =AH43+AI43-AJ43 -> 25000 | AL43: 800 | AN43: =AK43+AL43-AM43 -> 25800
A44: =VLOOKUP(B44,справочник!$B$2:$E$322,4,0) -> 98 | B44: =CONCATENATE(C44;D44) ->  | C44: 103 | D44: Бугрова Вероника Артуровна | E44: 50:03:0070280:797 | F44: 2011-12-20 | G44: 2011-12-01 | H44: =INT(($H$325-G44)/30) -> 49 | I44: =H44*1000 -> 49000 | J44: =29000+1000 -> 30000 | L44: =I44-J44-K44 -> 19000 | T44: 4000 | Y44: =SUM(M44:X44) -> 4000 | Z44: 12 | AA44: =Z44*800 -> 9600 | AB44: =L44+AA44-Y44 -> 24600 | AC44: 800 | AE44: =AB44+AC44-AD44 -> 25400 | AF44: 800 | AH44: =AE44+AF44-AG44 -> 26200 | AI44: 800 | AK44: =AH44+AI44-AJ44 -> 27000 | AL44: 800 | AN44: =AK44+AL44-AM44 -> 27800
A45: =VLOOKUP(B45,справочник!$B$2:$E$322,4,0) -> 274 | B45: =CONCATENATE(C45;D45) ->  | C45: 287 | D45: Будаев Андрей Анатольевич | F45: 2015-01-19 | G45: 2015-02-01 | H45: =INT(($H$325-G45)/30) -> 11 | I45: =H45*1000 -> 11000 | J45: 2000 | L45: =I45-J45-K45 -> 9000 | O45: 1600 | R45: 26800 | S45: 800 | Y45: =SUM(M45:X45) -> 29200 | Z45: 12 | AA45: =Z45*800 -> 9600 | AB45: =L45+AA45-Y45 -> -10600 | AC45: 0 | AE45: =SUM(AB45:AB46)+SUM(AC45:AC46)-SUM(AD45:AD46) -> -2800 | AF45: 0 | AH45: =SUM(AE45:AE46)+SUM(AF45:AF46)-SUM(AG45:AG46) -> -2800 | AI45: 0 | AK45: =SUM(AH45:AH46)+SUM(AI45:AI46)-SUM(AJ45:AJ46) -> -2800 | AL45: 0 | AN45: =SUM(AK45:AK46)+SUM(AL45:AL46)-SUM(AM45:AM46) -> -2000
A46: =VLOOKUP(B46,справочник!$B$2:$E$322,4,0) -> 274 | B46: =CONCATENATE(C46;D46) ->  | C46: 295 | D46: Будаев Андрей Анатольевич | F46: 2015-01-19 | G46: 2015-02-01 | H46: =INT(($H$325-G46)/30) -> 11 | I46: =H46*1000 -> 11000 | L46: =I46-J46-K46 -> 11000 | U46: 1600 | V46: 800 | W46: 800 | X46: 800 | Y46: =SUM(M46:X46) -> 4000 | Z46: 0 | AA46: =Z46*800 -> 0 | AB46: =L46+AA46-Y46 -> 7000 | AC46: 800 | AF46: 800 | AG46: 800 | AI46: 800 | AJ46: 800 | AL46: 800
A47: =VLOOKUP(B47,справочник!$B$2:$E$322,4,0) -> 175 | B47: =CONCATENATE(C47;D47) ->  | C47: 183 | D47: Буланова Лилия Михайловна | E47: 50:03:0070280:921 | F47: 2014-08-14 | G47: 2014-09-01 | H47: =INT(($H$325-G47)/30) -> 16 | I47: =H47*1000 -> 16000 | L47: =I47-J47-K47 -> 16000 | Q47: 21600 | U47: 20000 | Y47: =SUM(M47:X47) -> 41600 | Z47: 12 | AA47: =Z47*800 -> 9600 | AB47: =L47+AA47-Y47 -> -16000 | AC47: 800 | AE47: =SUM(AB47:AB48)+SUM(AC47:AC48) -> 800 | AF47: 800 | AH47: =SUM(AE47:AE48)+SUM(AF47:AF48) -> 1600 | AI47: 800 | AK47: =SUM(AH47:AH48)+SUM(AI47:AI48) -> 2400 | AL47: 800 | AN47: =SUM(AK47:AK48)+SUM(AL47:AL48) -> 3200
A48: =VLOOKUP(B48,справочник!$B$2:$E$322,4,0) -> 175 | B48: =CONCATENATE(C48;D48) ->  | C48: 187 | D48: Буланова Лилия Михайловна | E48: 50:03:0070280:919 | F48: 2014-08-14 | G48: 2014-09-01 | H48: =INT(($H$325-G48)/30) -> 16 | I48: =H48*1000 -> 16000 | L48: =I48-J48-K48 -> 16000 | Y48: =SUM(M48:X48) -> 0 | Z48: 0 | AA48: =Z48*800 -> 0 | AB48: =L48+AA48-Y48 -> 16000 | AC48: 0 | AF48: 0 | AI48: 0 | AL48: 0
A49: =VLOOKUP(B49,справочник!$B$2:$E$322,4,0) -> 303 | B49: =CONCATENATE(C49;D49) ->  | C49: 318 | D49: Бурдух Юрие | E49: 50:03:0070280:1009 | F49: 2014-12-29 | G49: 2015-01-01 | H49: =INT(($H$325-G49)/30) -> 12 | I49: =H49*1000 -> 12000 | L49: =I49-J49-K49 -> 12000 | Y49: =SUM(M49:X49) -> 0 | Z49: 12 | AA49: =Z49*800 -> 9600 | AB49: =L49+AA49-Y49 -> 21600 | AC49: 800 | AE49: =SUM(AB49:AB50)+SUM(AC49:AC50)-SUM(AD49:AD50) -> 34400 | AF49: 800 | AH49: =SUM(AE49:AE50)+SUM(AF49:AF50)-SUM(AG49:AG50) -> 35200 | AI49: 800 | AK49: =SUM(AH49:AH50)+SUM(AI49:AI50)-SUM(AJ49:AJ50) -> 36000 | AL49: 800 | AN49: =SUM(AK49:AK50)+SUM(AL49:AL50)-SUM(AM49:AM50) -> 36800
A50: =VLOOKUP(B50,справочник!$B$2:$E$322,4,0) -> 303 | B50: =CONCATENATE(C50;D50) ->  | C50: 319 | D50: Бурдух Юрие | E50: 50:03:0070280:1010 | F50: 2014-12-29 | G50: 2015-01-01 | H50: =INT(($H$325-G50)/30) -> 12 | I50: =H50*1000 -> 12000 | L50: =I50-J50-K50 -> 12000 | Y50: =SUM(M50:X50) -> 0 | Z50: 0 | AA50: =Z50*800 -> 0 | AB50: =L50+AA50-Y50 -> 12000 | AC50: 0 | AF50: 0 | AI50: 0 | AL50: 0
A51: =VLOOKUP(B51,справочник!$B$2:$E$322,4,0) -> 90 | B51: =CONCATENATE(C51;D51) ->  | C51: 95 | D51: Быданцева Нина Юрьевна | E51: 50:03:0070280:825 | F51: 2011-09-09 | G51: 2011-09-01 | H51: =INT(($H$325-G51)/30) -> 52 | I51: =H51*1000 -> 52000 | J51: =36000+4000+12000 -> 52000 | L51: =I51-J51-K51 -> 0 | P51: 4800 | U51: 4800 | Y51: =SUM(M51:X51) -> 9600 | Z51: 12 | AA51: =Z51*800 -> 9600 | AB51: =L51+AA51-Y51 -> 0 | AC51: 800 | AE51: =AB51+AC51-AD51 -> 800 | AF51: 800 | AH51: =AE51+AF51-AG51 -> 1600 | AI51: 800 | AJ51: 4800 | AK51: =AH51+AI51-AJ51 -> -2400 | AL51: 800 | AN51: =AK51+AL51-AM51 -> -1600
A52: =VLOOKUP(B52,справочник!$B$2:$E$322,4,0) -> 206 | B52: =CONCATENATE(C52;D52) ->  | C52: 216 | D52: Валеев Артур Рашидович | E52: 50:03:0070280:1423 | F52: 2012-02-14 | G52: 2012-02-01 | H52: =INT(($H$325-G52)/30) -> 47 | I52: =H52*1000 -> 47000 | J52: 38000 | L52: =I52-J52-K52 -> 9000 | X52: 10000 | Y52: =SUM(M52:X52) -> 10000 | Z52: 12 | AA52: =Z52*800 -> 9600 | AB52: =L52+AA52-Y52 -> 8600 | AC52: 800 | AE52: =AB52+AC52-AD52 -> 9400 | AF52: 800 | AH52: =AE52+AF52-AG52 -> 10200 | AI52: 800 | AK52: =AH52+AI52-AJ52 -> 11000 | AL52: 800 | AN52: =AK52+AL52-AM52 -> 11800
A53: =VLOOKUP(B53,справочник!$B$2:$E$322,4,0) -> 101 | B53: =CONCATENATE(C53;D53) ->  | C53: 106 | D53: Васильев Николай Владимирович | E53: 50:03:0070280:798 | F53: 2011-09-30 | G53: 2011-09-01 | H53: =INT(($H$325-G53)/30) -> 52 | I53: =H53*1000 -> 52000 | J53: =42000+1000 -> 43000 | L53: =I53-J53-K53 -> 9000 | M53: 7000 | Y53: =SUM(M53:X53) -> 7000 | Z53: 12 | AA53: =Z53*800 -> 9600 | AB53: =L53+AA53-Y53 -> 11600 | AC53: 800 | AE53: =AB53+AC53-AD53 -> 12400 | AF53: 800 | AH53: =AE53+AF53-AG53 -> 13200 | AI53: 800 | AJ53: =2400+4800 -> 7200 | AK53: =AH53+AI53-AJ53 -> 6800 | AL53: 800 | AN53: =AK53+AL53-AM53 -> 7600
A54: =VLOOKUP(B54,справочник!$B$2:$E$322,4,0) -> 86 | B54: =CONCATENATE(C54;D54) ->  | C54: 91 | D54: Васильева Ольга Александровна | E54: 50:03:0070280:866 | F54: 2011-10-31 | G54: 2011-11-01 | H54: =INT(($H$325-G54)/30) -> 50 | I54: =H54*1000 -> 50000 | J54: =34000+13000 -> 47000 | K54: 4000 | L54: =I54-J54-K54 -> -1000 | N54: 2000 | P54: 1000 | R54: 1600 | T54: 800 | U54: 800 | W54: 2400 | Y54: =SUM(M54:X54) -> 8600 | Z54: 12 | AA54: =Z54*800 -> 9600 | AB54: =L54+AA54-Y54 -> 0 | AC54: 800 | AE54: =AB54+AC54-AD54 -> 800 | AF54: 800 | AG54: 800 | AH54: =AE54+AF54-AG54 -> 800 | AI54: 800 | AJ54: 1600 | AK54: =AH54+AI54-AJ54 -> 0 | AL54: 800 | AN54: =AK54+AL54-AM54 -> 800
A55: =VLOOKUP(B55,справочник!$B$2:$E$322,4,0) -> 43 | B55: =CONCATENATE(C55;D55) ->  | C55: 43 | D55: Васильцова Елена Владимировна | E55: 50:03:0070280:972 | F55: 2011-08-31 | G55: 2011-09-01 | H55: =INT(($H$325-G55)/30) -> 52 | I55: =H55*1000 -> 52000 | J55: =27000+2000 -> 29000 | L55: =I55-J55-K55 -> 23000 | R55: 2000 | T55: 2000 | U55: 2000 | Y55: =SUM(M55:X55) -> 6000 | Z55: 12 | AA55: =Z55*800 -> 9600 | AB55: =L55+AA55-Y55 -> 26600 | AC55: 800 | AE55: =AB55+AC55-AD55 -> 27400 | AF55: 800 | AH55: =AE55+AF55-AG55 -> 28200 | AI55: 800 | AK55: =AH55+AI55-AJ55 -> 29000 | AL55: 800 | AN55: =AK55+AL55-AM55 -> 29800
A56: =VLOOKUP(B56,справочник!$B$2:$E$322,4,0) -> 25 | B56: =CONCATENATE(C56;D56) ->  | C56: 25 | D56: Вершинина Елена Анатольевна | E56: 50:03:0070280:854 | F56: 2012-02-16 | G56: 2012-02-01 | H56: =INT(($H$325-G56)/30) -> 47 | I56: =H56*1000 -> 47000 | J56: =33000+11000 -> 44000 | K56: 3000 | L56: =I56-J56-K56 -> 0 | O56: 3000 | Q56: 3000 | R56: 800 | T56: 3000 | V56: 3000 | Y56: =SUM(M56:X56) -> 12800 | Z56: 12 | AA56: =Z56*800 -> 9600 | AB56: =L56+AA56-Y56 -> -3200 | AC56: 800 | AE56: =AB56+AC56-AD56 -> -2400 | AF56: 800 | AH56: =AE56+AF56-AG56 -> -1600 | AI56: 800 | AK56: =AH56+AI56-AJ56 -> -800 | AL56: 800 | AN56: =AK56+AL56-AM56 -> 0
A57: =VLOOKUP(B57,справочник!$B$2:$E$322,4,0) -> 138 | B57: =CONCATENATE(C57;D57) ->  | C57: 146 | D57: Виноградова Наталья Дмитриевна (Николай) | E57: 50:03:0070280:987 | F57: 2011-08-29 | G57: 2011-08-01 | H57: =INT(($H$325-G57)/30) -> 53 | I57: =H57*1000 -> 53000 | J57: =53000 -> 53000 | L57: =I57-J57-K57 -> 0 | N57: 3000 | R57: 2900 | W57: 5000 | Y57: =SUM(M57:X57) -> 10900 | Z57: 12 | AA57: =Z57*800 -> 9600 | AB57: =L57+AA57-Y57 -> -1300 | AC57: 800 | AE57: =AB57+AC57-AD57 -> -500 | AF57: 800 | AH57: =AE57+AF57-AG57 -> 300 | AI57: 800 | AK57: =AH57+AI57-AJ57 -> 1100 | AL57: 800 | AN57: =AK57+AL57-AM57 -> 1900
A58: =VLOOKUP(B58,справочник!$B$2:$E$322,4,0) -> 228 | B58: =CONCATENATE(C58;D58) ->  | C58: 237 | D58: Виртилецкий Денис Вячеславович | E58: 50:03:0070280:898 | F58: 2014-03-05 | G58: 2014-04-01 | H58: =INT(($H$325-G58)/30) -> 21 | I58: =H58*1000 -> 21000 | L58: =I58-J58-K58 -> 21000 | S58: 25800 | Y58: =SUM(M58:X58) -> 25800 | Z58: 12 | AA58: =Z58*800 -> 9600 | AB58: =L58+AA58-Y58 -> 4800 | AC58: 800 | AE58: =AB58+AC58-AD58 -> 5600 | AF58: 800 | AH58: =AE58+AF58-AG58 -> 6400 | AI58: 800 | AK58: =AH58+AI58-AJ58 -> 7200 | AL58: 800 | AN58: =AK58+AL58-AM58 -> 8000
A59: =VLOOKUP(B59,справочник!$B$2:$E$322,4,0) -> 37 | B59: =CONCATENATE(C59;D59) ->  | C59: 37 | D59: Водянова Ольга Александровна | E59: 50:03:0070280:907 | F59: 2011-09-09 | G59: 2011-09-01 | H59: =INT(($H$325-G59)/30) -> 52 | I59: =H59*1000 -> 52000 | J59: =48000+4000 -> 52000 | L59: =I59-J59-K59 -> 0 | S59: 5600 | U59: 4000 | Y59: =SUM(M59:X59) -> 9600 | Z59: 12 | AA59: =Z59*800 -> 9600 | AB59: =L59+AA59-Y59 -> 0 | AC59: 800 | AD59: 9600 | AE59: =AB59+AC59-AD59 -> -8800 | AF59: 800 | AH59: =AE59+AF59-AG59 -> -8000 | AI59: 800 | AK59: =AH59+AI59-AJ59 -> -7200 | AL59: 800 | AN59: =AK59+AL59-AM59 -> -6400
A60: =VLOOKUP(B60,справочник!$B$2:$E$322,4,0) -> 126 | B60: =CONCATENATE(C60;D60) ->  | C60: 131 | D60: Волгушев Дмитрий Геннадиевич | E60: 50:03:0070280:813 | F60: 2012-10-01 | G60: 2012-12-01 | H60: =INT(($H$325-G60)/30) -> 37 | I60: =H60*1000 -> 37000 | J60: =24000 -> 24000 | K60: 13000 | L60: =I60-J60-K60 -> 0 | O60: 2400 | Y60: =SUM(M60:X60) -> 2400 | Z60: 12 | AA60: =Z60*800 -> 9600 | AB60: =L60+AA60-Y60 -> 7200 | AC60: 800 | AE60: =AB60+AC60-AD60 -> 8000 | AF60: 800 | AH60: =AE60+AF60-AG60 -> 8800 | AI60: 800 | AJ60: 8800 | AK60: =AH60+AI60-AJ60 -> 800 | AL60: 800 | AN60: =AK60+AL60-AM60 -> 1600
A61: =VLOOKUP(B61,справочник!$B$2:$E$322,4,0) -> 58 | B61: =CONCATENATE(C61;D61) ->  | C61: 60 | D61: Володина Инна Александровна | E61: 50:03:0070280:961 | F61: 2013-01-29 | G61: 2013-02-01 | H61: =INT(($H$325-G61)/30) -> 35 | I61: =H61*1000 -> 35000 | J61: =31000 -> 31000 | L61: =I61-J61-K61 -> 4000 | O61: 2400 | R61: 5600 | Y61: =SUM(M61:X61) -> 8000 | Z61: 12 | AA61: =Z61*800 -> 9600 | AB61: =L61+AA61-Y61 -> 5600 | AC61: 800 | AD61: 8000 | AE61: =AB61+AC61-AD61 -> -1600 | AF61: 800 | AH61: =AE61+AF61-AG61 -> -800 | AI61: 800 | AK61: =AH61+AI61-AJ61 -> 0 | AL61: 800 | AN61: =AK61+AL61-AM61 -> 800
A62: =VLOOKUP(B62,справочник!$B$2:$E$322,4,0) -> 117 | B62: =CONCATENATE(C62;D62) ->  | C62: 122 | D62: Вольский Андрей Юрьевич | E62: 50:03:0070280:1019 | F62: 2013-05-13 | G62: 2013-06-01 | H62: =INT(($H$325-G62)/30) -> 31 | I62: =H62*1000 -> 31000 | J62: =12000 -> 12000 | L62: =I62-J62-K62 -> 19000 | Y62: =SUM(M62:X62) -> 0 | Z62: 12 | AA62: =Z62*800 -> 9600 | AB62: =L62+AA62-Y62 -> 28600 | AC62: 800 | AE62: =AB62+AC62-AD62 -> 29400 | AF62: 800 | AH62: =AE62+AF62-AG62 -> 30200 | AI62: 800 | AK62: =AH62+AI62-AJ62 -> 31000 | AL62: 800 | AN62: =AK62+AL62-AM62 -> 31800
A63: =VLOOKUP(B63,справочник!$B$2:$E$322,4,0) -> 61 | B63: =CONCATENATE(C63;D63) ->  | C63: 63 | D63: Высоких Антон Маркович | E63: 50:03:0070280:932 | F63: 2012-01-13 | G63: 2012-01-01 | H63: =INT(($H$325-G63)/30) -> 48 | I63: =H63*1000 -> 48000 | J63: =27000 -> 27000 | L63: =I63-J63-K63 -> 21000 | Y63: =SUM(M63:X63) -> 0 | Z63: 12 | AA63: =Z63*800 -> 9600 | AB63: =L63+AA63-Y63 -> 30600 | AC63: 800 | AE63: =AB63+AC63-AD63 -> 31400 | AF63: 800 | AH63: =AE63+AF63-AG63 -> 32200 | AI63: 800 | AK63: =AH63+AI63-AJ63 -> 33000 | AL63: 800 | AN63: =AK63+AL63-AM63 -> 33800
A64: =VLOOKUP(B64,справочник!$B$2:$E$322,4,0) -> 294 | B64: =CONCATENATE(C64;D64) ->  | C64: 309 | D64: Гайкова (Дьякова) Мария Викторовна | E64: 50:03:0070280:1000 | F64: 2012-02-14 | G64: 2012-02-01 | H64: =INT(($H$325-G64)/30) -> 47 | I64: =H64*1000 -> 47000 | J64: 47000 | L64: =I64-J64-K64 -> 0 | M64: 9600 | Y64: =SUM(M64:X64) -> 9600 | Z64: 12 | AA64: =Z64*800 -> 9600 | AB64: =L64+AA64-Y64 -> 0 | AC64: 800 | AE64: =AB64+AC64-AD64 -> 800 | AF64: 800 | AG64: 9600 | AH64: =AE64+AF64-AG64 -> -8000 | AI64: 800 | AK64: =AH64+AI64-AJ64 -> -7200 | AL64: 800 | AN64: =AK64+AL64-AM64 -> -6400
A65: =VLOOKUP(B65,справочник!$B$2:$E$322,4,0) -> 286 | B65: =CONCATENATE(C65;D65) ->  | C65: 298 | D65: Ганин Александр Борисович | E65: 50:03:0070280:781 | F65: 2014-06-01 | G65: 2014-06-01 | H65: =INT(($H$325-G65)/30) -> 19 | I65: =H65*1000 -> 19000 | J65: 19000 | L65: =I65-J65-K65 -> 0 | N65: 8000 | R65: 4000 | S65: 3000 | X65: 6000 | Y65: =SUM(M65:X65) -> 21000 | Z65: 12 | AA65: =Z65*800 -> 9600 | AB65: =L65+AA65-Y65 -> -11400 | AC65: 800 | AE65: =AB65+AC65-AD65 -> -10600 | AF65: 800 | AH65: =AE65+AF65-AG65 -> -9800 | AI65: 800 | AK65: =AH65+AI65-AJ65 -> -9000 | AL65: 800 | AN65: =AK65+AL65-AM65 -> -8200
A66: =VLOOKUP(B66,справочник!$B$2:$E$322,4,0) -> 64 | B66: =CONCATENATE(C66;D66) ->  | C66: 66 | D66: Горбунов Владимир Александрович | E66: 50:03:0070280:935 | F66: 2011-08-17 | G66: 2011-08-01 | H66: =INT(($H$325-G66)/30) -> 53 | I66: =H66*1000 -> 53000 | J66: =1000+45000 -> 46000 | L66: =I66-J66-K66 -> 7000 | M66: 3000 | O66: 1600 | R66: 1600 | S66: 4000 | U66: 800 | V66: 800 | W66: 800 | X66: =800+800 -> 1600 | Y66: =SUM(M66:X66) -> 14200 | Z66: 12 | AA66: =Z66*800 -> 9600 | AB66: =L66+AA66-Y66 -> 2400 | AC66: 800 | AD66: 800 | AE66: =AB66+AC66-AD66 -> 2400 | AF66: 800 | AG66: 800 | AH66: =AE66+AF66-AG66 -> 2400 | AI66: 800 | AK66: =AH66+AI66-AJ66 -> 3200 | AL66: 800 | AN66: =AK66+AL66-AM66 -> 4000
A67: =VLOOKUP(B67,справочник!$B$2:$E$322,4,0) -> 94 | B67: =CONCATENATE(C67;D67) ->  | C67: 99 | D67: Горбунов Максим Николаевич | E67: 50:03:0070280:860 | F67: 2011-08-19 | G67: 2011-08-01 | H67: =INT(($H$325-G67)/30) -> 53 | I67: =H67*1000 -> 53000 | J67: =42000+5000 -> 47000 | L67: =I67-J67-K67 -> 6000 | Y67: =SUM(M67:X67) -> 0 | Z67: 12 | AA67: =Z67*800 -> 9600 | AB67: =L67+AA67-Y67 -> 15600 | AC67: 800 | AE67: =AB67+AC67-AD67 -> 16400 | AF67: 800 | AH67: =AE67+AF67-AG67 -> 17200 | AI67: 800 | AK67: =AH67+AI67-AJ67 -> 18000 | AL67: 800 | AN67: =AK67+AL67-AM67 -> 18800
A68: =VLOOKUP(B68,справочник!$B$2:$E$322,4,0) -> 39 | B68: =CONCATENATE(C68;D68) ->  | C68: 39 | D68: Гордейчик Игорь Борисович | E68: 50:03:0070280:909 | F68: 2011-06-04 | G68: 2011-06-01 | H68: =INT(($H$325-G68)/30) -> 55 | I68: =H68*1000 -> 55000 | J68: =1000+42000 -> 43000 | L68: =I68-J68-K68 -> 12000 | U68: 9600 | Y68: =SUM(M68:X68) -> 9600 | Z68: 12 | AA68: =Z68*800 -> 9600 | AB68: =L68+AA68-Y68 -> 12000 | AC68: 800 | AE68: =AB68+AC68-AD68 -> 12800 | AF68: 800 | AH68: =AE68+AF68-AG68 -> 13600 | AI68: 800 | AK68: =AH68+AI68-AJ68 -> 14400 | AL68: 800 | AN68: =AK68+AL68-AM68 -> 15200
A69: =VLOOKUP(B69,справочник!$B$2:$E$322,4,0) -> 276 | B69: =CONCATENATE(C69;D69) ->  | C69: 289 | D69: Горянов Михаил Андреевич | E69: 50:03:0070280:780 | F69: 2011-12-13 | G69: 2011-12-01 | H69: =INT(($H$325-G69)/30) -> 49 | I69: =H69*1000 -> 49000 | J69: =1000+36000 -> 37000 | L69: =I69-J69-K69 -> 12000 | R69: 21600 | Y69: =SUM(M69:X69) -> 21600 | Z69: 12 | AA69: =Z69*800 -> 9600 | AB69: =L69+AA69-Y69 -> 0 | AC69: 800 | AE69: =AB69+AC69-AD69 -> 800 | AF69: 800 | AH69: =AE69+AF69-AG69 -> 1600 | AI69: 800 | AK69: =AH69+AI69-AJ69 -> 2400 | AL69: 800 | AN69: =AK69+AL69-AM69 -> 3200
A70: =VLOOKUP(B70,справочник!$B$2:$E$322,4,0) -> 148 | B70: =CONCATENATE(C70;D70) ->  | C70: 156 | D70: Горячев Дмитрий Николаевич | E70: 50:03:0070280:957 | F70: 2012-04-09 | G70: 2012-04-01 | H70: =INT(($H$325-G70)/30) -> 45 | I70: =H70*1000 -> 45000 | J70: =12000 -> 12000 | L70: =I70-J70-K70 -> 33000 | N70: 1800 | O70: 1800 | P70: 1800 | Y70: =SUM(M70:X70) -> 5400 | Z70: 12 | AA70: =Z70*800 -> 9600 | AB70: =L70+AA70-Y70 -> 37200 | AC70: 800 | AE70: =AB70+AC70-AD70 -> 38000 | AF70: 800 | AH70: =AE70+AF70-AG70 -> 38800 | AI70: 800 | AK70: =AH70+AI70-AJ70 -> 39600 | AL70: 800 | AN70: =AK70+AL70-AM70 -> 40400
A71: =VLOOKUP(B71,справочник!$B$2:$E$322,4,0) -> 308 | B71: =CONCATENATE(C71;D71) ->  | C71: 323 | D71: Губарева Татьяна Григорьевна | E71: 50:03:0070280:1017 | F71: 2015-01-21 | G71: 2015-02-01 | H71: =INT(($H$325-G71)/30) -> 11 | I71: =H71*1000 -> 11000 | J71: 3000 | L71: =I71-J71-K71 -> 8000 | S71: 4800 | Y71: =SUM(M71:X71) -> 4800 | Z71: 12 | AA71: =Z71*800 -> 9600 | AB71: =L71+AA71-Y71 -> 12800 | AC71: 800 | AE71: =AB71+AC71-AD71 -> 13600 | AF71: 800 | AH71: =AE71+AF71-AG71 -> 14400 | AI71: 800 | AJ71: 15000 | AK71: =AH71+AI71-AJ71 -> 200 | AL71: 800 | AN71: =AK71+AL71-AM71 -> 1000
A72: =VLOOKUP(B72,справочник!$B$2:$E$322,4,0) -> 318 | B72: =CONCATENATE(C72;D72) ->  | C72: 71-72 | D72: Гусева Светлана Григорьевна | E72: 50:03:0070280:753 | F72: 2011-05-31 | G72: 2011-07-01 | H72: =INT(($H$325-G72)/30) -> 54 | I72: =H72*1000*2 -> 108000 | J72: =2000+102000 -> 104000 | K72: 4000 | L72: =I72-J72-K72 -> 0 | N72: 4800 | P72: 4800 | S72: 4800 | V72: 4800 | Y72: =SUM(M72:X72) -> 19200 | Z72: 12 | AA72: =Z72*800 -> 9600 | AB72: =L72+AA72-Y72 -> -9600 | AC72: 800 | AD72: 4800 | AE72: =AB72+AC72-AD72 -> -13600 | AF72: 800 | AH72: =AE72+AF72-AG72 -> -12800 | AI72: 800 | AK72: =AH72+AI72-AJ72 -> -12000 | AL72: 800 | AM72: 4800 | AN72: =AK72+AL72-AM72 -> -16000
A73: =VLOOKUP(B73,справочник!$B$2:$E$322,4,0) -> 236 | B73: =CONCATENATE(C73;D73) ->  | C73: 245 | D73: Давыдова Анна Сергеевна | E73: 50:03:0070280:875 | F73: 2012-02-06 | G73: 2012-02-01 | H73: =INT(($H$325-G73)/30) -> 47 | I73: =H73*1000 -> 47000 | J73: =18000+11000 -> 29000 | L73: =I73-J73-K73 -> 18000 | Q73: 25000 | V73: 2600 | Y73: =SUM(M73:X73) -> 27600 | Z73: 12 | AA73: =Z73*800 -> 9600 | AB73: =L73+AA73-Y73 -> 0 | AC73: 800 | AE73: =AB73+AC73-AD73 -> 800 | AF73: 800 | AH73: =AE73+AF73-AG73 -> 1600 | AI73: 800 | AK73: =AH73+AI73-AJ73 -> 2400 | AL73: 800 | AM73: 4800 | AN73: =AK73+AL73-AM73 -> -1600
A74: =VLOOKUP(B74,справочник!$B$2:$E$322,4,0) -> 226 | B74: =CONCATENATE(C74;D74) ->  | C74: 235 | D74: Данильянц Юрий Константинович | E74: 50:03:0070280:900 | F74: 2014-04-10 | G74: 2014-05-01 | H74: =INT(($H$325-G74)/30) -> 20 | I74: =H74*1000 -> 20000 | L74: =I74-J74-K74 -> 20000 | U74: 4000 | Y74: =SUM(M74:X74) -> 4000 | Z74: 12 | AA74: =Z74*800 -> 9600 | AB74: =L74+AA74-Y74 -> 25600 | AC74: 800 | AE74: =AB74+AC74-AD74 -> 26400 | AF74: 800 | AG74: 2400 | AH74: =AE74+AF74-AG74 -> 24800 | AI74: 800 | AJ74: 2000 | AK74: =AH74+AI74-AJ74 -> 23600 | AL74: 800 | AM74: 5000 | AN74: =AK74+AL74-AM74 -> 19400
A75: =VLOOKUP(B75,справочник!$B$2:$E$322,4,0) -> 285 | B75: =CONCATENATE(C75;D75) ->  | C75: 297 | D75: Даточный Алексей Валерьевич | E75: 50:03:0070280:782 | I75: 19000 | J75: 19000 | L75: =I75-J75-K75 -> 0 | N75: 8000 | R75: 4000 | X75: 6000 | Y75: =SUM(M75:X75) -> 18000 | Z75: 12 | AA75: =Z75*800 -> 9600 | AB75: =L75+AA75-Y75 -> -8400 | AC75: 800 | AE75: =AB75+AC75-AD75 -> -7600 | AF75: 800 | AH75: =AE75+AF75-AG75 -> -6800 | AI75: 800 | AK75: =AH75+AI75-AJ75 -> -6000 | AL75: 800 | AN75: =AK75+AL75-AM75 -> -5200
A76: =VLOOKUP(B76,справочник!$B$2:$E$322,4,0) -> 24 | B76: =CONCATENATE(C76;D76) ->  | C76: 24 | D76: Двойрина Юлия Владимировна | E76: 50:03:0070280:746 | F76: 2012-08-20 | G76: 2012-09-01 | H76: =INT(($H$325-G76)/30) -> 40 | I76: =H76*1000 -> 40000 | J76: 30000 | L76: =I76-J76-K76 -> 10000 | Y76: =SUM(M76:X76) -> 0 | Z76: 12 | AA76: =Z76*800 -> 9600 | AB76: =L76+AA76-Y76 -> 19600 | AC76: 800 | AE76: =AB76+AC76-AD76 -> 20400 | AF76: 800 | AH76: =AE76+AF76-AG76 -> 21200 | AI76: 800 | AK76: =AH76+AI76-AJ76 -> 22000 | AL76: 800 | AN76: =AK76+AL76-AM76 -> 22800
A77: =VLOOKUP(B77,справочник!$B$2:$E$322,4,0) -> 50 | B77: =CONCATENATE(C77;D77) ->  | C77: 50 | D77: Денисов Дмитрий Алексеевич | E77: 50:03:0070280:969 | F77: 2011-09-07 | G77: 2011-09-01 | H77: =INT(($H$325-G77)/30) -> 52 | I77: =H77*1000 -> 52000 | J77: =1000+41000 -> 42000 | L77: =I77-J77-K77 -> 10000 | O77: 12000 | S77: 3200 | Y77: =SUM(M77:X77) -> 15200 | Z77: 12 | AA77: =Z77*800 -> 9600 | AB77: =L77+AA77-Y77 -> 4400 | AC77: 800 | AE77: =AB77+AC77-AD77 -> 5200 | AF77: 800 | AH77: =AE77+AF77-AG77 -> 6000 | AI77: 800 | AK77: =AH77+AI77-AJ77 -> 6800 | AL77: 800 | AN77: =AK77+AL77-AM77 -> 7600
A78: =VLOOKUP(B78,['file://SERVER/clipart_old/ALEX_DIS_1/Doks/Участок/ПРАВЛЕНИЕ_2017/членские взносы апрель2017 (1).xlsx']справочник!$B$2:$E$322,4,0) -> 122 | B78: =CONCATENATE(C78;D78) -> 127Денисов Сергей Александрович | C78: 127 | D78: Денисов Сергей Александрович | E78: 50:03:0070280:807 | F78: 2012-01-30 | G78: 2012-02-01 | H78: =INT(($H$325-G78)/30) -> 47 | I78: =H78*1000 -> 47000 | J78: =37000+5000 -> 42000 | K78: 5000 | L78: =I78-J78-K78 -> 0 | N78: 2000 | P78: 2000 | U78: 3200 | X78: 2400 | Y78: =SUM(M78:X78) -> 9600 | Z78: 12 | AA78: =Z78*800 -> 9600 | AB78: =L78+AA78-Y78 -> 0 | AC78: 800 | AE78: =AB78+AC78-AD78 -> 800 | AF78: 800 | AG78: 1600 | AH78: =AE78+AF78-AG78 -> 0 | AI78: 800 | AK78: =AH78+AI78-AJ78 -> 800 | AL78: 800 | AN78: =AK78+AL78-AM78 -> 1600
A79: =VLOOKUP(B79,справочник!$B$2:$E$322,4,0) -> 301 | B79: =CONCATENATE(C79;D79) ->  | C79: 316 | D79: Десюкова Марина Александровна | E79: 50:03:0070280:1007 | F79: 2014-11-26 | G79: 2014-12-01 | H79: =INT(($H$325-G79)/30) -> 13 | I79: =H79*1000 -> 13000 | J79: 1000 | L79: =I79-J79-K79 -> 12000 | Y79: =SUM(M79:X79) -> 0 | Z79: 12 | AA79: =Z79*800 -> 9600 | AB79: =L79+AA79-Y79 -> 21600 | AC79: 800 | AE79: =AB79+AC79-AD79 -> 22400 | AF79: 800 | AH79: =AE79+AF79-AG79 -> 23200 | AI79: 800 | AK79: =AH79+AI79-AJ79 -> 24000 | AL79: 800 | AM79: 25000 | AN79: =AK79+AL79-AM79 -> -200
A80: =VLOOKUP(B80,справочник!$B$2:$E$322,4,0) -> 18 | B80: =CONCATENATE(C80;D80) ->  | C80: 18 | D80: Дидушко Денис Васильевич (Василий) | E80: 50:03:0070280:822 | F80: 2013-06-04 | G80: 2013-08-01 | H80: =INT(($H$325-G80)/30) -> 29 | I80: =H80*1000 -> 29000 | J80: 29000 | L80: =I80-J80-K80 -> 0 | Y80: =SUM(M80:X80) -> 0 | Z80: 12 | AA80: =Z80*800 -> 9600 | AB80: =L80+AA80-Y80 -> 9600 | AC80: 800 | AE80: =AB80+AC80-AD80 -> 10400 | AF80: 800 | AH80: =AE80+AF80-AG80 -> 11200 | AI80: 800 | AK80: =AH80+AI80-AJ80 -> 12000 | AL80: 800 | AM80: 14400 | AN80: =AK80+AL80-AM80 -> -1600
A81: =VLOOKUP(B81,справочник!$B$2:$E$322,4,0) -> 155 | B81: =CONCATENATE(C81;D81) ->  | C81: 163 | D81: Дорошенко Владимир Алексеевич | E81: 50:03:0070280:985 | F81: 2013-08-05 | G81: 2013-09-01 | H81: =INT(($H$325-G81)/30) -> 28 | I81: =H81*1000 -> 28000 | J81: 28000 | K81: 2000 | L81: =I81-J81-K81 -> -2000 | N81: 600 | O81: 1600 | Q81: 1600 | S81: 1600 | V81: 1600 | W81: 1600 | Y81: =SUM(M81:X81) -> 8600 | Z81: 12 | AA81: =Z81*800 -> 9600 | AB81: =L81+AA81-Y81 -> -1000 | AC81: 800 | AD81: 1600 | AE81: =AB81+AC81-AD81 -> -1800 | AF81: 800 | AH81: =AE81+AF81-AG81 -> -1000 | AI81: 800 | AK81: =AH81+AI81-AJ81 -> -200 | AL81: 800 | AN81: =AK81+AL81-AM81 -> 600
A82: =VLOOKUP(B82,справочник!$B$2:$E$322,4,0) -> 44 | B82: =CONCATENATE(C82;D82) ->  | C82: 44 | D82: Дубов Александр Сергеевич | E82: 50:03:0070280:802 | F82: 2012-07-10 | G82: 2012-07-01 | H82: =INT(($H$325-G82)/30) -> 42 | I82: =H82*1000 -> 42000 | J82: =21000+6000 -> 27000 | K82: 13000 | L82: =I82-J82-K82 -> 2000 | Y82: =SUM(M82:X82) -> 0 | Z82: 12 | AA82: =Z82*800 -> 9600 | AB82: =L82+AA82-Y82 -> 11600 | AC82: 800 | AE82: =AB82+AC82-AD82 -> 12400 | AF82: 800 | AH82: =AE82+AF82-AG82 -> 13200 | AI82: 800 | AJ82: 7200 | AK82: =AH82+AI82-AJ82 -> 6800 | AL82: 800 | AN82: =AK82+AL82-AM82 -> 7600
A83: =VLOOKUP(B83,справочник!$B$2:$E$322,4,0) -> 132 | B83: =CONCATENATE(C83;D83) ->  | C83: 139 | D83: Евглевская Ольга Борисовна | E83: 50:03:0070280:975 | F83: 2011-05-27 | G83: 2011-06-01 | H83: =INT(($H$325-G83)/30) -> 55 | I83: =H83*1000 -> 55000 | J83: =41000+1000 -> 42000 | L83: =I83-J83-K83 -> 13000 | Y83: =SUM(M83:X83) -> 0 | Z83: 12 | AA83: =Z83*800 -> 9600 | AB83: =L83+AA83-Y83 -> 22600 | AC83: 800 | AE83: =AB83+AC83-AD83 -> 23400 | AF83: 800 | AH83: =AE83+AF83-AG83 -> 24200 | AI83: 800 | AK83: =AH83+AI83-AJ83 -> 25000 | AL83: 800 | AN83: =AK83+AL83-AM83 -> 25800
A84: =VLOOKUP(B84,справочник!$B$2:$E$322,4,0) -> 159 | B84: =CONCATENATE(C84;D84) ->  | C84: 167 | D84: Евсеев Александр Сергеевич | E84: 50:03:0070280:925 | F84: 2012-05-15 | G84: 2012-05-01 | H84: =INT(($H$325-G84)/30) -> 44 | I84: =H84*1000 -> 44000 | J84: =32000 -> 32000 | L84: =I84-J84-K84 -> 12000 | N84: 12000 | S84: 5600 | X84: 4000 | Y84: =SUM(M84:X84) -> 21600 | Z84: 12 | AA84: =Z84*800 -> 9600 | AB84: =L84+AA84-Y84 -> 0 | AC84: 800 | AE84: =AB84+AC84-AD84 -> 800 | AF84: 800 | AH84: =AE84+AF84-AG84 -> 1600 | AI84: 800 | AK84: =AH84+AI84-AJ84 -> 2400 | AL84: 800 | AN84: =AK84+AL84-AM84 -> 3200
A85: =VLOOKUP(B85,справочник!$B$2:$E$322,4,0) -> 181 | B85: =CONCATENATE(C85;D85) ->  | C85: 189 | D85: Елисеев Сергей Вячеславович | E85: 50:03:0070280:760 | F85: 2014-04-05 | G85: 2014-05-01 | H85: =INT(($H$325-G85)/30) -> 20 | I85: =H85*1000 -> 20000 | J85: 17000 | L85: =I85-J85-K85 -> 3000 | Q85: 7000 | Y85: =SUM(M85:X85) -> 7000 | Z85: 12 | AA85: =Z85*800 -> 9600 | AB85: =L85+AA85-Y85 -> 5600 | AC85: 800 | AE85: =AB85+AC85-AD85 -> 6400 | AF85: 800 | AH85: =AE85+AF85-AG85 -> 7200 | AI85: 800 | AK85: =AH85+AI85-AJ85 -> 8000 | AL85: 800 | AN85: =AK85+AL85-AM85 -> 8800
A86: =VLOOKUP(B86,справочник!$B$2:$E$322,4,0) -> 284 | B86: =CONCATENATE(C86;D86) ->  | C86: 296 | D86: Епанчинцева Людмила Филипповна | E86: 50:03:0070280:783 | F86: 2013-10-02 | G86: 2013-11-01 | H86: =INT(($H$325-G86)/30) -> 26 | I86: =H86*1000 -> 26000 | J86: =12000 -> 12000 | K86: 5000 | L86: =I86-J86-K86 -> 9000 | O86: 6000 | S86: 2400 | V86: 3200 | Y86: =SUM(M86:X86) -> 11600 | Z86: 12 | AA86: =Z86*800 -> 9600 | AB86: =L86+AA86-Y86 -> 7000 | AC86: 800 | AE86: =AB86+AC86-AD86 -> 7800 | AF86: 800 | AH86: =AE86+AF86-AG86 -> 8600 | AI86: 800 | AK86: =AH86+AI86-AJ86 -> 9400 | AL86: 800 | AM86: 5000 | AN86: =AK86+AL86-AM86 -> 5200
A87: =VLOOKUP(B87,справочник!$B$2:$E$322,4,0) -> 264 | B87: =CONCATENATE(C87;D87) ->  | C87: 277 | D87: Еременко Виктор Александрович (Валентина) | E87: 50:03:0070280:726 | F87: 2012-07-03 | G87: 2012-07-01 | H87: =INT(($H$325-G87)/30) -> 42 | I87: =H87*1000 -> 42000 | J87: =38000 -> 38000 | L87: =I87-J87-K87 -> 4000 | M87: 4000 | O87: 2000 | S87: 6000 | Y87: =SUM(M87:X87) -> 12000 | Z87: 12 | AA87: =Z87*800 -> 9600 | AB87: =L87+AA87-Y87 -> 1600 | AC87: 800 | AE87: =AB87+AC87-AD87 -> 2400 | AF87: 800 | AG87: 2400 | AH87: =AE87+AF87-AG87 -> 800 | AI87: 800 | AJ87: 2400 | AK87: =AH87+AI87-AJ87 -> -800 | AL87: 800 | AN87: =AK87+AL87-AM87 -> 0
A88: =VLOOKUP(B88,справочник!$B$2:$E$322,4,0) -> 32 | B88: =CONCATENATE(C88;D88) ->  | C88: 32 | D88: Ермакова Татьяна Викторовна | E88: 50:03:0070280:902 | F88: 2011-06-01 | G88: 2011-06-01 | H88: =INT(($H$325-G88)/30) -> 55 | I88: =H88*1000 -> 55000 | J88: =7000+48000 -> 55000 | L88: =I88-J88-K88 -> 0 | M88: 2400 | R88: 2400 | S88: 4800 | Y88: =SUM(M88:X88) -> 9600 | Z88: 12 | AA88: =Z88*800 -> 9600 | AB88: =L88+AA88-Y88 -> 0 | AC88: 800 | AE88: =AB88+AC88-AD88 -> 800 | AF88: 800 | AH88: =AE88+AF88-AG88 -> 1600 | AI88: 800 | AJ88: 2400 | AK88: =AH88+AI88-AJ88 -> 0 | AL88: 800 | AN88: =AK88+AL88-AM88 -> 800
A89: =VLOOKUP(B89,справочник!$B$2:$E$322,4,0) -> 49 | B89: =CONCATENATE(C89;D89) ->  | C89: 49 | D89: Ермолаева Виктория Александровна | E89: 50:03:0070280:968 | F89: 2011-07-05 | G89: 2011-08-01 | H89: =INT(($H$325-G89)/30) -> 53 | I89: =H89*1000 -> 53000 | J89: =42000 -> 42000 | L89: =I89-J89-K89 -> 11000 | Q89: 4800 | R89: 10200 | X89: 4800 | Y89: =SUM(M89:X89) -> 19800 | Z89: 12 | AA89: =Z89*800 -> 9600 | AB89: =L89+AA89-Y89 -> 800 | AC89: 800 | AE89: =AB89+AC89-AD89 -> 1600 | AF89: 800 | AG89: 2400 | AH89: =AE89+AF89-AG89 -> 0 | AI89: 800 | AK89: =AH89+AI89-AJ89 -> 800 | AL89: 800 | AM89: =2000+400 -> 2400 | AN89: =AK89+AL89-AM89 -> -800
A90: =VLOOKUP(B90,справочник!$B$2:$E$322,4,0) -> 234 | B90: =CONCATENATE(C90;D90) ->  | C90: 243 | D90: Ермошина Татьяна Евгеньевна (Владимир) | E90: 50:03:0070280:1428 | F90: 2012-12-05 | G90: 2013-04-01 | H90: 3 | I90: =H90*1000 -> 3000 | K90: 3000 | L90: =I90-J90-K90 -> 0 | N90: 4800 | T90: 2500 | U90: 2300 | Y90: =SUM(M90:X90) -> 9600 | Z90: 12 | AA90: =Z90*800 -> 9600 | AB90: =L90+AA90-Y90 -> 0 | AC90: 800 | AE90: =AB90+AC90-AD90 -> 800 | AF90: 800 | AH90: =AE90+AF90-AG90 -> 1600 | AI90: 800 | AJ90: 3200 | AK90: =AH90+AI90-AJ90 -> -800 | AL90: 800 | AN90: =AK90+AL90-AM90 -> 0
A91: =VLOOKUP(B91,справочник!$B$2:$E$322,4,0) -> 234 | B91: =CONCATENATE(C91;D91) ->  | C91: 244 | D91: Ермошина Татьяна Евгеньевна (Владимир) | F91: 2012-12-05 | G91: 2013-04-01 | H91: 3 | I91: =H91*1000 -> 3000 | K91: 3000 | L91: =I91-J91-K91 -> 0 | Y91: =SUM(M91:X91) -> 0 | Z91: 0 | AA91: =Z91*800 -> 0 | AB91: =L91+AA91-Y91 -> 0 | AC91: 0 | AE91: =AB91+AC91-AD91 -> 0 | AF91: 0 | AH91: =AE91+AF91-AG91 -> 0 | AI91: 0 | AK91: =AH91+AI91-AJ91 -> 0 | AL91: 0 | AN91: =AK91+AL91-AM91 -> 0
A92: =VLOOKUP(B92,справочник!$B$2:$E$322,4,0) -> 234 | B92: =CONCATENATE(C92;D92) ->  | C92: 243-244 | D92: Ермошина Татьяна Евгеньевна (Владимир) | F92: 2013-07-01 | G92: 2013-07-01 | H92: =INT(($H$325-G92)/30) -> 30 | I92: =H92*1000 -> 30000 | K92: 30000 | L92: =I92-J92-K92 -> 0 | Y92: =SUM(M92:X92) -> 0 | Z92: 0 | AA92: =Z92*800 -> 0 | AB92: =L92+AA92-Y92 -> 0 | AC92: 0 | AE92: =AB92+AC92-AD92 -> 0 | AF92: 0 | AH92: =AE92+AF92-AG92 -> 0 | AI92: 0 | AK92: =AH92+AI92-AJ92 -> 0 | AL92: 0 | AN92: =AK92+AL92-AM92 -> 0
A93: =VLOOKUP(B93,справочник!$B$2:$E$322,4,0) -> 254 | B93: =CONCATENATE(C93;D93) ->  | C93: 267 | D93: Ершова Виктория Львовна | E93: 50:03:0070280:736 | F93: 2012-02-14 | G93: 2012-02-01 | H93: =INT(($H$325-G93)/30) -> 47 | I93: =H93*1000 -> 47000 | J93: =39000+5000 -> 44000 | L93: =I93-J93-K93 -> 3000 | Y93: =SUM(M93:X93) -> 0 | Z93: 12 | AA93: =Z93*800 -> 9600 | AB93: =L93+AA93-Y93 -> 12600 | AC93: 800 | AE93: =AB93+AC93-AD93 -> 13400 | AF93: 800 | AH93: =AE93+AF93-AG93 -> 14200 | AI93: 800 | AK93: =AH93+AI93-AJ93 -> 15000 | AL93: 800 | AN93: =AK93+AL93-AM93 -> 15800
A94: =VLOOKUP(B94,справочник!$B$2:$E$322,4,0) -> 230 | B94: =CONCATENATE(C94;D94) ->  | C94: 239 | D94: Жарикова Светлана Юрьевна | E94: 50:03:0070280:896 | F94: 2013-11-12 | G94: 2013-11-01 | H94: =INT(($H$325-G94)/30) -> 26 | I94: =H94*1000 -> 26000 | J94: 26000 | L94: =I94-J94-K94 -> 0 | Y94: =SUM(M94:X94) -> 0 | Z94: 0 | AA94: =Z94*800 -> 0 | AB94: =L94+AA94-Y94 -> 0 | AC94: 0 | AE94: =AB94+AC94-AD94 -> 0 | AF94: 0 | AH94: =AE94+AF94-AG94 -> 0 | AI94: 0 | AK94: =AH94+AI94-AJ94 -> 0 | AL94: 0 | AN94: =AK94+AL94-AM94 -> 0
A95: =VLOOKUP(B95,справочник!$B$2:$E$322,4,0) -> 230 | B95: =CONCATENATE(C95;D95) ->  | C95: 257 | D95: Жарикова Светлана Юрьевна | E95: 50:03:0070280:788 | F95: 2014-08-31 | G95: 2014-11-01 | H95: =INT(($H$325-G95)/30) -> 14 | I95: =H95*1000 -> 14000 | J95: 0 | K95: 4000 | L95: =I95-J95-K95 -> 10000 | N95: =11900+200 -> 12100 | Q95: 3500 | T95: 2700 | Y95: =SUM(M95:X95) -> 18300 | Z95: 12 | AA95: =Z95*800 -> 9600 | AB95: =L95+AA95-Y95 -> 1300 | AC95: 800 | AE95: =AB95+AC95-AD95 -> 2100 | AF95: 800 | AH95: =AE95+AF95-AG95 -> 2900 | AI95: 800 | AJ95: 2100 | AK95: =AH95+AI95-AJ95 -> 1600 | AL95: 800 | AN95: =AK95+AL95-AM95 -> 2400
A96: =VLOOKUP(B96,справочник!$B$2:$E$322,4,0) -> 4 | B96: =CONCATENATE(C96;D96) ->  | C96: 4 | D96: Жигунов Юрий Александрович | E96: 50:03:0070280:693 | F96: 2013-06-11 | G96: 2013-07-01 | H96: =INT(($H$325-G96)/30) -> 30 | I96: =H96*1000 -> 30000 | J96: 27000 | L96: =I96-J96-K96 -> 3000 | Q96: 5000 | Y96: =SUM(M96:X96) -> 5000 | Z96: 12 | AA96: =Z96*800 -> 9600 | AB96: =L96+AA96-Y96 -> 7600 | AC96: 800 | AE96: =AB96+AC96-AD96 -> 8400 | AF96: 800 | AH96: =AE96+AF96-AG96 -> 9200 | AI96: 800 | AK96: =AH96+AI96-AJ96 -> 10000 | AL96: 800 | AN96: =AK96+AL96-AM96 -> 10800
A97: =VLOOKUP(B97,справочник!$B$2:$E$322,4,0) -> 213 | B97: =CONCATENATE(C97;D97) ->  | C97: 222 | D97: Жирная Татьяна Сергеевна | E97: 50:03:0070280:841 | F97: 2014-05-07 | G97: 2014-06-01 | H97: =INT(($H$325-G97)/30) -> 19 | I97: =H97*1000 -> 19000 | J97: 500 | L97: =I97-J97-K97 -> 18500 | Y97: =SUM(M97:X97) -> 0 | Z97: 12 | AA97: =Z97*800 -> 9600 | AB97: =L97+AA97-Y97 -> 28100 | AC97: 800 | AE97: =AB97+AC97-AD97 -> 28900 | AF97: 800 | AH97: =AE97+AF97-AG97 -> 29700 | AI97: 800 | AK97: =AH97+AI97-AJ97 -> 30500 | AL97: 800 | AN97: =AK97+AL97-AM97 -> 31300
A98: =VLOOKUP(B98,справочник!$B$2:$E$322,4,0) -> 127 | B98: =CONCATENATE(C98;D98) ->  | C98: 132 | D98: Жохова Елена Сергеевна | E98: 50:03:0070280:981 | F98: 2011-06-07 | G98: 2011-06-01 | H98: =INT(($H$325-G98)/30) -> 55 | I98: =H98*1000 -> 55000 | J98: =36000+7000 -> 43000 | L98: 0 | N98: 1600 | T98: 2400 | Y98: =SUM(M98:X98) -> 4000 | Z98: 12 | AA98: =Z98*800 -> 9600 | AB98: =L98+AA98-Y98 -> 5600 | AC98: 800 | AE98: =AB98+AC98-AD98 -> 6400 | AF98: 800 | AH98: =AE98+AF98-AG98 -> 7200 | AI98: 800 | AK98: =AH98+AI98-AJ98 -> 8000 | AL98: 800 | AN98: =AK98+AL98-AM98 -> 8800
A99: =VLOOKUP(B99,справочник!$B$2:$E$322,4,0) -> 66 | B99: =CONCATENATE(C99;D99) ->  | C99: 68 | D99: Заборская Светлана Анатольевна (Андрей) | E99: 50:03:0070280:937 | F99: 2012-07-10 | G99: 2012-07-01 | H99: =INT(($H$325-G99)/30) -> 42 | I99: =H99*1000 -> 42000 | J99: 39780 | L99: =I99-J99-K99 -> 2220 | W99: 8000 | Y99: =SUM(M99:X99) -> 8000 | Z99: 12 | AA99: =Z99*800 -> 9600 | AB99: =L99+AA99-Y99 -> 3820 | AC99: 800 | AE99: =AB99+AC99-AD99 -> 4620 | AF99: 800 | AH99: =AE99+AF99-AG99 -> 5420 | AI99: 800 | AJ99: 1600 | AK99: =AH99+AI99-AJ99 -> 4620 | AL99: 800 | AN99: =AK99+AL99-AM99 -> 5420
A100: =VLOOKUP(B100,справочник!$B$2:$E$322,4,0) -> 36 | B100: =CONCATENATE(C100;D100) ->  | C100: 36 | D100: Закревская Марина Владимировна | E100: 50:03:0070280:906 | F100: 2011-07-12 | G100: 2011-08-01 | H100: =INT(($H$325-G100)/30) -> 53 | I100: =H100*1000 -> 53000 | J100: =42000+1000 -> 43000 | L100: =I100-J100-K100 -> 10000 | T100: 4000 | X100: 2800 | Y100: =SUM(M100:X100) -> 6800 | Z100: 12 | AA100: =Z100*800 -> 9600 | AB100: =L100+AA100-Y100 -> 12800 | AC100: 800 | AE100: =AB100+AC100-AD100 -> 13600 | AF100: 800 | AH100: =AE100+AF100-AG100 -> 14400 | AI100: 800 | AK100: =AH100+AI100-AJ100 -> 15200 | AL100: 800 | AN100: =AK100+AL100-AM100 -> 16000
A101: =VLOOKUP(B101,справочник!$B$2:$E$322,4,0) -> 38 | B101: =CONCATENATE(C101;D101) ->  | C101: 255 | D101: Заручинский Вячеслав Владимирович | E101: 50:03:0070280:790 | F101: 2011-08-15 | G101: 2011-09-01 | H101: =INT(($H$325-G101)/30) -> 52 | I101: =H101*1000 -> 52000 | J101: =5000+18000+29000 -> 52000 | L101: =I101-J101-K101 -> 0 | R101: 1600 | S101: 800 | T101: 1600 | U101: 2161.78 | W101: 800 | X101: 800 | Y101: =SUM(M101:X101) -> 7761.78 | Z101: 12 | AA101: =Z101*800 -> 9600 | AB101: =L101+AA101-Y101 -> 1838.22 | AC101: 800 | AD101: 800 | AE101: =SUM(AB101:AB102)+SUM(AC101:AC102)-SUM(AD101:AD102) -> 7000 | AF101: 800 | AG101: =500+800 -> 1300 | AH101: =SUM(AE101:AE102)+SUM(AF101:AF102)-SUM(AG101:AG102) -> 6500 | AI101: 800 | AK101: =SUM(AH101:AH102)+SUM(AI101:AI102)-SUM(AJ101:AJ102) -> 7300 | AL101: 800 | AN101: =SUM(AK101:AK102)+SUM(AL101:AL102)-SUM(AM101:AM102) -> 7100
A102: =VLOOKUP(B102,справочник!$B$2:$E$322,4,0) -> 38 | B102: =CONCATENATE(C102;D102) ->  | C102: 38 | D102: Заручинский Вячеслав Владимирович | E102: 50:03:0070280:908 | F102: 2012-07-10 | G102: 2012-07-01 | H102: =INT(($H$325-G102)/30) -> 42 | I102: =H102*1000 -> 42000 | J102: 35000 | L102: =I102-J102-K102 -> 7000 | V102: 1138.22 | X102: 700 | Y102: =SUM(M102:X102) -> 1838.22 | Z102: 0 | AA102: =Z102*800 -> 0 | AB102: =L102+AA102-Y102 -> 5161.78 | AC102: 0 | AF102: 0 | AI102: 0 | AL102: 0 | AM102: 1000
A103: =VLOOKUP(B103,справочник!$B$2:$E$322,4,0) -> 12 | B103: =CONCATENATE(C103;D103) ->  | C103: 12 | D103: Захаренкова Светлана Евгеньевна | E103: 50:03:0070280:703 | F103: 2013-05-20 | G103: 2013-06-01 | H103: =INT(($H$325-G103)/30) -> 31 | I103: =H103*1000 -> 31000 | J103: 5000 | L103: =I103-J103-K103 -> 26000 | T103: 4000 | Y103: =SUM(M103:X103) -> 4000 | Z103: 12 | AA103: =Z103*800 -> 9600 | AB103: =L103+AA103-Y103 -> 31600 | AC103: 800 | AE103: =AB103+AC103-AD103 -> 32400 | AF103: 800 | AH103: =AE103+AF103-AG103 -> 33200 | AI103: 800 | AK103: =AH103+AI103-AJ103 -> 34000 | AL103: 800 | AN103: =AK103+AL103-AM103 -> 34800
A104: =VLOOKUP(B104,справочник!$B$2:$E$322,4,0) -> 63 | B104: =CONCATENATE(C104;D104) ->  | C104: 65 | D104: Захаров Михаил Сергеевич | E104: 50:03:0070280:934 | F104: 2013-08-27 | G104: 2013-09-01 | H104: 0 | I104: =H104*1000 -> 0 | J104: 0 | L104: =I104-J104-K104 -> 0 | R104: 800 | X104: 800 | Y104: =SUM(M104:X104) -> 1600 | Z104: 1 | AA104: =Z104*800 -> 800 | AB104: =L104+AA104-Y104 -> -800 | AC104: 800 | AE104: =AB104+AC104-AD104 -> 0 | AF104: 800 | AH104: =AE104+AF104-AG104 -> 800 | AI104: 800 | AJ104: 4800 | AK104: =AH104+AI104-AJ104 -> -3200 | AL104: 800 | AN104: =AK104+AL104-AM104 -> -2400
A105: =VLOOKUP(B105,справочник!$B$2:$E$322,4,0) -> 16 | B105: =CONCATENATE(C105;D105) ->  | C105: 16 | D105: Захарова Людмила Захаровна | E105: 50:03:0070280:697 | F105: 2012-12-11 | G105: 2013-01-01 | H105: =INT(($H$325-G105)/30) -> 36 | I105: =H105*1000 -> 36000 | J105: 36000 | L105: =I105-J105-K105 -> 0 | R105: 12000 | Y105: =SUM(M105:X105) -> 12000 | Z105: 12 | AA105: =Z105*800 -> 9600 | AB105: =L105+AA105-Y105 -> -2400 | AC105: 800 | AE105: =AB105+AC105-AD105 -> -1600 | AF105: 800 | AH105: =AE105+AF105-AG105 -> -800 | AI105: 800 | AK105: =AH105+AI105-AJ105 -> 0 | AL105: 800 | AN105: =AK105+AL105-AM105 -> 800
A106: =VLOOKUP(B106,справочник!$B$2:$E$322,4,0) -> 121 | B106: =CONCATENATE(C106;D106) ->  | C106: 126 | D106: Зиннатов Рафаэль Шакурович | E106: 50:03:0070280:1026 | F106: 2012-10-08 | G106: 2012-11-01 | H106: =INT(($H$325-G106)/30) -> 38 | I106: =H106*1000 -> 38000 | J106: 32000 | L106: =I106-J106-K106 -> 6000 | M106: 3000 | P106: 3200 | T106: 3200 | V106: 4000 | Y106: =SUM(M106:X106) -> 13400 | Z106: 12 | AA106: =Z106*800 -> 9600 | AB106: =L106+AA106-Y106 -> 2200 | AC106: 800 | AE106: =AB106+AC106-AD106 -> 3000 | AF106: 800 | AH106: =AE106+AF106-AG106 -> 3800 | AI106: 800 | AK106: =AH106+AI106-AJ106 -> 4600 | AL106: 800 | AN106: =AK106+AL106-AM106 -> 5400
A107: =VLOOKUP(B107,справочник!$B$2:$E$322,4,0) -> 156 | B107: =CONCATENATE(C107;D107) ->  | C107: 164 | D107: Иваненко Петр Олегович | E107: 50:03:0070280:928 | F107: 2013-04-30 | G107: 2013-06-01 | H107: =INT(($H$325-G107)/30) -> 31 | I107: =H107*1000 -> 31000 | J107: 28000 | L107: =I107-J107-K107 -> 3000 | N107: 5000 | O107: 1000 | P107: 1000 | Q107: 1000 | R107: 1000 | S107: 1000 | T107: 1000 | U107: 1000 | V107: 1000 | W107: 1000 | X107: 1000 | Y107: =SUM(M107:X107) -> 15000 | Z107: 12 | AA107: =Z107*800 -> 9600 | AB107: =L107+AA107-Y107 -> -2400 | AC107: 800 | AD107: 1000 | AE107: =AB107+AC107-AD107 -> -2600 | AF107: 800 | AG107: 1000 | AH107: =AE107+AF107-AG107 -> -2800 | AI107: 800 | AJ107: 1000 | AK107: =AH107+AI107-AJ107 -> -3000 | AL107: 800 | AM107: 1000 | AN107: =AK107+AL107-AM107 -> -3200
A108: =VLOOKUP(B108,справочник!$B$2:$E$322,4,0) -> 5 | B108: =CONCATENATE(C108;D108) ->  | C108: 5 | D108: Иванов Владимир Николаевич | E108: 50:03:0070280:709 | F108: 2012-06-11 | G108: 2012-06-01 | H108: =INT(($H$325-G108)/30) -> 43 | I108: =H108*1000 -> 43000 | J108: =32000 -> 32000 | L108: =I108-J108-K108 -> 11000 | Y108: =SUM(M108:X108) -> 0 | Z108: 12 | AA108: =Z108*800 -> 9600 | AB108: =L108+AA108-Y108 -> 20600 | AC108: 800 | AE108: =AB108+AC108-AD108 -> 21400 | AF108: 800 | AH108: =AE108+AF108-AG108 -> 22200 | AI108: 800 | AK108: =AH108+AI108-AJ108 -> 23000 | AL108: 800 | AM108: 4000 | AN108: =AK108+AL108-AM108 -> 19800
A109: =VLOOKUP(B109,справочник!$B$2:$E$322,4,0) -> 214 | B109: =CONCATENATE(C109;D109) ->  | C109: 223 | D109: Иванов Денис Сильвестрович | E109: 50:03:0070280:840 | F109: 2014-06-17 | G109: 2014-06-01 | H109: =INT(($H$325-G109)/30) -> 19 | I109: =H109*1000 -> 19000 | J109: 19000 | L109: =I109-J109-K109 -> 0 | N109: 3000 | R109: 2000 | U109: 2200 | W109: 800 | X109: 1600 | Y109: =SUM(M109:X109) -> 9600 | Z109: 12 | AA109: =Z109*800 -> 9600 | AB109: =L109+AA109-Y109 -> 0 | AC109: 800 | AD109: 1600 | AE109: =AB109+AC109-AD109 -> -800 | AF109: 800 | AH109: =AE109+AF109-AG109 -> 0 | AI109: 800 | AK109: =AH109+AI109-AJ109 -> 800 | AL109: 800 | AM109: 1600 | AN109: =AK109+AL109-AM109 -> 0
A110: =VLOOKUP(B110,справочник!$B$2:$E$322,4,0) -> 279 | B110: =CONCATENATE(C110;D110) ->  | C110: 291 | D110: Иванова Светлана Сергеевна | E110: 50:03:0070280:778 | F110: 2011-12-13 | G110: 2011-12-01 | H110: =INT(($H$325-G110)/30) -> 49 | I110: =H110*1000 -> 49000 | J110: =42000+1000 -> 43000 | L110: =I110-J110-K110 -> 6000 | Y110: =SUM(M110:X110) -> 0 | Z110: 12 | AA110: =Z110*800 -> 9600 | AB110: =L110+AA110-Y110 -> 15600 | AC110: 800 | AE110: =AB110+AC110-AD110 -> 16400 | AF110: 800 | AH110: =AE110+AF110-AG110 -> 17200 | AI110: 800 | AK110: =AH110+AI110-AJ110 -> 18000 | AL110: 800 | AN110: =AK110+AL110-AM110 -> 18800
A111: =VLOOKUP(B111,справочник!$B$2:$E$322,4,0) -> 197 | B111: =CONCATENATE(C111;D111) ->  | C111: 205 | D111: Иванова Татьяна Викторовна | E111: 50:03:0070280:911 | F111: 2011-11-15 | G111: 2011-11-01 | H111: =INT(($H$325-G111)/30) -> 50 | I111: =H111*1000 -> 50000 | J111: 16000 | L111: =I111-J111-K111 -> 34000 | S111: 6600 | Y111: =SUM(M111:X111) -> 6600 | Z111: 12 | AA111: =Z111*800 -> 9600 | AB111: =L111+AA111-Y111 -> 37000 | AC111: 800 | AE111: =AB111+AC111-AD111 -> 37800 | AF111: 800 | AH111: =AE111+AF111-AG111 -> 38600 | AI111: 800 | AK111: =AH111+AI111-AJ111 -> 39400 | AL111: 800 | AM111: 8000 | AN111: =AK111+AL111-AM111 -> 32200
A112: =VLOOKUP(B112,справочник!$B$2:$E$322,4,0) -> 295 | B112: =CONCATENATE(C112;D112) ->  | C112: 310 | D112: Измайлов Михаил Михайлович | E112: 50:03:0070280:1001 | F112: 2014-12-21 | G112: 2015-01-01 | H112: =INT(($H$325-G112)/30) -> 12 | I112: =H112*1000 -> 12000 | L112: =I112-J112-K112 -> 12000 | T112: 18150 | Y112: =SUM(M112:X112) -> 18150 | Z112: 12 | AA112: =Z112*800 -> 9600 | AB112: =L112+AA112-Y112 -> 3450 | AC112: 800 | AE112: =AB112+AC112-AD112 -> 4250 | AF112: 800 | AH112: =AE112+AF112-AG112 -> 5050 | AI112: 800 | AJ112: 5000 | AK112: =AH112+AI112-AJ112 -> 850 | AL112: 800 | AN112: =AK112+AL112-AM112 -> 1650
A113: =VLOOKUP(B113,справочник!$B$2:$E$322,4,0) -> 196 | B113: =CONCATENATE(C113;D113) ->  | C113: 204 | D113: Казарин Сергей Викторович | E113: 50:03:0070280:912 | F113: 2012-02-06 | G113: 2012-03-01 | H113: =INT(($H$325-G113)/30) -> 46 | I113: =H113*1000 -> 46000 | J113: =46000 -> 46000 | L113: =I113-J113-K113 -> 0 | O113: 4800 | T113: 2400 | W113: 2400 | Y113: =SUM(M113:X113) -> 9600 | Z113: 12 | AA113: =Z113*800 -> 9600 | AB113: =L113+AA113-Y113 -> 0 | AC113: 800 | AE113: =AB113+AC113-AD113 -> 800 | AF113: 800 | AG113: 3200 | AH113: =AE113+AF113-AG113 -> -1600 | AI113: 800 | AK113: =AH113+AI113-AJ113 -> -800 | AL113: 800 | AN113: =AK113+AL113-AM113 -> 0
A114: =VLOOKUP(B114,справочник!$B$2:$E$322,4,0) -> 124 | B114: =CONCATENATE(C114;D114) ->  | C114: 129 | D114: Казымов Горхмаз Гамид/Лавренчук Александр Владиславович | E114: 50:03:0070280:811 | F114: 2013-11-02 | G114: 2013-12-01 | H114: =INT(($H$325-G114)/30) -> 25 | I114: =H114*1000 -> 25000 | J114: =5000+1500+5000 -> 11500 | L114: =I114-J114-K114 -> 13500 | Y114: =SUM(M114:X114) -> 0 | Z114: 12 | AA114: =Z114*800 -> 9600 | AB114: =L114+AA114-Y114 -> 23100 | AC114: 800 | AE114: =AB114+AC114-AD114 -> 23900 | AF114: 800 | AH114: =AE114+AF114-AG114 -> 24700 | AI114: 800 | AK114: =AH114+AI114-AJ114 -> 25500 | AL114: 800 | AN114: =AK114+AL114-AM114 -> 26300
A115: =VLOOKUP(B115,справочник!$B$2:$E$322,4,0) -> 250 | B115: =CONCATENATE(C115;D115) ->  | C115: 261 | D115: Каляникова Наталья Сергеевна | E115: 50:03:0070280:742 | F115: 2013-08-12 | G115: 2013-09-01 | H115: =INT(($H$325-G115)/30) -> 28 | I115: =H115*1000 -> 28000 | J115: 13000 | K115: 1000 | L115: =I115-J115-K115 -> 14000 | O115: 1000 | P115: 1000 | Q115: 1000 | S115: 1000 | U115: 2500 | V115: 1000 | W115: 2000 | Y115: =SUM(M115:X115) -> 9500 | Z115: 12 | AA115: =Z115*800 -> 9600 | AB115: =L115+AA115-Y115 -> 14100 | AC115: 800 | AD115: 2000 | AE115: =AB115+AC115-AD115 -> 12900 | AF115: 800 | AH115: =AE115+AF115-AG115 -> 13700 | AI115: 800 | AK115: =AH115+AI115-AJ115 -> 14500 | AL115: 800 | AM115: 2000 | AN115: =AK115+AL115-AM115 -> 13300
A116: =VLOOKUP(B116,справочник!$B$2:$E$322,4,0) -> 153 | B116: =CONCATENATE(C116;D116) ->  | C116: 161 | D116: Канышкина Юлия Юрьевна | E116: 50:03:0070280:756 | F116: 2012-03-26 | G116: 2012-04-01 | H116: =INT(($H$325-G116)/30) -> 45 | I116: =H116*1000 -> 45000 | J116: 41000 | L116: =I116-J116-K116 -> 4000 | P116: 7200 | S116: 1600 | W116: 4000 | Y116: =SUM(M116:X116) -> 12800 | Z116: 12 | AA116: =Z116*800 -> 9600 | AB116: =L116+AA116-Y116 -> 800 | AC116: 800 | AE116: =AB116+AC116-AD116 -> 1600 | AF116: 800 | AH116: =AE116+AF116-AG116 -> 2400 | AI116: 800 | AK116: =AH116+AI116-AJ116 -> 3200 | AL116: 800 | AM116: 2400 | AN116: =AK116+AL116-AM116 -> 1600
A117: =VLOOKUP(B117,справочник!$B$2:$E$322,4,0) -> 106 | B117: =CONCATENATE(C117;D117) ->  | C117: 111 | D117: Карпекина Лилия Рафаэльевна | E117: 50:03:0070280:817 | F117: 2013-07-08 | G117: 2013-01-08 | H117: =INT(($H$325-G117)/30) -> 36 | I117: =H117*1000 -> 36000 | J117: 1000 | L117: =I117-J117-K117 -> 35000 | Y117: =SUM(M117:X117) -> 0 | Z117: 12 | AA117: =Z117*800 -> 9600 | AB117: =L117+AA117-Y117 -> 44600 | AC117: 800 | AE117: =AB117+AC117-AD117 -> 45400 | AF117: 800 | AH117: =AE117+AF117-AG117 -> 46200 | AI117: 800 | AJ117: 5000 | AK117: =AH117+AI117-AJ117 -> 42000 | AL117: 800 | AN117: =AK117+AL117-AM117 -> 42800
A118: =VLOOKUP(B118,справочник!$B$2:$E$322,4,0) -> 222 | B118: =CONCATENATE(C118;D118) ->  | C118: 231 | D118: Карпова Елена Витальевна | E118: 50:03:0070280:832 | F118: 2013-06-04 | G118: 2013-07-01 | H118: =INT(($H$325-G118)/30) -> 30 | I118: =H118*1000 -> 30000 | J118: 25000 | K118: 5000 | L118: =I118-J118-K118 -> 0 | N118: 3200 | Q118: 4000 | V118: 2400 | Y118: =SUM(M118:X118) -> 9600 | Z118: 12 | AA118: =Z118*800 -> 9600 | AB118: =L118+AA118-Y118 -> 0 | AC118: 800 | AE118: =AB118+AC118-AD118 -> 800 | AF118: 800 | AH118: =AE118+AF118-AG118 -> 1600 | AI118: 800 | AK118: =AH118+AI118-AJ118 -> 2400 | AL118: 800 | AN118: =AK118+AL118-AM118 -> 3200
A119: =VLOOKUP(B119,справочник!$B$2:$E$322,4,0) -> 208 | B119: =CONCATENATE(C119;D119) ->  | C119: 218 | D119: Катушкин Роман Юрьевич | E119: 50:03:0070280:1422 | F119: 2012-05-23 | G119: 2012-06-01 | H119: =INT(($H$325-G119)/30) -> 43 | I119: =H119*1000 -> 43000 | J119: =40500 -> 40500 | L119: =I119-J119-K119 -> 2500 | T119: 3600 | Y119: =SUM(M119:X119) -> 3600 | Z119: 12 | AA119: =Z119*800 -> 9600 | AB119: =L119+AA119-Y119 -> 8500 | AC119: 800 | AD119: 3000 | AE119: =AB119+AC119-AD119 -> 6300 | AF119: 800 | AH119: =AE119+AF119-AG119 -> 7100 | AI119: 800 | AK119: =AH119+AI119-AJ119 -> 7900 | AL119: 800 | AN119: =AK119+AL119-AM119 -> 8700
A120: =VLOOKUP(B120,справочник!$B$2:$E$322,4,0) -> 207 | B120: =CONCATENATE(C120;D120) ->  | C120: 217 | D120: Катушкин Роман Юрьевич//Валеев Артур Рашидович | I120: =H120*1000 -> 0 | L120: =I120-J120-K120 -> 0 | Y120: =SUM(M120:X120) -> 0 | Z120: 12 | AA120: =Z120*800 -> 9600 | AB120: =L120+AA120-Y120 -> 9600 | AC120: 800 | AE120: =AB120+AC120-AD120 -> 10400 | AF120: 800 | AH120: =AE120+AF120-AG120 -> 11200 | AI120: 800 | AK120: =AH120+AI120-AJ120 -> 12000 | AL120: 800 | AN120: =AK120+AL120-AM120 -> 12800
A121: =VLOOKUP(B121,справочник!$B$2:$E$322,4,0) -> 231 | B121: =CONCATENATE(C121;D121) ->  | C121: 240 | D121: Кашичкин Александр Борисович | E121: 50:03:0070280:895 | F121: 2013-03-24 | G121: 2013-04-01 | H121: =INT(($H$325-G121)/30) -> 33 | I121: =H121*1000 -> 33000 | J121: 28000 | L121: =I121-J121-K121 -> 5000 | N121: 5000 | P121: 1000 | Y121: =SUM(M121:X121) -> 6000 | Z121: 12 | AA121: =Z121*800 -> 9600 | AB121: =L121+AA121-Y121 -> 8600 | AC121: 800 | AE121: =AB121+AC121-AD121 -> 9400 | AF121: 800 | AH121: =AE121+AF121-AG121 -> 10200 | AI121: 800 | AK121: =AH121+AI121-AJ121 -> 11000 | AL121: 800 | AN121: =AK121+AL121-AM121 -> 11800
A122: =VLOOKUP(B122,справочник!$B$2:$E$322,4,0) -> 76 | B122: =CONCATENATE(C122;D122) ->  | C122: 82 | D122: Киеня Валентина Александровна (Анатолий) | E122: 50:03:0070280:751 | F122: 2011-05-19 | G122: 2011-06-01 | H122: =INT(($H$325-G122)/30) -> 55 | I122: =H122*1000 -> 55000 | J122: 54000 | K122: 3000 | L122: =I122-J122-K122 -> -2000 | N122: 2400 | P122: 2400 | T122: 2400 | W122: 2400 | Y122: =SUM(M122:X122) -> 9600 | Z122: 12 | AA122: =Z122*800 -> 9600 | AB122: =L122+AA122-Y122 -> -2000 | AC122: 800 | AE122: =AB122+AC122-AD122 -> -1200 | AF122: 800 | AH122: =AE122+AF122-AG122 -> -400 | AI122: 800 | AJ122: 400 | AK122: =AH122+AI122-AJ122 -> 0 | AL122: 800 | AN122: =AK122+AL122-AM122 -> 800
A123: =VLOOKUP(B123,справочник!$B$2:$E$322,4,0) -> 82 | B123: =CONCATENATE(C123;D123) ->  | C123: 87 | D123: Кикоть Наталья Петровна (Андрей) | E123: 50:03:0070280:863 | F123: 2012-08-27 | G123: 2012-09-01 | H123: =INT(($H$325-G123)/30) -> 40 | I123: =H123*1000 -> 40000 | J123: 35000 | L123: =I123-J123-K123 -> 5000 | M123: 3000 | O123: 3000 | V123: 2000 | Y123: =SUM(M123:X123) -> 8000 | Z123: 12 | AA123: =Z123*800 -> 9600 | AB123: =L123+AA123-Y123 -> 6600 | AC123: 800 | AE123: =AB123+AC123-AD123 -> 7400 | AF123: 800 | AH123: =AE123+AF123-AG123 -> 8200 | AI123: 800 | AJ123: 3200 | AK123: =AH123+AI123-AJ123 -> 5800 | AL123: 800 | AM123: 2000 | AN123: =AK123+AL123-AM123 -> 4600
A124: =VLOOKUP(B124,справочник!$B$2:$E$322,4,0) -> 8 | B124: =CONCATENATE(C124;D124) ->  | C124: 8 | D124: Кириенко Раиса Федоровна | E124: 50:03:0070280:692 | F124: 2014-04-12 | G124: 2014-05-01 | H124: =INT(($H$325-G124)/30) -> 20 | I124: =H124*1000 -> 20000 | J124: 18000 | L124: =I124-J124-K124 -> 2000 | R124: 4000 | V124: 7600 | Y124: =SUM(M124:X124) -> 11600 | Z124: 12 | AA124: =Z124*800 -> 9600 | AB124: =L124+AA124-Y124 -> 0 | AC124: 800 | AE124: =AB124+AC124-AD124 -> 800 | AF124: 800 | AH124: =AE124+AF124-AG124 -> 1600 | AI124: 800 | AJ124: 4000 | AK124: =AH124+AI124-AJ124 -> -1600 | AL124: 800 | AN124: =AK124+AL124-AM124 -> -800
A125: =VLOOKUP(B125,справочник!$B$2:$E$322,4,0) -> 149 | B125: =CONCATENATE(C125;D125) ->  | C125: 157 | D125: Кириллов Вадим Александрович | E125: 50:03:0070280:958 | F125: 2011-10-04 | G125: 2011-10-01 | H125: =INT(($H$325-G125)/30) -> 51 | I125: =H125*1000 -> 51000 | J125: =1000 -> 1000 | K125: 1000 | L125: =I125-J125-K125 -> 49000 | O125: 1000 | Q125: 1000 | Y125: =SUM(M125:X125) -> 2000 | Z125: 12 | AA125: =Z125*800 -> 9600 | AB125: =L125+AA125-Y125 -> 56600 | AC125: 800 | AD125: 3000 | AE125: =AB125+AC125-AD125 -> 54400 | AF125: 800 | AG125: 3000 | AH125: =AE125+AF125-AG125 -> 52200 | AI125: 800 | AK125: =AH125+AI125-AJ125 -> 53000 | AL125: 800 | AM125: 3000 | AN125: =AK125+AL125-AM125 -> 50800
A126: =VLOOKUP(B126,справочник!$B$2:$E$322,4,0) -> 30 | B126: =CONCATENATE(C126;D126) ->  | C126: 30 | D126: Кириллов Дмитрий Александрович | E126: 50:03:0070280:859 | F126: 2011-12-29 | G126: 2012-01-01 | H126: =INT(($H$325-G126)/30) -> 48 | I126: =H126*1000 -> 48000 | J126: =1000 -> 1000 | L126: =I126-J126-K126 -> 47000 | Y126: =SUM(M126:X126) -> 0 | Z126: 12 | AA126: =Z126*800 -> 9600 | AB126: =L126+AA126-Y126 -> 56600 | AC126: 800 | AD126: 1000 | AE126: =AB126+AC126-AD126 -> 56400 | AF126: 800 | AG126: 3000 | AH126: =AE126+AF126-AG126 -> 54200 | AI126: 800 | AJ126: 2000 | AK126: =AH126+AI126-AJ126 -> 53000 | AL126: 800 | AN126: =AK126+AL126-AM126 -> 53800
A127: =VLOOKUP(B127,справочник!$B$2:$E$322,4,0) -> 269 | B127: =CONCATENATE(C127;D127) ->  | C127: 282 | D127: Коваленко Ирина Леонидовна | E127: 50:03:0070280:718 | F127: 2012-12-11 | G127: 2013-01-01 | H127: =INT(($H$325-G127)/30) -> 36 | I127: =H127*1000 -> 36000 | J127: 18000 | L127: =I127-J127-K127 -> 18000 | W127: 12000 | Y127: =SUM(M127:X127) -> 12000 | Z127: 12 | AA127: =Z127*800 -> 9600 | AB127: =L127+AA127-Y127 -> 15600 | AC127: 800 | AE127: =AB127+AC127-AD127 -> 16400 | AF127: 800 | AH127: =AE127+AF127-AG127 -> 17200 | AI127: 800 | AK127: =AH127+AI127-AJ127 -> 18000 | AL127: 800 | AN127: =AK127+AL127-AM127 -> 18800
A128: =VLOOKUP(B128,справочник!$B$2:$E$322,4,0) -> 271 | B128: =CONCATENATE(C128;D128) ->  | C128: 284 | D128: Кожемякин Сергей Владимирович | E128: 50:03:0070280:716 | F128: 2015-02-09 | G128: 2015-04-01 | H128: =INT(($H$325-G128)/30) -> 9 | I128: =H128*1000 -> 9000 | J128: 4000 | K128: 5000 | L128: =I128-J128-K128 -> 0 | R128: 5000 | X128: 3000 | Y128: =SUM(M128:X128) -> 8000 | Z128: 12 | AA128: =Z128*800 -> 9600 | AB128: =L128+AA128-Y128 -> 1600 | AC128: 800 | AE128: =AB128+AC128-AD128 -> 2400 | AF128: 800 | AH128: =AE128+AF128-AG128 -> 3200 | AI128: 800 | AK128: =AH128+AI128-AJ128 -> 4000 | AL128: 800 | AN128: =AK128+AL128-AM128 -> 4800
A129: =VLOOKUP(B129,справочник!$B$2:$E$322,4,0) -> 265 | B129: =CONCATENATE(C129;D129) ->  | C129: 278 | D129: Козловский Алексей Гаврилович | E129: 50:03:0070280:725 | F129: 2011-09-26 | G129: 2011-09-01 | H129: =INT(($H$325-G129)/30) -> 52 | I129: =H129*1000 -> 52000 | J129: =2000+27000 -> 29000 | L129: =I129-J129-K129 -> 23000 | O129: 3000 | S129: 3000 | U129: 3000 | W129: 3000 | Y129: =SUM(M129:X129) -> 12000 | Z129: 12 | AA129: =Z129*800 -> 9600 | AB129: =L129+AA129-Y129 -> 20600 | AC129: 800 | AE129: =AB129+AC129-AD129 -> 21400 | AF129: 800 | AH129: =AE129+AF129-AG129 -> 22200 | AI129: 800 | AK129: =AH129+AI129-AJ129 -> 23000 | AL129: 800 | AN129: =AK129+AL129-AM129 -> 23800
A130: =VLOOKUP(B130,справочник!$B$2:$E$322,4,0) -> 173 | B130: =CONCATENATE(C130;D130) ->  | C130: 181 | D130: Колесников Никита Олегович(у Кряжковой Виктория Сергеевна | E130: 50:03:0070280:764 | F130: 2011-09-07 | G130: 2011-09-01 | H130: =INT(($H$325-G130)/30) -> 52 | I130: =H130*1000 -> 52000 | J130: 1000 | L130: =I130-J130-K130 -> 51000 | Y130: =SUM(M130:X130) -> 0 | Z130: 12 | AA130: =Z130*800 -> 9600 | AB130: =L130+AA130-Y130 -> 60600 | AC130: 800 | AE130: =AB130+AC130-AD130 -> 61400 | AF130: 800 | AH130: =AE130+AF130-AG130 -> 62200 | AI130: 800 | AK130: =AH130+AI130-AJ130 -> 63000 | AL130: 800 | AN130: =AK130+AL130-AM130 -> 63800
A131: =VLOOKUP(B131,справочник!$B$2:$E$322,4,0) -> 305 | B131: =CONCATENATE(C131;D131) ->  | C131: 320 | D131: Колесов Вадим Владимирович | E131: 50:03:0070280:1011 | F131: 2014-10-17 | G131: 2014-11-01 | H131: =INT(($H$325-G131)/30) -> 14 | I131: =H131*1000 -> 14000 | J131: 1000 | L131: =I131-J131-K131 -> 13000 | Y131: =SUM(M131:X131) -> 0 | Z131: 12 | AA131: =Z131*800 -> 9600 | AB131: =L131+AA131-Y131 -> 22600 | AC131: 800 | AE131: =AB131+AC131-AD131 -> 23400 | AF131: 800 | AH131: =AE131+AF131-AG131 -> 24200 | AI131: 800 | AK131: =AH131+AI131-AJ131 -> 25000 | AL131: 800 | AN131: =AK131+AL131-AM131 -> 25800
A132: =VLOOKUP(B132,справочник!$B$2:$E$322,4,0) -> 69 | B132: =CONCATENATE(C132;D132) ->  | C132: 75 | D132: Колташ Анна Владимировна | E132: 50:03:0070280:882 | F132: 23.08.2011 | G132: 2011-09-01 | H132: =INT(($H$325-G132)/30) -> 52 | I132: =H132*1000 -> 52000 | J132: =3000+10000 -> 13000 | L132: =I132-J132-K132 -> 39000 | Y132: =SUM(M132:X132) -> 0 | Z132: 12 | AA132: =Z132*800 -> 9600 | AB132: =L132+AA132-Y132 -> 48600 | AC132: 800 | AE132: =SUM(AB132:AB133)+SUM(AC132:AC133)-SUM(AD132:AD133) -> 49400 | AF132: 800 | AH132: =SUM(AE132:AE133)+SUM(AF132:AF133)-SUM(AG132:AG133) -> 50200 | AI132: 800 | AK132: =SUM(AH132:AH133)+SUM(AI132:AI133)-SUM(AJ132:AJ133) -> 51000 | AL132: 800 | AN132: =SUM(AK132:AK133)+SUM(AL132:AL133)-SUM(AM132:AM133) -> 51800
A133: =VLOOKUP(B133,справочник!$B$2:$E$322,4,0) -> 69 | B133: =CONCATENATE(C133;D133) ->  | C133: 76 | D133: Колташ Анна Владимировна | E133: 50:03:0070280:804 | I133: =H133*1000 -> 0 | Y133: =SUM(M133:X133) -> 0 | AA133: =Z133*800 -> 0 | AB133: =L133+AA133-Y133 -> 0 | AC133: 0 | AF133: 0 | AI133: 0 | AL133: 0
A134: =VLOOKUP(B134,справочник!$B$2:$E$322,4,0) -> 1 | B134: =CONCATENATE(C134;D134) ->  | C134: 1 | D134: Колыгина Нина Николаевна | E134: 50:03:0070280:711 | F134: 2013-05-15 | G134: 2013-10-01 | H134: =INT(($H$325-G134)/30) -> 27 | I134: =H134*1000 -> 27000 | J134: 24000 | K134: 5600 | L134: =I134-J134-K134 -> -2600 | N134: 4200 | X134: 5600 | Y134: =SUM(M134:X134) -> 9800 | Z134: 12 | AA134: =Z134*800 -> 9600 | AB134: =L134+AA134-Y134 -> -2800 | AC134: 800 | AE134: =AB134+AC134-AD134 -> -2000 | AF134: 800 | AH134: =AE134+AF134-AG134 -> -1200 | AI134: 800 | AK134: =AH134+AI134-AJ134 -> -400 | AL134: 800 | AN134: =AK134+AL134-AM134 -> 400
A135: =VLOOKUP(B135,справочник!$B$2:$E$322,4,0) -> 302 | B135: =CONCATENATE(C135;D135) ->  | C135: 317 | D135: Колышкина Александра Сергеевна | E135: 50:03:0070280:1008 | F135: 2012-03-29 | G135: 2012-04-01 | H135: =INT(($H$325-G135)/30) -> 45 | I135: =H135*1000 -> 45000 | J135: 32000 | L135: =I135-J135-K135 -> 13000 | Y135: =SUM(M135:X135) -> 0 | Z135: 12 | AA135: =Z135*800 -> 9600 | AB135: =L135+AA135-Y135 -> 22600 | AC135: 800 | AE135: =AB135+AC135-AD135 -> 23400 | AF135: 800 | AH135: =AE135+AF135-AG135 -> 24200 | AI135: 800 | AK135: =AH135+AI135-AJ135 -> 25000 | AL135: 800 | AN135: =AK135+AL135-AM135 -> 25800
A136: =VLOOKUP(B136,справочник!$B$2:$E$322,4,0) -> 123 | B136: =CONCATENATE(C136;D136) ->  | C136: 128 | D136: Кондратьева Юлия Викторовна | E136: 50:03:0070280:810 | F136: 2012-02-21 | G136: 2012-02-01 | H136: =INT(($H$325-G136)/30) -> 47 | I136: =H136*1000 -> 47000 | J136: 34000 | L136: =I136-J136-K136 -> 13000 | S136: 20000 | Y136: =SUM(M136:X136) -> 20000 | Z136: 12 | AA136: =Z136*800 -> 9600 | AB136: =L136+AA136-Y136 -> 2600 | AC136: 800 | AD136: 5000 | AE136: =AB136+AC136-AD136 -> -1600 | AF136: 800 | AH136: =AE136+AF136-AG136 -> -800 | AI136: 800 | AK136: =AH136+AI136-AJ136 -> 0 | AL136: 800 | AN136: =AK136+AL136-AM136 -> 800
A137: =VLOOKUP(B137,справочник!$B$2:$E$322,4,0) -> 163 | B137: =CONCATENATE(C137;D137) ->  | C137: 171 | D137: Кондратюк Наталья Петровна 1/2, Соболев Олег Юрьевич 1/2 | F137: 2014-06-19 | G137: 2014-07-01 | H137: =INT(($H$325-G137)/30) -> 18 | I137: =H137*1000 -> 18000 | J137: =5000+4000 -> 9000 | L137: =I137-J137-K137 -> 9000 | T137: 6100 | Y137: =SUM(M137:X137) -> 6100 | Z137: 12 | AA137: =Z137*800 -> 9600 | AB137: =L137+AA137-Y137 -> 12500 | AC137: 800 | AD137: 4000 | AE137: =AB137+AC137-AD137 -> 9300 | AF137: 800 | AH137: =AE137+AF137-AG137 -> 10100 | AI137: 800 | AK137: =AH137+AI137-AJ137 -> 10900 | AL137: 800 | AN137: =AK137+AL137-AM137 -> 11700
A138: =VLOOKUP(B138,справочник!$B$2:$E$322,4,0) -> 110 | B138: =CONCATENATE(C138;D138) ->  | C138: 115 | D138: Кондрашов Роман Вячеславович | E138: 50:03:0070280:808 | F138: 2012-07-11 | G138: 2012-07-01 | H138: =INT(($H$325-G138)/30) -> 42 | I138: =H138*1000 -> 42000 | J138: 23000 | L138: =I138-J138-K138 -> 19000 | S138: 2400 | T138: 3600 | V138: 1600 | X138: =4000+5000 -> 9000 | Y138: =SUM(M138:X138) -> 16600 | Z138: 12 | AA138: =Z138*800 -> 9600 | AB138: =L138+AA138-Y138 -> 12000 | AC138: 800 | AD138: 1800 | AE138: =AB138+AC138-AD138 -> 11000 | AF138: 800 | AH138: =AE138+AF138-AG138 -> 11800 | AI138: 800 | AK138: =AH138+AI138-AJ138 -> 12600 | AL138: 800 | AM138: =1000+2400 -> 3400 | AN138: =AK138+AL138-AM138 -> 10000
A139: =VLOOKUP(B139,справочник!$B$2:$E$322,4,0) -> 112 | B139: =CONCATENATE(C139;D139) ->  | C139: 117 | D139: Кондрашов Сергей Вячеславович//Балыкин Александр Иванович | F139: 2012-07-11 | G139: 2012-07-01 | H139: =INT(($H$325-G139)/30) -> 42 | I139: =H139*1000 -> 42000 | J139: =25000 -> 25000 | L139: =I139-J139-K139 -> 17000 | N139: 4800 | S139: 4800 | X139: 4800 | Y139: =SUM(M139:X139) -> 14400 | Z139: 12 | AA139: =Z139*800 -> 9600 | AB139: =L139+AA139-Y139 -> 12200 | AC139: 800 | AE139: =AB139+AC139-AD139 -> 13000 | AF139: 800 | AH139: =AE139+AF139-AG139 -> 13800 | AI139: 800 | AK139: =AH139+AI139-AJ139 -> 14600 | AL139: 800 | AN139: =AK139+AL139-AM139 -> 15400
A140: =VLOOKUP(B140,справочник!$B$2:$E$322,4,0) -> 190 | B140: =CONCATENATE(C140;D140) ->  | C140: 198 | D140: Коновальцев Олег Серафимович | E140: 50:03:0070280:984 | F140: 2013-05-13 | G140: 2013-06-01 | H140: =INT(($H$325-G140)/30) -> 31 | I140: =H140*1000 -> 31000 | J140: 15000 | L140: =I140-J140-K140 -> 16000 | R140: 800 | Y140: =SUM(M140:X140) -> 800 | Z140: 12 | AA140: =Z140*800 -> 9600 | AB140: =L140+AA140-Y140 -> 24800 | AC140: 800 | AE140: =AB140+AC140-AD140 -> 25600 | AF140: 800 | AH140: =AE140+AF140-AG140 -> 26400 | AI140: 800 | AK140: =AH140+AI140-AJ140 -> 27200 | AL140: 800 | AN140: =AK140+AL140-AM140 -> 28000
A141: =VLOOKUP(B141,справочник!$B$2:$E$322,4,0) -> 83 | B141: =CONCATENATE(C141;D141) ->  | C141: 88 | D141: Кононенко Алла Николаевна (Александр) | E141: 50:03:0070280:869 | F141: 2011-05-12 | G141: 2011-06-01 | H141: =INT(($H$325-G141)/30) -> 55 | I141: =H141*1000 -> 55000 | J141: =1000+49000 -> 50000 | L141: =I141-J141-K141 -> 5000 | M141: 2800 | N141: 800 | O141: 800 | P141: 800 | Q141: 800 | R141: 800 | S141: 800 | T141: 800 | V141: 1600 | W141: 800 | X141: 800 | Y141: =SUM(M141:X141) -> 11600 | Z141: 12 | AA141: =Z141*800 -> 9600 | AB141: =L141+AA141-Y141 -> 3000 | AC141: 800 | AD141: 800 | AE141: =AB141+AC141-AD141 -> 3000 | AF141: 800 | AH141: =AE141+AF141-AG141 -> 3800 | AI141: 800 | AJ141: 1600 | AK141: =AH141+AI141-AJ141 -> 3000 | AL141: 800 | AM141: =3000+800 -> 3800 | AN141: =AK141+AL141-AM141 -> 0
A142: =VLOOKUP(B142,справочник!$B$2:$E$322,4,0) -> 133 | B142: =CONCATENATE(C142;D142) ->  | C142: 140 | D142: Короткевич Наталья Владимировна | E142: 50:03:0070280:892 | F142: 2012-04-09 | G142: 2012-04-01 | H142: =INT(($H$325-G142)/30) -> 45 | I142: =H142*1000 -> 45000 | J142: 41000 | K142: 4000 | L142: =I142-J142-K142 -> 0 | N142: 1000 | O142: 1000 | P142: 1000 | Q142: 1000 | R142: 1000 | S142: 1000 | T142: 1000 | U142: 1000 | V142: 1000 | Y142: =SUM(M142:X142) -> 9000 | Z142: 12 | AA142: =Z142*800 -> 9600 | AB142: =L142+AA142-Y142 -> 600 | AC142: 800 | AD142: 800 | AE142: =AB142+AC142-AD142 -> 600 | AF142: 800 | AG142: 800 | AH142: =AE142+AF142-AG142 -> 600 | AI142: 800 | AK142: =AH142+AI142-AJ142 -> 1400 | AL142: 800 | AM142: 1400 | AN142: =AK142+AL142-AM142 -> 800
A143: =VLOOKUP(B143,справочник!$B$2:$E$322,4,0) -> 202 | B143: =CONCATENATE(C143;D143) ->  | C143: 212 | D143: Корчинская Ирина Анатольевна | E143: 50:03:0070280:851 | F143: 2012-07-10 | G143: 2012-07-01 | H143: =INT(($H$325-G143)/30) -> 42 | I143: =H143*1000 -> 42000 | J143: 18000 | L143: =I143-J143-K143 -> 24000 | Y143: =SUM(M143:X143) -> 0 | Z143: 12 | AA143: =Z143*800 -> 9600 | AB143: =L143+AA143-Y143 -> 33600 | AC143: 800 | AE143: =AB143+AC143-AD143 -> 34400 | AF143: 800 | AH143: =AE143+AF143-AG143 -> 35200 | AI143: 800 | AK143: =AH143+AI143-AJ143 -> 36000 | AL143: 800 | AN143: =AK143+AL143-AM143 -> 36800
A144: =VLOOKUP(B144,справочник!$B$2:$E$322,4,0) -> 192 | B144: =CONCATENATE(C144;D144) ->  | C144: 200 | D144: Косенков Степан Фед-ч(Галактионова) | E144: 50:03:0070280:887 | F144: 2014-07-09 | G144: 2014-08-01 | H144: =INT(($H$325-G144)/30) -> 17 | I144: =H144*1000 -> 17000 | L144: =I144-J144-K144 -> 17000 | Y144: =SUM(M144:X144) -> 0 | Z144: 12 | AA144: =Z144*800 -> 9600 | AB144: =L144+AA144-Y144 -> 26600 | AC144: 800 | AE144: =AB144+AC144-AD144 -> 27400 | AF144: 800 | AH144: =AE144+AF144-AG144 -> 28200 | AI144: 800 | AK144: =AH144+AI144-AJ144 -> 29000 | AL144: 800 | AN144: =AK144+AL144-AM144 -> 29800
A145: =VLOOKUP(B145,справочник!$B$2:$E$322,4,0) -> 289 | B145: =CONCATENATE(C145;D145) ->  | C145: 301 | D145: Косенкова Елизавета Евгеньевна | E145: 50:03:0070280:772 | F145: 2014-12-03 | G145: 2015-01-01 | H145: =INT(($H$325-G145)/30) -> 12 | I145: =H145*1000 -> 12000 | J145: 3000 | L145: =I145-J145-K145 -> 9000 | V145: 10000 | Y145: =SUM(M145:X145) -> 10000 | Z145: 12 | AA145: =Z145*800 -> 9600 | AB145: =L145+AA145-Y145 -> 8600 | AC145: 800 | AE145: =AB145+AC145-AD145 -> 9400 | AF145: 800 | AH145: =AE145+AF145-AG145 -> 10200 | AI145: 800 | AJ145: 5000 | AK145: =AH145+AI145-AJ145 -> 6000 | AL145: 800 | AN145: =AK145+AL145-AM145 -> 6800
A146: =VLOOKUP(B146,справочник!$B$2:$E$322,4,0) -> 143 | B146: =CONCATENATE(C146;D146) ->  | C146: 151 | D146: Красникова Раиса Михайловна | E146: 50:03:0070280:952 | F146: 2011-10-25 | G146: 2011-11-01 | H146: =INT(($H$325-G146)/30) -> 50 | I146: =H146*1000 -> 50000 | J146: 37000 | L146: =I146-J146-K146 -> 13000 | R146: 4800 | V146: 2900 | X146: 2400 | Y146: =SUM(M146:X146) -> 10100 | Z146: 12 | AA146: =Z146*800 -> 9600 | AB146: =L146+AA146-Y146 -> 12500 | AC146: 800 | AE146: =AB146+AC146-AD146 -> 13300 | AF146: 800 | AH146: =AE146+AF146-AG146 -> 14100 | AI146: 800 | AJ146: 2400 | AK146: =AH146+AI146-AJ146 -> 12500 | AL146: 800 | AN146: =AK146+AL146-AM146 -> 13300
A147: =VLOOKUP(B147,справочник!$B$2:$E$322,4,0) -> 62 | B147: =CONCATENATE(C147;D147) ->  | C147: 64 | D147: Кривой Владимир Аркадьевич | E147: 50:03:0070280:933 | F147: 2011-09-30 | G147: 2011-10-01 | H147: =INT(($H$325-G147)/30) -> 51 | I147: =H147*1000 -> 51000 | J147: =1000+47000 -> 48000 | K147: 3000 | L147: =I147-J147-K147 -> 0 | O147: 3200 | T147: 3200 | X147: 3200 | Y147: =SUM(M147:X147) -> 9600 | Z147: 12 | AA147: =Z147*800 -> 9600 | AB147: =L147+AA147-Y147 -> 0 | AC147: 800 | AE147: =AB147+AC147-AD147 -> 800 | AF147: 800 | AH147: =AE147+AF147-AG147 -> 1600 | AI147: 800 | AK147: =AH147+AI147-AJ147 -> 2400 | AL147: 800 | AM147: 4000 | AN147: =AK147+AL147-AM147 -> -800
A148: =VLOOKUP(B148,справочник!$B$2:$E$322,4,0) -> 225 | B148: =CONCATENATE(C148;D148) ->  | C148: 234 | D148: Крупник Андрей Валерьевич | E148: 50:03:0070280:829 | F148: 2014-08-20 | G148: 2014-09-01 | H148: =INT(($H$325-G148)/30) -> 16 | I148: =H148*1000 -> 16000 | L148: =I148-J148-K148 -> 16000 | S148: 16000 | Y148: =SUM(M148:X148) -> 16000 | Z148: 12 | AA148: =Z148*800 -> 9600 | AB148: =L148+AA148-Y148 -> 9600 | AC148: 800 | AE148: =AB148+AC148-AD148 -> 10400 | AF148: 800 | AH148: =AE148+AF148-AG148 -> 11200 | AI148: 800 | AJ148: 6400 | AK148: =AH148+AI148-AJ148 -> 5600 | AL148: 800 | AN148: =AK148+AL148-AM148 -> 6400
A149: =VLOOKUP(B149,справочник!$B$2:$E$322,4,0) -> 266 | B149: =CONCATENATE(C149;D149) ->  | C149: 279 | D149: Кудревцев Евгений Александрович | E149: 50:03:0070280:724 | F149: 2011-09-13 | G149: 2011-09-01 | H149: =INT(($H$325-G149)/30) -> 52 | I149: =H149*1000 -> 52000 | J149: =40000+1000 -> 41000 | L149: =I149-J149-K149 -> 11000 | W149: 18000 | Y149: =SUM(M149:X149) -> 18000 | Z149: 12 | AA149: =Z149*800 -> 9600 | AB149: =L149+AA149-Y149 -> 2600 | AC149: 800 | AE149: =AB149+AC149-AD149 -> 3400 | AF149: 800 | AH149: =AE149+AF149-AG149 -> 4200 | AI149: 800 | AK149: =AH149+AI149-AJ149 -> 5000 | AL149: 800 | AM149: 5000 | AN149: =AK149+AL149-AM149 -> 800
A150: =VLOOKUP(B150,справочник!$B$2:$E$322,4,0) -> 157 | B150: =CONCATENATE(C150;D150) ->  | C150: 165 | D150: Кудрявцева Наталья Викторовна | E150: 50:03:0070280:927 | F150: 2011-12-08 | G150: 2011-12-01 | H150: =INT(($H$325-G150)/30) -> 49 | I150: =H150*1000 -> 49000 | J150: =12000+13000 -> 25000 | L150: =I150-J150-K150 -> 24000 | M150: 1000 | T150: 12000 | U150: 12000 | Y150: =SUM(M150:X150) -> 25000 | Z150: 12 | AA150: =Z150*800 -> 9600 | AB150: =L150+AA150-Y150 -> 8600 | AC150: 800 | AE150: =AB150+AC150-AD150 -> 9400 | AF150: 800 | AH150: =AE150+AF150-AG150 -> 10200 | AI150: 800 | AK150: =AH150+AI150-AJ150 -> 11000 | AL150: 800 | AN150: =AK150+AL150-AM150 -> 11800
A151: =VLOOKUP(B151,справочник!$B$2:$E$322,4,0) -> 194 | B151: =CONCATENATE(C151;D151) ->  | C151: 202 | D151: Куликов Александр Владимирович | E151: 50:03:0070280:886 | F151: 2014-09-16 | G151: 2014-10-01 | H151: =INT(($H$325-G151)/30) -> 15 | I151: =H151*1000 -> 15000 | J151: 11000 | L151: =I151-J151-K151 -> 4000 | N151: 5000 | U151: 9600 | Y151: =SUM(M151:X151) -> 14600 | Z151: 12 | AA151: =Z151*800 -> 9600 | AB151: =L151+AA151-Y151 -> -1000 | AC151: 800 | AE151: =AB151+AC151-AD151 -> -200 | AF151: 800 | AH151: =AE151+AF151-AG151 -> 600 | AI151: 800 | AK151: =AH151+AI151-AJ151 -> 1400 | AL151: 800 | AN151: =AK151+AL151-AM151 -> 2200
A152: =VLOOKUP(B152,справочник!$B$2:$E$322,4,0) -> 65 | B152: =CONCATENATE(C152;D152) ->  | C152: 67 | D152: Куликова Наталья Александровна | E152: 50:03:0070280:936 | F152: 2011-11-25 | G152: 2011-11-01 | H152: =INT(($H$325-G152)/30) -> 50 | I152: =H152*1000 -> 50000 | J152: =30000 -> 30000 | L152: =I152-J152-K152 -> 20000 | Y152: =SUM(M152:X152) -> 0 | Z152: 12 | AA152: =Z152*800 -> 9600 | AB152: =L152+AA152-Y152 -> 29600 | AC152: 800 | AE152: =AB152+AC152-AD152 -> 30400 | AF152: 800 | AH152: =AE152+AF152-AG152 -> 31200 | AI152: 800 | AK152: =AH152+AI152-AJ152 -> 32000 | AL152: 800 | AN152: =AK152+AL152-AM152 -> 32800
A153: =VLOOKUP(B153,справочник!$B$2:$E$322,4,0) -> 216 | B153: =CONCATENATE(C153;D153) ->  | C153: 225 | D153: Кулиш Сергей Александрович | E153: 50:03:0070280:838 | F153: 2014-05-14 | G153: 2014-05-01 | H153: =INT(($H$325-G153)/30) -> 20 | I153: =H153*1000 -> 20000 | J153: 20000 | L153: =I153-J153-K153 -> 0 | N153: 5200 | W153: 4400 | Y153: =SUM(M153:X153) -> 9600 | Z153: 12 | AA153: =Z153*800 -> 9600 | AB153: =L153+AA153-Y153 -> 0 | AC153: 0 | AE153: =SUM(AB153:AB154)+SUM(AC153:AC154)-SUM(AD153:AD154) -> 800 | AF153: 0 | AH153: =SUM(AE153:AE154)+SUM(AF153:AF154)-SUM(AG153:AG154) -> 1600 | AI153: 0 | AK153: =SUM(AH153:AH154)+SUM(AI153:AI154)-SUM(AJ153:AJ154) -> 2400 | AL153: 0 | AN153: =SUM(AK153:AK154)+SUM(AL153:AL154)-SUM(AM153:AM154) -> -800
A154: =VLOOKUP(B154,справочник!$B$2:$E$322,4,0) -> 216 | B154: =CONCATENATE(C154;D154) ->  | C154: 226 | D154: Кулиш Сергей Александрович | E154: 50:03:0070280:837 | F154: 2014-05-14 | G154: 2014-05-01 | H154: =INT(($H$325-G154)/30) -> 20 | I154: =H154*1000 -> 20000 | J154: 20000 | L154: =I154-J154-K154 -> 0 | Y154: =SUM(M154:X154) -> 0 | Z154: 0 | AA154: =Z154*800 -> 0 | AB154: =L154+AA154-Y154 -> 0 | AC154: 800 | AF154: 800 | AI154: 800 | AL154: 800 | AM154: 4000
A155: =VLOOKUP(B155,справочник!$B$2:$E$322,4,0) -> 56 | B155: =CONCATENATE(C155;D155) ->  | C155: 58 | D155: Кушваха Виджай Шанкар | E155: 50:03:0070280:963 | F155: 2011-06-21 | G155: 2011-07-01 | H155: =INT(($H$325-G155)/30) -> 54 | I155: =H155*1000 -> 54000 | J155: 1000 | L155: =I155-J155-K155 -> 53000 | Y155: =SUM(M155:X155) -> 0 | Z155: 12 | AA155: =Z155*800 -> 9600 | AB155: =L155+AA155-Y155 -> 62600 | AC155: 800 | AE155: =AB155+AC155-AD155 -> 63400 | AF155: 800 | AH155: =AE155+AF155-AG155 -> 64200 | AI155: 800 | AK155: =AH155+AI155-AJ155 -> 65000 | AL155: 800 | AN155: =AK155+AL155-AM155 -> 65800
A156: =VLOOKUP(B156,справочник!$B$2:$E$322,4,0) -> 150 | B156: =CONCATENATE(C156;D156) ->  | C156: 158 | D156: Лайпанов Рустам Сеитбиевич | E156: 50:03:0070280:959 | F156: 2011-08-15 | G156: 2011-09-01 | H156: =INT(($H$325-G156)/30) -> 52 | I156: =H156*1000 -> 52000 | J156: =21000+1000 -> 22000 | L156: =I156-J156-K156 -> 30000 | T156: 4800 | U156: 6000 | X156: 4800 | Y156: =SUM(M156:X156) -> 15600 | Z156: 12 | AA156: =Z156*800 -> 9600 | AB156: =L156+AA156-Y156 -> 24000 | AC156: 800 | AE156: =AB156+AC156-AD156 -> 24800 | AF156: 800 | AH156: =AE156+AF156-AG156 -> 25600 | AI156: 800 | AK156: =AH156+AI156-AJ156 -> 26400 | AL156: 800 | AN156: =AK156+AL156-AM156 -> 27200
A157: =VLOOKUP(B157,справочник!$B$2:$E$322,4,0) -> 243 | B157: =CONCATENATE(C157;D157) ->  | C157: 254 | D157: Лапшин Сергей Николаевич | E157: 50:03:0070280:791 | F157: 2011-09-05 | G157: 2011-09-01 | H157: =INT(($H$325-G157)/30) -> 52 | I157: =H157*1000 -> 52000 | J157: =1000 -> 1000 | K157: 45000 | L157: =I157-J157-K157 -> 6000 | M157: 5000 | N157: 4800 | R157: 4800 | Y157: =SUM(M157:X157) -> 14600 | Z157: 12 | AA157: =Z157*800 -> 9600 | AB157: =L157+AA157-Y157 -> 1000 | AC157: 800 | AD157: 1600 | AE157: =AB157+AC157-AD157 -> 200 | AF157: 800 | AH157: =AE157+AF157-AG157 -> 1000 | AI157: 800 | AJ157: 800 | AK157: =AH157+AI157-AJ157 -> 1000 | AL157: 800 | AN157: =AK157+AL157-AM157 -> 1800
A158: =VLOOKUP(B158,справочник!$B$2:$E$322,4,0) -> 220 | B158: =CONCATENATE(C158;D158) ->  | C158: 229 | D158: Ларионова Наталья Владимировна | E158: 50:03:0070280:834 | F158: 2014-06-10 | G158: 2014-07-01 | H158: =INT(($H$325-G158)/30) -> 18 | I158: =H158*1000 -> 18000 | J158: =1000 -> 1000 | L158: =I158-J158-K158 -> 17000 | Y158: =SUM(M158:X158) -> 0 | Z158: 12 | AA158: =Z158*800 -> 9600 | AB158: =L158+AA158-Y158 -> 26600 | AC158: 800 | AE158: =AB158+AC158-AD158 -> 27400 | AF158: 800 | AH158: =AE158+AF158-AG158 -> 28200 | AI158: 800 | AK158: =AH158+AI158-AJ158 -> 29000 | AL158: 800 | AN158: =AK158+AL158-AM158 -> 29800
A159: =VLOOKUP(B159,справочник!$B$2:$E$322,4,0) -> 3 | B159: =CONCATENATE(C159;D159) ->  | C159: 3 | D159: Лебедев Андрей Анатольевич | E159: 50:03:0070280:700 | F159: 2014-11-11 | G159: 2013-12-01 | H159: =INT(($H$325-G159)/30) -> 25 | I159: =H159*1000 -> 25000 | J159: =4000 -> 4000 | L159: =I159-J159-K159 -> 21000 | U159: 15000 | Y159: =SUM(M159:X159) -> 15000 | Z159: 12 | AA159: =Z159*800 -> 9600 | AB159: =L159+AA159-Y159 -> 15600 | AC159: 800 | AE159: =AB159+AC159-AD159 -> 16400 | AF159: 800 | AH159: =AE159+AF159-AG159 -> 17200 | AI159: 800 | AK159: =AH159+AI159-AJ159 -> 18000 | AL159: 800 | AN159: =AK159+AL159-AM159 -> 18800
A160: =VLOOKUP(B160,справочник!$B$2:$E$322,4,0) -> 158 | B160: =CONCATENATE(C160;D160) ->  | C160: 166 | D160: Лебедева Елена Александровна | E160: 50:03:0070280:926 | F160: 2014-01-21 | G160: 2014-02-01 | H160: =INT(($H$325-G160)/30) -> 23 | I160: =H160*1000 -> 23000 | J160: =1000 -> 1000 | L160: =I160-J160-K160 -> 22000 | Y160: =SUM(M160:X160) -> 0 | Z160: 12 | AA160: =Z160*800 -> 9600 | AB160: =L160+AA160-Y160 -> 31600 | AC160: 800 | AE160: =AB160+AC160-AD160 -> 32400 | AF160: 800 | AH160: =AE160+AF160-AG160 -> 33200 | AI160: 800 | AK160: =AH160+AI160-AJ160 -> 34000 | AL160: 800 | AN160: =AK160+AL160-AM160 -> 34800
A161: =VLOOKUP(B161,справочник!$B$2:$E$322,4,0) -> 139 | B161: =CONCATENATE(C161;D161) ->  | C161: 149 | D161: Левина Елена Александровна (Дмитрий) | E161: 50:03:0070280:943 | F161: 2011-06-21 | G161: 2011-07-01 | H161: =INT(($H$325-G161)/30) -> 54 | I161: =H161*1000 -> 54000 | J161: 54000 | L161: =I161-J161-K161 -> 0 | Q161: 4800 | T161: 4800 | Y161: =SUM(M161:X161) -> 9600 | Z161: 12 | AA161: =Z161*800 -> 9600 | AB161: =L161+AA161-Y161 -> 0 | AC161: 0 | AE161: =AB163+AC163-AD163 -> 39800 | AF161: 0 | AH161: =AE161+AF163-AG163 -> 35800 | AI161: 0 | AK161: =AH161+AI163-AJ163 -> 31800 | AL161: 0 | AN161: =AK161+AL163-AM163 -> 19600
A162: =VLOOKUP(B162,справочник!$B$2:$E$322,4,0) -> 139 | B162: =CONCATENATE(C162;D162) ->  | C162: 147 | D162: Левина Елена Александровна (Дмитрий) | E162: 50:03:0070280:941 | F162: 2011-06-21 | G162: 2011-07-01 | H162: =INT(($H$325-G162)/30) -> 54 | I162: =H162*1000 -> 54000 | J162: 54000 | L162: =I162-J162-K162 -> 0 | Y162: =SUM(M162:X162) -> 0 | Z162: 0 | AA162: =Z162*800 -> 0 | AB162: =L162+AA162-Y162 -> 0 | AC162: 0 | AF162: 0 | AI162: 0 | AL162: 0
A163: =VLOOKUP(B163,справочник!$B$2:$E$322,4,0) -> 139 | B163: =CONCATENATE(C163;D163) ->  | C163: 148 | D163: Левина Елена Александровна (Дмитрий) | E163: 50:03:0070280:942 | F163: 2011-06-21 | G163: 2011-07-01 | H163: =INT(($H$325-G163)/30) -> 54 | I163: =H163*1000 -> 54000 | J163: =11000+4000 -> 15000 | L163: =I163-J163-K163 -> 39000 | Y163: =SUM(M163:X163) -> 0 | Z163: 0 | AA163: =Z163*800 -> 0 | AB163: =L163+AA163-Y163 -> 39000 | AC163: 800 | AF163: 800 | AG163: 4800 | AI163: 800 | AJ163: 4800 | AL163: 800 | AM163: 13000
A164: =VLOOKUP(B164,справочник!$B$2:$E$322,4,0) -> 261 | B164: =CONCATENATE(C164;D164) ->  | C164: 274 | D164: Леськов Олег Петрович | E164: 50:03:0070280:1465 | F164: 2013-04-09 | G164: 2013-05-01 | H164: =INT(($H$325-G164)/30) -> 32 | I164: =H164*1000 -> 32000 | J164: 19000 | L164: =I164-J164-K164 -> 13000 | M164: 2400 | P164: 2400 | S164: 3200 | X164: 4000 | Y164: =SUM(M164:X164) -> 12000 | Z164: 12 | AA164: =Z164*800 -> 9600 | AB164: =L164+AA164-Y164 -> 10600 | AC164: 800 | AE164: =SUM(AB164:AB165)+SUM(AC164:AC165) -> 28400 | AF164: 800 | AH164: =SUM(AE164:AE165)+SUM(AF164:AF165) -> 29200 | AI164: 800 | AK164: =SUM(AH164:AH165)+SUM(AI164:AI165) -> 30000 | AL164: 800 | AN164: =SUM(AK164:AK165)+SUM(AL164:AL165) -> 30800
A165: =VLOOKUP(B165,справочник!$B$2:$E$322,4,0) -> 261 | B165: =CONCATENATE(C165;D165) ->  | C165: 275 | D165: Леськов Олег Петрович | F165: 2012-04-17 | G165: 2012-04-01 | H165: =INT(($H$325-G165)/30) -> 45 | I165: =H165*1000 -> 45000 | J165: =9000+19000 -> 28000 | L165: =I165-J165-K165 -> 17000 | Y165: =SUM(M165:X165) -> 0 | Z165: 0 | AA165: =Z165*800 -> 0 | AB165: =L165+AA165-Y165 -> 17000 | AC165: 0 | AF165: 0 | AI165: 0 | AL165: 0
A166: =VLOOKUP(B166,справочник!$B$2:$E$322,4,0) -> 288 | B166: =CONCATENATE(C166;D166) ->  | C166: 300 | D166: Ли Наталья Сергеевна | E166: 50:03:0070280:773 | F166: 2013-08-27 | G166: 2013-09-01 | H166: =INT(($H$325-G166)/30) -> 28 | I166: =H166*1000 -> 28000 | L166: =I166-J166-K166 -> 28000 | Y166: =SUM(M166:X166) -> 0 | Z166: 12 | AA166: =Z166*800 -> 9600 | AB166: =L166+AA166-Y166 -> 37600 | AC166: 800 | AE166: =AB166+AC166-AD166 -> 38400 | AF166: 800 | AH166: =AE166+AF166-AG166 -> 39200 | AI166: 800 | AK166: =AH166+AI166-AJ166 -> 40000 | AL166: 800 | AN166: =AK166+AL166-AM166 -> 40800
A167: =VLOOKUP(B167,справочник!$B$2:$E$322,4,0) -> 166 | B167: =CONCATENATE(C167;D167) ->  | C167: 174 | D167: Ловыгина Татьяна Александровна | E167: 50:03:0070280:891 | F167: 2014-07-09 | G167: 2014-08-01 | H167: =INT(($H$325-G167)/30) -> 17 | I167: =H167*1000 -> 17000 | J167: 5000 | L167: =I167-J167-K167 -> 12000 | S167: 6800 | T167: 5000 | U167: 2400 | Y167: =SUM(M167:X167) -> 14200 | Z167: 12 | AA167: =Z167*800 -> 9600 | AB167: =L167+AA167-Y167 -> 7400 | AC167: 800 | AE167: =AB167+AC167-AD167 -> 8200 | AF167: 800 | AG167: 4000 | AH167: =AE167+AF167-AG167 -> 5000 | AI167: 800 | AK167: =AH167+AI167-AJ167 -> 5800 | AL167: 800 | AN167: =AK167+AL167-AM167 -> 6600
A168: =VLOOKUP(B168,справочник!$B$2:$E$322,4,0) -> 118 | B168: =CONCATENATE(C168;D168) ->  | C168: 123 | D168: Лопухинова Надежда Михайловна | E168: 50:03:0070280:1020 | F168: 2013-06-10 | G168: 2013-07-01 | H168: =INT(($H$325-G168)/30) -> 30 | I168: =H168*1000 -> 30000 | J168: 23000 | L168: =I168-J168-K168 -> 7000 | S168: 12000 | Y168: =SUM(M168:X168) -> 12000 | Z168: 12 | AA168: =Z168*800 -> 9600 | AB168: =L168+AA168-Y168 -> 4600 | AC168: 800 | AE168: =AB168+AC168-AD168 -> 5400 | AF168: 800 | AH168: =AE168+AF168-AG168 -> 6200 | AI168: 800 | AK168: =AH168+AI168-AJ168 -> 7000 | AL168: 800 | AN168: =AK168+AL168-AM168 -> 7800
A169: =VLOOKUP(B169,справочник!$B$2:$E$322,4,0) -> 199 | B169: =CONCATENATE(C169;D169) ->  | C169: 207 | D169: Лошкарев Виктор Ильич | E169: 50:03:0070280:775 | F169: 2012-05-07 | G169: 2012-05-01 | H169: =INT(($H$325-G169)/30) -> 44 | I169: =H169*1000 -> 44000 | J169: 1000 | L169: =I169-J169-K169 -> 43000 | Y169: =SUM(M169:X169) -> 0 | Z169: 12 | AA169: =Z169*800 -> 9600 | AB169: =L169+AA169-Y169 -> 52600 | AC169: 800 | AE169: =SUM(AB169:AB170)+SUM(AC169:AC170) -> 96400 | AF169: 800 | AH169: =SUM(AE169:AE170)+SUM(AF169:AF170) -> 97200 | AI169: 800 | AK169: =SUM(AH169:AH170)+SUM(AI169:AI170) -> 98000 | AL169: 800 | AN169: =SUM(AK169:AK170)+SUM(AL169:AL170) -> 98800
A170: =VLOOKUP(B170,справочник!$B$2:$E$322,4,0) -> 199 | B170: =CONCATENATE(C170;D170) ->  | C170: 208 | D170: Лошкарев Виктор Ильич | E170: 50:03:0070280:892 | F170: 2012-05-07 | G170: 2012-05-01 | H170: =INT(($H$325-G170)/30) -> 44 | I170: =H170*1000 -> 44000 | J170: 1000 | L170: =I170-J170-K170 -> 43000 | Y170: =SUM(M170:X170) -> 0 | Z170: 0 | AA170: =Z170*800 -> 0 | AB170: =L170+AA170-Y170 -> 43000 | AC170: 0 | AF170: 0 | AI170: 0 | AL170: 0
A171: =VLOOKUP(B171,справочник!$B$2:$E$322,4,0) -> 164 | B171: =CONCATENATE(C171;D171) ->  | C171: 172 | D171: Лунёв Денис Александрович | E171: 50:03:0070280:769 | F171: 2013-10-29 | G171: 2013-11-01 | H171: =INT(($H$325-G171)/30) -> 26 | I171: =H171*1000 -> 26000 | J171: 1000 | L171: =I171-J171-K171 -> 25000 | W171: 10600 | Y171: =SUM(M171:X171) -> 10600 | Z171: 12 | AA171: =Z171*800 -> 9600 | AB171: =L171+AA171-Y171 -> 24000 | AC171: 800 | AE171: =AB171+AC171-AD171 -> 24800 | AF171: 800 | AH171: =AE171+AF171-AG171 -> 25600 | AI171: 800 | AK171: =AH171+AI171-AJ171 -> 26400 | AL171: 800 | AN171: =AK171+AL171-AM171 -> 27200
A172: =VLOOKUP(B172,справочник!$B$2:$E$322,4,0) -> 34 | B172: =CONCATENATE(C172;D172) ->  | C172: 34 | D172: Лунева Ольга Петровна | E172: 50:03:0070280:904 | F172: 2011-08-26 | G172: 2011-09-01 | H172: =INT(($H$325-G172)/30) -> 52 | I172: =H172*1000 -> 52000 | J172: 55000 | L172: =I172-J172-K172 -> -3000 | Y172: =SUM(M172:X172) -> 0 | Z172: 12 | AA172: =Z172*800 -> 9600 | AB172: =L172+AA172-Y172 -> 6600 | AC172: 800 | AE172: =AB172+AC172-AD172 -> 7400 | AF172: 800 | AH172: =AE172+AF172-AG172 -> 8200 | AI172: 800 | AK172: =AH172+AI172-AJ172 -> 9000 | AL172: 800 | AN172: =AK172+AL172-AM172 -> 9800
A173: =VLOOKUP(B173,справочник!$B$2:$E$322,4,0) -> 13 | B173: =CONCATENATE(C173;D173) ->  | C173: 13 | D173: Малов Алексей Викторович | E173: 50:03:0070280:702 | F173: 2013-07-09 | G173: 2013-08-01 | H173: =INT(($H$325-G173)/30) -> 29 | I173: =H173*1000 -> 29000 | J173: 13000 | L173: =I173-J173-K173 -> 16000 | S173: 20000 | Y173: =SUM(M173:X173) -> 20000 | Z173: 12 | AA173: =Z173*800 -> 9600 | AB173: =L173+AA173-Y173 -> 5600 | AC173: 800 | AE173: =AB173+AC173-AD173 -> 6400 | AF173: 800 | AH173: =AE173+AF173-AG173 -> 7200 | AI173: 800 | AK173: =AH173+AI173-AJ173 -> 8000 | AL173: 800 | AN173: =AK173+AL173-AM173 -> 8800
A174: =VLOOKUP(B174,справочник!$B$2:$E$322,4,0) -> 273 | B174: =CONCATENATE(C174;D174) ->  | C174: 286 | D174: Маргиева Марина Евгеньевна | E174: 50:03:0070280:714 | F174: 2014-12-19 | G174: 2015-01-01 | H174: =INT(($H$325-G174)/30) -> 12 | I174: =H174*1000 -> 12000 | J174: 8000 | L174: =I174-J174-K174 -> 4000 | R174: 8000 | U174: 1600 | X174: =800+800+1600 -> 3200 | Y174: =SUM(M174:X174) -> 12800 | Z174: 12 | AA174: =Z174*800 -> 9600 | AB174: =L174+AA174-Y174 -> 800 | AC174: 800 | AE174: =AB174+AC174-AD174 -> 1600 | AF174: 800 | AH174: =AE174+AF174-AG174 -> 2400 | AI174: 800 | AJ174: =1600+800 -> 2400 | AK174: =AH174+AI174-AJ174 -> 800 | AL174: 800 | AN174: =AK174+AL174-AM174 -> 1600
A175: =VLOOKUP(B175,справочник!$B$2:$E$322,4,0) -> 87 | B175: =CONCATENATE(C175;D175) ->  | C175: 92 | D175: Маркина Людмила Николаевна, Марина | E175: 50:03:0070280:865 | F175: 2012-08-23 | G175: 2012-09-01 | H175: =INT(($H$325-G175)/30) -> 40 | I175: =H175*1000 -> 40000 | J175: 37000 | L175: =I175-J175-K175 -> 3000 | Y175: =SUM(M175:X175) -> 0 | Z175: 12 | AA175: =Z175*800 -> 9600 | AB175: =L175+AA175-Y175 -> 12600 | AC175: 800 | AD175: 1600 | AE175: =AB175+AC175-AD175 -> 11800 | AF175: 800 | AH175: =AE175+AF175-AG175 -> 12600 | AI175: 800 | AK175: =AH175+AI175-AJ175 -> 13400 | AL175: 800 | AN175: =AK175+AL175-AM175 -> 14200
A176: =VLOOKUP(B176,справочник!$B$2:$E$322,4,0) -> 154 | B176: =CONCATENATE(C176;D176) ->  | C176: 162 | D176: Марков Максим Юрьевич | E176: 50:03:0070280:959 | F176: 2011-06-26 | G176: 2011-07-01 | H176: =INT(($H$325-G176)/30) -> 54 | I176: =H176*1000 -> 54000 | J176: 50000 | L176: =I176-J176-K176 -> 4000 | P176: 2400 | Q176: 800 | R176: 1600 | S176: 800 | T176: 800 | U176: 800 | V176: 800 | W176: 800 | X176: 800 | Y176: =SUM(M176:X176) -> 9600 | Z176: 12 | AA176: =Z176*800 -> 9600 | AB176: =L176+AA176-Y176 -> 4000 | AC176: 800 | AD176: 800 | AE176: =AB176+AC176-AD176 -> 4000 | AF176: 800 | AH176: =AE176+AF176-AG176 -> 4800 | AI176: 800 | AK176: =AH176+AI176-AJ176 -> 5600 | AL176: 800 | AM176: 800 | AN176: =AK176+AL176-AM176 -> 5600
A177: =VLOOKUP(B177,справочник!$B$2:$E$322,4,0) -> 270 | B177: =CONCATENATE(C177;D177) ->  | C177: 283 | D177: Маркова Тамара Ивановна | E177: 50:03:0070280:717 | F177: 2013-05-28 | G177: 2013-07-01 | H177: =INT(($H$325-G177)/30) -> 30 | I177: =H177*1000 -> 30000 | J177: 20000 | L177: =I177-J177-K177 -> 10000 | T177: 14800 | Y177: =SUM(M177:X177) -> 14800 | Z177: 12 | AA177: =Z177*800 -> 9600 | AB177: =L177+AA177-Y177 -> 4800 | AC177: 800 | AE177: =AB177+AC177-AD177 -> 5600 | AF177: 800 | AH177: =AE177+AF177-AG177 -> 6400 | AI177: 800 | AK177: =AH177+AI177-AJ177 -> 7200 | AL177: 800 | AN177: =AK177+AL177-AM177 -> 8000
A178: =VLOOKUP(B178,справочник!$B$2:$E$322,4,0) -> 9 | B178: =CONCATENATE(C178;D178) ->  | C178: 9 | D178: Марковнина Светлана Викторовна | E178: 50:03:0070280:706 | F178: 2012-07-24 | G178: 2012-08-01 | H178: =INT(($H$325-G178)/30) -> 41 | I178: =H178*1000 -> 41000 | J178: 18000 | L178: =I178-J178-K178 -> 23000 | Q178: 9000 | R178: 1600 | S178: 1000 | T178: 11000 | V178: 7000 | X178: 3000 | Y178: =SUM(M178:X178) -> 32600 | Z178: 12 | AA178: =Z178*800 -> 9600 | AB178: =L178+AA178-Y178 -> 0 | AC178: 800 | AD178: 4800 | AE178: =AB178+AC178-AD178 -> -4000 | AF178: 800 | AH178: =AE178+AF178-AG178 -> -3200 | AI178: 800 | AK178: =AH178+AI178-AJ178 -> -2400 | AL178: 800 | AN178: =AK178+AL178-AM178 -> -1600
A179: =VLOOKUP(B179,справочник!$B$2:$E$322,4,0) -> 129 | B179: =CONCATENATE(C179;D179) ->  | C179: 136 | D179: Маслов Александр Александрович | E179: 50:03:0070280:978 | F179: 2013-03-19 | G179: 2013-04-01 | H179: =INT(($H$325-G179)/30) -> 33 | I179: =H179*1000 -> 33000 | J179: 31000 | L179: =I179-J179-K179 -> 2000 | N179: 3000 | P179: 3000 | S179: 3000 | Y179: =SUM(M179:X179) -> 9000 | Z179: 12 | AA179: =Z179*800 -> 9600 | AB179: =L179+AA179-Y179 -> 2600 | AC179: 800 | AE179: =AB179+AC179-AD179 -> 3400 | AF179: 800 | AG179: 3000 | AH179: =AE179+AF179-AG179 -> 1200 | AI179: 800 | AK179: =AH179+AI179-AJ179 -> 2000 | AL179: 800 | AN179: =AK179+AL179-AM179 -> 2800
A180: =VLOOKUP(B180,справочник!$B$2:$E$322,4,0) -> 42 | B180: =CONCATENATE(C180;D180) ->  | C180: 42 | D180: Маслов Андрей Геннадьевич (1/2) Щербакова Надежда Михайловна (1/2) | E180: 50:03:0070280:800 | F180: 2011-08-30 | G180: 2011-09-01 | H180: =INT(($H$325-G180)/30) -> 52 | I180: =H180*1000 -> 52000 | J180: =19500+500+4500+23500 -> 48000 | L180: =I180-J180-K180 -> 4000 | M180: 5000 | N180: 1400 | P180: 1600 | R180: 1600 | V180: 2400 | X180: 1600 | Y180: =SUM(M180:X180) -> 13600 | Z180: 12 | AA180: =Z180*800 -> 9600 | AB180: =L180+AA180-Y180 -> 0 | AC180: 800 | AE180: =AB180+AC180-AD180 -> 800 | AF180: 800 | AG180: 800 | AH180: =AE180+AF180-AG180 -> 800 | AI180: 800 | AJ180: 800 | AK180: =AH180+AI180-AJ180 -> 800 | AL180: 800 | AN180: =AK180+AL180-AM180 -> 1600
A181: =VLOOKUP(B181,справочник!$B$2:$E$322,4,0) -> 96 | B181: =CONCATENATE(C181;D181) ->  | C181: 101 | D181: Маслова Валентина Петровна | E181: 50:03:0070280:1651 | F181: 2011-06-14 | G181: 2011-07-01 | H181: 32 | I181: =H181*1000 -> 32000 | J181: 41012 | L181: =I181-J181-K181 -> -9012 | M181: 9000 | P181: 2000 | R181: 2000 | T181: 2000 | V181: 2000 | X181: 2000 | Y181: =SUM(M181:X181) -> 19000 | Z181: 12 | AA181: =Z181*800 -> 9600 | AB181: =L181+AA181-Y181 -> -18412 | AC181: 800 | AE181: =SUM(AB181:AB182)+SUM(AC181:AC182)-SUM(AD181:AD182) -> -7612 | AF181: 800 | AG181: 2000 | AH181: =SUM(AE181:AE182)+SUM(AF181:AF182)-SUM(AG181:AG182) -> -8812 | AI181: 800 | AK181: =SUM(AH181:AH182)+SUM(AI181:AI182)-SUM(AJ181:AJ182) -> -8012 | AL181: 800 | AN181: =SUM(AK181:AK182)+SUM(AL181:AL182)-SUM(AM181:AM182) -> -7212
A182: =VLOOKUP(B182,справочник!$B$2:$E$322,4,0) -> 96 | B182: =CONCATENATE(C182;D182) ->  | C182: 102 | D182: Маслова Валентина Петровна | F182: 2011-06-14 | G182: 2011-07-01 | H182: 51 | I182: =H182*1000 -> 51000 | J182: 41000 | L182: =I182-J182-K182 -> 10000 | Y182: =SUM(M182:X182) -> 0 | Z182: 0 | AA182: =Z182*800 -> 0 | AB182: =L182+AA182-Y182 -> 10000 | AC182: 0 | AF182: 0 | AI182: 0 | AL182: 0
A183: =VLOOKUP(B183,справочник!$B$2:$E$322,4,0) -> 292 | B183: =CONCATENATE(C183;D183) ->  | C183: 305 | D183: Матвеев Денис Львович | E183: 50:03:0070280:996 | F183: 2015-01-14 | G183: 2015-02-01 | H183: =INT(($H$325-G183)/30) -> 11 | I183: =H183*1000 -> 11000 | L183: =I183-J183-K183 -> 11000 | Y183: =SUM(M183:X183) -> 0 | Z183: 12 | AA183: =Z183*800 -> 9600 | AB183: =L183+AA183-Y183 -> 20600 | AC183: 800 | AE183: =AB183+AC183-AD183 -> 21400 | AF183: 800 | AH183: =AE183+AF183-AG183 -> 22200 | AI183: 800 | AK183: =AH183+AI183-AJ183 -> 23000 | AL183: 800 | AN183: =AK183+AL183-AM183 -> 23800
A184: =VLOOKUP(B184,справочник!$B$2:$E$322,4,0) -> 209 | B184: =CONCATENATE(C184;D184) ->  | C184: 219 | D184: Мельников Михаил Вячеславович / Диденко | F184: 2012-12-05 | G184: 2013-03-01 | H184: 20 | I184: =H184*1000 -> 20000 | L184: =I184-J184-K184 -> 20000 | Q184: 2000 | R184: 3000 | T184: 3000 | V184: 3000 | W184: 2000 | Y184: =SUM(M184:X184) -> 13000 | Z184: 12 | AA184: =Z184*800 -> 9600 | AB184: =L184+AA184-Y184 -> 16600 | AC184: 800 | AE184: =AB184+AC184-AD184 -> 17400 | AF184: 800 | AH184: =AE184+AF184-AG184 -> 18200 | AI184: 800 | AK184: =AH184+AI184-AJ184 -> 19000 | AL184: 800 | AN184: =AK184+AL184-AM184 -> 19800
A185: =VLOOKUP(B185,справочник!$B$2:$E$322,4,0) -> 257 | B185: =CONCATENATE(C185;D185) ->  | C185: 270 | D185: Месхидзе Оксана Валерьевна | E185: 50:03:0070280:733 | F185: 2013-09-09 | G185: 2013-10-01 | H185: =INT(($H$325-G185)/30) -> 27 | I185: =H185*1000 -> 27000 | J185: 1000 | L185: =I185-J185-K185 -> 26000 | Y185: =SUM(M185:X185) -> 0 | Z185: 12 | AA185: =Z185*800 -> 9600 | AB185: =L185+AA185-Y185 -> 35600 | AC185: 800 | AE185: =AB185+AC185-AD185 -> 36400 | AF185: 800 | AH185: =AE185+AF185-AG185 -> 37200 | AI185: 800 | AK185: =AH185+AI185-AJ185 -> 38000 | AL185: 800 | AN185: =AK185+AL185-AM185 -> 38800
A186: =VLOOKUP(B186,справочник!$B$2:$E$322,4,0) -> 212 | B186: =CONCATENATE(C186;D186) ->  | C186: 221 | D186: Милишенко Надежда Ивановна | E186: 50:03:0070280:842 | F186: 2013-10-05 | G186: 2013-11-01 | H186: =INT(($H$325-G186)/30) -> 26 | I186: =H186*1000 -> 26000 | J186: 23000 | L186: =I186-J186-K186 -> 3000 | M186: 600 | O186: 1600 | P186: 800 | S186: 800 | T186: 800 | V186: 1600 | X186: 1600 | Y186: =SUM(M186:X186) -> 7800 | Z186: 12 | AA186: =Z186*800 -> 9600 | AB186: =L186+AA186-Y186 -> 4800 | AC186: 800 | AE186: =AB186+AC186-AD186 -> 5600 | AF186: 800 | AH186: =AE186+AF186-AG186 -> 6400 | AI186: 800 | AJ186: 1600 | AK186: =AH186+AI186-AJ186 -> 5600 | AL186: 800 | AM186: 800 | AN186: =AK186+AL186-AM186 -> 5600
A187: =VLOOKUP(B187,справочник!$B$2:$E$322,4,0) ->  | B187: =CONCATENATE(C187;D187) ->  | C187: 59 | D187: Милоянин Алексей Леонидович | P187: 3200 | W187: 6400 | Y187: =SUM(M187:X187) -> 9600 | Z187: 12 | AA187: =Z187*800 -> 9600 | AB187: =L187+AA187-Y187 -> 0 | AC187: 800 | AE187: =AB187+AC187-AD187 -> 800 | AF187: 800 | AH187: =AE187+AF187-AG187 -> 1600 | AI187: 800 | AJ187: 3200 | AK187: =AH187+AI187-AJ187 -> -800 | AL187: 800 | AN187: =AK187+AL187-AM187 -> 0
A188: =VLOOKUP(B188,справочник!$B$2:$E$322,4,0) -> 186 | B188: =CONCATENATE(C188;D188) ->  | C188: 194 | D188: Мирошниченко Андрей Иванович Захарова Елена Александровна | E188: 50:03:0070280:914 | F188: 2014-08-21 | G188: 2014-09-01 | H188: =INT(($H$325-G188)/30) -> 16 | I188: =H188*1000 -> 16000 | J188: 12000 | L188: =I188-J188-K188 -> 4000 | P188: 5000 | Y188: =SUM(M188:X188) -> 5000 | Z188: 12 | AA188: =Z188*800 -> 9600 | AB188: =L188+AA188-Y188 -> 8600 | AC188: 800 | AE188: =AB188+AC188-AD188 -> 9400 | AF188: 800 | AH188: =AE188+AF188-AG188 -> 10200 | AI188: 800 | AK188: =AH188+AI188-AJ188 -> 11000 | AL188: 800 | AN188: =AK188+AL188-AM188 -> 11800
A189: =VLOOKUP(B189,справочник!$B$2:$E$322,4,0) -> 187 | B189: =CONCATENATE(C189;D189) ->  | C189: 195 | D189: Мирошниченко Екатерина Олеговна | E189: 50:03:0070280:913 | F189: 2013-09-25 | G189: 2013-10-01 | H189: =INT(($H$325-G189)/30) -> 27 | I189: =H189*1000 -> 27000 | L189: =I189-J189-K189 -> 27000 | P189: 5000 | T189: 5000 | Y189: =SUM(M189:X189) -> 10000 | Z189: 12 | AA189: =Z189*800 -> 9600 | AB189: =L189+AA189-Y189 -> 26600 | AC189: 800 | AE189: =AB189+AC189-AD189 -> 27400 | AF189: 800 | AH189: =AE189+AF189-AG189 -> 28200 | AI189: 800 | AK189: =AH189+AI189-AJ189 -> 29000 | AL189: 800 | AN189: =AK189+AL189-AM189 -> 29800
A190: =VLOOKUP(B190,справочник!$B$2:$E$322,4,0) -> 211 | B190: =CONCATENATE(C190;D190) ->  | C190: 220 | D190: Модин Игорь Николаевич | E190: 50:03:0070280:843 | F190: 2013-05-23 | G190: 2013-06-01 | H190: =INT(($H$325-G190)/30) -> 31 | I190: =H190*1000 -> 31000 | J190: 26000 | K190: 7000 | L190: =I190-J190-K190 -> -2000 | V190: 9600 | Y190: =SUM(M190:X190) -> 9600 | Z190: 12 | AA190: =Z190*800 -> 9600 | AB190: =L190+AA190-Y190 -> -2000 | AC190: 800 | AE190: =AB190+AC190-AD190 -> -1200 | AF190: 800 | AH190: =AE190+AF190-AG190 -> -400 | AI190: 800 | AK190: =AH190+AI190-AJ190 -> 400 | AL190: 800 | AN190: =AK190+AL190-AM190 -> 1200
A191: =VLOOKUP(B191,справочник!$B$2:$E$322,4,0) -> 242 | B191: =CONCATENATE(C191;D191) ->  | C191: 253 | D191: Моисеев Андрей Валентинович | E191: 50:03:0070280:792 | F191: 2013-03-19 | G191: 2013-04-01 | H191: =INT(($H$325-G191)/30) -> 33 | I191: =H191*1000 -> 33000 | J191: 4000 | L191: =I191-J191-K191 -> 29000 | Y191: =SUM(M191:X191) -> 0 | Z191: 12 | AA191: =Z191*800 -> 9600 | AB191: =L191+AA191-Y191 -> 38600 | AC191: 800 | AE191: =AB191+AC191-AD191 -> 39400 | AF191: 800 | AH191: =AE191+AF191-AG191 -> 40200 | AI191: 800 | AK191: =AH191+AI191-AJ191 -> 41000 | AL191: 800 | AN191: =AK191+AL191-AM191 -> 41800
A192: =VLOOKUP(B192,справочник!$B$2:$E$322,4,0) -> 218 | B192: =CONCATENATE(C192;D192) ->  | C192: 227 | D192: Молчанова Ирина Владимировна | E192: 50:03:0070280:836 | F192: 2011-09-07 | G192: 2011-09-01 | H192: =INT(($H$325-G192)/30) -> 52 | I192: =H192*1000 -> 52000 | J192: 33000 | K192: 5000 | L192: =I192-J192-K192 -> 14000 | O192: 1000 | R192: 5000 | S192: 12000 | U192: 3200 | X192: 2400 | Y192: =SUM(M192:X192) -> 23600 | Z192: 12 | AA192: =Z192*800 -> 9600 | AB192: =L192+AA192-Y192 -> 0 | AC192: 800 | AE192: =AB192+AC192-AD192 -> 800 | AF192: 800 | AG192: 800 | AH192: =AE192+AF192-AG192 -> 800 | AI192: 800 | AJ192: 800 | AK192: =AH192+AI192-AJ192 -> 800 | AL192: 800 | AN192: =AK192+AL192-AM192 -> 1600
A193: =VLOOKUP(B193,справочник!$B$2:$E$322,4,0) -> 120 | B193: =CONCATENATE(C193;D193) ->  | C193: 125 | D193: Мудрак Владимир Григорьевич (Марина) | E193: 50:03:0070280:1022 | F193: 2013-05-23 | G193: 2013-06-01 | H193: =INT(($H$325-G193)/30) -> 31 | I193: =H193*1000 -> 31000 | J193: 21000 | L193: =I193-J193-K193 -> 10000 | M193: 5000 | N193: 6600 | O193: 2000 | R193: 1200 | V193: 3200 | X193: 1600 | Y193: =SUM(M193:X193) -> 19600 | Z193: 12 | AA193: =Z193*800 -> 9600 | AB193: =L193+AA193-Y193 -> 0 | AC193: 800 | AE193: =AB193+AC193-AD193 -> 800 | AF193: 800 | AH193: =AE193+AF193-AG193 -> 1600 | AI193: 800 | AK193: =AH193+AI193-AJ193 -> 2400 | AL193: 800 | AN193: =AK193+AL193-AM193 -> 3200
A194: =VLOOKUP(B194,справочник!$B$2:$E$322,4,0) -> 287 | B194: =CONCATENATE(C194;D194) ->  | C194: 299 | D194: Мурадова Альбина Сергеевна | E194: 50:03:0070280:774 | F194: 2014-09-15 | G194: 2014-10-01 | H194: =INT(($H$325-G194)/30) -> 15 | I194: =H194*1000 -> 15000 | J194: 13000 | L194: =I194-J194-K194 -> 2000 | S194: 5200 | X194: 5600 | Y194: =SUM(M194:X194) -> 10800 | Z194: 12 | AA194: =Z194*800 -> 9600 | AB194: =L194+AA194-Y194 -> 800 | AC194: 800 | AE194: =AB194+AC194-AD194 -> 1600 | AF194: 800 | AG194: =1600 -> 1600 | AH194: =AE194+AF194-AG194 -> 800 | AI194: 800 | AJ194: 1800 | AK194: =AH194+AI194-AJ194 -> -200 | AL194: 800 | AN194: =AK194+AL194-AM194 -> 600
A195: =VLOOKUP(B195,справочник!$B$2:$E$322,4,0) -> 170 | B195: =CONCATENATE(C195;D195) ->  | C195: 178 | D195: Науменко Дмитрий Александрович | E195: 50:03:0070280:767 | F195: 2013-05-20 | G195: 2013-07-01 | H195: =INT(($H$325-G195)/30) -> 30 | I195: =H195*1000 -> 30000 | J195: 29000 | K195: 1000 | L195: =I195-J195-K195 -> 0 | M195: 2400 | O195: 2400 | R195: 2400 | V195: 2400 | X195: 2400 | Y195: =SUM(M195:X195) -> 12000 | Z195: 12 | AA195: =Z195*800 -> 9600 | AB195: =L195+AA195-Y195 -> -2400 | AC195: 800 | AE195: =SUM(AB195:AB196)+SUM(AC195:AC196)-SUM(AD195:AD196) -> -1600 | AF195: 800 | AH195: =SUM(AE195:AE196)+SUM(AF195:AF196)-SUM(AG195:AG196) -> -800 | AI195: 800 | AK195: =SUM(AH195:AH196)+SUM(AI195:AI196)-SUM(AJ195:AJ196) -> 0 | AL195: 800 | AM195: 3200 | AN195: =SUM(AK195:AK196)+SUM(AL195:AL196)-SUM(AM195:AM196) -> -2400
A196: =VLOOKUP(B196,справочник!$B$2:$E$322,4,0) -> 170 | B196: =CONCATENATE(C196;D196) ->  | C196: 179 | D196: Науменко Дмитрий Александрович | E196: 50:03:0070280:766 | F196: 2013-05-20 | G196: 2013-07-01 | H196: =INT(($H$325-G196)/30) -> 30 | I196: =H196*1000 -> 30000 | J196: 29000 | K196: 1000 | L196: =I196-J196-K196 -> 0 | Y196: =SUM(M196:X196) -> 0 | Z196: 0 | AA196: =Z196*800 -> 0 | AB196: =L196+AA196-Y196 -> 0 | AC196: 0 | AF196: 0 | AI196: 0 | AL196: 0
